{"text_format":"1","workbook":"xlsx","n_sheets":18,"sheets":["Huvudsida","Innehåll","Indata för gården","Traktorer","Maskinpark","Grundförutsättningar för skifte","Årsmån","Graf Indata","Chart1","Skiften&Växtföljder - Översikt","Grundförbättringsindex","Hur mår din jord","Mall-VF","Mall-MB","Tabeller","DBområde","Databas","Torkdagar"],"not_rendered":{"charts":2,"images":5,"macros":1,"external_links":0,"defined_names":255,"comments":5,"pivot_tables":0},"unopened":[{"sheet":"Chart1","index":8,"reason":"not_a_worksheet"}],"bounds":{"document_bytes":16777216,"sheet_cells":100000,"rows_first":2000,"rows_last":500,"rows_between":2000,"halvings":0,"cell_chars":16384,"cell_head_chars":4096},"cells_cut":0,"cells_raw":0,"read":"whole","date_system":"1900"}

{"sheet":"Huvudsida","index":0,"n_rows":35,"n_cols":11,"rows_kept":35,"cut":false,"hidden":false,"merged":[]}
[]
[]
[]
[]
[]
[]
[]
[]
[]
[]
[]
[]
[]
[]
[]
[]
[]
[]
[]
[]
[]
[]
[]
[]
[]
[]
[]
[]
[]
[]
[]
[]
[]
[]
[null,"www.slu.se",null,null,null,null,null,null,null,null,"www.odlingibalans.com"]

{"sheet":"Innehåll","index":1,"n_rows":29,"n_cols":3,"rows_kept":29,"cut":false,"hidden":false,"merged":[[2,1,3,1],[2,2,3,2],[4,1,5,1],[4,2,5,2],[14,1,15,1],[14,2,15,2],[16,1,17,1],[16,2,17,2],[6,1,7,1],[6,2,7,2],[12,1,13,1],[12,2,13,2],[8,1,9,1],[8,2,9,2],[10,1,11,1],[10,2,11,2],[18,1,19,1],[18,2,19,2],[22,1,23,1],[22,2,23,2],[20,1,21,1],[20,2,21,2],[24,1,25,1],[24,2,25,2],[28,1,29,1],[28,2,29,2],[26,1,27,1],[26,2,27,2]]}
[null,"Innehåll"]
[null,"Kalkylbladsnamn","Innehåll i kalkylbladet"]
[null,"Huvudsida","Kort information om indexets olika delar"]
[]
[null,"Innehåll","Innehållsförteckning"]
[]
[null,"Indata för gården","Uppgifter om gården"]
[]
[null,"Traktorer","Uppgifter om gårdens traktorer"]
[]
[null,"Maskinpark","Uppgifter om gårdens övriga maskinpark"]
[]
[null,"Grundförutsättningar för skifte","Skiftenas jordart, mullhalt, arrondering och dräneringsförhållanden"]
[]
[null,"Årsmån","Årsmånsklassning för de år som analyseras"]
[]
[null,"Chart1","Spindeldiagram för jämförelse av scenarion"]
[]
[null,"Skiften&Växtföljder - Översikt","Sammanfattning av resultat* per skifte och scenario.\n* Avseende grundförutsättningarna för en god markstruktur samt odlingssystemindex (medelvärde)\nOBS! Från detta blad kan du skapa nya scenarion, navigera till dina skiften och scenarion, m.m."]
[]
[null,"Grundförbättringsindex","Bedömning av grundförutsättningarna för en god markstruktur med avseende på dränering, mullhalt, utförda strukturfrämjande åtgärder"]
[]
[null,"VFn-k","Uppgifter om årsmån, grödor, tillförsel av organiskt material samt framräknade resultat för skifte n scenario k avseende: (i) antalet barmarksdagar, mängd organisk substans och rötter, samt torkdagar och alvpackning; (ii) odlingssystemindex (medelvärde och per år)"]
[]
[null,"MBn-k","Modell som räknar ut alvpackningen på skifte nr n i scenario nr k"]
[]
[null,"Hur mår din jord?","En aptitretare till det egentliga markstrukturtestet i fält"]
[]
[null,"Tabeller","Modellparametrar"]

{"sheet":"Indata för gården","index":2,"n_rows":15,"n_cols":21,"rows_kept":15,"cut":false,"hidden":false,"merged":[[1,1,2,2]]}
[]
[null,"INDATA FÖR GÅRDEN"]
[]
[]
[]
[]
[null,null,"Gårdsnamn"]
[null,null,"Brukare"]
[null,null,"Odlingsområde (välj från kartan)"]
[null,null,"Startår"]
[null,null,"Postadress"]
[null,null,"Telefon"]
[null,null,"e-post"]
[]
[null,null,null,null,null,null,null,null,null,null,null,null,null,null,null,null,null,null,null,null,"Vanlig HTML hjälp"]

{"sheet":"Traktorer","index":3,"n_rows":117,"n_cols":27,"rows_kept":117,"cut":false,"hidden":false,"merged":[[13,3,14,3],[16,5,16,9],[16,10,16,14],[16,15,16,19],[16,20,16,24]]}
[]
[null,null,"Traktor",null,4,"Enkel",null,null,1.2,2,"Dubbel",null,null,1,4,"Trippel",null,null,0.8,6,"Annan",null,null,null,null,null,"[default]"]
[null,null,"Traktor",null,1,"Enkel",null,null,1.2,2,null,null,null,null,null,null,null,null,null,null,null,null,null,null,null,null,"Montage=1"]
[null,null,"Traktor",null,2,"Enkel",null,null,1.2,2,"Dubbel",null,null,1,4,null,null,null,null,null,null,null,null,null,null,null,"Montage=2"]
[null,null,"Traktor",null,3,"Enkel",null,null,1.2,2,"Dubbel",null,null,1,4,"Trippel",null,null,0.8,6,null,null,null,null,null,null,"Montage=3"]
[null,null,"Traktor",null,4,"Enkel",null,null,1.2,2,"Dubbel",null,null,1,4,"Trippel",null,null,0.8,6,"Annan",null,null,null,null,null,"Montage=4"]
[]
[null,null,"Enabled"]
[]
[null,null,{"$f":"COLUMN()-COLUMN(zT_TraktorTabell)+1","v":2},3,4,5,6,7,8,9,10,11,12,13,14,15,16,17,18,19,20,21,22,23,24]
[]
[null,null,"Table Header Row not used on this sheet"]
[]
[null,null,null,"TRAKTORER"]
[]
[]
[null,null,"Maskintyp","Beskrivning","Antal","Montage #1",null,null,null,null,"Montage #2",null,null,null,null,"Montage #3",null,null,null,null,"Montage #4"]
[null,null,null,null,"mon-","Namn","Total",null,"Bakaxel",null,"Namn","Total",null,"Bakaxel",null,"Namn","Total",null,"Bakaxel",null,"Namn","Total",null,"Bakaxel"]
[null,null,null,null,"tage",null,"vikt","Vikt-","Ring-","Antal",null,"vikt","Vikt-","Ring-","Antal",null,"vikt","Vikt-","Ring-","Antal",null,"vikt","Vikt-","Ring-","Antal"]
[null,null,null,null,null,null,null,"andel","tryck","hjul",null,null,"andel","tryck","hjul",null,null,"andel","tryck","hjul",null,null,"andel","tryck","hjul"]
[null,null,null,null,null,null,"(kg)","(%)","(kp)",null,null,"(kg)","(%)","(kp)",null,null,"(kg)","(%)","(kp)",null,null,"(kg)","(%)","(kp)"]
[null,null,"Traktor",null,1,"Enkel",null,null,1.2,2]
[null,null,"Traktor",null,1,"Enkel",null,null,1.2,2]
[null,null,"Traktor",null,1,"Enkel",null,null,1.2,2]
[null,null,"Traktor",null,1,"Enkel",null,null,1.2,2]
[null,null,"Traktor",null,1,"Enkel",null,null,1.2,2]
[null,null,"Traktor",null,1,"Enkel",null,null,1.2,2]
[null,null,"Traktor",null,1,"Enkel",null,null,1.2,2]
[null,null,"Traktor",null,1,"Enkel",null,null,1.2,2]
[null,null,"Traktor",null,1,"Enkel",null,null,1.2,2]
[null,null,"Traktor",null,1,"Enkel",null,null,1.2,2]
[null,null,"Traktor",null,1,"Enkel",null,null,1.2,2]
[null,null,"Traktor",null,1,"Enkel",null,null,1.2,2]
[null,null,"Traktor",null,1,"Enkel",null,null,1.2,2]
[null,null,"Traktor",null,1,"Enkel",null,null,1.2,2]
[null,null,"Traktor",null,1,"Enkel",null,null,1.2,2]
[null,null,"Traktor",null,1,"Enkel",null,null,1.2,2]
[null,null,"Traktor",null,1,"Enkel",null,null,1.2,2]
[null,null,"Traktor",null,1,"Enkel",null,null,1.2,2]
[null,null,"Traktor",null,1,"Enkel",null,null,1.2,2]
[null,null,"Traktor",null,1,"Enkel",null,null,1.2,2]
[null,null,"Traktor",null,1,"Enkel",null,null,1.2,2]
[null,null,"Traktor",null,1,"Enkel",null,null,1.2,2]
[null,null,"Traktor",null,1,"Enkel",null,null,1.2,2]
[null,null,"Traktor",null,1,"Enkel",null,null,1.2,2]
[null,null,"Traktor",null,1,"Enkel",null,null,1.2,2]
[null,null,"Traktor",null,1,"Enkel",null,null,1.2,2]
[null,null,"Traktor",null,1,"Enkel",null,null,1.2,2]
[null,null,"Traktor",null,1,"Enkel",null,null,1.2,2]
[null,null,"Traktor",null,1,"Enkel",null,null,1.2,2]
[null,null,"Traktor",null,1,"Enkel",null,null,1.2,2]
[null,null,"Traktor",null,1,"Enkel",null,null,1.2,2]
[null,null,"Traktor",null,1,"Enkel",null,null,1.2,2]
[null,null,"Traktor",null,1,"Enkel",null,null,1.2,2]
[]
[]
[]
[]
[]
[]
[]
[]
[]
[]
[]
[]
[]
[]
[]
[]
[]
[]
[]
[]
[]
[]
[]
[]
[]
[]
[]
[]
[]
[]
[]
[]
[]
[]
[]
[]
[]
[]
[]
[]
[]
[]
[]
[]
[]
[]
[]
[]
[]
[]
[]
[]
[]
[]
[]
[]
[]
[]
[]
[]
[]
[]
[null,null,null,null,0]

{"sheet":"Maskinpark","index":4,"n_rows":140,"n_cols":26,"rows_kept":140,"cut":false,"hidden":false,"merged":[[23,3,24,3],[26,12,26,15],[26,16,26,19],[26,20,26,23]]}
[null,null,"Enabled"]
[null,null,null,null,{"$f":"Tabeller!G470","v":"z_7"},{"$f":"Tabeller!H470","v":"z_8"},null,null,null,{"$f":"Tabeller!I470","v":"z_9"},{"$f":"Tabeller!J470","v":"z_10"}]
[null,null,null,null,{"$f":"MATCH(E2,INDEX(zT_MaskinerDefault,ROWS(zT_MaskinerDefault),0),0)","v":3},{"$f":"MATCH(F2,INDEX(zT_MaskinerDefault,ROWS(zT_MaskinerDefault),0),0)","v":4},null,null,null,{"$f":"MATCH(J2,INDEX(zT_MaskinerDefault,ROWS(zT_MaskinerDefault),0),0)","v":5},{"$f":"MATCH(K2,INDEX(zT_MaskinerDefault,ROWS(zT_MaskinerDefault),0),0)","v":6}]
[]
[null,null,null,null,null,null,null,null,null,null,null,null,null,null,null,null,null,null,null,null,null,null,null,null,null,"[default]"]
[null,null,null,null,null,null,null,null,null,null,null,null,null,null,null,null,null,null,null,null,null,null,null,null,null,"[tomrad]"]
[null,null,null,null,null,null,null,null,null,null,null,{"$f":"zf_overfordlast(E7,F7)","v":{"$error":"#VALUE!"}},null,null,null,null,null,null,null,null,null,null,null,null,null,"Last=Nej:Axlar=0"]
[null,null,null,null,null,null,null,null,null,null,null,{"$error":"#VALUE!"},1.5,null,null,null,1,null,null,null,2,null,null,null,null,"Last=Nej:Axlar=1"]
[null,null,null,null,null,null,null,null,null,null,null,{"$error":"#VALUE!"},1.5,1.5,null,null,0.5,0.5,null,null,2,2,null,null,null,"Last=Nej:Axlar=2"]
[null,null,null,null,null,null,null,null,null,null,null,{"$error":"#VALUE!"},1.2,1.2,1.2,null,{"$f":"1/3","v":0.33333333333333331},{"$f":"1/3","v":0.33333333333333331},0.33333333333333331,null,2,2,2,null,null,"Last=Nej:Axlar=3"]
[null,null,null,null,null,null,null,null,null,null,null,{"$error":"#VALUE!"},0.8,0.8,0.8,0.8,0.25,0.25,0.25,0.25,2,2,2,2,null,"Last=Nej:Axlar=4"]
[null,null,null,null,null,null,null,null,null,null,null,{"$error":"#VALUE!"},null,null,null,null,null,null,null,null,null,null,null,null,null,"Last=Ja:Axlar=0"]
[null,null,null,null,null,null,null,null,null,null,null,{"$error":"#VALUE!"},1.5,null,null,null,1,null,null,null,2,null,null,null,null,"Last=Ja:Axlar=1"]
[null,null,null,null,null,null,null,null,null,null,null,{"$error":"#VALUE!"},1.5,1.5,null,null,0.5,0.5,null,null,2,2,null,null,null,"Last=Ja:Axlar=2"]
[null,null,null,null,null,null,null,null,null,null,null,{"$error":"#VALUE!"},1.2,1.2,1.2,null,{"$f":"1/3","v":0.33333333333333331},{"$f":"1/3","v":0.33333333333333331},0.33333333333333331,null,2,2,2,null,null,"Last=Ja:Axlar=3"]
[null,null,null,null,null,null,null,null,null,null,null,{"$error":"#VALUE!"},0.8,0.8,0.8,0.8,0.25,0.25,0.25,0.25,2,2,2,2,null,"Last=Ja:Axlar=4"]
[]
[]
[]
[null,null,{"$f":"COLUMN()-COLUMN(zT_MaskinTabell)+1","v":2},3,4,5,6,7,8,9,10,11,12,13,14,15,16,17,18,19,20,21,22,23]
[]
[null,null,"Table Header Row not used on this sheet"]
[]
[null,null,null,"MASKINPARK"]
[]
[]
[null,null,"Maskintyp","Beskrivning","Anslutning","Antal","Arbets-","Vikt","Max","Start","Slut","Överförd","Ringtryck",null,null,null,"Viktandel per axel",null,null,null,"Hjul per axel"]
[null,null,null,null,"till traktor","axlar","bredd","ex last","last","last","last","last","Axel 1","Axel 2","Axel 3","Axel 4","Axel 1","Axel 2","Axel 3","Axel 4","Axel 1","Axel 2","Axel 3","Axel 4"]
[null,null,null,null,null,null,"(m)","(kg)","(kg)","(%)","(%)","(%)","(kp)","(kp)","(kp)","(kp)","(%)","(%)","(%)","(%)"]
[]
[]
[]
[]
[]
[]
[]
[]
[]
[]
[]
[]
[]
[]
[]
[]
[]
[]
[]
[]
[]
[]
[]
[]
[]
[]
[]
[]
[]
[]
[]
[]
[]
[]
[]
[]
[]
[]
[]
[]
[]
[]
[]
[]
[]
[]
[]
[]
[]
[]
[]
[]
[]
[]
[]
[]
[]
[]
[]
[]
[]
[]
[]
[]
[]
[]
[]
[]
[]
[]
[]
[]
[]
[]
[]
[]
[]
[]
[]
[]
[]
[]
[]
[]
[]
[]
[]
[]
[]
[]
[]
[]
[]
[]
[]
[]
[]
[]
[]
[]
[]
[]
[]
[]
[]
[]
[]
[]
[]
[]
[null,null,null,null,null,0]

{"sheet":"Grundförutsättningar för skifte","index":5,"n_rows":40,"n_cols":10,"rows_kept":40,"cut":false,"hidden":false,"merged":[[6,3,7,4],[12,8,12,9],[9,7,10,9],[9,4,9,6],[10,4,10,5]]}
[]
[]
[]
[]
[]
[]
[null,null,null,"GRUNDFÖRUTSÄTTNINGAR FÖR SKIFTEN"]
[]
[]
[null,null,null,null,"Jordtyp"]
[null,null,null,null,"Matjord",null,"Alv"]
[]
[null,null,"     SKIFTE",null,"JORDART (kornstorlek, mm)","MULLHALT (viktprocent)","JORDART (kornstorlek, mm)","SKIFTETS","DRÄNERING"]
[null,null,"Nr","Namn",null,null,null,"ARRONDERING","Typ","Avstånd"]
[null,null,"zNull","Namn","mat-jordart","mullhalt","alv-jordart",{"$f":"LOWER(H14)","v":"arrondering"},"typ","avstånd"]
[null,null,1]
[null,null,2]
[null,null,3]
[null,null,4]
[null,null,5]
[null,null,6]
[null,null,7]
[null,null,8]
[null,null,9]
[null,null,10]
[null,null,11]
[null,null,12]
[null,null,13]
[null,null,14]
[null,null,15]
[null,null,16]
[null,null,17]
[null,null,18]
[null,null,19]
[null,null,"20"]
[null,null,"21"]
[null,null,"22"]
[null,null,"23"]
[null,null,"24"]
[null,null,"25"]

{"sheet":"Årsmån","index":6,"n_rows":33,"n_cols":13,"rows_kept":33,"cut":false,"hidden":false,"merged":[[9,7,9,8],[9,9,9,10],[9,11,9,12],[6,4,7,6]]}
[null,null,null,null,"Område","Snöfri början",null,"Tjäle början"]
[null,null,null,null,{"$f":"zT_omrade","v":1},"Header","Värde","Header","Tjäle"]
[null,null,null,null,"Normal",{"$f":"CONCATENATE(LEFT($E3,4),\"S\")","v":"NormS"},{"$f":"zf_lookup(zT_snotjale,$E$2,F3)","v":"2001-03-14"},{"$f":"CONCATENATE(LEFT($E3,4),\"T\")","v":"NormT"},{"$f":"zf_lookup(zT_snotjale,$E$2,H3)","v":-16}]
[null,null,null,null,"Kall/våt",{"$f":"CONCATENATE(LEFT($E4,4),\"S\")","v":"KallS"},{"$f":"zf_lookup(zT_snotjale,$E$2,F4)","v":"2001-04-16"},{"$f":"CONCATENATE(LEFT($E4,4),\"T\")","v":"KallT"},{"$f":"zf_lookup(zT_snotjale,$E$2,H4)","v":-39}]
[null,null,null,null,"Varm/torr",{"$f":"CONCATENATE(LEFT($E5,4),\"S\")","v":"VarmS"},{"$f":"zf_lookup(zT_snotjale,$E$2,F5)","v":"2001-01-26"},{"$f":"CONCATENATE(LEFT($E5,4),\"T\")","v":"VarmT"},{"$f":"zf_lookup(zT_snotjale,$E$2,H5)","v":16}]
[]
[null,null,null,null,"ÅRSMÅNSKLASSNING"]
[]
[]
[null,null,null,"År",null,"ÅRSMÅNSKLASSNING",null,"Tabelldata (SCB)",null,"Egen data",null,"Använd data"]
[null,null,null,null,"Vår","Sommar","Höst","Snöfri","Tjäle","Snöfri","Tjäle","Snöfri","Tjäle"]
[null,null,null,null,null,null,null,"början","början","början","början","början","början"]
[]
[null,null,null,null,"Vår","Sommar","Höst",null,null,null,null,"Snöfri","Tjäle"]
[null,null,null,{"$f":"startår-1","v":-1},"Normal","Normal","Normal",{"$f":"zf_ReplaceYear(VLOOKUP(E15,$E$3:$G$5,3,FALSE),D15)","v":{"$error":"#VALUE!"}},{"$f":"DATE(D15,12,31)+VLOOKUP(G15,$E$3:$I$5,5,FALSE)","v":{"$error":"#NUM!"}},null,null,{"$f":"IF(J15=\"\",H15,J15)","v":{"$error":"#VALUE!"}},{"$f":"IF(K15=\"\",I15,K15)","v":{"$error":"#NUM!"}}]
[null,null,null,{"$f":"D15+1","v":0},"Normal","Normal","Normal",{"$f":"zf_ReplaceYear(VLOOKUP(E16,$E$3:$G$5,3,FALSE),D16)","v":"2000-03-14"},{"$f":"DATE(D16,12,31)+VLOOKUP(G16,$E$3:$I$5,5,FALSE)","v":"1900-12-15"},null,null,{"$f":"IF(J16=\"\",H16,J16)","v":"2000-03-14"},"1900-12-15"]
[null,null,null,1,"Normal","Normal","Normal","2001-03-14","1901-12-15",null,null,"2001-03-14","1901-12-15"]
[null,null,null,2,"Normal","Normal","Normal","2002-03-14","1902-12-15",null,null,"2002-03-14","1902-12-15"]
[null,null,null,3,"Normal","Normal","Normal","2003-03-14","1903-12-15",null,null,"2003-03-14","1903-12-15"]
[null,null,null,4,"Normal","Normal","Normal","2004-03-14","1904-12-15",null,null,"2004-03-14","1904-12-15"]
[null,null,null,5,"Normal","Normal","Normal","2005-03-14","1905-12-15",null,null,"2005-03-14","1905-12-15"]
[null,null,null,6,"Normal","Normal","Normal","2006-03-14","1906-12-15",null,null,"2006-03-14","1906-12-15"]
[null,null,null,7,"Normal","Normal","Normal","2007-03-14","1907-12-15",null,null,"2007-03-14","1907-12-15"]
[null,null,null,8,"Normal","Normal","Normal","2008-03-14","1908-12-15",null,null,"2008-03-14","1908-12-15"]
[null,null,null,9,"Normal","Normal","Normal","2009-03-14","1909-12-15",null,null,"2009-03-14","1909-12-15"]
[null,null,null,10,"Normal","Normal","Normal","2010-03-14","1910-12-15",null,null,"2010-03-14","1910-12-15"]
[null,null,null,11,"Normal","Normal","Normal","2011-03-14","1911-12-15",null,null,"2011-03-14","1911-12-15"]
[null,null,null,12,"Normal","Normal","Normal","2012-03-14","1912-12-15",null,null,"2012-03-14","1912-12-15"]
[null,null,null,13,"Normal","Normal","Normal","2013-03-14","1913-12-15",null,null,"2013-03-14","1913-12-15"]
[null,null,null,14,"Normal","Normal","Normal","2014-03-14","1914-12-15",null,null,"2014-03-14","1914-12-15"]
[null,null,null,15,"Normal","Normal","Normal","2015-03-14","1915-12-15",null,null,"2015-03-14","1915-12-15"]
[null,null,null,16,"Normal","Normal","Normal","2016-03-14","1916-12-15",null,null,"2016-03-14","1916-12-15"]
[null,null,null,17,"Normal","Normal","Normal",{"$f":"zf_ReplaceYear(VLOOKUP(E33,$E$3:$G$5,3,FALSE),D33)","v":"2017-03-14"},{"$f":"DATE(D33,12,31)+VLOOKUP(G33,$E$3:$I$5,5,FALSE)","v":"1917-12-15"},null,null,"2017-03-14","1917-12-15"]

{"sheet":"Graf Indata","index":7,"n_rows":42,"n_cols":45,"rows_kept":42,"cut":false,"hidden":true,"merged":[]}
[]
[null,null,null,null,null,null,null,null,null,null,"SOURCE SHEET REFERENCES"]
[null,null,{"$f":"MATCH(1,INDEX(zT_SpiderSetup,0,2),0)","v":7},{"$f":"MATCH(2,INDEX(zT_SpiderSetup,0,2),0)","v":1},{"$f":"MATCH(3,INDEX(zT_SpiderSetup,0,2),0)","v":2},{"$f":"MATCH(4,INDEX(zT_SpiderSetup,0,2),0)","v":3},{"$f":"MATCH(5,INDEX(zT_SpiderSetup,0,2),0)","v":4},{"$f":"MATCH(6,INDEX(zT_SpiderSetup,0,2),0)","v":5},{"$f":"MATCH(7,INDEX(zT_SpiderSetup,0,2),0)","v":6},null,"1st row - 1 ",{"$f":"ROW(zf_Range(\"zT_GrafDropdown\",zT_SheetOversiktSkiften))-1","v":18},null,null,null,null,null,null,null,"PARAMETERS"]
[null,null,{"$f":"INDEX(zT_SpiderSetup,C3,3)","v":"TOTALINDEX"},"+ Rotmängd","+ Upptorkning","+ Organisk substans","- Andel barmark","- Bearbetningar","- Markbelastning",null,"1st column - 1 ",{"$f":"COLUMN(zf_Range(\"zVBA_ColRotmangd\",zT_SheetOversiktSkiften))-1","v":12},null,null,null,null,null,null,null,"Min margin ",{"$f":"zVBA_GrafAxisMargin","v":0.04}]
[null,"                                                                                                                                                   ",{"$f":"INDIRECT(ADDRESS($L5,$L$4+C$3,4,TRUE,zT_SheetOversiktSkiften))","v":""},"","","","","","",null,"Row Serie A ",{"$f":"L3+zVBA_GrafSerieA","v":19},null,null,null,"Serie A: Graf dropdown val ",1,null,null,"Integer preference bonus ",0.05]
[null,"                                                                                                                                                   ","","","","","","","",null,"Row Serie B ",{"$f":"L3+zVBA_GrafSerieB","v":20},null,null,null,"Serie B: Graf dropdown val ",2,null,null,null,null,null,null,null,null,1,2,null,null,null,6,7,8]
[null,"                                                                                                                                                   ",0,0,0,0,0,0,0,null,null,null,null,null,null,null,null,null,null,null,null,null,null,"Option A (heltal)",{"$f":"U4","v":0.04},{"$f":"IF(AJ7=0,0,MIN(IF($AF$16:$AF$27=AJ7,$Z$16:$Z$27)))","v":0},{"$f":"IF($Z7=0,0,INDEX($Z$16:$AG$27,$Z7,AA6))","v":0},null,null,null,{"$f":"IF($Z7=0,0,INDEX($Z$16:$AG$27,$Z7,AE6))","v":0},{"$f":"IF($Z7=0,0,INDEX($Z$16:$AG$27,$Z7,AF6))","v":0},{"$f":"IF($Z7=0,0,INDEX($Z$16:$AG$27,$Z7,AG6))","v":0},{"$f":"IF(AF8=0,0,AF7/AF8-1)","v":{"$error":"#DIV/0!"}},null,{"$f":"MIN(IF($AG$16:$AG$27>Y7,$AF$16:$AF$27))","v":0},null,null,null,null,"Axis",{"$f":"IF(AM8=\"A\",AF7,AF8)/2","v":{"$error":"#DIV/0!"}},null,null,{"$f":"AND(AP7=0,AP8=0)","v":{"$error":"#DIV/0!"}}]
[null,null,null,null,null,null,null,null,null,null,null,null,null,null,null,null,null,null,null,null,null,null,null,"Option B (en decimal)",{"$f":"U4","v":0.04},{"$f":"IF(AJ8=0,0,MIN(IF($AF$31:$AF$42=AJ8,$Z$31:$Z$42)))","v":{"$error":"#DIV/0!"}},{"$f":"IF($Z8=0,0,INDEX($Z$31:$AG$42,$Z8,AA6))","v":{"$error":"#DIV/0!"}},null,null,null,{"$f":"IF($Z8=0,0,INDEX($Z$31:$AG$42,$Z8,AE6))","v":{"$error":"#DIV/0!"}},{"$error":"#DIV/0!"},{"$error":"#DIV/0!"},null,null,{"$f":"MIN(IF($AG$31:$AG$42>Y8,$AF$31:$AF$42))","v":{"$error":"#DIV/0!"}},null,"Vald option",{"$f":"IF(AG7=0,\"B\",IF(AH7<$U$5,\"A\",\"B\"))","v":"B"},null,"Major unit",{"$f":"IF(AM8=\"A\",AE7,AE8)","v":{"$error":"#DIV/0!"}}]
[null,null,null,null,null,null,null,null,null,null,null,null,null,null,null,null,"Unit is integer",null,null,null,null,null,null,null,null,null,null,null,null,null,null,null,null,null,null,null,null,null,null,null,null,null,null,"Axis",{"$f":"IF($AS$7,AP11,AP7)","v":{"$error":"#DIV/0!"}}]
[null,null,null,null,null,null,null,null,null,null,null,null,null,"Auto Scale ",{"$f":"AS9","v":{"$error":"#DIV/0!"}},{"$f":"ROUND(zVBA_GrafAutoAxis,1)","v":{"$error":"#DIV/0!"}},{"$f":"((P10-INT(P10))=0)","v":{"$error":"#DIV/0!"}},null,null,"Min value ",{"$f":"MIN(C5:I6)","v":0},null,null,null,null,1,2,null,null,null,6,7,8,null,null,null,null,null,null,null,null,null,null,"Major unit",{"$f":"IF($AS$7,AP12,AP8)","v":{"$error":"#DIV/0!"}}]
[null,null,null,null,null,null,null,null,null,null,null,null,null,"Auto Unit ",{"$f":"AS10","v":{"$error":"#DIV/0!"}},{"$f":"ROUND(zVBA_GrafAutoUnit,1)","v":{"$error":"#DIV/0!"}},{"$f":"((P11-INT(P11))=0)","v":{"$error":"#DIV/0!"}},null,null,"Max value ",{"$f":"MAX(C5:I6)","v":0},null,null,"Option A (heltal)",0,{"$f":"IF(AJ11=0,0,MIN(IF($AF$16:$AF$27=AJ11,$Z$16:$Z$27)))","v":0},{"$f":"IF($Z11=0,0,INDEX($Z$16:$AG$27,$Z11,AA10))","v":0},null,null,null,{"$f":"IF($Z11=0,0,INDEX($Z$16:$AG$27,$Z11,AE10))","v":0},{"$f":"IF($Z11=0,0,INDEX($Z$16:$AG$27,$Z11,AF10))","v":0},{"$f":"IF($Z11=0,0,INDEX($Z$16:$AG$27,$Z11,AG10))","v":0},{"$f":"AF11/AF12-1","v":{"$error":"#DIV/0!"}},null,{"$f":"MAX(IF($AG$16:$AG$27>Y11,$AF$16:$AF$27))","v":0},null,null,null,null,"Axis",{"$f":"IF(AM12=\"A\",AF11,AF12)/2","v":{"$error":"#DIV/0!"}}]
[null,null,null,null,null,null,null,null,null,null,null,null,null,"Number format ",{"$f":"CONCATENATE(\"x\",IF(AND(Q10,Q11),\"0\",\"0.0\"))","v":{"$error":"#DIV/0!"}},null,null,null,null,"Max(Abs()) ",{"$f":"MAX(ABS(U10),U11)","v":0},null,null,"Option B (en decimal)",0,{"$f":"IF(AJ12=0,0,MIN(IF($AF$31:$AF$42=AJ12,$Z$31:$Z$42)))","v":{"$error":"#DIV/0!"}},{"$f":"IF($Z12=0,0,INDEX($Z$31:$AG$42,$Z12,AA10))","v":{"$error":"#DIV/0!"}},null,null,null,{"$f":"IF($Z12=0,0,INDEX($Z$31:$AG$42,$Z12,AE10))","v":{"$error":"#DIV/0!"}},{"$error":"#DIV/0!"},{"$error":"#DIV/0!"},null,null,{"$f":"MAX(IF($AG$31:$AG$42>Y12,$AF$31:$AF$42))","v":{"$error":"#DIV/0!"}},null,"Vald option",{"$f":"IF(AG11=0,\"B\",IF(AH11<$U$5,\"A\",\"B\"))","v":"B"},null,"Major unit",{"$f":"IF(AM12=\"A\",AE11,AE12)","v":{"$error":"#DIV/0!"}}]
[null,null,null,null,null,null,null,null,null,null,null,null,null,null,null,null,null,null,null,"Max(Abs()) as integer ",{"$f":"INT(U12)+IF((U12-INT(U12))=0,0,1)","v":0}]
[null,null,null,null,null,null,null,null,null,null,null,null,null,null,null,null,null,null,null,null,null,null,null,"OPTION A",null,"Prio","Antal","Delta","Heltal",null,"Delta","Axis","Margin"]
[null,null,null,null,null,null,null,null,null,null,null,null,null,null,null,null,null,null,null,null,null,null,null,"ANALYS",null,null,"steg",null,"REST",null,"rounded","range"]
[null,null,null,null,null,null,null,null,null,null,null,null,null,null,null,null,null,null,null,null,null,null,null,null,{"$f":"2*U13","v":0},1,8,{"$f":"Y$16/AA16","v":0},{"$f":"ROUND(AB16-INT(ROUND(AB16,5)),5)","v":0},null,{"$f":"IF(AC16=0,ROUND(AB16,0),0)","v":0},{"$f":"IF(AE16=0,0,AA16*AE16)","v":0},{"$f":"IF(AF16=0,0,AF16/$Y$31-1)","v":0}]
[null,null,null,null,null,null,null,null,null,null,null,null,null,null,null,null,null,null,null,null,null,null,null,null,null,{"$f":"Z16+1","v":2},10,0,{"$f":"ROUND(AB17-INT(ROUND(AB17,5)),5)","v":0},null,{"$f":"IF(AC17=0,ROUND(AB17,0),0)","v":0},{"$f":"IF(AE17=0,0,AA17*AE17)","v":0},{"$f":"IF(AF17=0,-1,AF17/$Y$31-1)","v":-1}]
[null,null,null,null,null,null,null,null,null,null,null,null,null,null,null,null,null,null,null,null,null,null,null,null,null,{"$f":"Z17+1","v":3},9,0,0,null,0,0,-1]
[null,null,null,null,null,null,null,null,null,null,null,null,null,null,null,null,null,null,null,null,null,null,null,null,null,4,7,0,0,null,0,0,-1]
[null,null,null,null,null,null,null,null,null,null,null,null,null,null,null,null,null,null,null,null,null,null,null,null,null,5,6,0,0,null,0,0,-1]
[null,null,null,null,null,null,null,null,null,null,null,null,null,null,null,null,null,null,null,null,null,null,null,null,null,6,5,0,0,null,0,0,-1]
[null,null,null,null,null,null,null,null,null,null,null,null,null,null,null,null,null,null,null,null,null,null,null,null,{"$f":"Y16+1","v":1},7,{"$f":"AA16","v":8},{"$f":"Y$22/AA22","v":0.125},0.125,null,0,0,-1]
[null,null,null,null,null,null,null,null,null,null,null,null,null,null,null,null,null,null,null,null,null,null,null,null,null,8,{"$f":"AA17","v":10},0.1,0.1,null,0,0,-1]
[null,null,null,null,null,null,null,null,null,null,null,null,null,null,null,null,null,null,null,null,null,null,null,null,null,9,9,0.1111111111111111,0.11111,null,0,0,-1]
[null,null,null,null,null,null,null,null,null,null,null,null,null,null,null,null,null,null,null,null,null,null,null,null,null,10,7,0.14285714285714285,0.14285999999999999,null,0,0,-1]
[null,null,null,null,null,null,null,null,null,null,null,null,null,null,null,null,null,null,null,null,null,null,null,null,null,11,6,0.16666666666666666,0.16667000000000001,null,0,0,-1]
[null,null,null,null,null,null,null,null,null,null,null,null,null,null,null,null,null,null,null,null,null,null,null,null,null,12,5,0.2,0.2,null,0,0,-1]
[]
[null,null,null,null,null,null,null,null,null,null,null,null,null,null,null,null,null,null,null,null,null,null,null,"OPTION B",null,"Prio","Antal","Delta","EVEN","Delta","Delta","Axis","Margin"]
[null,null,null,null,null,null,null,null,null,null,null,null,null,null,null,null,null,null,null,null,null,null,null,"ANALYS",null,null,"steg",null,"steps","rounded","rounded","range"]
[null,null,null,null,null,null,null,null,null,null,null,null,null,null,null,null,null,null,null,null,null,null,null,null,{"$f":"2*ROUND(U12,1)","v":0},1,{"$f":"AA22","v":8},{"$f":"Y$31/AA31","v":0},{"$f":"(MOD(AA31,2)=0)","v":true},{"$f":"(INT(AB31*10)+IF((AB31*10-INT(AB31*10))=0,0,1))/10","v":0},{"$f":"IF(AC31,AD31,AD31+IF(ROUND(MOD(AD31*10,2),6)=0,0,0.1))","v":0},{"$f":"AA31*AE31","v":0},{"$f":"AF31/$Y$31-1","v":{"$error":"#DIV/0!"}}]
[null,null,null,null,null,null,null,null,null,null,null,null,null,null,null,null,null,null,null,null,null,null,null,null,null,{"$f":"Z31+1","v":2},10,0,{"$f":"(MOD(AA32,2)=0)","v":true},0,{"$f":"IF(AC32,AD32,AD32+IF(ROUND(MOD(AD32*10,2),6)=0,0,0.1))","v":0},{"$f":"AA32*AE32","v":0},{"$error":"#DIV/0!"}]
[null,null,null,null,null,null,null,null,null,null,null,null,null,null,null,null,null,null,null,null,null,null,null,null,null,3,9,0,false,0,0,0,{"$error":"#DIV/0!"}]
[null,null,null,null,null,null,null,null,null,null,null,null,null,null,null,null,null,null,null,null,null,null,null,null,null,4,7,0,false,0,0,0,{"$error":"#DIV/0!"}]
[null,null,null,null,null,null,null,null,null,null,null,null,null,null,null,null,null,null,null,null,null,null,null,null,null,5,6,0,true,0,0,0,{"$error":"#DIV/0!"}]
[null,null,null,null,null,null,null,null,null,null,null,null,null,null,null,null,null,null,null,null,null,null,null,null,null,6,5,0,false,0,0,0,{"$error":"#DIV/0!"}]
[null,null,null,null,null,null,null,null,null,null,null,null,null,null,null,null,null,null,null,null,null,null,null,null,null,7,{"$f":"AA31","v":8},null,true,{"$f":"AD31+0.1","v":0.1},0.1,0.8,{"$error":"#DIV/0!"}]
[null,null,null,null,null,null,null,null,null,null,null,null,null,null,null,null,null,null,null,null,null,null,null,null,null,8,10,null,true,{"$f":"AD32+0.1","v":0.1},0.1,1,{"$error":"#DIV/0!"}]
[null,null,null,null,null,null,null,null,null,null,null,null,null,null,null,null,null,null,null,null,null,null,null,null,null,9,9,null,false,0.1,0.2,1.8,{"$error":"#DIV/0!"}]
[null,null,null,null,null,null,null,null,null,null,null,null,null,null,null,null,null,null,null,null,null,null,null,null,null,10,7,null,false,0.1,0.2,1.4000000000000001,{"$error":"#DIV/0!"}]
[null,null,null,null,null,null,null,null,null,null,null,null,null,null,null,null,null,null,null,null,null,null,null,null,null,11,6,null,true,0.1,0.1,0.60000000000000009,{"$error":"#DIV/0!"}]
[null,null,null,null,null,null,null,null,null,null,null,null,null,null,null,null,null,null,null,null,null,null,null,null,null,12,5,null,false,0.1,0.2,1,{"$error":"#DIV/0!"}]

{"sheet":"Skiften&Växtföljder - Översikt","index":9,"n_rows":48,"n_cols":31,"rows_kept":48,"cut":false,"hidden":false,"merged":[[7,4,8,7],[13,2,13,3],[13,29,13,30]]}
[null,null,null,null,null,{"$f":"'Grundförutsättningar för skifte'!D15","v":"Namn"},null,null,null,null,null,null,null,null,null,null,null,null,null,null,"dran-kommentar","mull-kommentar","dran-falttest","mark-kommentar",null,{"$f":"'Grundförutsättningar för skifte'!E15","v":"mat-jordart"},{"$f":"'Grundförutsättningar för skifte'!F15","v":"mullhalt"},{"$f":"'Grundförutsättningar för skifte'!G15","v":"alv-jordart"},{"$f":"'Grundförutsättningar för skifte'!H15","v":"arrondering"},{"$f":"'Grundförutsättningar för skifte'!I15","v":"typ"},{"$f":"'Grundförutsättningar för skifte'!J15","v":"avstånd"}]
[null,null,null,null,null,{"$f":"MATCH(F1,INDEX(zT_skiftesdata,1,0),0)","v":2},null,null,null,null,null,null,null,null,null,null,null,null,null,null,{"$f":"MATCH(U1,INDEX(zT_grundforbattringsindex,1,0),0)","v":11},{"$f":"MATCH(V1,INDEX(zT_grundforbattringsindex,1,0),0)","v":14},{"$f":"MATCH(W1,INDEX(zT_grundforbattringsindex,1,0),0)","v":9},{"$f":"MATCH(X1,INDEX(zT_grundforbattringsindex,1,0),0)","v":18},null,{"$f":"MATCH(Z1,INDEX(zT_skiftesdata,1,0),0)","v":3},4,5,6,7,8]
[]
[]
[]
[]
[]
[null,null,null,null,"ÖVERSIKT - SKIFTEN & VÄXTFÖLJDER"]
[]
[]
[]
[]
[]
[null,null,"BLADNAMN",null,"     SKIFTE",null,"     SCENARIO",null,"Text för dropdown listor på grafik bladet",null,null,null,"  RESULTAT AV ODLINGSSYSTEMINDEXET",null,null,null,null,null,null,null,"  RESULTAT AV GRUNDFÖRBÄTTRINGSINDEXET",null,null,null,null,"MATJORD",null,"ALV","SKIFTETS","DRÄNERING"]
[null,null,"Växtföljd","Mark-","Nr","Namn","Nr","Beskrivning",null,null,null,null,"Rot","Upp-","Organisk","Andel","Bearbet-","Markbe-","Summa",null,"Finns grundförutsättningar för uthållig odling?",null,"Resultat av fälttest",null,null,"JORDART (kornstorlek, mm)","MULLHALT (viktprocent)","JORDART (kornstorlek, mm)","ARRONDERING","Typ","Avstånd"]
[null,null,null,"bearb.",null,null,null,null,null,null,null,null,"mängd","torkning","substans","barmark","ningar","lastning",null,null,"Dränering","Mullhalt","Dränering","Mark-"]
[null,null,null,null,null,null,null,null,null,null,null,null,null,null,null,null,null,null,null,null,null,null,null,"struktur"]
[null,null,"VFblad","MBblad",null,"namn",null,"beskrivning",null,null,null,null,null,null,null,null,null,null,null,null,"dran-kommentar","mull-kommentar","dran-falttest","mark-kommentar",null,"mat-jordart","mullhalt","alv-jordart",{"$f":"LOWER(AC17)","v":""},"typ","avstånd"]
[{"$f":"MATCH(IF(E19=\"\",\"zNull\",E19),INDEX(zT_skiftesdata,0,1),0)","v":1},{"$f":"MATCH(IF(E19=\"\",\"zNull\",E19),INDEX(zT_grundforbattringsindex,0,1),0)","v":1},{"$f":"IF(AND(E19>0,G19>0),CONCATENATE(zT_VFprefix,E19,\"-\",G19),\"\")","v":""},{"$f":"IF(AND(E19>0,G19>0),CONCATENATE(zT_MBprefix,E19,\"-\",G19),\"\")","v":""},null,{"$f":"zf_index(zT_skiftesdata,$A19,F$2)","v":""},null,null,{"$f":"IF(L19,\"\",CONCATENATE(E19,\"-\",G19,\": \",F19,\" (\",H19,\")\"))","v":""},null,{"$f":"zf_Address(\"zVBA_Local_FirstTotIndex\",C19)","v":{"$error":"#VALUE!"}},{"$f":"ISERROR(K19)","v":true},{"$f":"IF(L19,\"\",INDIRECT($K19))","v":""},{"$f":"IF(L19,\"\",OFFSET(INDIRECT($K19),0,1))","v":""},{"$f":"IF(L19,\"\",OFFSET(INDIRECT($K19),0,2))","v":""},{"$f":"IF(L19,\"\",OFFSET(INDIRECT($K19),0,3))","v":""},{"$f":"IF(L19,\"\",OFFSET(INDIRECT($K19),0,4))","v":""},{"$f":"IF(L19,\"\",OFFSET(INDIRECT($K19),0,5))","v":""},{"$f":"IF(L19,\"\",OFFSET(INDIRECT($K19),0,6))","v":""},null,{"$f":"zf_index(zT_grundforbattringsindex,$B19,U$2)","v":""},"","","",null,{"$f":"zf_index(zT_skiftesdata,$A19,Z$2)","v":""},"","","","",""]
[1,1,"","",null,"",null,null,"",null,{"$error":"#VALUE!"},true,{"$f":"IF(L20,\"\",INDIRECT($K20))","v":""},{"$f":"IF(L20,\"\",OFFSET(INDIRECT($K20),0,1))","v":""},{"$f":"IF(L20,\"\",OFFSET(INDIRECT($K20),0,2))","v":""},{"$f":"IF(L20,\"\",OFFSET(INDIRECT($K20),0,3))","v":""},{"$f":"IF(L20,\"\",OFFSET(INDIRECT($K20),0,4))","v":""},{"$f":"IF(L20,\"\",OFFSET(INDIRECT($K20),0,5))","v":""},{"$f":"IF(L20,\"\",OFFSET(INDIRECT($K20),0,6))","v":""},null,"","","","",null,"","","","","",""]
[1,1,"","",null,"",null,null,"",null,{"$error":"#VALUE!"},{"$f":"ISERROR(K21)","v":true},"","","","","","","",null,"","","","",null,"","","","","",""]
[1,1,"","",null,"",null,null,"",null,{"$error":"#VALUE!"},{"$f":"ISERROR(K22)","v":true},"","","","","","","",null,"","","","",null,"","","","","",""]
[1,1,"","",null,"",null,null,"",null,{"$error":"#VALUE!"},true,"","","","","","","",null,"","","","",null,"","","","","",""]
[1,1,"","",null,"",null,null,"",null,{"$error":"#VALUE!"},true,"","","","","","","",null,"","","","",null,"","","","","",""]
[1,1,"","",null,"",null,null,"",null,{"$error":"#VALUE!"},true,"","","","","","","",null,"","","","",null,"","","","","",""]
[1,1,"","",null,"",null,null,"",null,{"$error":"#VALUE!"},true,"","","","","","","",null,"","","","",null,"","","","","",""]
[1,1,"","",null,"",null,null,"",null,{"$error":"#VALUE!"},true,"","","","","","","",null,"","","","",null,"","","","","",""]
[1,1,"","",null,"",null,null,"",null,{"$error":"#VALUE!"},true,"","","","","","","",null,"","","","",null,"","","","","",""]
[1,1,"","",null,"",null,null,"",null,{"$error":"#VALUE!"},true,"","","","","","","",null,"","","","",null,{"$f":"zf_index(zT_skiftesdata,$A29,Z$2)","v":""},"","","","",""]
[1,1,"","",null,"",null,null,"",null,{"$error":"#VALUE!"},true,"","","","","","","",null,"","","","",null,"","","","","",""]
[1,1,"","",null,"",null,null,"",null,{"$error":"#VALUE!"},true,"","","","","","","",null,"","","","",null,"","","","","",""]
[1,1,"","",null,"",null,null,"",null,{"$error":"#VALUE!"},true,"","","","","","","",null,"","","","",null,"","","","","",""]
[1,1,"","",null,"",null,null,"",null,{"$error":"#VALUE!"},true,"","","","","","","",null,"","","","",null,"","","","","",""]
[1,1,"","",null,"",null,null,"",null,{"$error":"#VALUE!"},true,"","","","","","","",null,"","","","",null,"","","","","",""]
[1,1,"","",null,"",null,null,"",null,{"$error":"#VALUE!"},true,"","","","","","","",null,"","","","",null,"","","","","",""]
[1,1,"","",null,"",null,null,"",null,{"$error":"#VALUE!"},true,"","","","","","","",null,"","","","",null,"","","","","",""]
[1,1,"","",null,"",null,null,"",null,{"$error":"#VALUE!"},true,"","","","","","","",null,"","","","",null,"","","","","",""]
[1,1,"","",null,"",null,null,"",null,{"$error":"#VALUE!"},true,"","","","","","","",null,"","","","",null,"","","","","",""]
[1,1,"","",null,"",null,null,"",null,{"$error":"#VALUE!"},true,"","","","","","","",null,"","","","",null,"","","","","",""]
[1,1,"","",null,"",null,null,"",null,{"$error":"#VALUE!"},true,"","","","","","","",null,"","","","",null,"","","","","",""]
[1,1,"","",null,"",null,null,"",null,{"$error":"#VALUE!"},true,"","","","","","","",null,"","","","",null,"","","","","",""]
[1,1,"","",null,"",null,null,"",null,{"$error":"#VALUE!"},true,"","","","","","","",null,"","","","",null,"","","","","",""]
[1,1,"","",null,"",null,null,"",null,{"$error":"#VALUE!"},true,"","","","","","","",null,"","","","",null,"","","","","",""]
[1,1,{"$f":"IF(AND(E44>0,G44>0),CONCATENATE(zT_VFprefix,E44,\"-\",G44),\"\")","v":""},{"$f":"IF(AND(E44>0,G44>0),CONCATENATE(zT_MBprefix,E44,\"-\",G44),\"\")","v":""},null,"",null,null,"",null,{"$error":"#VALUE!"},true,"","","","","","","",null,"","","","",null,"","","","","",""]
[1,1,"","",null,"",null,null,"",null,{"$error":"#VALUE!"},true,"","","","","","","",null,"","","","",null,{"$f":"zf_index(zT_skiftesdata,$A45,Z$2)","v":""},"","","","",""]
[1,1,"","",null,"",null,null,"",null,{"$error":"#VALUE!"},true,"","","","","","","",null,"","","","",null,"","","","","",""]
[1,1,"","",null,"",null,null,"",null,{"$error":"#VALUE!"},true,"","","","","","","",null,"","","","",null,"","","","","",""]
[1,1,"","",null,"",null,null,"",null,{"$f":"zf_Address(\"zVBA_Local_FirstTotIndex\",IF(zVBA_MallTest=\"På\",zT_VFtemplate,C48))","v":{"$error":"#VALUE!"}},true,"","","","","","","",null,"","","","",null,"","","","","",""]

{"sheet":"Grundförbättringsindex","index":10,"n_rows":40,"n_cols":20,"rows_kept":40,"cut":false,"hidden":false,"merged":[[6,3,7,4]]}
[null,null,null,{"$f":"Tabeller!E36","v":"zHeader"},null,{"$f":"MATCH($D$1,INDEX(zT_jordartstabell,0,1),0)","v":26},null,{"$f":"MATCH($D$1,INDEX(zT_dikesavst_tabell,0,1),0)","v":8},null,{"$f":"MATCH($D$1,INDEX(zT_jordartstabell,0,1),0)","v":26},null,{"$f":"MATCH($D$1,INDEX(zT_faltdrantabell,0,1),0)","v":7},{"$f":"MATCH($D$1,INDEX(zT_faltdrantabell,0,1),0)","v":7},null,{"$f":"MATCH($D$1,INDEX(zT_mullhaltstabell,0,1),0)","v":6},{"$f":"MATCH($D$1,INDEX(zT_mullhaltstabell,0,1),0)","v":6},null,null,{"$f":"MATCH($D$1,INDEX(zT_tramp_tabell,0,1),0)","v":8},{"$f":"MATCH($D$1,INDEX(zT_tramp_tabell,0,1),0)","v":8}]
[null,null,null,null,null,{"$f":"Tabeller!AA36","v":"z_1F"},null,{"$f":"Tabeller!F81","v":"z_3A"},null,{"$f":"Tabeller!Y36","v":"z_1E"},null,{"$f":"Tabeller!K100","v":"z_2B"},{"$f":"Tabeller!H100","v":"z_2A"},null,{"$f":"Tabeller!J47","v":"z_4B"},{"$f":"Tabeller!F47","v":"z_4A"},null,null,{"$f":"Tabeller!H60","v":"z_5B"},{"$f":"Tabeller!F60","v":"z_5A"}]
[null,null,null,null,null,{"$f":"MATCH(F2,INDEX(zT_jordartstabell,F1,0),0)","v":23},null,{"$f":"MATCH(H2,INDEX(zT_dikesavst_tabell,H1,0),0)","v":2},null,{"$f":"MATCH(J2,INDEX(zT_jordartstabell,J1,0),0)","v":21},null,{"$f":"MATCH(L2,INDEX(zT_faltdrantabell,L1,0),0)","v":7},{"$f":"MATCH(M2,INDEX(zT_faltdrantabell,M1,0),0)","v":4},null,{"$f":"MATCH(O2,INDEX(zT_mullhaltstabell,O1,0),0)","v":6},{"$f":"MATCH(P2,INDEX(zT_mullhaltstabell,P1,0),0)","v":2},null,null,{"$f":"MATCH(S2,INDEX(zT_tramp_tabell,S1,0),0)","v":4},{"$f":"MATCH(T2,INDEX(zT_tramp_tabell,T1,0),0)","v":2}]
[]
[]
[]
[null,null,null,"GRUNDFÖRBÄTTRINGSINDEX"]
[]
[]
[null,null,"SKIFTE",null,"JORDART",null,null,null,null,"DRÄNERING ",null,null,null,null,"MULLHALT",null,null,"MARKSTRUKTUR  "]
[null,null,"Nr","Namn",null,"Dräneringsbehov","Nuvarande","Avstånd","Tilläggsåtgärder","Resultat","Dräneringsbehov fälttest","Klass-","Kommentar","Mullhalt","Klass-","Kommentarer om mullhalt","Utförda struktur-","Spadtest","Klass-","Kommentar"]
[null,null,null,null,null,"(m)","dränerings-","om",null,null,null,"ning",null,null,"ning",null,"befrämjande"," (antal","ning","om"]
[null,null,null,null,null,null,"status","system-",null,null,null,null,null,null,null,null,"grundförbättrings-"," tramp)",null,"markstruktur"]
[null,null,null,null,null,null,null,"dikat",null,null,null,null,null,null,null,null,"åtgärder"]
[null,null,"zNull",null,null,null,null,null,null,null,"dran-falttest",null,"dran-kommentar",null,null,"mull-kommentar",null,null,null,"mark-kommentar"]
[null,null,1,{"$f":"IF('Grundförutsättningar för skifte'!D16=\"\",\"\",'Grundförutsättningar för skifte'!D16)","v":""},{"$f":"IF('Grundförutsättningar för skifte'!E16=\"\",\"\",'Grundförutsättningar för skifte'!E16)","v":""},{"$f":"IF(E16=\"\",\"\",VLOOKUP(E16,zT_jordartstabell,$F$3,FALSE))","v":""},{"$f":"IF(D16=\"\",\"\",'Grundförutsättningar för skifte'!I16)","v":""},{"$f":"IF(G16=\"Systemtäckdikat\",IF('Grundförutsättningar för skifte'!J16=\"\",\"\",'Grundförutsättningar för skifte'!J16),\"\")","v":""},null,{"$f":"IF(D16=\"\",\"\",IF(G16=\"Ej rördikat\",zT_DraneringsBehov_Ja,IF(G16=\"Systemtäckdikat\",IF(VLOOKUP(H16,zT_dikesavst_tabell,$H$3,FALSE)>VLOOKUP(E16,zT_jordartstabell,$J$3,FALSE),zT_DraneringsBehov_Ja,zT_DraneringsBehov_Nej),IF(VLOOKUP(E16,zT_jordartstabell,$J$3,FALSE)=\"Behovs\",zT_DraneringsBehov_Nej,zT_DraneringsBehov_Ja))))","v":""},null,{"$f":"IF(K16=\"\",\"\",VLOOKUP(K16,zT_faltdrantabell,$L$3,FALSE))","v":""},{"$f":"IF(K16=\"\",\"\",VLOOKUP(K16,zT_faltdrantabell,$M$3,FALSE))","v":""},{"$f":"IF('Grundförutsättningar för skifte'!F16=\"\",\"\",'Grundförutsättningar för skifte'!F16)","v":""},{"$f":"IF('Grundförutsättningar för skifte'!D16=\"\",\"\",VLOOKUP('Grundförutsättningar för skifte'!F16,zT_mullhaltstabell,$O$3,FALSE))","v":""},{"$f":"IF('Grundförutsättningar för skifte'!D16=\"\",\"\",VLOOKUP('Grundförutsättningar för skifte'!F16,zT_mullhaltstabell,$P$3,FALSE))","v":""},null,"4-5",{"$f":"IF('Grundförutsättningar för skifte'!D16=\"\",\"\",VLOOKUP(R16,zT_tramp_tabell,$S$3,FALSE))","v":""},{"$f":"IF('Grundförutsättningar för skifte'!D16=\"\",\"\",VLOOKUP(R16,zT_tramp_tabell,$T$3,FALSE))","v":""}]
[null,null,2,{"$f":"IF('Grundförutsättningar för skifte'!D17=\"\",\"\",'Grundförutsättningar för skifte'!D17)","v":""},{"$f":"IF('Grundförutsättningar för skifte'!E17=\"\",\"\",'Grundförutsättningar för skifte'!E17)","v":""},"",{"$f":"IF(D17=\"\",\"\",'Grundförutsättningar för skifte'!I17)","v":""},{"$f":"IF(G17=\"Systemtäckdikat\",IF('Grundförutsättningar för skifte'!J17=\"\",\"\",'Grundförutsättningar för skifte'!J17),\"\")","v":""},null,"",null,"","",{"$f":"IF('Grundförutsättningar för skifte'!F17=\"\",\"\",'Grundförutsättningar för skifte'!F17)","v":""},{"$f":"IF('Grundförutsättningar för skifte'!D17=\"\",\"\",VLOOKUP('Grundförutsättningar för skifte'!F17,zT_mullhaltstabell,$O$3,FALSE))","v":""},{"$f":"IF('Grundförutsättningar för skifte'!D17=\"\",\"\",VLOOKUP('Grundförutsättningar för skifte'!F17,zT_mullhaltstabell,$P$3,FALSE))","v":""},null,1,{"$f":"IF('Grundförutsättningar för skifte'!D17=\"\",\"\",VLOOKUP(R17,zT_tramp_tabell,$S$3,FALSE))","v":""},{"$f":"IF('Grundförutsättningar för skifte'!D17=\"\",\"\",VLOOKUP(R17,zT_tramp_tabell,$T$3,FALSE))","v":""}]
[null,null,3,{"$f":"IF('Grundförutsättningar för skifte'!D18=\"\",\"\",'Grundförutsättningar för skifte'!D18)","v":""},{"$f":"IF('Grundförutsättningar för skifte'!E18=\"\",\"\",'Grundförutsättningar för skifte'!E18)","v":""},"",{"$f":"IF(D18=\"\",\"\",'Grundförutsättningar för skifte'!I18)","v":""},{"$f":"IF(G18=\"Systemtäckdikat\",IF('Grundförutsättningar för skifte'!J18=\"\",\"\",'Grundförutsättningar för skifte'!J18),\"\")","v":""},null,"",null,"","",{"$f":"IF('Grundförutsättningar för skifte'!F18=\"\",\"\",'Grundförutsättningar för skifte'!F18)","v":""},{"$f":"IF('Grundförutsättningar för skifte'!D18=\"\",\"\",VLOOKUP('Grundförutsättningar för skifte'!F18,zT_mullhaltstabell,$O$3,FALSE))","v":""},{"$f":"IF('Grundförutsättningar för skifte'!D18=\"\",\"\",VLOOKUP('Grundförutsättningar för skifte'!F18,zT_mullhaltstabell,$P$3,FALSE))","v":""},null,null,{"$f":"IF('Grundförutsättningar för skifte'!D18=\"\",\"\",VLOOKUP(R18,zT_tramp_tabell,$S$3,FALSE))","v":""},{"$f":"IF('Grundförutsättningar för skifte'!D18=\"\",\"\",VLOOKUP(R18,zT_tramp_tabell,$T$3,FALSE))","v":""}]
[null,null,4,{"$f":"IF('Grundförutsättningar för skifte'!D19=\"\",\"\",'Grundförutsättningar för skifte'!D19)","v":""},{"$f":"IF('Grundförutsättningar för skifte'!E19=\"\",\"\",'Grundförutsättningar för skifte'!E19)","v":""},"",{"$f":"IF(D19=\"\",\"\",'Grundförutsättningar för skifte'!I19)","v":""},{"$f":"IF(G19=\"Systemtäckdikat\",IF('Grundförutsättningar för skifte'!J19=\"\",\"\",'Grundförutsättningar för skifte'!J19),\"\")","v":""},null,"",null,"","",{"$f":"IF('Grundförutsättningar för skifte'!F19=\"\",\"\",'Grundförutsättningar för skifte'!F19)","v":""},{"$f":"IF('Grundförutsättningar för skifte'!D19=\"\",\"\",VLOOKUP('Grundförutsättningar för skifte'!F19,zT_mullhaltstabell,$O$3,FALSE))","v":""},{"$f":"IF('Grundförutsättningar för skifte'!D19=\"\",\"\",VLOOKUP('Grundförutsättningar för skifte'!F19,zT_mullhaltstabell,$P$3,FALSE))","v":""},null,null,{"$f":"IF('Grundförutsättningar för skifte'!D19=\"\",\"\",VLOOKUP(R19,zT_tramp_tabell,$S$3,FALSE))","v":""},{"$f":"IF('Grundförutsättningar för skifte'!D19=\"\",\"\",VLOOKUP(R19,zT_tramp_tabell,$T$3,FALSE))","v":""}]
[null,null,5,{"$f":"IF('Grundförutsättningar för skifte'!D20=\"\",\"\",'Grundförutsättningar för skifte'!D20)","v":""},{"$f":"IF('Grundförutsättningar för skifte'!E20=\"\",\"\",'Grundförutsättningar för skifte'!E20)","v":""},"",{"$f":"IF(D20=\"\",\"\",'Grundförutsättningar för skifte'!I20)","v":""},{"$f":"IF(G20=\"Systemtäckdikat\",IF('Grundförutsättningar för skifte'!J20=\"\",\"\",'Grundförutsättningar för skifte'!J20),\"\")","v":""},null,"",null,"","",{"$f":"IF('Grundförutsättningar för skifte'!F20=\"\",\"\",'Grundförutsättningar för skifte'!F20)","v":""},{"$f":"IF('Grundförutsättningar för skifte'!D20=\"\",\"\",VLOOKUP('Grundförutsättningar för skifte'!F20,zT_mullhaltstabell,$O$3,FALSE))","v":""},{"$f":"IF('Grundförutsättningar för skifte'!D20=\"\",\"\",VLOOKUP('Grundförutsättningar för skifte'!F20,zT_mullhaltstabell,$P$3,FALSE))","v":""},null,null,{"$f":"IF('Grundförutsättningar för skifte'!D20=\"\",\"\",VLOOKUP(R20,zT_tramp_tabell,$S$3,FALSE))","v":""},{"$f":"IF('Grundförutsättningar för skifte'!D20=\"\",\"\",VLOOKUP(R20,zT_tramp_tabell,$T$3,FALSE))","v":""}]
[null,null,6,{"$f":"IF('Grundförutsättningar för skifte'!D21=\"\",\"\",'Grundförutsättningar för skifte'!D21)","v":""},{"$f":"IF('Grundförutsättningar för skifte'!E21=\"\",\"\",'Grundförutsättningar för skifte'!E21)","v":""},"",{"$f":"IF(D21=\"\",\"\",'Grundförutsättningar för skifte'!I21)","v":""},{"$f":"IF(G21=\"Systemtäckdikat\",IF('Grundförutsättningar för skifte'!J21=\"\",\"\",'Grundförutsättningar för skifte'!J21),\"\")","v":""},null,"",null,"","",{"$f":"IF('Grundförutsättningar för skifte'!F21=\"\",\"\",'Grundförutsättningar för skifte'!F21)","v":""},{"$f":"IF('Grundförutsättningar för skifte'!D21=\"\",\"\",VLOOKUP('Grundförutsättningar för skifte'!F21,zT_mullhaltstabell,$O$3,FALSE))","v":""},{"$f":"IF('Grundförutsättningar för skifte'!D21=\"\",\"\",VLOOKUP('Grundförutsättningar för skifte'!F21,zT_mullhaltstabell,$P$3,FALSE))","v":""},null,null,{"$f":"IF('Grundförutsättningar för skifte'!D21=\"\",\"\",VLOOKUP(R21,zT_tramp_tabell,$S$3,FALSE))","v":""},{"$f":"IF('Grundförutsättningar för skifte'!D21=\"\",\"\",VLOOKUP(R21,zT_tramp_tabell,$T$3,FALSE))","v":""}]
[null,null,7,{"$f":"IF('Grundförutsättningar för skifte'!D22=\"\",\"\",'Grundförutsättningar för skifte'!D22)","v":""},{"$f":"IF('Grundförutsättningar för skifte'!E22=\"\",\"\",'Grundförutsättningar för skifte'!E22)","v":""},"",{"$f":"IF(D22=\"\",\"\",'Grundförutsättningar för skifte'!I22)","v":""},{"$f":"IF(G22=\"Systemtäckdikat\",IF('Grundförutsättningar för skifte'!J22=\"\",\"\",'Grundförutsättningar för skifte'!J22),\"\")","v":""},null,"",null,"","",{"$f":"IF('Grundförutsättningar för skifte'!F22=\"\",\"\",'Grundförutsättningar för skifte'!F22)","v":""},{"$f":"IF('Grundförutsättningar för skifte'!D22=\"\",\"\",VLOOKUP('Grundförutsättningar för skifte'!F22,zT_mullhaltstabell,$O$3,FALSE))","v":""},{"$f":"IF('Grundförutsättningar för skifte'!D22=\"\",\"\",VLOOKUP('Grundförutsättningar för skifte'!F22,zT_mullhaltstabell,$P$3,FALSE))","v":""},null,null,{"$f":"IF('Grundförutsättningar för skifte'!D22=\"\",\"\",VLOOKUP(R22,zT_tramp_tabell,$S$3,FALSE))","v":""},{"$f":"IF('Grundförutsättningar för skifte'!D22=\"\",\"\",VLOOKUP(R22,zT_tramp_tabell,$T$3,FALSE))","v":""}]
[null,null,8,{"$f":"IF('Grundförutsättningar för skifte'!D23=\"\",\"\",'Grundförutsättningar för skifte'!D23)","v":""},{"$f":"IF('Grundförutsättningar för skifte'!E23=\"\",\"\",'Grundförutsättningar för skifte'!E23)","v":""},"",{"$f":"IF(D23=\"\",\"\",'Grundförutsättningar för skifte'!I23)","v":""},{"$f":"IF(G23=\"Systemtäckdikat\",IF('Grundförutsättningar för skifte'!J23=\"\",\"\",'Grundförutsättningar för skifte'!J23),\"\")","v":""},null,"",null,"","",{"$f":"IF('Grundförutsättningar för skifte'!F23=\"\",\"\",'Grundförutsättningar för skifte'!F23)","v":""},{"$f":"IF('Grundförutsättningar för skifte'!D23=\"\",\"\",VLOOKUP('Grundförutsättningar för skifte'!F23,zT_mullhaltstabell,$O$3,FALSE))","v":""},{"$f":"IF('Grundförutsättningar för skifte'!D23=\"\",\"\",VLOOKUP('Grundförutsättningar för skifte'!F23,zT_mullhaltstabell,$P$3,FALSE))","v":""},null,null,{"$f":"IF('Grundförutsättningar för skifte'!D23=\"\",\"\",VLOOKUP(R23,zT_tramp_tabell,$S$3,FALSE))","v":""},{"$f":"IF('Grundförutsättningar för skifte'!D23=\"\",\"\",VLOOKUP(R23,zT_tramp_tabell,$T$3,FALSE))","v":""}]
[null,null,9,{"$f":"IF('Grundförutsättningar för skifte'!D24=\"\",\"\",'Grundförutsättningar för skifte'!D24)","v":""},{"$f":"IF('Grundförutsättningar för skifte'!E24=\"\",\"\",'Grundförutsättningar för skifte'!E24)","v":""},"",{"$f":"IF(D24=\"\",\"\",'Grundförutsättningar för skifte'!I24)","v":""},{"$f":"IF(G24=\"Systemtäckdikat\",IF('Grundförutsättningar för skifte'!J24=\"\",\"\",'Grundförutsättningar för skifte'!J24),\"\")","v":""},null,"",null,"","",{"$f":"IF('Grundförutsättningar för skifte'!F24=\"\",\"\",'Grundförutsättningar för skifte'!F24)","v":""},{"$f":"IF('Grundförutsättningar för skifte'!D24=\"\",\"\",VLOOKUP('Grundförutsättningar för skifte'!F24,zT_mullhaltstabell,$O$3,FALSE))","v":""},{"$f":"IF('Grundförutsättningar för skifte'!D24=\"\",\"\",VLOOKUP('Grundförutsättningar för skifte'!F24,zT_mullhaltstabell,$P$3,FALSE))","v":""},null,null,{"$f":"IF('Grundförutsättningar för skifte'!D24=\"\",\"\",VLOOKUP(R24,zT_tramp_tabell,$S$3,FALSE))","v":""},{"$f":"IF('Grundförutsättningar för skifte'!D24=\"\",\"\",VLOOKUP(R24,zT_tramp_tabell,$T$3,FALSE))","v":""}]
[null,null,10,{"$f":"IF('Grundförutsättningar för skifte'!D25=\"\",\"\",'Grundförutsättningar för skifte'!D25)","v":""},{"$f":"IF('Grundförutsättningar för skifte'!E25=\"\",\"\",'Grundförutsättningar för skifte'!E25)","v":""},"",{"$f":"IF(D25=\"\",\"\",'Grundförutsättningar för skifte'!I25)","v":""},{"$f":"IF(G25=\"Systemtäckdikat\",IF('Grundförutsättningar för skifte'!J25=\"\",\"\",'Grundförutsättningar för skifte'!J25),\"\")","v":""},null,"",null,"","",{"$f":"IF('Grundförutsättningar för skifte'!F25=\"\",\"\",'Grundförutsättningar för skifte'!F25)","v":""},{"$f":"IF('Grundförutsättningar för skifte'!D25=\"\",\"\",VLOOKUP('Grundförutsättningar för skifte'!F25,zT_mullhaltstabell,$O$3,FALSE))","v":""},{"$f":"IF('Grundförutsättningar för skifte'!D25=\"\",\"\",VLOOKUP('Grundförutsättningar för skifte'!F25,zT_mullhaltstabell,$P$3,FALSE))","v":""},null,null,{"$f":"IF('Grundförutsättningar för skifte'!D25=\"\",\"\",VLOOKUP(R25,zT_tramp_tabell,$S$3,FALSE))","v":""},{"$f":"IF('Grundförutsättningar för skifte'!D25=\"\",\"\",VLOOKUP(R25,zT_tramp_tabell,$T$3,FALSE))","v":""}]
[null,null,11,{"$f":"IF('Grundförutsättningar för skifte'!D26=\"\",\"\",'Grundförutsättningar för skifte'!D26)","v":""},{"$f":"IF('Grundförutsättningar för skifte'!E26=\"\",\"\",'Grundförutsättningar för skifte'!E26)","v":""},"",{"$f":"IF(D26=\"\",\"\",'Grundförutsättningar för skifte'!I26)","v":""},{"$f":"IF(G26=\"Systemtäckdikat\",IF('Grundförutsättningar för skifte'!J26=\"\",\"\",'Grundförutsättningar för skifte'!J26),\"\")","v":""},null,"",null,"","",{"$f":"IF('Grundförutsättningar för skifte'!F26=\"\",\"\",'Grundförutsättningar för skifte'!F26)","v":""},{"$f":"IF('Grundförutsättningar för skifte'!D26=\"\",\"\",VLOOKUP('Grundförutsättningar för skifte'!F26,zT_mullhaltstabell,$O$3,FALSE))","v":""},{"$f":"IF('Grundförutsättningar för skifte'!D26=\"\",\"\",VLOOKUP('Grundförutsättningar för skifte'!F26,zT_mullhaltstabell,$P$3,FALSE))","v":""},null,null,{"$f":"IF('Grundförutsättningar för skifte'!D26=\"\",\"\",VLOOKUP(R26,zT_tramp_tabell,$S$3,FALSE))","v":""},{"$f":"IF('Grundförutsättningar för skifte'!D26=\"\",\"\",VLOOKUP(R26,zT_tramp_tabell,$T$3,FALSE))","v":""}]
[null,null,12,{"$f":"IF('Grundförutsättningar för skifte'!D27=\"\",\"\",'Grundförutsättningar för skifte'!D27)","v":""},{"$f":"IF('Grundförutsättningar för skifte'!E27=\"\",\"\",'Grundförutsättningar för skifte'!E27)","v":""},"",{"$f":"IF(D27=\"\",\"\",'Grundförutsättningar för skifte'!I27)","v":""},{"$f":"IF(G27=\"Systemtäckdikat\",IF('Grundförutsättningar för skifte'!J27=\"\",\"\",'Grundförutsättningar för skifte'!J27),\"\")","v":""},null,"",null,"","",{"$f":"IF('Grundförutsättningar för skifte'!F27=\"\",\"\",'Grundförutsättningar för skifte'!F27)","v":""},{"$f":"IF('Grundförutsättningar för skifte'!D27=\"\",\"\",VLOOKUP('Grundförutsättningar för skifte'!F27,zT_mullhaltstabell,$O$3,FALSE))","v":""},{"$f":"IF('Grundförutsättningar för skifte'!D27=\"\",\"\",VLOOKUP('Grundförutsättningar för skifte'!F27,zT_mullhaltstabell,$P$3,FALSE))","v":""},null,null,{"$f":"IF('Grundförutsättningar för skifte'!D27=\"\",\"\",VLOOKUP(R27,zT_tramp_tabell,$S$3,FALSE))","v":""},{"$f":"IF('Grundförutsättningar för skifte'!D27=\"\",\"\",VLOOKUP(R27,zT_tramp_tabell,$T$3,FALSE))","v":""}]
[null,null,13,{"$f":"IF('Grundförutsättningar för skifte'!D28=\"\",\"\",'Grundförutsättningar för skifte'!D28)","v":""},{"$f":"IF('Grundförutsättningar för skifte'!E28=\"\",\"\",'Grundförutsättningar för skifte'!E28)","v":""},"",{"$f":"IF(D28=\"\",\"\",'Grundförutsättningar för skifte'!I28)","v":""},{"$f":"IF(G28=\"Systemtäckdikat\",IF('Grundförutsättningar för skifte'!J28=\"\",\"\",'Grundförutsättningar för skifte'!J28),\"\")","v":""},null,"",null,"","",{"$f":"IF('Grundförutsättningar för skifte'!F28=\"\",\"\",'Grundförutsättningar för skifte'!F28)","v":""},{"$f":"IF('Grundförutsättningar för skifte'!D28=\"\",\"\",VLOOKUP('Grundförutsättningar för skifte'!F28,zT_mullhaltstabell,$O$3,FALSE))","v":""},{"$f":"IF('Grundförutsättningar för skifte'!D28=\"\",\"\",VLOOKUP('Grundförutsättningar för skifte'!F28,zT_mullhaltstabell,$P$3,FALSE))","v":""},null,null,{"$f":"IF('Grundförutsättningar för skifte'!D28=\"\",\"\",VLOOKUP(R28,zT_tramp_tabell,$S$3,FALSE))","v":""},{"$f":"IF('Grundförutsättningar för skifte'!D28=\"\",\"\",VLOOKUP(R28,zT_tramp_tabell,$T$3,FALSE))","v":""}]
[null,null,14,{"$f":"IF('Grundförutsättningar för skifte'!D29=\"\",\"\",'Grundförutsättningar för skifte'!D29)","v":""},{"$f":"IF('Grundförutsättningar för skifte'!E29=\"\",\"\",'Grundförutsättningar för skifte'!E29)","v":""},"",{"$f":"IF(D29=\"\",\"\",'Grundförutsättningar för skifte'!I29)","v":""},{"$f":"IF(G29=\"Systemtäckdikat\",IF('Grundförutsättningar för skifte'!J29=\"\",\"\",'Grundförutsättningar för skifte'!J29),\"\")","v":""},null,"",null,"","",{"$f":"IF('Grundförutsättningar för skifte'!F29=\"\",\"\",'Grundförutsättningar för skifte'!F29)","v":""},{"$f":"IF('Grundförutsättningar för skifte'!D29=\"\",\"\",VLOOKUP('Grundförutsättningar för skifte'!F29,zT_mullhaltstabell,$O$3,FALSE))","v":""},{"$f":"IF('Grundförutsättningar för skifte'!D29=\"\",\"\",VLOOKUP('Grundförutsättningar för skifte'!F29,zT_mullhaltstabell,$P$3,FALSE))","v":""},null,null,{"$f":"IF('Grundförutsättningar för skifte'!D29=\"\",\"\",VLOOKUP(R29,zT_tramp_tabell,$S$3,FALSE))","v":""},{"$f":"IF('Grundförutsättningar för skifte'!D29=\"\",\"\",VLOOKUP(R29,zT_tramp_tabell,$T$3,FALSE))","v":""}]
[null,null,15,{"$f":"IF('Grundförutsättningar för skifte'!D30=\"\",\"\",'Grundförutsättningar för skifte'!D30)","v":""},{"$f":"IF('Grundförutsättningar för skifte'!E30=\"\",\"\",'Grundförutsättningar för skifte'!E30)","v":""},"",{"$f":"IF(D30=\"\",\"\",'Grundförutsättningar för skifte'!I30)","v":""},{"$f":"IF(G30=\"Systemtäckdikat\",IF('Grundförutsättningar för skifte'!J30=\"\",\"\",'Grundförutsättningar för skifte'!J30),\"\")","v":""},null,"",null,"","",{"$f":"IF('Grundförutsättningar för skifte'!F30=\"\",\"\",'Grundförutsättningar för skifte'!F30)","v":""},{"$f":"IF('Grundförutsättningar för skifte'!D30=\"\",\"\",VLOOKUP('Grundförutsättningar för skifte'!F30,zT_mullhaltstabell,$O$3,FALSE))","v":""},{"$f":"IF('Grundförutsättningar för skifte'!D30=\"\",\"\",VLOOKUP('Grundförutsättningar för skifte'!F30,zT_mullhaltstabell,$P$3,FALSE))","v":""},null,null,{"$f":"IF('Grundförutsättningar för skifte'!D30=\"\",\"\",VLOOKUP(R30,zT_tramp_tabell,$S$3,FALSE))","v":""},{"$f":"IF('Grundförutsättningar för skifte'!D30=\"\",\"\",VLOOKUP(R30,zT_tramp_tabell,$T$3,FALSE))","v":""}]
[null,null,16,{"$f":"IF('Grundförutsättningar för skifte'!D31=\"\",\"\",'Grundförutsättningar för skifte'!D31)","v":""},{"$f":"IF('Grundförutsättningar för skifte'!E31=\"\",\"\",'Grundförutsättningar för skifte'!E31)","v":""},"",{"$f":"IF(D31=\"\",\"\",'Grundförutsättningar för skifte'!I31)","v":""},{"$f":"IF(G31=\"Systemtäckdikat\",IF('Grundförutsättningar för skifte'!J31=\"\",\"\",'Grundförutsättningar för skifte'!J31),\"\")","v":""},null,"",null,"","",{"$f":"IF('Grundförutsättningar för skifte'!F31=\"\",\"\",'Grundförutsättningar för skifte'!F31)","v":""},{"$f":"IF('Grundförutsättningar för skifte'!D31=\"\",\"\",VLOOKUP('Grundförutsättningar för skifte'!F31,zT_mullhaltstabell,$O$3,FALSE))","v":""},{"$f":"IF('Grundförutsättningar för skifte'!D31=\"\",\"\",VLOOKUP('Grundförutsättningar för skifte'!F31,zT_mullhaltstabell,$P$3,FALSE))","v":""},null,null,{"$f":"IF('Grundförutsättningar för skifte'!D31=\"\",\"\",VLOOKUP(R31,zT_tramp_tabell,$S$3,FALSE))","v":""},{"$f":"IF('Grundförutsättningar för skifte'!D31=\"\",\"\",VLOOKUP(R31,zT_tramp_tabell,$T$3,FALSE))","v":""}]
[null,null,17,{"$f":"IF('Grundförutsättningar för skifte'!D32=\"\",\"\",'Grundförutsättningar för skifte'!D32)","v":""},{"$f":"IF('Grundförutsättningar för skifte'!E32=\"\",\"\",'Grundförutsättningar för skifte'!E32)","v":""},"",{"$f":"IF(D32=\"\",\"\",'Grundförutsättningar för skifte'!I32)","v":""},{"$f":"IF(G32=\"Systemtäckdikat\",IF('Grundförutsättningar för skifte'!J32=\"\",\"\",'Grundförutsättningar för skifte'!J32),\"\")","v":""},null,"",null,"","",{"$f":"IF('Grundförutsättningar för skifte'!F32=\"\",\"\",'Grundförutsättningar för skifte'!F32)","v":""},{"$f":"IF('Grundförutsättningar för skifte'!D32=\"\",\"\",VLOOKUP('Grundförutsättningar för skifte'!F32,zT_mullhaltstabell,$O$3,FALSE))","v":""},{"$f":"IF('Grundförutsättningar för skifte'!D32=\"\",\"\",VLOOKUP('Grundförutsättningar för skifte'!F32,zT_mullhaltstabell,$P$3,FALSE))","v":""},null,null,{"$f":"IF('Grundförutsättningar för skifte'!D32=\"\",\"\",VLOOKUP(R32,zT_tramp_tabell,$S$3,FALSE))","v":""},{"$f":"IF('Grundförutsättningar för skifte'!D32=\"\",\"\",VLOOKUP(R32,zT_tramp_tabell,$T$3,FALSE))","v":""}]
[null,null,18,{"$f":"IF('Grundförutsättningar för skifte'!D33=\"\",\"\",'Grundförutsättningar för skifte'!D33)","v":""},{"$f":"IF('Grundförutsättningar för skifte'!E33=\"\",\"\",'Grundförutsättningar för skifte'!E33)","v":""},"",{"$f":"IF(D33=\"\",\"\",'Grundförutsättningar för skifte'!I33)","v":""},{"$f":"IF(G33=\"Systemtäckdikat\",IF('Grundförutsättningar för skifte'!J33=\"\",\"\",'Grundförutsättningar för skifte'!J33),\"\")","v":""},null,"",null,"","",{"$f":"IF('Grundförutsättningar för skifte'!F33=\"\",\"\",'Grundförutsättningar för skifte'!F33)","v":""},{"$f":"IF('Grundförutsättningar för skifte'!D33=\"\",\"\",VLOOKUP('Grundförutsättningar för skifte'!F33,zT_mullhaltstabell,$O$3,FALSE))","v":""},{"$f":"IF('Grundförutsättningar för skifte'!D33=\"\",\"\",VLOOKUP('Grundförutsättningar för skifte'!F33,zT_mullhaltstabell,$P$3,FALSE))","v":""},null,null,{"$f":"IF('Grundförutsättningar för skifte'!D33=\"\",\"\",VLOOKUP(R33,zT_tramp_tabell,$S$3,FALSE))","v":""},{"$f":"IF('Grundförutsättningar för skifte'!D33=\"\",\"\",VLOOKUP(R33,zT_tramp_tabell,$T$3,FALSE))","v":""}]
[null,null,19,{"$f":"IF('Grundförutsättningar för skifte'!D34=\"\",\"\",'Grundförutsättningar för skifte'!D34)","v":""},{"$f":"IF('Grundförutsättningar för skifte'!E34=\"\",\"\",'Grundförutsättningar för skifte'!E34)","v":""},"",{"$f":"IF(D34=\"\",\"\",'Grundförutsättningar för skifte'!I34)","v":""},{"$f":"IF(G34=\"Systemtäckdikat\",IF('Grundförutsättningar för skifte'!J34=\"\",\"\",'Grundförutsättningar för skifte'!J34),\"\")","v":""},null,"",null,"","",{"$f":"IF('Grundförutsättningar för skifte'!F34=\"\",\"\",'Grundförutsättningar för skifte'!F34)","v":""},{"$f":"IF('Grundförutsättningar för skifte'!D34=\"\",\"\",VLOOKUP('Grundförutsättningar för skifte'!F34,zT_mullhaltstabell,$O$3,FALSE))","v":""},{"$f":"IF('Grundförutsättningar för skifte'!D34=\"\",\"\",VLOOKUP('Grundförutsättningar för skifte'!F34,zT_mullhaltstabell,$P$3,FALSE))","v":""},null,null,{"$f":"IF('Grundförutsättningar för skifte'!D34=\"\",\"\",VLOOKUP(R34,zT_tramp_tabell,$S$3,FALSE))","v":""},{"$f":"IF('Grundförutsättningar för skifte'!D34=\"\",\"\",VLOOKUP(R34,zT_tramp_tabell,$T$3,FALSE))","v":""}]
[null,null,"20",{"$f":"IF('Grundförutsättningar för skifte'!D35=\"\",\"\",'Grundförutsättningar för skifte'!D35)","v":""},{"$f":"IF('Grundförutsättningar för skifte'!E35=\"\",\"\",'Grundförutsättningar för skifte'!E35)","v":""},"",{"$f":"IF(D35=\"\",\"\",'Grundförutsättningar för skifte'!I35)","v":""},{"$f":"IF(G35=\"Systemtäckdikat\",IF('Grundförutsättningar för skifte'!J35=\"\",\"\",'Grundförutsättningar för skifte'!J35),\"\")","v":""},null,"",null,"","",{"$f":"IF('Grundförutsättningar för skifte'!F35=\"\",\"\",'Grundförutsättningar för skifte'!F35)","v":""},{"$f":"IF('Grundförutsättningar för skifte'!D35=\"\",\"\",VLOOKUP('Grundförutsättningar för skifte'!F35,zT_mullhaltstabell,$O$3,FALSE))","v":""},{"$f":"IF('Grundförutsättningar för skifte'!D35=\"\",\"\",VLOOKUP('Grundförutsättningar för skifte'!F35,zT_mullhaltstabell,$P$3,FALSE))","v":""},null,null,{"$f":"IF('Grundförutsättningar för skifte'!D35=\"\",\"\",VLOOKUP(R35,zT_tramp_tabell,$S$3,FALSE))","v":""},{"$f":"IF('Grundförutsättningar för skifte'!D35=\"\",\"\",VLOOKUP(R35,zT_tramp_tabell,$T$3,FALSE))","v":""}]
[null,null,"21",{"$f":"IF('Grundförutsättningar för skifte'!D36=\"\",\"\",'Grundförutsättningar för skifte'!D36)","v":""},{"$f":"IF('Grundförutsättningar för skifte'!E36=\"\",\"\",'Grundförutsättningar för skifte'!E36)","v":""},"",{"$f":"IF(D36=\"\",\"\",'Grundförutsättningar för skifte'!I36)","v":""},{"$f":"IF(G36=\"Systemtäckdikat\",IF('Grundförutsättningar för skifte'!J36=\"\",\"\",'Grundförutsättningar för skifte'!J36),\"\")","v":""},null,"",null,"","",{"$f":"IF('Grundförutsättningar för skifte'!F36=\"\",\"\",'Grundförutsättningar för skifte'!F36)","v":""},{"$f":"IF('Grundförutsättningar för skifte'!D36=\"\",\"\",VLOOKUP('Grundförutsättningar för skifte'!F36,zT_mullhaltstabell,$O$3,FALSE))","v":""},{"$f":"IF('Grundförutsättningar för skifte'!D36=\"\",\"\",VLOOKUP('Grundförutsättningar för skifte'!F36,zT_mullhaltstabell,$P$3,FALSE))","v":""},null,null,{"$f":"IF('Grundförutsättningar för skifte'!D36=\"\",\"\",VLOOKUP(R36,zT_tramp_tabell,$S$3,FALSE))","v":""},{"$f":"IF('Grundförutsättningar för skifte'!D36=\"\",\"\",VLOOKUP(R36,zT_tramp_tabell,$T$3,FALSE))","v":""}]
[null,null,"22",{"$f":"IF('Grundförutsättningar för skifte'!D37=\"\",\"\",'Grundförutsättningar för skifte'!D37)","v":""},{"$f":"IF('Grundförutsättningar för skifte'!E37=\"\",\"\",'Grundförutsättningar för skifte'!E37)","v":""},"",{"$f":"IF(D37=\"\",\"\",'Grundförutsättningar för skifte'!I37)","v":""},{"$f":"IF(G37=\"Systemtäckdikat\",IF('Grundförutsättningar för skifte'!J37=\"\",\"\",'Grundförutsättningar för skifte'!J37),\"\")","v":""},null,"",null,"","",{"$f":"IF('Grundförutsättningar för skifte'!F37=\"\",\"\",'Grundförutsättningar för skifte'!F37)","v":""},{"$f":"IF('Grundförutsättningar för skifte'!D37=\"\",\"\",VLOOKUP('Grundförutsättningar för skifte'!F37,zT_mullhaltstabell,$O$3,FALSE))","v":""},{"$f":"IF('Grundförutsättningar för skifte'!D37=\"\",\"\",VLOOKUP('Grundförutsättningar för skifte'!F37,zT_mullhaltstabell,$P$3,FALSE))","v":""},null,null,{"$f":"IF('Grundförutsättningar för skifte'!D37=\"\",\"\",VLOOKUP(R37,zT_tramp_tabell,$S$3,FALSE))","v":""},{"$f":"IF('Grundförutsättningar för skifte'!D37=\"\",\"\",VLOOKUP(R37,zT_tramp_tabell,$T$3,FALSE))","v":""}]
[null,null,"23",{"$f":"IF('Grundförutsättningar för skifte'!D38=\"\",\"\",'Grundförutsättningar för skifte'!D38)","v":""},{"$f":"IF('Grundförutsättningar för skifte'!E38=\"\",\"\",'Grundförutsättningar för skifte'!E38)","v":""},"",{"$f":"IF(D38=\"\",\"\",'Grundförutsättningar för skifte'!I38)","v":""},{"$f":"IF(G38=\"Systemtäckdikat\",IF('Grundförutsättningar för skifte'!J38=\"\",\"\",'Grundförutsättningar för skifte'!J38),\"\")","v":""},null,"",null,"","",{"$f":"IF('Grundförutsättningar för skifte'!F38=\"\",\"\",'Grundförutsättningar för skifte'!F38)","v":""},{"$f":"IF('Grundförutsättningar för skifte'!D38=\"\",\"\",VLOOKUP('Grundförutsättningar för skifte'!F38,zT_mullhaltstabell,$O$3,FALSE))","v":""},{"$f":"IF('Grundförutsättningar för skifte'!D38=\"\",\"\",VLOOKUP('Grundförutsättningar för skifte'!F38,zT_mullhaltstabell,$P$3,FALSE))","v":""},null,null,{"$f":"IF('Grundförutsättningar för skifte'!D38=\"\",\"\",VLOOKUP(R38,zT_tramp_tabell,$S$3,FALSE))","v":""},{"$f":"IF('Grundförutsättningar för skifte'!D38=\"\",\"\",VLOOKUP(R38,zT_tramp_tabell,$T$3,FALSE))","v":""}]
[null,null,"24",{"$f":"IF('Grundförutsättningar för skifte'!D39=\"\",\"\",'Grundförutsättningar för skifte'!D39)","v":""},{"$f":"IF('Grundförutsättningar för skifte'!E39=\"\",\"\",'Grundförutsättningar för skifte'!E39)","v":""},"",{"$f":"IF(D39=\"\",\"\",'Grundförutsättningar för skifte'!I39)","v":""},{"$f":"IF(G39=\"Systemtäckdikat\",IF('Grundförutsättningar för skifte'!J39=\"\",\"\",'Grundförutsättningar för skifte'!J39),\"\")","v":""},null,"",null,"","",{"$f":"IF('Grundförutsättningar för skifte'!F39=\"\",\"\",'Grundförutsättningar för skifte'!F39)","v":""},{"$f":"IF('Grundförutsättningar för skifte'!D39=\"\",\"\",VLOOKUP('Grundförutsättningar för skifte'!F39,zT_mullhaltstabell,$O$3,FALSE))","v":""},{"$f":"IF('Grundförutsättningar för skifte'!D39=\"\",\"\",VLOOKUP('Grundförutsättningar för skifte'!F39,zT_mullhaltstabell,$P$3,FALSE))","v":""},null,null,{"$f":"IF('Grundförutsättningar för skifte'!D39=\"\",\"\",VLOOKUP(R39,zT_tramp_tabell,$S$3,FALSE))","v":""},{"$f":"IF('Grundförutsättningar för skifte'!D39=\"\",\"\",VLOOKUP(R39,zT_tramp_tabell,$T$3,FALSE))","v":""}]
[null,null,"25",{"$f":"IF('Grundförutsättningar för skifte'!D40=\"\",\"\",'Grundförutsättningar för skifte'!D40)","v":""},{"$f":"IF('Grundförutsättningar för skifte'!E40=\"\",\"\",'Grundförutsättningar för skifte'!E40)","v":""},"",{"$f":"IF(D40=\"\",\"\",'Grundförutsättningar för skifte'!I40)","v":""},{"$f":"IF(G40=\"Systemtäckdikat\",IF('Grundförutsättningar för skifte'!J40=\"\",\"\",'Grundförutsättningar för skifte'!J40),\"\")","v":""},null,"",null,"","",{"$f":"IF('Grundförutsättningar för skifte'!F40=\"\",\"\",'Grundförutsättningar för skifte'!F40)","v":""},{"$f":"IF('Grundförutsättningar för skifte'!D40=\"\",\"\",VLOOKUP('Grundförutsättningar för skifte'!F40,zT_mullhaltstabell,$O$3,FALSE))","v":""},{"$f":"IF('Grundförutsättningar för skifte'!D40=\"\",\"\",VLOOKUP('Grundförutsättningar för skifte'!F40,zT_mullhaltstabell,$P$3,FALSE))","v":""},null,null,{"$f":"IF('Grundförutsättningar för skifte'!D40=\"\",\"\",VLOOKUP(R40,zT_tramp_tabell,$S$3,FALSE))","v":""},{"$f":"IF('Grundförutsättningar för skifte'!D40=\"\",\"\",VLOOKUP(R40,zT_tramp_tabell,$T$3,FALSE))","v":""}]

{"sheet":"Hur mår din jord","index":11,"n_rows":32,"n_cols":10,"rows_kept":32,"cut":false,"hidden":false,"merged":[[17,3,18,4]]}
[]
[null,null,null,null,null,{"$f":"MATCH(F3,INDEX(zT_HurMarDinJord_QnA,0,1),0)","v":1},{"$f":"MATCH(G3,INDEX(zT_HurMarDinJord_QnA,0,1),0)","v":11},{"$f":"MATCH(H3,INDEX(zT_HurMarDinJord_QnA,0,1),0)","v":21},{"$f":"MATCH(I3,INDEX(zT_HurMarDinJord_QnA,0,1),0)","v":31},{"$f":"MATCH(J3,INDEX(zT_HurMarDinJord_QnA,0,1),0)","v":41}]
[null,null,null,null,null,"Fråga 1:","Fråga 3:","Fråga 5:","Fråga 7:","Fråga 9:"]
[null,null,null,null,null,{"$f":"INDEX(zT_HurMarDinJord_QnA,F$2,2)","v":"Har jorden bra struktur och fint bruk?"},{"$f":"INDEX(zT_HurMarDinJord_QnA,G$2,2)","v":"Är det lätt att bearbeta jorden?"},{"$f":"INDEX(zT_HurMarDinJord_QnA,H$2,2)","v":"Finns det rikligt med dagg maskar?"},{"$f":"INDEX(zT_HurMarDinJord_QnA,I$2,2)","v":"Är grödor och ogräs friska och frodiga?"},{"$f":"INDEX(zT_HurMarDinJord_QnA,J$2,2)","v":"Infiltrerar vatten snabbt?"}]
[null,null,null,null,null,{"$f":"INDEX(zT_HurMarDinJord_QnA,F$2+1,2)","v":"Kokigt, pulvrigt, massivt eller skiktat"},{"$f":"INDEX(zT_HurMarDinJord_QnA,G$2+1,2)","v":"Många överfarter och stort dragkraftbehov"},{"$f":"INDEX(zT_HurMarDinJord_QnA,H$2+1,2)","v":"Inga daggmaskar"},{"$f":"INDEX(zT_HurMarDinJord_QnA,I$2+1,2)","v":"Hämmad tillväxt, missfärgning, ojämna bestånd"},{"$f":"INDEX(zT_HurMarDinJord_QnA,J$2+1,2)","v":"Stående vatten kvar länge efter lätt regn"}]
[null,null,null,null,null,{"$f":"INDEX(zT_HurMarDinJord_QnA,F$2+2,2)","v":"En del smuliga (granulära) aggregat syns"},{"$f":"INDEX(zT_HurMarDinJord_QnA,G$2+2,2)","v":"Medel"},{"$f":"INDEX(zT_HurMarDinJord_QnA,H$2+2,2)","v":"Några daggmaskar och maskgångar"},{"$f":"INDEX(zT_HurMarDinJord_QnA,I$2+2,2)","v":"Något ojämn tillväxt, lite missfärgning"},{"$f":"INDEX(zT_HurMarDinJord_QnA,J$2+2,2)","v":"Vattnet rinner undan sakta, lite pölar"}]
[null,null,null,null,null,{"$f":"INDEX(zT_HurMarDinJord_QnA,F$2+3,2)","v":"Porösa granulära aggregat"},{"$f":"INDEX(zT_HurMarDinJord_QnA,G$2+3,2)","v":"Lättbearbetad jord, litet dragkraftbehov"},{"$f":"INDEX(zT_HurMarDinJord_QnA,H$2+3,2)","v":"Många daggmaskar, maskgångar"},{"$f":"INDEX(zT_HurMarDinJord_QnA,I$2+3,2)","v":"Frisk, frodig och jämn gröda"},{"$f":"INDEX(zT_HurMarDinJord_QnA,J$2+3,2)","v":"Inga pölar efter stora regn eller bevattning"}]
[]
[null,null,null,null,null,{"$f":"MATCH(F10,INDEX(zT_HurMarDinJord_QnA,0,1),0)","v":6},{"$f":"MATCH(G10,INDEX(zT_HurMarDinJord_QnA,0,1),0)","v":16},{"$f":"MATCH(H10,INDEX(zT_HurMarDinJord_QnA,0,1),0)","v":26},{"$f":"MATCH(I10,INDEX(zT_HurMarDinJord_QnA,0,1),0)","v":36},{"$f":"MATCH(J10,INDEX(zT_HurMarDinJord_QnA,0,1),0)","v":46}]
[null,null,null,null,null,"Fråga 2:","Fråga 4:","Fråga 6:","Fråga 8:","Fråga 10:"]
[null,null,null,null,null,{"$f":"INDEX(zT_HurMarDinJord_QnA,F$9,2)","v":"Saknar jorden täta skikt?"},{"$f":"INDEX(zT_HurMarDinJord_QnA,G$9,2)","v":"Är marken full av levande organismer?"},{"$f":"INDEX(zT_HurMarDinJord_QnA,H$9,2)","v":"Finns det växtrester och bryts de ner?"},{"$f":"INDEX(zT_HurMarDinJord_QnA,I$9,2)","v":"Utvecklas växtrötterna bra?"},{"$f":"INDEX(zT_HurMarDinJord_QnA,J$9,2)","v":"Finns vatten tillgängligt för grödan?"}]
[null,null,null,null,null,{"$f":"INDEX(zT_HurMarDinJord_QnA,F$9+1,2)","v":"Tydligt tätt skikt, tydlig plogsula, rötter böjer av"},"Få eller inga markdjur syns","Inga växtrester eller tar lång tid att bryta ned","Dålig rottillväxt, gulbruna eller svampiga rötter","Torr jord, kräver tät bevattning"]
[null,null,null,null,null,{"$f":"INDEX(zT_HurMarDinJord_QnA,F$9+2,2)","v":"Något kompakta skikt, rottillväxt lite hämmad"},"Några","Lite växtrester, långsam nedbrytning","En del finrötter, de flesta friska","Medelgod vattentillgång"]
[null,null,null,null,null,{"$f":"INDEX(zT_HurMarDinJord_QnA,F$9+3,2)","v":"En spade glider lätt ner förbi bearbetningsdjup"},"Marken är full av markdjur av olika slag","Växtrester i alla nedbrytningsstadier, jordlukt, sötdoft","Frodiga, friska, vita rotsystem","Rätt mängd vatten tillgänglig vid rätt tillfälle"]
[]
[null,null,null,null,null,"Table Header Row not used on this sheet"]
[]
[null,null,null,"HUR MÅR DIN JORD ?"]
[]
[]
[null,null,null,null,null,"Skifte","Skifte","Skifte","Skifte","Skifte"]
[null,null,null,null,null,1,2,3,4,5]
[null,null,1,{"$f":"F4","v":"Har jorden bra struktur och fint bruk?"}]
[null,null,2,{"$f":"F11","v":"Saknar jorden täta skikt?"}]
[null,null,3,{"$f":"G4","v":"Är det lätt att bearbeta jorden?"}]
[null,null,4,{"$f":"G11","v":"Är marken full av levande organismer?"}]
[null,null,5,{"$f":"H4","v":"Finns det rikligt med dagg maskar?"}]
[null,null,6,{"$f":"H11","v":"Finns det växtrester och bryts de ner?"}]
[null,null,7,{"$f":"I4","v":"Är grödor och ogräs friska och frodiga?"}]
[null,null,8,{"$f":"I11","v":"Utvecklas växtrötterna bra?"}]
[null,null,9,{"$f":"J4","v":"Infiltrerar vatten snabbt?"}]
[null,null,10,{"$f":"J11","v":"Finns vatten tillgängligt för grödan?"}]

{"sheet":"Mall-VF","index":12,"n_rows":40,"n_cols":51,"rows_kept":40,"cut":false,"hidden":true,"merged":[[20,44,21,45],[14,39,14,42],[20,35,21,36],[23,26,26,26],[15,25,15,27],[12,22,12,25],[17,25,18,27],[17,21,18,24],[17,28,18,31],[20,16,21,16]]}
[null,null,null,null,null,null,null,null,null,null,null,null,"Check for MB "]
[null,null,null,null,null,null,null,null,null,null,null,null,null,null,null,null,"Vårkorn",null,null,null,null,null,{"$f":"zf_uppkomst(Q2,zT_omrade,L2,K2,V2)","v":"2000-04-26"},{"$f":"zf_skord(Q2,zT_omrade,N2,K2)","v":{"$error":"#VALUE!"}},null,null,null,null,null,null,null,{"$f":"IF(Q3=\"\",\"-\",zf_nedbrukning(zT_omrade,N2,Q2,AA2,L3,Q3,V3,W3))","v":"-"}]
[null,null,null,null,null,null,null,null,null,null,null,null,null,null,null,null,null,null,null,null,{"$f":"IF(S3=\"\",0,zf_tillforgm_ts(S3))","v":0},null,{"$f":"zf_uppkomst(Q3,zT_omrade,L3,K3,V3,N2,W2)","v":{"$error":"#VALUE!"}},{"$error":"#VALUE!"},{"$f":"zf_normskord(Q3,zT_omrade)","v":{"$error":"#VALUE!"}},null,null,null,null,null,null,{"$f":"IF(Q4=\"\",\"-\",zf_nedbrukning(zT_omrade,N3,Q3,AA3,L4,Q4,V4,W4))","v":"-"},null,{"$f":"zf_ytskydd_slut(Q2,X2,AA2,AF2)","v":{"$error":"#VALUE!"}},{"$f":"zf_ytskydd_start(Q3,W3)","v":{"$error":"#VALUE!"}},{"$f":"zf_barmark(P2,O3,AH3,AI3,-1)","v":{"$error":"#VALUE!"}},{"$f":"zf_barmark(P2,O3,AH3,AI3,1)","v":{"$error":"#VALUE!"}},{"$f":"AJ3+AK3","v":{"$error":"#VALUE!"}},{"$f":"zf_orgsubstans(Q3,Z3,Y3,AC3,AE3,AA3,T3,U3)","v":{"$error":"#VALUE!"}},{"$f":"zf_rotter(Q3,Y3,AC3,AE3,AA3)","v":{"$error":"#VALUE!"}},{"$f":"zf_torkdagar(\"Torkdagar\",IF(B2=$B$27,B2:E3,F2:I3))","v":"saknas"},{"$f":"OFFSET(INDIRECT($AP$5),K3-zVBA_Local_VFstartAr,0)","v":0},{"$f":"OFFSET(INDIRECT($AP$5),K3-zVBA_Local_VFstartAr,1)","v":0},null,{"$f":"AN3*AS$6/1000","v":{"$error":"#VALUE!"}},{"$f":"AO3*AT$6/365","v":{"$error":"#VALUE!"}},{"$f":"AM3*AU$6/1000","v":{"$error":"#VALUE!"}},{"$f":"AL3*AV$6/365","v":{"$error":"#VALUE!"}},{"$f":"AP3*AW$6","v":0},{"$f":"AQ3*AX$6","v":0},{"$f":"SUM(AS3:AX3)","v":{"$error":"#VALUE!"}}]
[]
[null,null,null,null,null,null,null,null,null,null,null,{"$f":"Årsmån!E14","v":"Vår"},{"$f":"Årsmån!F14","v":"Sommar"},{"$f":"Årsmån!G14","v":"Höst"},{"$f":"Årsmån!L14","v":"Snöfri"},{"$f":"Årsmån!M14","v":"Tjäle"},"Enabled",null,null,null,null,null,null,null,null,null,null,null,null,null,null,null,null,null,null,null,null,null,null,null,null,{"$f":"zf_MBsumsFirstAddress(zT_Local_MBname,\"zVBA_DataMinRow\",\"zVBA_MBsumFormulas\")","v":"'[SLU Markstrukturindex - Mall rev 091222.xlsm]Mall-MB'!$B$47"}]
[null,null,null,null,null,null,null,null,null,null,null,{"$f":"MATCH(L5,INDEX(zT_arsmansklassning,1,0),0)","v":2},{"$f":"MATCH(M5,INDEX(zT_arsmansklassning,1,0),0)","v":3},{"$f":"MATCH(N5,INDEX(zT_arsmansklassning,1,0),0)","v":4},{"$f":"MATCH(O5,INDEX(zT_arsmansklassning,1,0),0)","v":9},{"$f":"MATCH(P5,INDEX(zT_arsmansklassning,1,0),0)","v":10},null,null,null,null,null,null,null,null,null,null,null,null,null,null,null,null,null,null,null,null,null,null,null,null,null,{"$f":"IF(OR(zT_Local_SkiftesNr=\"\",zT_Local_ScenarioNr=\"\"),zT_MBtemplate,CONCATENATE(zT_MBprefix,zT_Local_SkiftesNr,\"-\",zT_Local_ScenarioNr))","v":"Mall-MB"},null,null,0.67,24.3,0.5,-13,-0.33500000000000002,-0.222]
[]
[]
[null,null,null,null,null,null,null,null,null,null,"VÄXTFÖLJD"]
[]
[null,null,null,null,null,null,null,null,null,null,null,null,null,null,null,null,null,null,null,null,null,"                SKIFTE",null,null,null,null,null,"            SCENARIO"]
[null,null,null,null,null,null,null,null,null,null,null,null,null,null,null,null,null,null,null,null,null,"Nr","Namn",null,null,null,null,"Nr","Beskrivning"]
[null,null,null,null,null,null,null,null,null,null,null,null,null,null,null,null,null,null,null,null,null,1,{"$f":"zf_lookup(zT_skiftesdata,V13,\"namn\",TRUE)","v":0},null,null,null,null,null,{"$f":"zf_lookup(zT_skiften_oversikt,(zT_VFprefix&V13&\"-\"&AB13),\"beskrivning\",TRUE)","v":{"$error":"#VALUE!"}}]
[]
[null,null,null,null,null,null,null,null,null,null,null,null,null,null,null,null,null,null,null,null,null,"MATJORD",null,null,null,null,null,null,"ALV",null,null,null,null,null,null,"ARRONDERING",null,null,null,"DRÄNERING"]
[null,null,null,null,null,null,null,null,null,null,null,null,null,null,null,null,null,null,null,null,null,"Jordart (kornstorlek, mm)",null,null,null,"Mullhalt (viktprocent)",null,null,"Jordart (kornstorlek, mm)",null,null,null,null,null,null,null,null,null,null,"Typ",null,null,"Avstånd"]
[]
[null,null,null,null,null,null,null,null,null,null,null,null,null,null,null,null,null,null,null,null,null,{"$f":"zf_lookup(zT_skiftesdata,V13,\"mat-jordart\",TRUE)","v":0},null,null,null,{"$f":"zf_lookup(zT_skiftesdata,V13,\"mullhalt\",TRUE)","v":0},null,null,{"$f":"zf_lookup(zT_skiftesdata,V13,\"alv-jordart\",TRUE)","v":0},null,null,null,null,null,null,{"$f":"zf_lookup(zT_skiftesdata,V13,\"arrondering\",TRUE)","v":0},null,null,null,{"$f":"zf_lookup(zT_skiftesdata,V13,\"typ\",TRUE)","v":0},null,null,{"$f":"zf_lookup(zT_skiftesdata,V13,\"avstånd\",TRUE)","v":0}]
[]
[]
[null,null,null,null,null,null,null,null,null,null,null,null,null,null,null,null,"INDATA",null,null,null,null,null,null,null,null,null,null,null,null,null,null,null,null,null,null,"UTDATA",null,null,null,null,null,null,null,null,"UTDATA"]
[]
[]
[null," FÖR SÖKNING I DATABAS (torkdagar)",null,null,null,null,null,null,null,null,"ÅR",null,"ÅRSMÅNSKLASSNING",null,"Snöfri","Tjäle","GRÖDA",null," Tillfört organiskt material",null,null,null,"DATUM (ÅÅÅÅ-MM-DD)",null,"  SKÖRDEDATA",null," Fånggröda","FÅNGGRÖDA, VALL, GRÖNGÖDSLING",null,null,null,null,null,"MARKYTESKYDD",null,null,"BARMARKSDAGAR",null,"Organisk","RÖTTER","TORK-","  PACKNING",null,null,"  RESULTAT AV ODLINGSSYSTEMINDEXET"]
[null,null,null,null,null,"Område",{"$f":"zT_omrade","v":1},null,null,null,null,"Vår","Sommar","Höst","början","början",null,null,"Typ","Mängd","ts-halt","Såtid","Uppkomst","Skörd","Avkast-","Halm",null,"Skörd","Avkast-","Skörd","Avkast-","Nedbrukad",null,"Slut","Början","Höst","Vår","Totalt","substans",null,"DAGAR","Antal","ton*km",null,"Rot","Upp-","Organisk","Andel","Bearbet-","Markbe-","Summa"]
[null,null,null,null,null,"Jordart",{"$f":"zf_jordartnr(V18)","v":{"$error":"#VALUE!"}},null,null,null,null,null,null,null,null,null,null,null,null,null,null,null,null,null,"ning",null,null,null,"ning",null,"ning",null,null,"(höst)","(höst/vår)","(h)","(v)","(h+v)",null,null,null,"körn.","per ha",null,"mängd","torkning","substans","barmark","ningar","lastning"]
[null,"Område","Väder","Jordart","Gröda",null,null,null,null,null,null,null,null,null,null,null,null,null,null,"(kg/ha)",null,"(datum)","(datum)","(datum)"," (kg/ha)",null,null,"(datum)"," (kg/ha)","(datum)"," (kg/ha)",null,null,null,null,null,null,null," (kg/ha)"," (kg/ha)"]
[null,{"$f":"$G$25","v":1},{"$f":"LEFT(M28,zT_VaderKeyLength)","v":"Norm"},{"$f":"$G$26","v":{"$error":"#VALUE!"}},{"$f":"Q28","v":"Vårkorn"},{"$f":"$B$27","v":"Område"},{"$f":"$C$27","v":"Väder"},{"$f":"$D$27","v":"Jordart"},{"$f":"$E$27","v":"Gröda"},{"$f":"MATCH(K28,INDEX(zT_arsmansklassning,0,1),0)","v":2},{"$f":"K29-1","v":-1},{"$f":"INDEX(zT_arsmansklassning,$J28,L$6)","v":"Normal"},"Normal","Normal",{"$error":"#VALUE!"},{"$error":"#NUM!"},"Vårkorn",null,null,null,null,null,{"$f":"zf_uppkomst(Q28,zT_omrade,L28,K28,V28)","v":{"$error":"#VALUE!"}},{"$f":"zf_skord(Q28,zT_omrade,N28,K28)","v":{"$error":"#VALUE!"}},null,null,null,null,null,null,null,{"$f":"IF(Q29=\"\",\"-\",zf_nedbrukning(zT_omrade,N28,Q28,AA28,L29,Q29,V29,W29))","v":"-"}]
[null,{"$f":"$B$27","v":"Område"},{"$f":"$C$27","v":"Väder"},{"$f":"$D$27","v":"Jordart"},{"$f":"$E$27","v":"Gröda"},{"$f":"$G$25","v":1},{"$f":"LEFT(M29,zT_VaderKeyLength)","v":"Norm"},{"$f":"$G$26","v":{"$error":"#VALUE!"}},{"$f":"Q29","v":0},3,{"$f":"startår","v":0},"Normal","Normal","Normal","2000-03-14","1900-12-15"]
[null,{"$f":"$G$25","v":1},{"$f":"LEFT(M30,zT_VaderKeyLength)","v":"Norm"},{"$f":"$G$26","v":{"$error":"#VALUE!"}},{"$f":"Q30","v":0},{"$f":"$B$27","v":"Område"},{"$f":"$C$27","v":"Väder"},{"$f":"$D$27","v":"Jordart"},{"$f":"$E$27","v":"Gröda"},4,{"$f":"K29+1","v":1},"Normal","Normal","Normal","2001-03-14","1901-12-15"]
[null,{"$f":"$B$27","v":"Område"},{"$f":"$C$27","v":"Väder"},{"$f":"$D$27","v":"Jordart"},{"$f":"$E$27","v":"Gröda"},{"$f":"$G$25","v":1},{"$f":"LEFT(M31,zT_VaderKeyLength)","v":"Norm"},{"$f":"$G$26","v":{"$error":"#VALUE!"}},{"$f":"Q31","v":0},5,2,"Normal","Normal","Normal","2002-03-14","1902-12-15"]
[null,{"$f":"$G$25","v":1},{"$f":"LEFT(M32,zT_VaderKeyLength)","v":"Norm"},{"$f":"$G$26","v":{"$error":"#VALUE!"}},{"$f":"Q32","v":0},{"$f":"$B$27","v":"Område"},{"$f":"$C$27","v":"Väder"},{"$f":"$D$27","v":"Jordart"},{"$f":"$E$27","v":"Gröda"},6,3,"Normal","Normal","Normal","2003-03-14","1903-12-15"]
[null,{"$f":"$B$27","v":"Område"},{"$f":"$C$27","v":"Väder"},{"$f":"$D$27","v":"Jordart"},{"$f":"$E$27","v":"Gröda"},{"$f":"$G$25","v":1},{"$f":"LEFT(M33,zT_VaderKeyLength)","v":"Norm"},{"$f":"$G$26","v":{"$error":"#VALUE!"}},{"$f":"Q33","v":0},7,4,"Normal","Normal","Normal","2004-03-14","1904-12-15"]
[null,{"$f":"$G$25","v":1},{"$f":"LEFT(M34,zT_VaderKeyLength)","v":"Norm"},{"$f":"$G$26","v":{"$error":"#VALUE!"}},{"$f":"Q34","v":0},{"$f":"$B$27","v":"Område"},{"$f":"$C$27","v":"Väder"},{"$f":"$D$27","v":"Jordart"},{"$f":"$E$27","v":"Gröda"},8,5,"Normal","Normal","Normal","2005-03-14","1905-12-15"]
[null,{"$f":"$B$27","v":"Område"},{"$f":"$C$27","v":"Väder"},{"$f":"$D$27","v":"Jordart"},{"$f":"$E$27","v":"Gröda"},{"$f":"$G$25","v":1},{"$f":"LEFT(M35,zT_VaderKeyLength)","v":"Norm"},{"$f":"$G$26","v":{"$error":"#VALUE!"}},{"$f":"Q35","v":0},9,6,"Normal","Normal","Normal","2006-03-14","1906-12-15"]
[null,{"$f":"$G$25","v":1},{"$f":"LEFT(M36,zT_VaderKeyLength)","v":"Norm"},{"$f":"$G$26","v":{"$error":"#VALUE!"}},{"$f":"Q36","v":0},{"$f":"$B$27","v":"Område"},{"$f":"$C$27","v":"Väder"},{"$f":"$D$27","v":"Jordart"},{"$f":"$E$27","v":"Gröda"},10,7,"Normal","Normal","Normal","2007-03-14","1907-12-15"]
[null,{"$f":"$B$27","v":"Område"},{"$f":"$C$27","v":"Väder"},{"$f":"$D$27","v":"Jordart"},{"$f":"$E$27","v":"Gröda"},{"$f":"$G$25","v":1},{"$f":"LEFT(M37,zT_VaderKeyLength)","v":"Norm"},{"$f":"$G$26","v":{"$error":"#VALUE!"}},{"$f":"Q37","v":0},11,8,"Normal","Normal","Normal","2008-03-14","1908-12-15"]
[null,{"$f":"$G$25","v":1},{"$f":"LEFT(M38,zT_VaderKeyLength)","v":"Norm"},{"$f":"$G$26","v":{"$error":"#VALUE!"}},{"$f":"Q38","v":0},{"$f":"$B$27","v":"Område"},{"$f":"$C$27","v":"Väder"},{"$f":"$D$27","v":"Jordart"},{"$f":"$E$27","v":"Gröda"},12,9,"Normal","Normal","Normal","2009-03-14","1909-12-15"]
[]
[null,null,null,null,null,null,null,null,null,null,null,null,null,null,null,null,null,null,null,null,null,null,null,null,null,null,null,null,null,null,null,null,null,null,null,null,null,null,null,null,null,null,null,null,{"$f":"AVERAGE(IF($Q$29:$Q$39<>\"\",AS29:AS39))","v":{"$error":"#DIV/0!"}},{"$f":"AVERAGE(IF($Q$29:$Q$39<>\"\",AT29:AT39))","v":{"$error":"#DIV/0!"}},{"$f":"AVERAGE(IF($Q$29:$Q$39<>\"\",AU29:AU39))","v":{"$error":"#DIV/0!"}},{"$f":"AVERAGE(IF($Q$29:$Q$39<>\"\",AV29:AV39))","v":{"$error":"#DIV/0!"}},{"$f":"AVERAGE(IF($Q$29:$Q$39<>\"\",AW29:AW39))","v":{"$error":"#DIV/0!"}},{"$f":"AVERAGE(IF($Q$29:$Q$39<>\"\",AX29:AX39))","v":{"$error":"#DIV/0!"}},{"$f":"AVERAGE(IF($Q$29:$Q$39<>\"\",AY29:AY39))","v":{"$error":"#DIV/0!"}}]

{"sheet":"Mall-MB","index":13,"n_rows":46,"n_cols":52,"rows_kept":46,"cut":false,"hidden":true,"merged":[[20,13,21,23],[38,15,38,16],[41,24,42,26],[22,26,23,34],[22,19,23,24],[24,20,24,23],[26,22,26,23],[29,13,29,16],[27,11,28,16],[30,13,30,16],[31,13,31,16],[25,14,26,16],[22,9,23,10],[22,13,23,14],[24,27,24,33],[36,8,37,12],[26,32,26,33],[27,8,28,10],[30,8,31,10]]}
[null,null,null,null,null,null,null,null,null,17,19,22,23,24,26,32,27,null,null,null,null,null,"Kort Lista AKTIV ",true,null,null,null,null,null,null,null,null,null,null,{"$f":"COLUMN()-COLUMN(zT_MontageAlternativ)+1","v":1},{"$f":"COLUMN()-COLUMN(zT_MontageAlternativ)+1","v":2},{"$f":"COLUMN()-COLUMN(zT_MontageAlternativ)+1","v":3},{"$f":"COLUMN()-COLUMN(zT_MontageAlternativ)+1","v":4},{"$f":"COLUMN()-COLUMN(zT_MontageAlternativ)+1","v":5}]
[{"$f":"IF(OR(zT_Local_SkiftesNr=\"\",zT_Local_ScenarioNr=\"\"),zT_VFtemplate,CONCATENATE(zT_VFprefix,zT_Local_SkiftesNr,\"-\",zT_Local_ScenarioNr))","v":"Mall-VF"},"Range: År ","$I$47:$I$71",null,null,"Check for VF ",null,null,null,null,null,null,null,null,null,null,null,null,null,null,null,null,"Fas=Skörd => Sådd AKTIV ",false,null,null,null,"Row","Namn","Totvikt","Viktandel","Ringtryck","Hjul","Antal","Namn","Totvikt","Viktandel","Ringtryck","Hjul"]
[null,"Range: Antal ","$X$47:$X$71",null,null,null,null,null,null,"Active DB Row",{"$f":"ROW(#REF!)","v":{"$error":"#REF!"}},null,null,null,null,null,null,null,null,null,null,null,"Fas=Sådd AKTIV ",true,null,null,null,{"$f":"Traktorer!D10","v":3},{"$f":"Traktorer!F10","v":5},{"$f":"Traktorer!G10","v":6},{"$f":"Traktorer!H10","v":7},{"$f":"Traktorer!I10","v":8},{"$f":"Traktorer!J10","v":9},{"$f":"Traktorer!E10","v":4},{"$f":"IF($AB$5,$AB$6,INDEX(zT_TraktorTabell,$AB$4,AC3))","v":""},"","","",""]
[null,"Range: Packning ","$Z$47:$Z$71",null,null,null,null,null,null,null,null,null,null,null,null,null,null,null,null,null,null,null,"Fas=Sådd => Skörd AKTIV ",false,null,null,null,{"$f":"MATCH(zVBA_Traktor,INDEX(zT_TraktorTabell,0,AB3),0)","v":{"$error":"#N/A"}},{"$f":"Traktorer!K10","v":10},{"$f":"Traktorer!L10","v":11},{"$f":"Traktorer!M10","v":12},{"$f":"Traktorer!N10","v":13},{"$f":"Traktorer!O10","v":14},{"$f":"IF($AB$5,1,INDEX(zT_TraktorTabell,$AB$4,AH3))","v":1},"","","","",""]
[null,null,null,null,null,null,null,null,null,"Change Macro","Enabled",null,null,null,null,null,null,null,null,null,null,null,"Fas=Skörd AKTIV ",false,null,null,null,{"$f":"ISERROR(AB4)","v":true},{"$f":"Traktorer!P10","v":15},{"$f":"Traktorer!Q10","v":16},{"$f":"Traktorer!R10","v":17},{"$f":"Traktorer!S10","v":18},{"$f":"Traktorer!T10","v":19},{"$f":"MATCH(zVBA_MontageAlternativ,INDEX(zT_MontageAlternativ,0,AI1),0)","v":{"$error":"#N/A"}},"","","","",""]
[{"$f":"A5+1","v":1},{"$f":"SUM(IF(INDIRECT(zVBA_MBsumYears)=A6,INDIRECT(zVBA_MBsumAntal)))","v":0},{"$f":"SUM(IF(INDIRECT(zVBA_MBsumYears)=A6,INDIRECT(ZVBA_MBsumPackning)))","v":0},null,null,null,null,null,null,"for this sheet",null,null,null,null,null,null,null,null,null,null,null,null,null,null,null,null,null,{"$f":"\"\"","v":""},{"$f":"Traktorer!U10","v":20},{"$f":"Traktorer!V10","v":21},{"$f":"Traktorer!W10","v":22},{"$f":"Traktorer!X10","v":23},{"$f":"Traktorer!Y10","v":24},{"$f":"ISERROR(AH5)","v":true},"","","","",""]
[]
[{"$f":"MATCH(zVBA_Redskap,INDEX(zT_MaskinTabell,0,B8),0)","v":{"$error":"#N/A"}},{"$f":"Maskinpark!D20","v":3},{"$f":"Maskinpark!E20","v":4},{"$f":"Maskinpark!F20","v":5},{"$f":"Maskinpark!G20","v":6},{"$f":"Maskinpark!H20","v":7},{"$f":"Maskinpark!I20","v":8},null,null,null,null,null,null,null,null,null,null,null,null,null,null,null,{"$f":"Maskinpark!L20","v":11},null,null,null,null,null,null,null,null,null,null,{"$f":"Maskinpark!J20","v":9},{"$f":"Maskinpark!K20","v":10},{"$f":"MATCH(N30,INDEX(zT_BearbetningsMatris1,0,1),0)","v":49},null,null,{"$f":"Maskinpark!M20","v":12},{"$f":"Maskinpark!N20","v":13},{"$f":"Maskinpark!O20","v":14},{"$f":"Maskinpark!P20","v":15},{"$f":"Maskinpark!Q20","v":16},{"$f":"Maskinpark!R20","v":17},{"$f":"Maskinpark!S20","v":18},{"$f":"Maskinpark!T20","v":19},{"$f":"Maskinpark!U20","v":20},{"$f":"Maskinpark!V20","v":21},{"$f":"Maskinpark!W20","v":22},{"$f":"Maskinpark!X20","v":23}]
["Värden från tabell",null,{"$f":"INDEX(zT_MaskinTabell,$A$8,C8)","v":{"$error":"#N/A"}},{"$f":"INDEX(zT_MaskinTabell,$A$8,D8)","v":{"$error":"#N/A"}},{"$f":"INDEX(zT_MaskinTabell,$A$8,E8)","v":{"$error":"#N/A"}},{"$f":"INDEX(zT_MaskinTabell,$A$8,F8)","v":{"$error":"#N/A"}},{"$f":"INDEX(zT_MaskinTabell,$A$8,G8)","v":{"$error":"#N/A"}},null,null,null,null,null,null,null,null,null,null,null,null,null,{"$f":"IF($AH$6,\"\",INDEX(zT_MontageAlternativ,$AH$5,AL1))","v":""},{"$f":"IF($AH$6,\"\",INDEX(zT_MontageAlternativ,$AH$5,AM1))","v":""},{"$f":"IF(AG27=zT_SjalvgaendeKey,0,INDEX(zT_MaskinTabell,$A$8,W8))","v":{"$error":"#N/A"}},1,null,null,null,null,null,null,null,null,null,{"$f":"INDEX(zT_MaskinTabell,$A$8,AH8)","v":{"$error":"#N/A"}},{"$f":"INDEX(zT_MaskinTabell,$A$8,AI8)","v":{"$error":"#N/A"}},{"$f":"INDEX(zT_BearbetningsMatris1,AJ8,zT_ColTypAvKorning)","v":"Risk för tomkörningar"},null,null,{"$f":"IF($AH$29<AM15,0,INDEX(zT_MaskinTabell,$A$8,AM8))","v":{"$error":"#N/A"}},{"$error":"#N/A"},{"$error":"#N/A"},{"$error":"#N/A"},{"$error":"#N/A"},{"$error":"#N/A"},{"$error":"#N/A"},{"$error":"#N/A"},{"$error":"#N/A"},{"$error":"#N/A"},{"$error":"#N/A"},{"$error":"#N/A"}]
["Trigg=Bearbetning",null,null,null,null,null,null,null,null,null,null,null,null,null,null,null,null,null,null,null,null,null,null,{"$f":"N32","v":1},null,null,null,null,null,null,null,null,null,null,null,{"$f":"N31","v":"Risk för tomkörningar"}]
["Trigg=Traktor",null,null,null,null,null,null,null,null,null,null,null,null,null,null,null,null,null,null,null,{"$f":"W33","v":1},{"$f":"W35","v":2}]
["Trigg=Redskap",null,null,null,null,null,null,null,null,null,null,null,null,null,null,null,null,null,null,null,null,null,{"$f":"Z34","v":0.2},null,null,null,null,null,null,null,null,null,null,{"$f":"AC29","v":1},{"$f":"AC30","v":0},null,null,null,{"$f":"AE33","v":1.8},{"$f":"AF33","v":1.8},{"$f":"AG33","v":0},{"$f":"AH33","v":0},{"$f":"AE34","v":0.5},{"$f":"AF34","v":0.5},{"$f":"AG34","v":0},{"$f":"AH34","v":0},{"$f":"AE35","v":4},{"$f":"AF35","v":4},{"$f":"AG35","v":0},{"$f":"AH35","v":0}]
[]
[null,null,"Anslutning","Antal","Arbets-","Vikt","Max",null,"År","Bearbetning",null,"Traktor / dragmaskin",null,null,null,"Traktor",null,null,null,null,"Traktor","Traktor","Öveförd","Antal",null,"Pack-",null,"Redskap",null,null,null,null,null,"Start-","Slut-","Typ av körning",null,"Uppm ks","Redskap: Lufttryck per axel",null,null,null,"Redskap: Viktandel per axel ",null,null,null,"Redkap: Hjul per axel"]
[null,null,"till traktor","axlar","bredd","ex last","last",null,null,null,null,null,null,null,null,"Montage",null,null,null,null,"lufttryck","hjul/axel","last","körningar",null,"ning",null,null,null,null,null,null,null,"last","last",null,null,"km/ha",1,2,3,4,1,2,3,4,1,2,3,4]
["Data från lista",null,null,null,null,null,null,null,{"$f":"OFFSET(I16,$K$3-ROW(),0)","v":{"$error":"#REF!"}},{"$f":"OFFSET(J16,$K$3-ROW(),0)","v":{"$error":"#REF!"}},null,{"$f":"OFFSET(L16,$K$3-ROW(),0)","v":{"$error":"#REF!"}},null,null,null,{"$f":"OFFSET(P16,$K$3-ROW(),0)","v":{"$error":"#REF!"}},null,null,null,null,{"$f":"OFFSET(U16,$K$3-ROW(),0)","v":{"$error":"#REF!"}},{"$f":"OFFSET(V16,$K$3-ROW(),0)","v":{"$error":"#REF!"}},{"$f":"OFFSET(W16,$K$3-ROW(),0)","v":{"$error":"#REF!"}},{"$f":"OFFSET(X16,$K$3-ROW(),0)","v":{"$error":"#REF!"}},null,3.4555555555000002,null,{"$f":"OFFSET(AB16,$K$3-ROW(),0)","v":{"$error":"#REF!"}},null,null,null,null,null,{"$f":"OFFSET(AH16,$K$3-ROW(),0)","v":{"$error":"#REF!"}},{"$f":"OFFSET(AI16,$K$3-ROW(),0)","v":{"$error":"#REF!"}},{"$f":"OFFSET(AJ16,$K$3-ROW(),0)","v":{"$error":"#REF!"}},null,{"$f":"OFFSET(AL16,$K$3-ROW(),0)","v":{"$error":"#REF!"}},{"$f":"OFFSET(AM16,$K$3-ROW(),0)","v":{"$error":"#REF!"}},{"$error":"#REF!"},{"$error":"#REF!"},{"$error":"#REF!"},{"$error":"#REF!"},{"$error":"#REF!"},{"$error":"#REF!"},{"$error":"#REF!"},{"$error":"#REF!"},{"$error":"#REF!"},{"$error":"#REF!"},{"$error":"#REF!"}]
["Adresser (destination)",null,null,null,null,null,null,null,{"$f":"J30","v":2004},{"$f":"N30","v":"Flytgödseltunna (spridning)"},null,{"$f":"U25","v":"CiH\"lejd\" 150 hk (dm). Antagande CiH 7120 Magnum"},null,null,null,{"$f":"W27","v":"Dubbel"},null,null,null,null,{"$f":"W33","v":1},{"$f":"W35","v":2},{"$f":"Z34","v":0.2},{"$f":"N32","v":1},null,{"$f":"Y42","v":{"$error":"#N/A"}},null,{"$f":"AB25","v":"Urintunna Olby, boogie (TrelleborgTwin 800mm däck)"},null,null,null,null,null,{"$f":"AC29","v":1},{"$f":"AC30","v":0},{"$f":"N31","v":"Risk för tomkörningar"},null,{"$f":"N36","v":0},{"$f":"AE33","v":1.8},{"$f":"AF33","v":1.8},{"$f":"AG33","v":0},{"$f":"AH33","v":0},{"$f":"AE34","v":0.5},{"$f":"AF34","v":0.5},{"$f":"AG34","v":0},{"$f":"AH34","v":0},{"$f":"AE35","v":4},{"$f":"AF35","v":4},{"$f":"AG35","v":0},{"$f":"AH35","v":0}]
["Data till lista",null,null,null,null,null,null,null,{"$f":"J30","v":2004},{"$f":"N30","v":"Flytgödseltunna (spridning)"},null,{"$f":"IF(AG27=zT_SjalvgaendeKey,\"\",U25)","v":{"$error":"#N/A"}},null,null,null,{"$f":"IF(AG27=zT_SjalvgaendeKey,\"\",W27)","v":{"$error":"#N/A"}},null,null,null,null,{"$f":"IF(AG27=zT_SjalvgaendeKey,\"\",W33)","v":{"$error":"#N/A"}},{"$f":"IF(AG27=zT_SjalvgaendeKey,\"\",W35)","v":{"$error":"#N/A"}},{"$f":"IF(AG27=zT_SjalvgaendeKey,\"\",Z34)","v":{"$error":"#N/A"}},{"$f":"N32","v":1},null,{"$f":"Y42","v":{"$error":"#N/A"}},null,{"$f":"AB25","v":"Urintunna Olby, boogie (TrelleborgTwin 800mm däck)"},null,null,null,null,null,{"$f":"AC29","v":1},{"$f":"AC30","v":0},{"$f":"N31","v":"Risk för tomkörningar"},null,{"$f":"IF(N36=0,\"\",N36)","v":""},{"$f":"AE33","v":1.8},{"$f":"AF33","v":1.8},{"$f":"AG33","v":0},{"$f":"AH33","v":0},{"$f":"AE34","v":0.5},{"$f":"AF34","v":0.5},{"$f":"AG34","v":0},{"$f":"AH34","v":0},{"$f":"AE35","v":4},{"$f":"AF35","v":4},{"$f":"AG35","v":0},{"$f":"AH35","v":0}]
[]
[null,null,null,null,null,null,null,null,"Table Header Row not used on this sheet"]
[null,null,null,null,null,null,null,null,null,null,null,null,null,"KRITISK BELASTNING MARKPACKNING ALVEN"]
[]
[null,null,null,null,null,null,null,null,null,"SKIFTE",null,null,null,"SCENARIO",null,null,null,null,null,"TRAKTOR / DRAGMASKIN",null,null,null,null,null,null,"REDSKAP / SJÄLVGÅENDE MASKIN",null,null,null,null,null,null,null,null,null,null,null,null,null,null,null,null,null,null,null,null,null,null,null,null,"3 ton / hjul istället för 6 ton / axel som kritisk nivå"]
[]
[null,null,null,null,null,null,null,null,null,"Nr ",null,null,null,"Nr ",null,null,null,null,null,null,"CiH\"lejd\" 150 hk (dm). Antagande CiH 7120 Magnum",null,null,null,null,null,null,"Urintunna Olby, boogie (TrelleborgTwin 800mm däck)"]
[null,null,null,null,null,null,null,null,null,"Namn ",{"$f":"zf_lookup(zT_skiftesdata,K25,\"namn\",TRUE)","v":{"$error":"#VALUE!"}},null,null,"Beskrivning ",{"$f":"zf_lookup(zT_skiften_oversikt,(zT_VFprefix&K25&\"-\"&O25),\"beskrivning\",TRUE)","v":{"$error":"#VALUE!"}}]
[null,null,null,null,null,null,null,null,null,"Arrondering ",{"$f":"IF(zT_Local_SkiftesNr=\"\",INDEX(zT_Arrondering,1,1),zf_lookup(zT_skiftesdata,zT_Local_SkiftesNr,\"arrondering\",TRUE))","v":"Regelbunden"},null,null,null,null,null,null,null,null,null,{"$f":"AH4","v":1},"Montage","Dubbel",null,null,null,null,"Tomvikt ",{"$f":"F9","v":{"$error":"#N/A"}},"kg",null,"Anslutning ",{"$f":"C9","v":{"$error":"#N/A"}}]
[null,"VF: År 1","VF: Sista År",null,null,null,null,null,"ÅR I VÄXTFÖLJD",null,null,"BEARBETNING OCH KÖRSTRÄCKA",null,null,null,null,null,null,null,null,null,null,null,null,null,null,null,"Maxlast ",{"$f":"G9","v":{"$error":"#N/A"}},"kg","Totalvikt",null,"Arbetsbredd ",{"$f":"E9","v":{"$error":"#N/A"}},"m"]
["Rad ",{"$f":"ROW(zf_Range(\"zVBA_Local_VFstartAr\",zT_Local_VFname))","v":29},{"$f":"ROW(zf_Range(\"zVBA_DataMaxRow\",zT_Local_VFname))","v":39},null,null,null,null,null,null,null,null,null,null,null,null,null,null,null,null,null,null,"framaxel","bakaxel","Totalt",null,null,null,"Startlast ",1,"%",{"$f":"AC27+AC28*MIN(AC29,AC30)","v":{"$error":"#N/A"}},"kg min","Axlar ",{"$f":"D9","v":{"$error":"#N/A"}}]
["Värde ",{"$f":"zf_Indirect(\"zVBA_Local_VFstartAr\",zT_Local_VFname)","v":0},{"$f":"zVBA_Local_MBstartAr+C29-B29-1","v":9},null,null,null,null,null,null,2004,null,null,"Bearbetning ","Flytgödseltunna (spridning)",null,null,null,null,null,null,"Vikt kg",{"$f":"IF(X30=0,0,(X30-W30))","v":{"$error":"#N/A"}},{"$f":"IF(X30=0,0,(X30-(100%-W34)*X30))","v":{"$error":"#N/A"}},{"$f":"IF(OR($AH$6,zVBA_Traktor=\"\",AG27=zT_SjalvgaendeKey),0,INDEX(zT_MontageAlternativ,$AH$5,AJ1))","v":{"$error":"#N/A"}},null,null,null,"Slutlast ",0,"%",{"$f":"AC27+AC28*MAX(AC29,AC30)","v":{"$error":"#N/A"}},"kg max"]
[null,null,null,null,null,null,null,null,"BEARBETNINGSLISTA",null,null,null,"Typ av körning ","Risk för tomkörningar"]
[null,null,null,null,null,null,null,null,null,null,null,null,"Antal körningar ",1,null,null,null,null,null,null,null,null,null,null,null,"ÖVERFÖRD LAST",null,null,null,null,"Axel 1","Axel 2","Axel 3","Axel 4"]
[null,null,null,null,null,null,null,null,null,null,null,null,null,null,null,null,null,null,null,null,null,"Ringtryck kP ",1,null,null,"Axelbelastning %",null,null,null,"Ringtryck kP ",1.8,1.8,0,0,"kP"]
[null,null,null,null,null,null,null,null,null,null,null,null,null,"Uppmätt","Schablon",null,null,null,null,null,null,"Viktandel bakaxel ",{"$f":"IF(OR($AH$6,X30=0),0,INDEX(zT_MontageAlternativ,$AH$5,AK1))","v":{"$error":"#N/A"}},"%",null,0.2,null,null,null,"Viktandel per axel ",0.5,0.5,0,0,"%"]
[null,null,null,null,null,null,null,null,null,null,null,null,"Körsträckefaktor ",{"$f":"IF(N36=\"\",\"\",N36*1000*AH28/10000)","v":""},{"$f":"zf_lookup(zT_KorStrackeFaktor,N31,K27,TRUE)","v":2},null,null,null,null,null,null,"Hjul per axel ",2,null,null,null,null,null,null,"Hjul per axel ",4,4,0,0]
[null,null,null,null,null,null,null,null,null,null,null,null,"Körsträcka ",null,{"$f":"10000/AH28/1000*O35","v":{"$error":"#N/A"}},"km/ha",null,null,null,null,null,null,null,null,null,null,null,null,null,"Merbelastn. flera överfarter ",0,0.05,0.1,0.15]
[null,null,null,null,null,null,null,null,"NYCKELDATA FRÅN VÄXTFÖLJD",null,null,null,null,null,null,null,null,null,null,null,null,"Lägsta belastning ",{"$f":"IF(X30=0,0,(AE29*Z34+IF(N30=\"Plöjning\",1.5*W30,IF(N30=\"Harvning\",1.25*W30,IF(OR(N30=\"Djupkult\",N30=\"Sådd kombi\"),1.35*W30,W30))))*2/W35/IF(N30=\"Plöjning\",2,1))","v":{"$error":"#N/A"}},"kg",null,null,null,null,null,"Lägsta belastning ",{"$f":"$AE$29/$AE$30*AE38","v":{"$error":"#N/A"}},{"$f":"$AE$29/$AE$30*AF38","v":{"$error":"#N/A"}},{"$f":"$AE$29/$AE$30*AG38","v":{"$error":"#N/A"}},{"$f":"$AE$29/$AE$30*AH38","v":{"$error":"#N/A"}},"kg"]
[null,null,null,null,null,null,null,null,null,null,null,null,null,null,null,null,null,null,null,null,null,"Högsta belastning ",{"$f":"IF(X30=0,0,(AE30*Z34+IF(N30=\"Plöjning\",1.5*W30,IF(N30=\"Harvning\",1.25*W30,IF(OR(N30=\"Djupkult\",N30=\"Sådd kombi\"),1.35*W30,W30))))*2/W35/IF(N30=\"Plöjning\",2,1))","v":{"$error":"#N/A"}},"kg",null,null,null,null,null,"Högsta belastning ",{"$f":"IF(AE33=0,0,$AE$30*AE34*IF($AG$27=zT_SjalvgaendeKey,1,1-$Z$34)*2/AE35*(1+AE36))","v":{"$error":"#N/A"}},{"$f":"IF(AF33=0,0,$AE$30*AF34*IF($AG$27=zT_SjalvgaendeKey,1,1-$Z$34)*2/AF35*(1+AF36))","v":{"$error":"#N/A"}},{"$f":"IF(AG33=0,0,$AE$30*AG34*IF($AG$27=zT_SjalvgaendeKey,1,1-$Z$34)*2/AG35*(1+AG36))","v":0},{"$f":"IF(AH33=0,0,$AE$30*AH34*IF($AG$27=zT_SjalvgaendeKey,1,1-$Z$34)*2/AH35*(1+AH36))","v":0},"kg"]
[null,null,null,null,null,null,null,null,"ÅR","GRÖDA","Tillf org mat","Såtid","Uppkomst","Skörd","Halm","Nedbrukad",null,null,null,null,null,"Kritisk nivå ",{"$f":"IF(X30=0,0,IF(N30=\"Plöjning\",1500,IF(((-3000*W33)+10500)<6000,6000,(-3000*W33)+10500)))","v":{"$error":"#N/A"}},"kg",null,null,null,null,null,"Kritisk nivå ",{"$f":"IF(AE33=0,0,IF(((-3000*AE33)+10500)<6000,6000,(-3000*AE33)+10500))","v":6000},{"$f":"IF(AF33=0,0,IF(((-3000*AF33)+10500)<6000,6000,(-3000*AF33)+10500))","v":6000},0,0,"kg"]
[null,null,null,null,null,null,{"$f":"G41-1","v":2032},null,{"$f":"J30-1","v":2003},{"$f":"IF(INDIRECT(ADDRESS($G40,J$1,4,TRUE,zT_Local_VFname))=\"\",\"\",INDIRECT(ADDRESS($G40,J$1,4,TRUE,zT_Local_VFname)))","v":""},"","","","","","","",null,null,null,null,"Kritisk belastning ",{"$f":"(MAX(W37-W39,0)+MAX(W38-W39,0))/2","v":{"$error":"#N/A"}},"kg",null,null,null,null,null,"Kritisk belastning ",{"$f":"(MAX(AE37-AE39,0)+MAX(AE38-AE39,0))/2","v":{"$error":"#N/A"}},{"$f":"(MAX(AF37-AF39,0)+MAX(AF38-AF39,0))/2","v":{"$error":"#N/A"}},{"$error":"#N/A"},{"$error":"#N/A"},"kg"]
[null,null,null,null,null,null,{"$f":"B29+(J30-B30)","v":2033},null,{"$f":"J30","v":2004},"","","","","","","","",null,null,null,null,"Belastningsfaktor ",{"$f":"IF(W37>=W39,IF(W33=0,0,1),IF(W38<=W39,0,(W38-W39)/(W38-W37)))","v":{"$error":"#N/A"}},null,null,"SUMMA tonkm/ha",null,null,null,"Belastningsfaktor ",{"$f":"IF(AE37>=AE39,IF(AE33=0,0,1),IF(AE38<=AE39,0,(AE38-AE39)/(AE38-AE37)))","v":{"$error":"#N/A"}},{"$f":"IF(AF37>=AF39,IF(AF33=0,0,1),IF(AF38<=AF39,0,(AF38-AF39)/(AF38-AF37)))","v":{"$error":"#N/A"}},{"$error":"#N/A"},{"$error":"#N/A"}]
[null,null,null,null,null,null,{"$f":"G41+1","v":2034},null,{"$f":"J30+1","v":2005},"","","","","","","","",null,null,null,null,"Markpackning ",{"$f":"W40*W41*IF($N$36=0,$O$36,$N$36)/1000*$N$32","v":{"$error":"#N/A"}},"tonkm/ha",{"$f":"SUM(AE42:AH42)+IF(ISNA(W42),0,W42)","v":{"$error":"#N/A"}},null,null,null,null,"Markpackning ",{"$f":"AE40*AE41*IF($N$36=0,$O$36,$N$36)/1000*$N$32","v":{"$error":"#N/A"}},{"$f":"AF40*AF41*IF($N$36=0,$O$36,$N$36)/1000*$N$32","v":{"$error":"#N/A"}},{"$f":"AG40*AG41*IF($N$36=0,$O$36,$N$36)/1000*$N$32","v":{"$error":"#N/A"}},{"$f":"AH40*AH41*IF($N$36=0,$O$36,$N$36)/1000*$N$32","v":{"$error":"#N/A"}},"tonkm/ha"]
[]
[]
[null,null,null,null,null,null,null,null,"År","Bearbetning",null,"Traktor / dragmaskin",null,null,null,null,null,null,null,null,"Traktor/dragmaskin",null,"Öveförd","Antal",null,"Pack-",null,"Redskap",null,null,null,null,null,"Start-","Slut-","Typ av körning",null,"Uppm ks","Redskap: Lufttryck per axel",null,null,null,"Redskap: Viktandel per axel ",null,null,null,"Redkap: Hjul per axel"]
[null,null,null,null,null,null,null,null,null,null,null,null,null,null,null,"Montage",null,null,null,null,"Lufttryck","Hjul/axel","last","körningar",null,"ning",null,null,null,null,null,null,null,"last","last",null,null,"km/ha","Axel 1","Axel 2","Axel 3","Axel 4","Axel 1","Axel 2","Axel 3","Axel 4","Axel 1","Axel 2","Axel 3","Axel 4"]

{"sheet":"Tabeller","index":14,"n_rows":612,"n_cols":39,"rows_kept":612,"cut":false,"hidden":false,"merged":[[511,5,511,7],[500,5,500,7],[501,5,501,7],[502,5,502,7],[503,5,503,7],[504,5,504,7],[505,5,505,7],[506,5,506,7],[507,5,507,7],[508,5,508,7],[509,5,509,7],[510,5,510,7],[523,5,523,7],[512,5,512,7],[513,5,513,7],[514,5,514,7],[515,5,515,7],[516,5,516,7],[517,5,517,7],[518,5,518,7],[519,5,519,7],[520,5,520,7],[521,5,521,7],[522,5,522,7],[535,5,535,7],[524,5,524,7],[525,5,525,7],[526,5,526,7],[527,5,527,7],[528,5,528,7],[529,5,529,7],[530,5,530,7],[531,5,531,7],[532,5,532,7],[533,5,533,7],[534,5,534,7],[547,5,547,7],[536,5,536,7],[537,5,537,7],[538,5,538,7],[539,5,539,7],[540,5,540,7],[541,5,541,7],[554,5,554,7],[555,5,555,7],[556,5,556,7],[498,5,498,7],[499,5,499,7],[548,5,548,7],[549,5,549,7],[550,5,550,7],[551,5,551,7],[552,5,552,7],[553,5,553,7],[542,5,542,7],[543,5,543,7],[544,5,544,7],[545,5,545,7],[546,5,546,7]]}
[]
[]
[null,"SLU Markstrukturindex - Parametrar och tabeller"]
[]
[]
[]
[null,"Jordförhållanden"]
[]
[null,null,null,null,"Jordart",null,null,null,"Jordartnr","Jordart (kornstorlek, mm)",null,null,"Lerhalt (%)",null,"Utrullningsprov (trådtjocklek)",null,null,null,"Färg i torrt tillstånd hos alvjorden",null,null,null,null,null,"Dräneringsbehov",null,"Dräneringsbehov"]
[null,null,null,null,null,null,null,null,null,null,null,null,"resp org halt"]
[null,null,null,null,"Mycket styv lera",null,null,null,1,"Mycket styv lera ",null,null,">60",null,"< 1 mm",null,null,null,"Mörkgrå eller mörkt gråbrun",null,null,null,null,null,14,null," 10-14"]
[null,null,null,null,"Styv lera och styv moränlera, ej rotspärr",null,null,null,2,"Styv lera",null,null,"40-60",null,"1 mm",null,null,null,"Grå, gråbrun eller rödbrun",null,null,null,null,null,16,null," 12-16"]
[null,null,null,null,"Styv lera och styv moränlera, rotspärr",null,null,null,3,null,null,null,null,null,null,null,null,null,null,null,null,null,null,null,14,null," 10-14"]
[null,null,null,null,"Mellanlera, ej rotspärr",null,null,null,4,"Mellanlera",null,null,"25-40",null,"1-1,5 mm",null,null,null,"Tämligen ljust grå eller ljust rödbrun",null,null,null,null,null,18,null," 14-18"]
[null,null,null,null,"Moränmellanlera, ej rotspärr",null,null,null,5,null,null,null,null,null,null,null,null,null,null,null,null,null,null,null,18,null," 14-18"]
[null,null,null,null,"Mellanlera och moränmellanlera, rotspärr",null,null,null,6,null,null,null,null,null,null,null,null,null,null,null,null,null,null,null,16,null," 12-16"]
[null,null,null,null,"Lättlera",null,null,null,7,"Lättlera",null,null,"15-25",null,"ca 2 mm",null,null,null,"Ljusgrå",null,null,null,null,null,20,null," 16-20"]
[null,null,null,null,"Moränlättlera",null,null,null,8,null,null,null,null,null,null,null,null,null,null,null,null,null,null,null,20,null," 16-20"]
[null,null,null,null,"Lerig finmo + lerig moränjord",null,null,null,9,null,null,null,null,null,null,null,null,null,null,null,null,null,null,null,25,null," 15-25"]
[null,null,null,null,"Lerfria och svagt leriga jordar + lerig sand och lerig grovmo",null,null,null,10,null,null,null,null,null,null,null,null,null,null,null,null,null,null,null,"Behovs",null," Behovsd. El. 20-40"]
[null,null,null,null,"Kärrtorvjord, väl förmultnad",null,null,null,11,"Kärrtorvjord",null,null,">30% org mtrl",null,"Näringsrik",null,null,null,"Gul->svart, beror av förmultningsgrad",null,null,null,null,null,25,null," 10-25"]
[null,null,null,null,"Mosstorvjord, svagt förmultnad",null,null,null,12,"Mosstorvjord",null,null,">30% org mtrl",null,"Näringsfattig",null,null,null,"Gul->svart, beror av förmultningsgrad",null,null,null,null,null,40,null," 25-40"]
[null,null,null,null,"Gyttjejord",null,null,null,13,"Gyttja",null,null,">30 % gyttja",null,"Tät, klibbar ej, mindre elastisk",null,null,null,"Brun, brungrön, mörknar i luft, men ljusnar åter vid torkning",null,null,null,null,null,"Behovs",null," Behovsd."]
[null,null,null,null,null,null,null,null,null,"Torvjord, väl förmultnad",null,null,null,null,null,null,null,null,null,null,null,null,null,null,25]
[null,null,null,null,null,null,null,null,null,"Torvjord, svagt förmultnad",null,null,null,null,null,null,null,null,null,null,null,null,null,null,40]
[null,null,null,null,null,null,null,null,null,"Mjäla (0,002-0,02)",null,null,"2-5",null,"4-6 mm",null,null,null,"Gråvit",null,null,null,null,null,20]
[null,null,null,null,null,null,null,null,null,"Grus (2-20)",null,null,"<2",null,"Kan ej rullas",null,null,null,"Som rödaktig sand",null,null,null,null,null,"Behovsdikning"]
[null,null,null,null,null,null,null,null,null,"Sand (0,2-2)",null,null,"<2",null,"Kan ej rullas",null,null,null,"Som rödaktig sand",null,null,null,null,null,"Behovsdikning"]
[null,null,null,null,null,null,null,null,null,"Moränsand",null,null,"2-5",null,"Kan ej rullas",null,null,null,"Som rödaktig sand",null,null,null,null,null,"Behovsdikning"]
[null,null,null,null,null,null,null,null,null,"Grovmo (0,06-0,2)",null,null,"<2",null,"Kan ej rullas",null,null,null,"Ljusgrå eller med svag sandfärg",null,null,null,null,null,"Behovsdikning"]
[null,null,null,null,null,null,null,null,null,"Finmo (0,02-0,06)",null,null,"<2",null,"4-6 mm",null,null,null,"Ljusgrå",null,null,null,null,null,"Behovsdikning"]
[null,null,null,null,null,null,null,null,null,"Moränmo",null,null,"2-5",null,"4-6 mm",null,null,null,"Ljusgrå",null,null,null,null,null,"Behovsdikning"]
[null,null,null,null,null,null,null,null,null,"Gyttjelera",null,null,"1-6 % gyttja",null,"Kort brott, grynig, tärningar, klibbar",null,null,null,"Grå, svagt grönaktig,",null,null,null,null,null,"Behovsdikning"]
[null,null,null,null,null,null,null,null,null,"Lergyttja",null,null,"6-30 % gyttja",null,"Kort brott, klibb-ar, något elastisk",null,null,null,"Grönaktigt gulgrå/blågrå, vitnar vid torkning",null,null,null,null,null,20]
[null,null,null,null,null,null,null,null,null,"Leriga jordar ",null,null,"5-15",null,"ca 3 mm",null,null,null,"Ljusgrå",null,null,null,null,null,25]
[null,null,null,null,"zHeader",null,null,null,{"$f":"I9","v":"Jordartnr"},"z_1A",null,null,"z_1B",null,"z_1C",null,null,null,"z_1D",null,null,null,null,null,"z_1E",null,"z_1F"]
[]
[null,null,null,"Tabell","Jordarter, dräneringsbehov = f(jordart), mm",null,null,null,null,null,null,null,"Gamla namn:","jordarter2, jordartstab"]
[]
[null,null,null,null,"Mullhalt","Kommentar",null,null,null,"Indextal"]
[]
[null,null,null,null,"Mycket mullrik (>12%)","Ofta naturlig hög mullhalt",null,null,null,5]
[null,null,null,null,"Mullrik (6-12%)","Förustättningar för mycket god markstruktur",null,null,null,4]
[null,null,null,null,"Måttligt mullhaltig (3-6%)","Förustättningar för god markstruktur",null,null,null,3]
[null,null,null,null,"Något mullhaltig (2-3%)","Kan ge odlingsproblem",null,null,null,2]
[null,null,null,null,"mullfattig (<2%)","Dåliga odlingsegenskaper",null,null,null,1]
[null,null,null,null,"zHeader","z_4A",null,null,null,"z_4B"]
[]
[null,null,null,"Tabell","Mullhalt (mullhalt, kommentar, indextal)",null,null,null,null,null,null,null,"Gamla namn:","mullhalt, mullhaltstab"]
[]
[null,null,null,null,"Antal tramp","Markstruktur",null,"Indextal"]
[]
[null,null,null,null,0,"Mycket lucker",null,7]
[null,null,null,null,1,"lucker",null,6]
[null,null,null,null,2,"något lucker",null,5]
[null,null,null,null,3,"något tät",null,4]
[null,null,null,null,"4-5","tät",null,3]
[null,null,null,null,"6-7","mycket tät",null,2]
[null,null,null,null,">7","extremt tät",null,1]
[null,null,null,null,"zHeader","z_5A",null,"z_5B"]
[]
[null,null,null,"Tabell","Markstruktur (antal tramp, markstruktur, indextal)",null,null,null,null,null,null,null,"Gamla namn:","tramp, tramptabell"]
[]
[null,null,null,null,"Dräneringsstatus"]
[]
[null,null,null,null,"Systemtäckdikat"]
[null,null,null,null,"Behovstäckdikat"]
[null,null,null,null,"Ej rördikat"]
[]
[null,null,null,"Lista","Dräneringsstatus",null,null,null,null,null,null,null,"Gamla namn:","dränstat"]
[]
[null,null,null,null,"Dikesavstånd","Medel"]
[]
[null,null,null,null,"<10",10]
[null,null,null,null,"10-14",12]
[null,null,null,null,"12-16",14]
[null,null,null,null,"14-18",16]
[null,null,null,null,"16-20",18]
[null,null,null,null,"15-25",20]
[null,null,null,null,">25",25]
[null,null,null,null,"zHeader","z_3A"]
[]
[null,null,null,"Tabell","Dikesavstånd",null,null,null,null,null,null,null,"Gamla namn:","dikavst, dikesavt2"]
[]
[null,null,null,"Dränerings","Meddelande","Meddelande avser den text som visas i kolumnen 'Resultat' under rubriken DRÄNERING på blad Grundförbättringsindex"]
[null,null,null,"behov"]
[null,null,null,"Ja","Dräneringsbehov föreligger"]
[null,null,null,"Nej","Inget dräneringsbehov"]
[]
[null,null,null,"Tabell","Dräneringsbehov (definition av text som visas på blad Grundförbättringsindex)",null,null,null,null,null,null,null,"Gamla namn:","inget (hårdkodat)"]
[]
[null,null,null,null,"Dräneringsbehov i fält",null,null,"Kommentar",null,null,"Indextal"]
[]
[null,null,null,null,"Markytan fast, inga fotavtryck",null,null,"Mycket väldränerat",null,null,6]
[null,null,null,null,"Markytan mindre fast, fotavtryck< 2cm djupa",null,null,"Väldränerat",null,null,5]
[null,null,null,null,"Markytan  något mjuk, fotavtryck 2-5 cm djupa",null,null,"Tillfredställande dränerat",null,null,4]
[null,null,null,null,"Markytan rejält mjuk, fotavtryck > 5 cm djupa",null,null,"Ett visst dränerigsbehov",null,null,3]
[null,null,null,null,"markytan mycket mjuk och blöt, fotavtryck >7-10 cm",null,null,"Stort dräneringsbehov",null,null,2]
[null,null,null,null,"Vatten stående på ytan",null,null,"Mycket stort dräneringsbehov",null,null,1]
[null,null,null,null,"zHeader",null,null,"z_2A",null,null,"z_2B"]
[]
[null,null,null,"Tabell","Dräneringsbehov i fält (dräneringsbehov i fält, kommentarer, indextal)",null,null,null,null,null,null,null,"Gamla namn:","fältdrän, fältdräntabell"]
[]
[null,null,null,"Fråga 1:","Har jorden bra struktur och fint bruk?"]
[null,null,null,"Svar A","Kokigt, pulvrigt, massivt eller skiktat",null,null,"Sämst"]
[null,null,null,"Svar B","En del smuliga (granulära) aggregat syns",null,null,"Medel"]
[null,null,null,"Svar C","Porösa granulära aggregat",null,null,"Bäst"]
[]
[null,null,null,"Fråga 2:","Saknar jorden täta skikt?"]
[null,null,null,"Svar A","Tydligt tätt skikt, tydlig plogsula, rötter böjer av",null,null,"Sämst"]
[null,null,null,"Svar B","Något kompakta skikt, rottillväxt lite hämmad",null,null,"Medel"]
[null,null,null,"Svar C","En spade glider lätt ner förbi bearbetningsdjup",null,null,"Bäst"]
[]
[null,null,null,"Fråga 3:","Är det lätt att bearbeta jorden?"]
[null,null,null,"Svar A","Många överfarter och stort dragkraftbehov",null,null,"Sämst"]
[null,null,null,"Svar B","Medel",null,null,"Medel"]
[null,null,null,"Svar C","Lättbearbetad jord, litet dragkraftbehov",null,null,"Bäst"]
[]
[null,null,null,"Fråga 4:","Är marken full av levande organismer?"]
[null,null,null,"Svar A","Få eller inga markdjur syns",null,null,"Sämst"]
[null,null,null,"Svar B","Några",null,null,"Medel"]
[null,null,null,"Svar C","Marken är full av markdjur av olika slag",null,null,"Bäst"]
[]
[null,null,null,"Fråga 5:","Finns det rikligt med dagg maskar?"]
[null,null,null,"Svar A","Inga daggmaskar",null,null,"Sämst"]
[null,null,null,"Svar B","Några daggmaskar och maskgångar",null,null,"Medel"]
[null,null,null,"Svar C","Många daggmaskar, maskgångar",null,null,"Bäst"]
[]
[null,null,null,"Fråga 6:","Finns det växtrester och bryts de ner?"]
[null,null,null,"Svar A","Inga växtrester eller tar lång tid att bryta ned",null,null,"Sämst"]
[null,null,null,"Svar B","Lite växtrester, långsam nedbrytning",null,null,"Medel"]
[null,null,null,"Svar C","Växtrester i alla nedbrytningsstadier, jordlukt, sötdoft",null,null,"Bäst"]
[]
[null,null,null,"Fråga 7:","Är grödor och ogräs friska och frodiga?"]
[null,null,null,"Svar A","Hämmad tillväxt, missfärgning, ojämna bestånd",null,null,"Sämst"]
[null,null,null,"Svar B","Något ojämn tillväxt, lite missfärgning",null,null,"Medel"]
[null,null,null,"Svar C","Frisk, frodig och jämn gröda",null,null,"Bäst"]
[]
[null,null,null,"Fråga 8:","Utvecklas växtrötterna bra?"]
[null,null,null,"Svar A","Dålig rottillväxt, gulbruna eller svampiga rötter",null,null,"Sämst"]
[null,null,null,"Svar B","En del finrötter, de flesta friska",null,null,"Medel"]
[null,null,null,"Svar C","Frodiga, friska, vita rotsystem",null,null,"Bäst"]
[]
[null,null,null,"Fråga 9:","Infiltrerar vatten snabbt?"]
[null,null,null,"Svar A","Stående vatten kvar länge efter lätt regn",null,null,"Sämst"]
[null,null,null,"Svar B","Vattnet rinner undan sakta, lite pölar",null,null,"Medel"]
[null,null,null,"Svar C","Inga pölar efter stora regn eller bevattning",null,null,"Bäst"]
[]
[null,null,null,"Fråga 10:","Finns vatten tillgängligt för grödan?"]
[null,null,null,"Svar A","Torr jord, kräver tät bevattning",null,null,"Sämst"]
[null,null,null,"Svar B","Medelgod vattentillgång",null,null,"Medel"]
[null,null,null,"Svar C","Rätt mängd vatten tillgänglig vid rätt tillfälle",null,null,"Bäst"]
[]
[null,null,null,"Tabell","Hur mår din jord? (frågor och svar)",null,null,null,null,null,null,null,"Gamla namn:","inget (hårdkodat)"]
[null,"Årsmån"]
[]
[null,null,null,null,"Årsmån*",null,"Nyckel**"]
[null,null,null,null,"Normal",null,{"$f":"LEFT(E158,zT_VaderKeyLength)","v":"Norm"}]
[null,null,null,null,"Kall/våt",null,{"$f":"LEFT(E159,zT_VaderKeyLength)","v":"Kall"}]
[null,null,null,null,"Varm/torr",null,{"$f":"LEFT(E160,zT_VaderKeyLength)","v":"Varm"}]
[null,null,null,null,"* Anges för vår, sommar, och höst",null,"** Används av \"custom functions\" (UDFs) och macron"]
[null,null,null,"Tabell","Årsmån: Årsmånsklasser",null,null,null,null,null,null,null,"Gamla namn:","årsmån"]
[null,null,null,"Underlag för beräkning av antal dagar med bar mark (SMHI data 1931-60). Definition av perioders början och slut se WJ (73/74)"]
[null,null,null,"SCB","Produktionsområden","Data","Snöfri periods början på våren**",null,null,"Tjälfri periods slut på hösten***",null,null,null,"Tjälfri periods slut på hösten**"]
[null,null,null," (Sortval)",null,"för län","Medel*","Tidigast*","Senast*","Medel*","Tidigast*","Senast*",null,"Medel*","Tidigast*","Senast*"]
[null,null,null,null,null,null,null,"(torr/varm)","(kall/våt)",null,"(kall/våt)","(torr/varm)",null,null,"(torr/varm)","(kall/våt)"]
[null,null,null,1,"Götalands södra slättbygder","M","2001-03-14","2001-01-26","2001-04-16",-16,-39,16,null,"2001-12-15","2001-11-22","2001-01-16"]
[null,null,null,2,"Götalands mellanbygder","I","2001-03-31","2001-02-05","2001-04-21",-21,-49,16,null,"2001-12-10","2001-11-12","2001-01-16"]
[null,null,null,3,"Götalands norra slättbygder","R","2001-04-05","2001-03-07","2001-04-26",-46,-69,-9,null,"2001-11-15","2001-10-23","2001-12-22"]
[null,null,null,4,"Svealands slättbygder","C","2001-04-10","2001-02-25","2001-05-11",-48,-69,-4,null,"2001-11-13","2001-10-23","2001-12-27"]
[null,null,null,5,"Götalands skogsbygder","H","2001-03-30","2001-01-31","2001-04-21",-30,-59,11,null,"2001-12-01","2001-11-02","2001-01-11"]
[null,null,null,6,"Mellersta Sveriges skogsbygder","S","2001-04-13","2001-03-13","2001-04-26",-53,-69,-14,null,"2001-11-08","2001-10-23","2001-12-17"]
[null,null,null,7,"Nedre Norrland","Y","2001-04-26","2001-04-11","2001-05-11",-59,-74,-34,null,"2001-11-02","2001-10-18","2001-11-27"]
[null,null,null,8,"Övre Norrland","BD","2001-05-06","2001-04-26","2001-05-21",-71,-89,-49,null,"2001-10-21","2001-10-03","2001-11-12"]
[null,null,null,"zHeader",null,null,{"$f":"CONCATENATE(zT_LetterNorm,\"S\")","v":"NormS"},{"$f":"CONCATENATE(zT_LetterVarm,\"S\")","v":"VarmS"},{"$f":"CONCATENATE(zt_LetterKall,\"S\")","v":"KallS"},{"$f":"CONCATENATE(zT_LetterNorm,\"T\")","v":"NormT"},{"$f":"CONCATENATE(zt_LetterKall,\"T\")","v":"KallT"},{"$f":"CONCATENATE(zT_LetterVarm,\"T\")","v":"VarmT"}]
[null,null,null,null,"* kopplat till årsmånsklassning",null,"** månad-dag",null,null,"*** Relativt 31/12 (se även not 1)"]
[null,null,null,"Tabell","Årsman: Snöfri period, tjälfri period = f(område, årsmånsklass)",null,null,null,null,null,null,null,"Gamla namn:","snöfri"]
[null,"Grödor"]
[]
[null,null,null,null,"Gröda"]
[]
[null,null,null,null,"Höstvete"]
[null,null,null,null,"Höstråg"]
[null,null,null,null,"Rågvete"]
[null,null,null,null,"Höstkorn"]
[null,null,null,null,"Höstraps"]
[null,null,null,null,"Höstrybs"]
[null,null,null,null,"Vårvete"]
[null,null,null,null,"Vårkorn"]
[null,null,null,null,"Havre"]
[null,null,null,null,"Vårraps"]
[null,null,null,null,"Vårrybs"]
[null,null,null,null,"Ärter"]
[null,null,null,null,"Oljelin"]
[null,null,null,null,"Spånadslin"]
[null,null,null,null,"Matpotatis"]
[null,null,null,null,"Industripot"]
[null,null,null,null,"Sockerbetor"]
[null,null,null,null,"Vall"]
[null,null,null,null,"Gröngödsling"]
[null,null,null,null,"Åkerböna"]
[]
[null,null,null,"Lista","Grödor",null,null,null,null,null,null,null,"Gamla namn:","grödor"]
[]
[null,null,null,null,"Gröda","grödtyp1","grödtyp2"]
[]
[null,null,null,null,"Höstvete",2,0]
[null,null,null,null,"Höstråg",2,0]
[null,null,null,null,"Rågvete",2,0]
[null,null,null,null,"Höstkorn",2,0]
[null,null,null,null,"Höstraps",2,0]
[null,null,null,null,"Höstrybs",2,0]
[null,null,null,null,"Vårvete",5,1]
[null,null,null,null,"Vårkorn",5,1]
[null,null,null,null,"Havre",5,1]
[null,null,null,null,"Vårraps",5,2]
[null,null,null,null,"Vårrybs",5,2]
[null,null,null,null,"Ärter",5,2]
[null,null,null,null,"Oljelin",5,2]
[null,null,null,null,"Spånadslin",5,2]
[null,null,null,null,"Matpotatis",3,3]
[null,null,null,null,"Industripot",3,3]
[null,null,null,null,"Sockerbetor",4,4]
[null,null,null,null,"Vall",6,0]
[null,null,null,null,"Vall 1:a skörd",6,0]
[null,null,null,null,"Vall 2:a skörd",6,6]
[null,null,null,null,"Gröngödsling",6,0]
[null,null,null,null,"Åkerböna",2,2]
[null,null,null,null,"zHeader","grödtyp1","grödtyp2"]
[]
[null,null,null,"Tabell","Grödtyper",null,null,null,null,null,null,null,"Gamla namn:","XXXXXXX"]
[null,"Tillfört organiskt material"]
[]
[null,null,null,null,"Tillfört organiskt material","ts"]
[null,null,null,null,null,"halt"]
[null,null,null,null,"Konv. Nöt, fast",0.16600000000000001]
[null,null,null,null,"Konv. Nöt, flyt",9.8000000000000004E-2]
[null,null,null,null,"Ekol. Nöt, fast",0.18]
[null,null,null,null,"Ekol. Nöt, flyt",7.4999999999999997E-2]
[null,null,null,null,"Svin, fast",0.23799999999999999]
[null,null,null,null,"Svin, flyt",8.7999999999999995E-2]
[null,null,null,null,"zHeader","ts"]
[]
[null,null,null,"Tabell","Tillfört organiskt material: Typer och ts-halter",null,null,null,null,null,null,null,"Gamla namn:","tillforganiskt"]
[null,"Sådd"]
[]
[null,null,null,null,null,"grödtyp1 => ",3,3,3,4,4,4,"A","A","A"]
[null,null,null,"SCB","Produktionsområden","Data","UPPKOMST: Dagar efter sättning/sådd"]
[null,null,null," (Sortval)",null,"för län"," Potatis",null,null," Sockerbetor",null,null," Andra grödor"]
[null,null,null,null,null,null,"Median*","Tidigast","Senast","Median*","Tidigast","Senast","Median*","Tidigast","Senast"]
[null,null,null,null,null,null,null,"torr/varm**","kall/våt**",null,"torr/varm**","kall/våt**",null,"torr/varm**","kall/våt**"]
[null,null,null,1,"Götalands södra slättbygder","M",22,22,22,18,18,18,10,10,10]
[null,null,null,2,"Götalands mellanbygder","I",22,22,22,18,18,18,10,10,10]
[null,null,null,3,"Götalands norra slättbygder","R",22,22,22,18,18,18,10,10,10]
[null,null,null,4,"Svealands slättbygder","C",22,22,22,18,18,18,10,10,10]
[null,null,null,5,"Götalands skogsbygder","H",22,22,22,18,18,18,10,10,10]
[null,null,null,6,"Mellersta Sveriges skogsbygder","S",22,22,22,18,18,18,10,10,10]
[null,null,null,7,"Nedre Norrland","Y",22,22,22,18,18,18,10,10,10]
[null,null,null,8,"Övre Norrland","BD",22,22,22,18,18,18,10,10,10]
[null,null,null,"zHeader",null,null,{"$f":"CONCATENATE(zT_LetterNorm,G247)","v":"Norm3"},{"$f":"CONCATENATE(zT_LetterVarm,H247)","v":"Varm3"},{"$f":"CONCATENATE(zt_LetterKall,I247)","v":"Kall3"},{"$f":"CONCATENATE(zT_LetterNorm,J247)","v":"Norm4"},{"$f":"CONCATENATE(zT_LetterVarm,K247)","v":"Varm4"},{"$f":"CONCATENATE(zt_LetterKall,L247)","v":"Kall4"},{"$f":"CONCATENATE(zT_LetterNorm,M247)","v":"NormA"},{"$f":"CONCATENATE(zT_LetterVarm,N247)","v":"VarmA"},{"$f":"CONCATENATE(zt_LetterKall,O247)","v":"KallA"}]
[null,null,null,null,null,null,"* Medianuppkomst för olika grödor från tabell    ** kopplat till årsmånsklassning"]
[null,null,null,"Tabell","Sådd: Uppkomstdatum: Antal dagar efter sådd",null,null,null,null,null,null,null,"Gamla namn:","inget (hårdkodat)"]
[null,null,null,null,"UPPKOMSTDATUM"]
[null,null,null,null,"Gröda","Typ"," PRODUKTIONSOMRÅDE"]
[null,null,null,null,null,"(not 1)",1,2,3,4,5,6,7,8]
[]
[null,null,null,null,"Höstvete","H","2000-09-27","2000-10-03T03:25:42.857","2000-09-27T13:42:51.429","2000-09-22T06:51:25.714","2000-09-27T17:08:34.286","2000-09-25T17:08:34.286",0,0]
[null,null,null,null,"Höstråg","H","2000-09-28","2000-10-01T03:25:42.857","2000-09-22","2000-09-15","2000-09-28T13:42:51.429","2000-09-20T06:51:25.714",0,0]
[null,null,null,null,"Rågvete","H","2000-09-28","2000-10-01T03:25:42.857","2000-09-22","2000-09-15","2000-09-28T13:42:51.429","2000-09-20T06:51:25.714",0,0]
[null,null,null,null,"Höstkorn","H","2000-09-27","2000-10-03T03:25:42.857","2000-09-27T13:42:51.429","2000-09-22T06:51:25.714","2000-09-27T17:08:34.286","2000-09-25T17:08:34.286",0,0]
[null,null,null,null,"Höstraps","H","2000-08-26T17:08:34.286","2000-08-28T13:42:51.429","2000-08-19T13:42:51.429","2000-08-19","2000-08-23T17:08:34.286","2000-08-23",0,0]
[null,null,null,null,"Höstrybs","H","2000-08-26T17:08:34.286","2000-08-28T13:42:51.429","2000-08-19T13:42:51.429","2000-08-19T14:24:00","2000-08-23T17:08:34.286","2000-08-23",0,0]
[null,null,null,null,"Vårvete","V","2000-04-25T17:08:34.286","2000-04-29T20:34:17.143","2000-05-06T13:42:51.429","2000-05-12T13:42:51.429","2000-05-11T10:17:08.571","2000-05-16",0,0]
[null,null,null,null,"Vårkorn","V","2000-04-26T17:08:34.286","2000-05-02T06:51:25.714","2000-05-07T06:51:25.714","2000-05-14T20:34:17.143","2000-05-11T20:34:17.143","2000-05-22T10:17:08.571","2000-06-02T03:25:42.857","2000-06-09T03:25:42.857"]
[null,null,null,null,"Havre","V","2000-05-02T06:51:25.714","2000-05-03T20:34:17.143","2000-05-08T13:42:51.429","2000-05-15","2000-05-13T03:25:42.857","2000-05-20","2000-05-30T13:42:51.429","2000-06-08T10:17:08.571"]
[null,null,null,null,"Vårraps","V","2000-04-26T17:08:34.286","2000-05-02T06:51:25.714","2000-05-07T06:51:25.714","2000-05-14T20:34:17.143","2000-05-11T20:34:17.143","2000-05-22T10:17:08.571","2000-06-02T03:25:42.857","2000-06-09T03:25:42.857"]
[null,null,null,null,"Vårrybs","V","2000-04-26T17:08:34.286","2000-05-02T06:51:25.714","2000-05-07T06:51:25.714","2000-05-14T20:34:17.143","2000-05-11T20:34:17.143","2000-05-22T10:17:08.571","2000-06-02T03:25:42.857","2000-06-09T03:25:42.857"]
[null,null,null,null,"Ärter","V","2000-04-26T17:08:34.286","2000-05-02T06:51:25.714","2000-05-07T06:51:25.714","2000-05-14T20:34:17.143","2000-05-11T20:34:17.143","2000-05-22T10:17:08.571","2000-06-02T03:25:42.857","2000-06-09T03:25:42.857"]
[null,null,null,null,"Oljelin","V","2000-04-26T17:08:34.286","2000-05-02T06:51:25.714","2000-05-07T06:51:25.714","2000-05-14T20:34:17.143","2000-05-11T20:34:17.143","2000-05-22T10:17:08.571","2000-06-02T03:25:42.857","2000-06-09T03:25:42.857"]
[null,null,null,null,"Spånadslin","V","2000-04-26T17:08:34.286","2000-05-02T06:51:25.714","2000-05-07T06:51:25.714","2000-05-14T20:34:17.143","2000-05-11T20:34:17.143","2000-05-22T10:17:08.571","2000-06-02T03:25:42.857","2000-06-09T03:25:42.857"]
[null,null,null,null,"Matpotatis","V","2000-05-25T06:51:25.714","2000-05-31T13:42:51.429","2000-06-04T03:25:42.857","2000-06-11T17:08:34.286","2000-06-04T10:17:08.571","2000-06-11T06:51:25.714","2000-06-17T10:17:08.571","2000-06-28T06:51:25.714"]
[null,null,null,null,"Industripot","V","2000-05-25T06:51:25.714","2000-05-31T13:42:51.429","2000-06-04T03:25:42.857","2000-06-11T17:08:34.286","2000-06-04T10:17:08.571","2000-06-11T06:51:25.714","2000-06-17T10:17:08.571","2000-06-28T06:51:25.714"]
[null,null,null,null,"Sockerbetor","V","2000-05-16","2000-05-21",0,0,"2000-05-16",0,0,0]
[null,null,null,null,"Vall","IN","2000-04-26T17:08:34.286","2000-05-02T06:51:25.714","2000-05-07T06:51:25.714","2000-05-14T20:34:17.143","2000-05-11T20:34:17.143","2000-05-22T10:17:08.571","2000-06-02T03:25:42.857","2000-06-09T03:25:42.857"]
[null,null,null,null,"Gröngödsling","IN","2000-04-25T17:08:34.286","2000-04-29T20:34:17.143","2000-05-06T13:42:51.429","2000-05-12T13:42:51.429","2000-05-11T10:17:08.571","2000-05-16",0,0]
[null,null,null,null,"Åkerböna","H",0,0,0,0,0,0,0,0]
[null,null,null,null,"zHeader",{"$f":"F264","v":"Typ"},{"$f":"G265","v":1},2,3,4,5,6,7,8]
[null,null,null,null,null,null,"Not: Noll betyder att data saknas"]
[null,null,null,"Tabell","Sådd: Uppkomstdatum = f(gröda, område)",null,null,null,null,null,null,null,"Gamla namn:","uppkomstd"]
[]
[null,null,null,null,null,"grödtyp1 => ",5,5,5,4,4,4,3,3,3,"A","A","A"]
[null,null,null,"SCB","Produktionsområden","Data"," KORRIGERING AV UPPKOMST (antal dagar plus/minus)"]
[null,null,null," (Sortval)",null,"för län"," Vårsäd",null,null," Sockerbetor",null,null," Potatis",null,null," Andra grödor"]
[null,null,null,null,null,null,"Median*","Tidigast","Senast","Median*","Tidigast","Senast","Median*","Tidigast","Senast","Median*","Tidigast","Senast"]
[null,null,null,null,null,null,null,"torr/varm**","kall/våt**",null,"torr/varm**","kall/våt**",null,"torr/varm**","kall/våt**",null,"torr/varm**","kall/våt**"]
[null,null,null,1,"Götalands södra slättbygder","M",null,-13,17,null,-6,13,null,-6,13]
[null,null,null,2,"Götalands mellanbygder","I",null,-21,18,null,-11,13,null,-11,13]
[null,null,null,3,"Götalands norra slättbygder","R",null,-17,18,null,-11,13,null,-11,13]
[null,null,null,4,"Svealands slättbygder","C",null,-13,17,null,-13,12,null,-13,12]
[null,null,null,5,"Götalands skogsbygder","H",null,-16,19,null,-10,14,null,-10,14]
[null,null,null,6,"Mellersta Sveriges skogsbygder","S",null,-19,6,null,-14,6,null,-14,6]
[null,null,null,7,"Nedre Norrland","Y",null,-9,11,null,-4,9,null,-4,9]
[null,null,null,8,"Övre Norrland","BD",null,-12,13,null,-12,8,null,-12,8]
[null,null,null,"zHeader",null,null,{"$f":"CONCATENATE(zT_LetterNorm,G291)","v":"Norm5"},{"$f":"CONCATENATE(zT_LetterVarm,H291)","v":"Varm5"},{"$f":"CONCATENATE(zt_LetterKall,I291)","v":"Kall5"},{"$f":"CONCATENATE(zT_LetterNorm,J291)","v":"Norm4"},{"$f":"CONCATENATE(zT_LetterVarm,K291)","v":"Varm4"},{"$f":"CONCATENATE(zt_LetterKall,L291)","v":"Kall4"},{"$f":"CONCATENATE(zT_LetterNorm,M291)","v":"Norm3"},{"$f":"CONCATENATE(zT_LetterVarm,N291)","v":"Varm3"},{"$f":"CONCATENATE(zt_LetterKall,O291)","v":"Kall3"},{"$f":"CONCATENATE(zT_LetterNorm,P291)","v":"NormA"},{"$f":"CONCATENATE(zT_LetterVarm,Q291)","v":"VarmA"},{"$f":"CONCATENATE(zt_LetterKall,R291)","v":"KallA"}]
[null,null,null,null,null,null,"* Medianuppkomst för olika grödor från tabell   ** kopplat till årsmånsklassning"]
[null,null,null,"Tabell","Sådd: Korrigering av uppkomstdatum = f(gröda, område, vårväder)",null,null,null,null,null,null,null,"Gamla namn:","uppkomstkorr"]
[null,"Skörd"]
[]
[null,null,null,null,"Huvudsakligen från SCB Jordbruksstatistisk årsbok 1987-1993"]
[null,null,null,null,"Gröda"," PRODUKTIONSOMRÅDE"]
[null,null,null,null,null,1,2,3,4,5,6,7,8]
[]
[null,null,null,null,"Höstvete","2001-08-24","2001-08-25","2001-08-28","2001-08-27","2001-08-29","2001-08-29",0,0]
[null,null,null,null,"Höstråg","2001-08-12","2001-08-12","2001-08-14","2001-08-14","2001-08-18","2001-08-18",0,0]
[null,null,null,null,"Rågvete","2001-08-19","2001-08-19","2001-08-21","2001-08-21","2001-08-25","2001-08-25",0,0]
[null,null,null,null,"Höstkorn","2001-07-25","2001-07-26","2001-07-29","2001-07-28","2001-07-30","2001-07-30",0,0]
[null,null,null,null,"Höstraps","2001-08-12","2001-08-12","2001-08-14","2001-08-14","2001-08-18","2001-08-18",0,0]
[null,null,null,null,"Höstrybs","2001-08-12","2001-08-12","2001-08-14","2001-08-14","2001-08-18","2001-08-18",0,0]
[null,null,null,null,"Vårvete","2001-08-29","2001-08-30","2001-09-08","2001-09-06","2001-09-11","2001-09-17",0,0]
[null,null,null,null,"Vårkorn","2001-08-15","2001-08-17","2001-08-31","2001-09-02","2001-09-01","2001-09-08","2001-09-18","2001-09-18"]
[null,null,null,null,"Havre","2001-08-29","2001-08-27","2001-09-05","2001-09-04","2001-09-10","2001-09-09","2001-09-17","2001-09-24"]
[null,null,null,null,"Vårraps","2001-09-04","2001-09-06","2001-09-20","2001-09-22","2001-09-21","2001-09-28","2001-10-08","2001-10-08"]
[null,null,null,null,"Vårrybs","2001-08-20","2001-08-22","2001-09-05","2001-09-07","2001-09-06","2001-09-13","2001-09-23","2001-09-23"]
[null,null,null,null,"Ärter","2001-08-15","2001-08-17","2001-08-31","2001-09-02","2001-09-01","2001-09-08","2001-09-18","2001-09-18"]
[null,null,null,null,"Oljelin","2001-08-19","2001-08-25","2001-08-30","2001-09-06","2001-09-03","2001-09-14","2001-09-25","2001-10-02"]
[null,null,null,null,"Spånadslin","2001-08-15","2001-08-21","2001-08-26","2001-09-02","2001-08-30","2001-09-10","2001-09-21","2001-09-28"]
[null,null,null,null,"Matpotatis","2001-09-20","2001-09-21","2001-09-20","2001-09-17","2001-09-22","2001-09-17","2001-09-15","2001-09-09"]
[null,null,null,null,"Industripot","2001-10-02","2001-10-03","2001-10-02","2001-09-29","2001-10-04","2001-09-29","2001-09-27","2001-09-21"]
[null,null,null,null,"Sockerbetor","2001-10-11","2001-10-18",0,0,"2001-10-11",0,0,0]
[null,null,null,null,"Vall","2001-06-12","2001-06-14","2001-06-18","2001-06-20","2001-06-20","2001-06-24","2001-07-04","2001-07-06"]
[null,null,null,null,"Gröngödsling",0,0,0,0,0,0,0,0]
[null,null,null,null,"Åkerböna",0,0,0,0,0,0,0,0]
[null,null,null,null,"zHeader",{"$f":"F311","v":1},{"$f":"G311","v":2},3,4,5,6,7,8]
[null,null,null,null,null,"Not: Noll betyder att data saknas"]
[null,null,null,"Tabell","Skörd: Skördedatum = f(gröda, område)",null,null,null,null,null,null,null,"Gamla namn:","skördedatum"]
[]
[null,null,null,null,null,"grödtyp1 => ",null,null,null,"A","A","A"]
[null,null,null,"SCB","Produktionsområden","Data"," KORRIGERING AV SKÖRD*"]
[null,null,null," (Sortval)",null,"för län",null,null,null," Alla grödor ***"]
[null,null,null,null,null,null,"Median*","Tidigast","Senast","Median*","Tidigast","Senast"]
[null,null,null,null,null,null,null,"torr/varm**","kall/våt**",null,"torr/varm**","kall/våt**"]
[null,null,null,1,"Götalands södra slättbygder","M",null,null,null,null,-9,6]
[null,null,null,2,"Götalands mellanbygder","I",null,null,null,null,-8,6]
[null,null,null,3,"Götalands norra slättbygder","R",null,null,null,null,-8,7]
[null,null,null,4,"Svealands slättbygder","C",null,null,null,null,-7,6]
[null,null,null,5,"Götalands skogsbygder","H",null,null,null,null,-8,7]
[null,null,null,6,"Mellersta Sveriges skogsbygder","S",null,null,null,null,-8,7]
[null,null,null,7,"Nedre Norrland","Y",null,null,null,null,-10,10]
[null,null,null,8,"Övre Norrland","BD",null,null,null,null,-10,10]
[null,null,null,"zHeader",null,null,{"$f":"CONCATENATE(zT_LetterNorm,G337)","v":"Norm"},{"$f":"CONCATENATE(zT_LetterVarm,H337)","v":"Varm"},{"$f":"CONCATENATE(zt_LetterKall,I337)","v":"Kall"},{"$f":"CONCATENATE(zT_LetterNorm,J337)","v":"NormA"},{"$f":"CONCATENATE(zT_LetterVarm,K337)","v":"VarmA"},{"$f":"CONCATENATE(zt_LetterKall,L337)","v":"KallA"}]
[null,null,null,null,null,null,"* Antal dagar plus/minus   ** kopplat till årsmånsklassning   *** alla grödor korrigeras som vårsäd"]
[null,null,null,"Tabell","Skörd: Korrigering av skördedatum = f(område, höstväder)",null,null,null,null,null,null,null,"Gamla namn:","uppkomstkorr"]
[]
[null,null,null,null,"Gröda"," PRODUKTIONSOMRÅDE"]
[null,null,null,null,null,1,2,3,4,5,6,7,8]
[]
[null,null,null,null,"Höstvete",7621,6229,6390,5980,5308,5997,0,0]
[null,null,null,null,"Höstråg",6204,4825,5445,4577,4023,4427,0,0]
[null,null,null,null,"Rågvete",0,0,0,0,0,0,0,0]
[null,null,null,null,"Höstkorn",0,0,0,0,0,0,0,0]
[null,null,null,null,"Höstraps",2733,2338,2420,2399,2072,2368,0,0]
[null,null,null,null,"Höstrybs",0,0,1714,1643,0,1524,0,0]
[null,null,null,null,"Vårvete",5781,5346,4652,4544,3699,4219,0,0]
[null,null,null,null,"Vårkorn",5352,4107,4593,4355,3442,3529,2402,2268]
[null,null,null,null,"Havre",4553,3824,3906,3791,3105,3408,2263,2465]
[null,null,null,null,"Vårraps",1734,1495,1785,1752,1445,1791,0,0]
[null,null,null,null,"Vårrybs",1551,1218,1415,1526,1315,1151,1075,0]
[null,null,null,null,"Ärter",0,0,0,0,0,0,0,0]
[null,null,null,null,"Oljelin",0,0,0,0,0,0,0,0]
[null,null,null,null,"Spånadslin",0,0,0,0,0,0,0,0]
[null,null,null,null,"Matpotatis",40890,38787,36788,28173,32230,25410,20132,18224]
[null,null,null,null,"Industripot",39878,41332,0,0,38123,0,0,0]
[null,null,null,null,"Sockerbetor",46447,42493,0,0,43262,0,0,0]
[null,null,null,null,"Vall",4650,4980,4510,4360,4010,3800,3660,3610]
[null,null,null,null,"Gröngödsling",0,0,0,0,0,0,0,0]
[null,null,null,null,"Åkerböna",0,0,0,0,0,0,0,0]
[null,null,null,null,"zHeader",{"$f":"F355","v":1},{"$f":"G355","v":2},3,4,5,6,7,8]
[null,null,null,null,null,"Not: Noll betyder att data saknas"]
[null,null,null,"Tabell","Skörd: Normalskörd = f(gröda, område)",null,null,null,null,null,null,null,"Gamla namn:","normskörd"]
[null,"Markyteskydd"]
[]
[null,null,null,null,"Gröda","  Nedbrukning (not 1)",null,null,"parUP","parSK",null,"grödtyp2"]
[null,null,null,null,null,"Vall","Gröngödsling","Fånggröda"]
[null,null,null,null,null,"(dagar)","(dagar)","(dagar)","(dagar)","(dagar)"]
[null,null,null,null,"Höstvete",10,10,10,7,2,null,{"$f":"VLOOKUP($E385,zT_grodtyper,3,FALSE)","v":0}]
[null,null,null,null,"Höstråg",10,10,10,7,2,null,0]
[null,null,null,null,"Rågvete",10,10,10,7,2,null,0]
[null,null,null,null,"Höstkorn",10,10,10,7,2,null,0]
[null,null,null,null,"Höstraps",10,10,10,7,2,null,0]
[null,null,null,null,"Höstrybs",10,10,10,7,2,null,0]
[null,null,null,null,"Vårvete",10,10,10,7,2,null,1]
[null,null,null,null,"Vårkorn",10,10,10,7,2,null,1]
[null,null,null,null,"Havre",10,10,10,7,2,null,1]
[null,null,null,null,"Vårraps",10,10,10,15,2,null,2]
[null,null,null,null,"Vårrybs",10,10,10,15,2,null,2]
[null,null,null,null,"Ärter",10,10,10,15,2,null,2]
[null,null,null,null,"Oljelin",10,10,10,15,2,null,2]
[null,null,null,null,"Spånadslin",10,10,10,15,2,null,2]
[null,null,null,null,"Matpotatis",10,10,10,25,2,null,3]
[null,null,null,null,"Industripot",10,10,10,25,2,null,3]
[null,null,null,null,"Sockerbetor",10,10,10,25,5,null,4]
[null,null,null,null,"Vall",0,0,0,7,"EJ",null,0]
[null,null,null,null,"Gröngödsling",0,0,0,7,"EJ",null,0]
[null,null,null,null,"Åkerböna",10,10,10,15,2,null,2]
[null,null,null,null,"zHeader",{"$f":"F383","v":"Vall"},{"$f":"G383","v":"Gröngödsling"},{"$f":"H383","v":"Fånggröda"},{"$f":"I382","v":"parUP"},{"$f":"J382","v":"parSK"}]
[null,null,null,null,null,"Not 1: Antal dagar före sådd för nedbrukning av vall, gröngödsling, och fånggröda"]
[null,null,null,null,null,"parUP: Inget markyteskydd tom parUP dager efter uppkomst, därefter fullt"]
[null,null,null,null,null,"parSK: Första markbearbetning görs parSK dagar efter skörd"]
[null,null,null,"Tabell","Markyteskydd efter uppkomst, markbearbetning efter skörd"]
[null,"Organisk substans och rötter"]
[]
[null,null,null,null,null,null,null,null,"Faktor för halm/blast => ",1,0.33]
[null,null,null,null,"Gröda","koefficienter",null,null,null,"Faktorer"]
[null,null,null,null,null,"ts","halm/","bladfall/","rötter","Org. sub.","Org. sub.","Rötter"]
[null,null,null,null,null,null,"blast","spill",null,"halm kvar","halm bort"]
[]
[null,null,null,null,"Höstvete",0.85,1,0.17,1.17,{"$f":"$F417*(J$412*$G417+$H417)","v":0.99449999999999994},0.42499999999999999,{"$f":"F417*I417","v":0.99449999999999994}]
[null,null,null,null,"Höstråg",0.85,1,0.17,1.17,0.99449999999999994,0.42499999999999999,{"$f":"F418*I418","v":0.99449999999999994}]
[null,null,null,null,"Rågvete",0.85,1,0.17,1.17,0.99449999999999994,0.42499999999999999,0.99449999999999994]
[null,null,null,null,"Höstkorn",0.85,1,0.17,1.17,0.99449999999999994,0.42499999999999999,0.99449999999999994]
[null,null,null,null,"Höstraps",0.91,1.5,0.25,1.75,1.5925,0.67795000000000005,1.5925]
[null,null,null,null,"Höstrybs",0.91,1.5,0.25,1.75,1.5925,0.67795000000000005,1.5925]
[null,null,null,null,"Vårvete",0.85,1,0.17,1.17,0.99449999999999994,0.42499999999999999,0.99449999999999994]
[null,null,null,null,"Vårkorn",0.85,0.82,0.14000000000000001,0.96,0.81599999999999995,0.34900999999999999,0.81599999999999995]
[null,null,null,null,"Havre",0.85,1,0.17,1.17,0.99449999999999994,0.42499999999999999,0.99449999999999994]
[null,null,null,null,"Vårraps",0.91,1.5,0.25,1.75,1.5925,0.67795000000000005,1.5925]
[null,null,null,null,"Vårrybs",0.91,1.5,0.25,1.75,1.5925,0.67795000000000005,1.5925]
[null,null,null,null,"Ärter",0.85,0.82,0.14000000000000001,0.96,0.81599999999999995,0.34900999999999999,0.81599999999999995]
[null,null,null,null,"Oljelin",0.85,2.9,0.25,1.75,2.6774999999999998,1.0259499999999999,1.4875]
[null,null,null,null,"Spånadslin",0.85,5.8,0.25,1.75,5.1425000000000001,1.8393999999999997,1.4875]
[null,null,null,null,"Matpotatis",0.22,0.21,0.05,0.04,5.7200000000000001E-2,2.6246000000000002E-2,8.8000000000000005E-3]
[null,null,null,null,"Industripot",0.22,0.21,7.0000000000000007E-2,0.04,6.1600000000000009E-2,3.0646000000000003E-2,8.8000000000000005E-3]
[null,null,null,null,"Sockerbetor",0.24,0.8,0.05,0.04,0.20400000000000001,7.5359999999999996E-2,9.5999999999999992E-3]
[null,null,null,null,"Vall",0.83499999999999996,0,0.25,1.25,0.20874999999999999,0.20874999999999999,1.04375]
[null,null,null,null,"Gröngödsling",0.83499999999999996,0,1.25,1.25,1.04375,1.04375,1.04375]
[null,null,null,null,"Åkerböna",0.82,0.79,0.13,0.79,0.75439999999999996,0.32037399999999999,0.64780000000000004]
[null,null,null,null,"Fånggröda",0.83499999999999996,0,1.25,1.25,1.04375,1.04375,1.04375]
[null,null,null,null,"zHeader","ts","halm","bladfall","rotter","f-oshkvar","f-oshbort","f-rotter"]
[]
[null,null,null,"Tabell","Grödor: Koefficienter för torrsubstans, halm/blast, bladfall/spill, och rötter",null,null,null,null,null,null,null,"Gamla namn:","grödor, ts, halm, bladfall, rötter"]
[null,"Traktorer, maskinpark och markbearbetning"]
[]
[null,null,null,null,"Parameter","Default"]
[null,null,null,null,null,"värde"]
[null,null,null,null,"Antal montage",1,"När man infogar en ny rad på bladet ''Traktorer' får traktorn först detta antal montage (kan sedan ändras av användaren)"]
[]
[null,null,null,"Traktorer: Antal montage (default värde)"]
[]
[null,null,null,null,"Maskintyp","Last","DEFAULT värden"]
[null,null,null,null,null,null,"Anslutn.","Antal","Start","Slut"]
[null,null,null,null,null,null,"till traktor","axlar","last","last"]
[null,null,null,null,null,null,null,null,"(%)","(%)"]
[null,null,null,null,"Fastgödselspridare","Ja","Dragen",2,1,0]
[null,null,null,null,"Harv","Nej","Dragen",0]
[null,null,null,null,"Konstgödselspridare","Ja","Buren",0,1,0]
[null,null,null,null,"Kultivator","Nej","Dragen",0]
[null,null,null,null,"Lastare","Ja","Buren",0,0.5,1]
[null,null,null,null,"Plog","Nej","Dragen",0]
[null,null,null,null,"Press","Ja","Dragen",1,0,1]
[null,null,null,null,"Puts","Nej","Dragen",0]
[null,null,null,null,"Radhacka","Nej","Dragen",0]
[null,null,null,null,"Spruta","Ja","Dragen",0,1,0]
[null,null,null,null,"Såmaskin","Ja","Buren",0,1,0]
[null,null,null,null,"Tallriksredskap","Nej","Dragen",0]
[null,null,null,null,"Tröska","Ja","Självgående",2,0,1]
[null,null,null,null,"Urintunna","Ja","Dragen",2,1,0]
[null,null,null,null,"Vält","Nej","Dragen",0]
[null,null,null,null,"Annan maskin med last","Ja","Dragen",2,1,0]
[null,null,null,null,"Annan maskin utan last","Nej","Dragen",0]
[null,null,null,null,null,{"$f":"zVBA_MparkLastKey","v":"z_Last"},{"$f":"CONCATENATE(\"z_\",COLUMN())","v":"z_7"},{"$f":"CONCATENATE(\"z_\",COLUMN())","v":"z_8"},"z_9","z_10"]
[]
[null,null,null,"Maskinpark: Maskintyper och default värden för: (i) Last ja/nej; (ii) Ansltning till traktor; (iii) Antal axlar; (iv) Start och slut last"]
[]
[null,null,null,null,"Anslutning till traktor","Överförd last (DEFAULT värden)"]
[null,null,null,null,null,"0 axlar","1 axel","2 axlar","3 axlar","4 axlar"]
[null,null,null,null,{"$f":"zT_SjalvgaendeKey","v":"Självgående"},0,0,0,0,0]
[null,null,null,null,"Dragen",0.2,0.2,0.2,0.2,0.2]
[null,null,null,null,"Buren",1,1,1,1,1]
[null,null,null,null,"Delvis buren",1,0.5,0.2,0.2,0.2]
[null,null,null,null,null,0,1,2,3,4]
[]
[null,null,null,"Maskinpark: Default värden för Överförd Last = f(anslutning till traktor, antal axlar på redskap)"]
[]
[]
[null,null,null,null,null,"På","Av"]
[null,null,null,null,"Färger för förkortade listor",null,null,"Den annars långa listan av Bearbetningar på blad MBn-k kan förkortas. Färgkoder används för att visa om olika kortlistor är På eller Av"]
[]
[null,null,null,"Markbearbetning: Färgkoder för indikering av På/Av för 'Förkortad Bearbetningslista' "]
[]
[null,null,null,null,"TYP AV KÖRNING",null,"SKIFTETS ARRONDERING"]
[null,null,null,null,null,"Regelbunden","Något Oregelbunden","Mycket Oregelbunden"]
[null,null,null,null,"Fasta körspår",1.2,1.4,1.6]
[null,null,null,null,"Ej körspår",1.4,1.6,1.8]
[null,null,null,null,"Risk för tomkörningar",2,2.5,3]
[]
[null,null,null,"Markbearbetning: Körsträckefaktor = f(typ av körning, skiftets arrondering)"]
[]
[null,null,null,null,null,null,null,null,null,null,null,null,null,null,null,null,null,null,null,null,null,null,null,null,null,null,null,null,null,null,{"$f":"MATCH(AE499,INDEX(zT_BearbetningsMatris1,1,0),0)+COLUMN(zT_BearbetningsMatris1)-1","v":{"$error":"#N/A"}},{"$f":"zf_Indirect(\"zVBA_Local_ForeSadd\",$AJ$498)","v":false},{"$f":"zf_Indirect(\"zVBA_Local_Sadd\",$AJ$498)","v":true},{"$f":"zf_Indirect(\"zVBA_Local_MellanSaddSkord\",$AJ$498)","v":false},{"$f":"zf_Indirect(\"zVBA_Local_Skord\",$AJ$498)","v":false},{"$f":"zT_ActiveMBsheet","v":"Mall-MB"},null,null,{"$f":"zf_Indirect(\"zVBA_Local_KortLista\",$AJ$498)","v":true}]
[null,null,null,null,"Placera cursorn här för information!","TYP AV KÖRNING\n(default värden)",null,null,"Höstvete","Höstråg","Rågvete","Höstkorn","Höstraps","Höstrybs","Vårvete","Vårkorn","Havre","Vårraps","Vårrybs","Ärter","Oljelin","Spånadslin","Matpotatis","Industripot","Sockerbetor","Vall","Gröngödsling","Åkerböna",null,null,{"$f":"zf_Indirect(\"zVBA_Local_Groda\",$AJ$498)","v":""},1,2,3,4,null,null,null,"Förkortad lista"]
[null,null,null,null,null,{"$f":"COLUMN()-COLUMN(zT_BearbetningsMatris1)+1","v":2},null,null,null,null,null,null,null,null,null,null,null,null,null,null,null,null,null,null,null,null,null,null,null,null,null,null,null,null,null,0,0]
[null,null,null,null,"Stubbearbetning","Ej körspår",null,null,4,4,4,4,4,4,4,4,4,4,4,4,4,4,null,null,null,null,4,4,"Stubbearbetning",null,{"$f":"INDIRECT(ADDRESS(ROW(),AE$498,4,TRUE))","v":{"$error":"#N/A"}},{"$f":"IF(AF$498,NOT(ISERROR(SEARCH(AF$499,$AE501))),FALSE)","v":false},false,false,false,{"$f":"IF(OR(AF501,AG501,AH501,AI501),MAX(AJ$500:AJ500)+1,MIN(AJ$500:AJ500)-1)","v":-1},{"$f":"AK500+1","v":1},{"$f":"MATCH(AK501,$AJ$500:$AJ$558,0)","v":{"$error":"#N/A"}},{"$f":"IF(AM$498,IF(ISERROR(AL501),\"\",INDEX(zT_BearbetningsMatris1,AL501+1,1)),AC501)","v":""}]
[null,null,null,null,"Sprutning stubb","Fasta körspår",null,null,4,4,4,4,4,4,4,4,4,4,4,4,4,4,null,null,null,null,4,4,"Sprutning stubb",null,{"$error":"#N/A"},false,false,false,false,{"$f":"IF(OR(AF502,AG502,AH502,AI502),MAX(AJ$500:AJ501)+1,MIN(AJ$500:AJ501)-1)","v":-2},{"$f":"AK501+1","v":2},{"$error":"#N/A"},""]
[null,null,null,null,"Plöjning","Ej körspår",null,null,1,1,1,1,1,1,1,1,1,1,1,1,1,1,1,1,1,1,1,1,"Plöjning",null,{"$error":"#N/A"},false,false,false,false,{"$f":"IF(OR(AF503,AG503,AH503,AI503),MAX(AJ$500:AJ502)+1,MIN(AJ$500:AJ502)-1)","v":-3},3,{"$error":"#N/A"},""]
[null,null,null,null,"Betongvält","Ej körspår",null,null,null,null,null,null,null,null,null,null,null,null,null,null,null,null,null,null,null,4,null,null,"Betongvält",null,{"$error":"#N/A"},false,false,false,false,{"$f":"IF(OR(AF504,AG504,AH504,AI504),MAX(AJ$500:AJ503)+1,MIN(AJ$500:AJ503)-1)","v":-4},4,{"$error":"#N/A"},""]
[null,null,null,null,"Vältning","Ej körspår",null,null,null,null,null,null,null,null,null,null,null,null,null,null,null,null,null,null,null,null,null,null,"Vältning",null,{"$error":"#N/A"},false,false,false,false,{"$f":"IF(OR(AF505,AG505,AH505,AI505),MAX(AJ$500:AJ504)+1,MIN(AJ$500:AJ504)-1)","v":-5},5,{"$error":"#N/A"},""]
[null,null,null,null,"Harvning","Ej körspår",null,null,1,1,1,1,1,1,1,1,1,1,1,1,1,1,1,1,1,1,1,1,"Harvning",null,{"$error":"#N/A"},false,false,false,false,{"$f":"IF(OR(AF506,AG506,AH506,AI506),MAX(AJ$500:AJ505)+1,MIN(AJ$500:AJ505)-1)","v":-6},6,{"$error":"#N/A"},""]
[null,null,null,null,"Sladd","Ej körspår",null,null,null,null,null,null,null,null,null,null,null,null,null,null,null,null,null,null,null,null,null,null,"Sladd",null,{"$error":"#N/A"},false,false,false,false,{"$f":"IF(OR(AF507,AG507,AH507,AI507),MAX(AJ$500:AJ506)+1,MIN(AJ$500:AJ506)-1)","v":-7},7,{"$error":"#N/A"},""]
[null,null,null,null,"Fräsning","Ej körspår",null,null,null,null,null,null,null,null,null,null,null,null,null,null,null,null,null,null,null,null,null,null,"Fräsning",null,{"$error":"#N/A"},false,false,false,false,{"$f":"IF(OR(AF508,AG508,AH508,AI508),MAX(AJ$500:AJ507)+1,MIN(AJ$500:AJ507)-1)","v":-8},8,{"$error":"#N/A"},""]
[null,null,null,null,"Kupning","Ej körspår",null,null,null,null,null,null,null,null,null,null,null,null,null,null,null,null,3,3,3,null,null,null,"Kupning",null,{"$error":"#N/A"},false,false,false,false,{"$f":"IF(OR(AF509,AG509,AH509,AI509),MAX(AJ$500:AJ508)+1,MIN(AJ$500:AJ508)-1)","v":-9},9,{"$error":"#N/A"},""]
[null,null,null,null,"Stensträngläggning","Ej körspår",null,null,1.2,1.2,1.2,1.2,1.2,1.2,1.2,1.2,1.2,1.2,1.2,1.2,1.2,1.2,1.2,1.2,1.2,1.2,1.2,1.2,"Stensträngläggning",null,{"$error":"#N/A"},false,false,false,false,{"$f":"IF(OR(AF510,AG510,AH510,AI510),MAX(AJ$500:AJ509)+1,MIN(AJ$500:AJ509)-1)","v":-10},10,{"$error":"#N/A"},""]
[null,null,null,null,"Stenplockning lastare","Ej körspår",null,null,1.2,1.2,1.2,1.2,1.2,1.2,1.2,1.2,1.2,1.2,1.2,1.2,1.2,1.2,1.2,1.2,1.2,1.2,1.2,1.2,"Stenplockning lastare",null,{"$error":"#N/A"},false,false,false,false,{"$f":"IF(OR(AF511,AG511,AH511,AI511),MAX(AJ$500:AJ510)+1,MIN(AJ$500:AJ510)-1)","v":-11},11,{"$error":"#N/A"},""]
[null,null,null,null,"Djupkult","Ej körspår",null,null,null,null,null,null,null,null,null,null,null,null,null,null,null,null,null,null,null,null,null,null,"Djupkult",null,{"$error":"#N/A"},false,false,false,false,{"$f":"IF(OR(AF512,AG512,AH512,AI512),MAX(AJ$500:AJ511)+1,MIN(AJ$500:AJ511)-1)","v":-12},12,{"$error":"#N/A"},""]
[null,null,null,null,"Sådd","Fasta körspår",null,null,2,2,2,2,2,2,2,2,2,2,2,2,2,2,null,null,null,null,null,2,"Sådd",null,{"$error":"#N/A"},false,false,false,false,{"$f":"IF(OR(AF513,AG513,AH513,AI513),MAX(AJ$500:AJ512)+1,MIN(AJ$500:AJ512)-1)","v":-13},13,{"$error":"#N/A"},""]
[null,null,null,null,"Insådd vall","Ej körspår",null,null,2,2,2,2,2,2,2,2,2,2,2,2,2,2,null,null,null,null,null,2,"Insådd vall",null,{"$error":"#N/A"},false,false,false,false,{"$f":"IF(OR(AF514,AG514,AH514,AI514),MAX(AJ$500:AJ513)+1,MIN(AJ$500:AJ513)-1)","v":-14},14,{"$error":"#N/A"},""]
[null,null,null,null,"Sådd kombi","Fasta körspår",null,null,2,2,2,2,2,2,2,2,2,2,2,2,2,2,null,null,null,null,null,2,"Sådd kombi",null,{"$error":"#N/A"},false,false,false,false,{"$f":"IF(OR(AF515,AG515,AH515,AI515),MAX(AJ$500:AJ514)+1,MIN(AJ$500:AJ514)-1)","v":-15},15,{"$error":"#N/A"},""]
[null,null,null,null,"Sättning","Fasta körspår",null,null,null,null,null,null,null,null,null,null,null,null,null,null,null,null,2,2,2,null,null,null,"Sättning",null,{"$error":"#N/A"},false,false,false,false,{"$f":"IF(OR(AF516,AG516,AH516,AI516),MAX(AJ$500:AJ515)+1,MIN(AJ$500:AJ515)-1)","v":-16},16,{"$error":"#N/A"},""]
[null,null,null,null,"Vältning","Ej körspår",null,null,2,2,2,2,2,2,2,2,2,2,2,2,2,2,null,null,null,4,null,2,"Vältning",null,{"$error":"#N/A"},false,false,false,false,{"$f":"IF(OR(AF517,AG517,AH517,AI517),MAX(AJ$500:AJ516)+1,MIN(AJ$500:AJ516)-1)","v":-17},17,{"$error":"#N/A"},""]
[null,null,null,null,"Trnsp. utsäde","Ej körspår",null,null,2,2,2,2,2,2,2,2,2,2,2,2,2,2,2,2,2,null,2,2,"Trnsp. utsäde",null,{"$error":"#N/A"},false,false,false,false,{"$f":"IF(OR(AF518,AG518,AH518,AI518),MAX(AJ$500:AJ517)+1,MIN(AJ$500:AJ517)-1)","v":-18},18,{"$error":"#N/A"},""]
[null,null,null,null,"Sprutning ogräs","Fasta körspår",null,null,3,3,3,3,3,3,3,3,3,3,3,3,3,3,3,3,3,3,3,3,"Sprutning ogräs",null,{"$error":"#N/A"},false,false,false,false,{"$f":"IF(OR(AF519,AG519,AH519,AI519),MAX(AJ$500:AJ518)+1,MIN(AJ$500:AJ518)-1)","v":-19},19,{"$error":"#N/A"},""]
[null,null,null,null,"Hackning ogräs ","Ej körspår",null,null,null,null,null,null,null,null,null,null,null,null,null,null,null,null,null,null,null,null,null,null,"Hackning ogräs ",null,{"$error":"#N/A"},false,false,false,false,{"$f":"IF(OR(AF520,AG520,AH520,AI520),MAX(AJ$500:AJ519)+1,MIN(AJ$500:AJ519)-1)","v":-20},20,{"$error":"#N/A"},""]
[null,null,null,null,"Flamning","Ej körspår",null,null,null,null,null,null,null,null,null,null,null,null,null,null,null,null,null,null,null,null,null,null,"Flamning",null,{"$error":"#N/A"},{"$f":"IF(AF$498,NOT(ISERROR(SEARCH(AF$499,$AE521))),FALSE)","v":false},false,false,false,{"$f":"IF(OR(AF521,AG521,AH521,AI521),MAX(AJ$500:AJ520)+1,MIN(AJ$500:AJ520)-1)","v":-21},21,{"$error":"#N/A"},""]
[null,null,null,null,"Ogräsrensning","Ej körspår",null,null,null,null,null,null,null,null,null,null,null,null,null,null,null,null,null,null,null,null,null,null,"Ogräsrensning",null,{"$error":"#N/A"},false,false,false,false,{"$f":"IF(OR(AF522,AG522,AH522,AI522),MAX(AJ$500:AJ521)+1,MIN(AJ$500:AJ521)-1)","v":-22},22,{"$error":"#N/A"},""]
[null,null,null,null,"Mineralgödsel spridning","Fasta körspår",null,null,null,null,null,null,null,null,null,null,null,null,null,null,null,null,null,null,null,null,null,null,"Mineralgödsel spridning",null,{"$error":"#N/A"},false,false,false,false,{"$f":"IF(OR(AF523,AG523,AH523,AI523),MAX(AJ$500:AJ522)+1,MIN(AJ$500:AJ522)-1)","v":-23},23,{"$error":"#N/A"},""]
[null,null,null,null,"Spridning special","Fasta körspår",null,null,null,null,null,null,null,null,null,null,null,null,null,null,null,null,null,null,null,null,null,null,"Spridning special",null,{"$error":"#N/A"},false,false,false,false,{"$f":"IF(OR(AF524,AG524,AH524,AI524),MAX(AJ$500:AJ523)+1,MIN(AJ$500:AJ523)-1)","v":-24},24,{"$error":"#N/A"},""]
[null,null,null,null,"Sprutning svamp+insekt","Fasta körspår",null,null,null,null,null,null,null,null,null,null,null,null,null,null,null,null,null,null,null,null,null,null,"Sprutning svamp+insekt",null,{"$error":"#N/A"},false,false,false,false,{"$f":"IF(OR(AF525,AG525,AH525,AI525),MAX(AJ$500:AJ524)+1,MIN(AJ$500:AJ524)-1)","v":-25},25,{"$error":"#N/A"},""]
[null,null,null,null,"Sprutning Mikro","Fasta körspår",null,null,null,null,null,null,null,null,null,null,null,null,null,null,null,null,null,null,null,null,null,null,"Sprutning Mikro",null,{"$error":"#N/A"},false,false,false,false,{"$f":"IF(OR(AF526,AG526,AH526,AI526),MAX(AJ$500:AJ525)+1,MIN(AJ$500:AJ525)-1)","v":-26},26,{"$error":"#N/A"},""]
[null,null,null,null,"Huggning (vall)","Ej körspår",null,null,null,null,null,null,null,null,null,null,null,null,null,null,null,null,null,null,null,4,null,null,"Huggning (vall)",null,{"$error":"#N/A"},false,false,false,false,{"$f":"IF(OR(AF527,AG527,AH527,AI527),MAX(AJ$500:AJ526)+1,MIN(AJ$500:AJ526)-1)","v":-27},27,{"$error":"#N/A"},""]
[null,null,null,null,"Hackvagn inkl. transp.","Ej körspår",null,null,null,null,null,null,null,null,null,null,null,null,null,null,null,null,null,null,null,null,null,null,"Hackvagn inkl. transp.",null,{"$error":"#N/A"},false,false,false,false,{"$f":"IF(OR(AF528,AG528,AH528,AI528),MAX(AJ$500:AJ527)+1,MIN(AJ$500:AJ527)-1)","v":-28},28,{"$error":"#N/A"},""]
[null,null,null,null,"Vändning","Ej körspår",null,null,null,null,null,null,null,null,null,null,null,null,null,null,null,null,null,null,null,null,null,null,"Vändning",null,{"$error":"#N/A"},false,false,false,false,{"$f":"IF(OR(AF529,AG529,AH529,AI529),MAX(AJ$500:AJ528)+1,MIN(AJ$500:AJ528)-1)","v":-29},29,{"$error":"#N/A"},""]
[null,null,null,null,"Strängläggning","Ej körspår",null,null,null,null,null,null,null,null,null,null,null,null,null,null,null,null,null,null,null,null,null,null,"Strängläggning",null,{"$error":"#N/A"},false,false,false,false,{"$f":"IF(OR(AF530,AG530,AH530,AI530),MAX(AJ$500:AJ529)+1,MIN(AJ$500:AJ529)-1)","v":-30},30,{"$error":"#N/A"},""]
[null,null,null,null,"Balning","Ej körspår",null,null,null,null,null,null,null,null,null,null,null,null,null,null,null,null,null,null,null,null,null,null,"Balning",null,{"$error":"#N/A"},false,false,false,false,{"$f":"IF(OR(AF531,AG531,AH531,AI531),MAX(AJ$500:AJ530)+1,MIN(AJ$500:AJ530)-1)","v":-31},31,{"$error":"#N/A"},""]
[null,null,null,null,"Inplastning","Ej körspår",null,null,null,null,null,null,null,null,null,null,null,null,null,null,null,null,null,null,null,null,null,null,"Inplastning",null,{"$error":"#N/A"},false,false,false,false,{"$f":"IF(OR(AF532,AG532,AH532,AI532),MAX(AJ$500:AJ531)+1,MIN(AJ$500:AJ531)-1)","v":-32},32,{"$error":"#N/A"},""]
[null,null,null,null,"Betesputsning/träda","Ej körspår",null,null,null,null,null,null,null,null,null,null,null,null,null,null,null,null,null,null,null,null,null,null,"Betesputsning/träda",null,{"$f":"INDIRECT(ADDRESS(ROW(),AE$498,4,TRUE))","v":{"$error":"#N/A"}},false,false,false,false,{"$f":"IF(OR(AF533,AG533,AH533,AI533),MAX(AJ$500:AJ532)+1,MIN(AJ$500:AJ532)-1)","v":-33},33,{"$f":"MATCH(AK533,$AJ$500:$AJ$558,0)","v":{"$error":"#N/A"}},{"$f":"IF(AM$498,IF(ISERROR(AL533),\"\",INDEX(zT_BearbetningsMatris1,AL533+1,1)),AC533)","v":""}]
[null,null,null,null,"Putsning frövall","Ej körspår",null,null,null,null,null,null,null,null,null,null,null,null,null,null,null,null,null,null,null,null,null,null,"Putsning frövall",null,{"$error":"#N/A"},false,false,false,false,{"$f":"IF(OR(AF534,AG534,AH534,AI534),MAX(AJ$500:AJ533)+1,MIN(AJ$500:AJ533)-1)","v":-34},34,{"$error":"#N/A"},""]
[null,null,null,null,"Pressning hö","Ej körspår",null,null,null,null,null,null,null,null,null,null,null,null,null,null,null,null,null,null,null,4,null,null,"Pressning hö",null,{"$error":"#N/A"},false,false,false,false,{"$f":"IF(OR(AF535,AG535,AH535,AI535),MAX(AJ$500:AJ534)+1,MIN(AJ$500:AJ534)-1)","v":-35},35,{"$error":"#N/A"},""]
[null,null,null,null,"Strängläggning","Ej körspår",null,null,null,null,null,null,null,null,null,null,null,null,null,null,null,null,null,null,null,4,null,null,"Strängläggning",null,{"$error":"#N/A"},false,false,false,false,{"$f":"IF(OR(AF536,AG536,AH536,AI536),MAX(AJ$500:AJ535)+1,MIN(AJ$500:AJ535)-1)","v":-36},36,{"$error":"#N/A"},""]
[null,null,null,null,"Tröskning","Ej körspår",null,null,4,4,4,4,4,4,4,4,4,4,4,4,4,4,null,null,null,null,null,null,"Tröskning",null,{"$error":"#N/A"},false,false,false,false,{"$f":"IF(OR(AF537,AG537,AH537,AI537),MAX(AJ$500:AJ536)+1,MIN(AJ$500:AJ536)-1)","v":-37},37,{"$error":"#N/A"},""]
[null,null,null,null,"Hemtransport","Ej körspår",null,null,null,null,null,null,null,null,null,null,null,null,null,null,null,null,null,null,null,null,null,null,"Hemtransport",null,{"$error":"#N/A"},false,false,false,false,{"$f":"IF(OR(AF538,AG538,AH538,AI538),MAX(AJ$500:AJ537)+1,MIN(AJ$500:AJ537)-1)","v":-38},38,{"$error":"#N/A"},""]
[null,null,null,null,"Halmhackning","Ej körspår",null,null,4,4,4,4,4,4,4,4,4,4,4,4,4,4,null,null,null,null,null,null,"Halmhackning",null,{"$error":"#N/A"},false,false,false,false,{"$f":"IF(OR(AF539,AG539,AH539,AI539),MAX(AJ$500:AJ538)+1,MIN(AJ$500:AJ538)-1)","v":-39},39,{"$error":"#N/A"},""]
[null,null,null,null,"Vändning halm","Ej körspår",null,null,4,4,4,4,4,4,4,4,4,4,4,4,4,4,null,null,null,null,null,null,"Vändning halm",null,{"$error":"#N/A"},false,false,false,false,{"$f":"IF(OR(AF540,AG540,AH540,AI540),MAX(AJ$500:AJ539)+1,MIN(AJ$500:AJ539)-1)","v":-40},40,{"$error":"#N/A"},""]
[null,null,null,null,"Hemtransport","Ej körspår",null,null,null,null,null,null,null,null,null,null,null,null,null,null,null,null,null,null,null,null,null,null,"Hemtransport",null,{"$error":"#N/A"},{"$f":"IF(AF$498,NOT(ISERROR(SEARCH(AF$499,$AE541))),FALSE)","v":false},false,false,false,{"$f":"IF(OR(AF541,AG541,AH541,AI541),MAX(AJ$500:AJ540)+1,MIN(AJ$500:AJ540)-1)","v":-41},41,{"$error":"#N/A"},""]
[null,null,null,null,"Lastning","Ej körspår",null,null,null,null,null,null,null,null,null,null,null,null,null,null,null,null,null,null,null,null,null,null,"Lastning",null,{"$error":"#N/A"},false,false,false,false,{"$f":"IF(OR(AF542,AG542,AH542,AI542),MAX(AJ$500:AJ541)+1,MIN(AJ$500:AJ541)-1)","v":-42},42,{"$error":"#N/A"},""]
[null,null,null,null,"Pressning halm","Ej körspår",null,null,4,4,4,4,4,4,4,4,4,4,4,4,4,4,null,null,null,null,null,null,"Pressning halm",null,{"$error":"#N/A"},false,false,false,false,{"$f":"IF(OR(AF543,AG543,AH543,AI543),MAX(AJ$500:AJ542)+1,MIN(AJ$500:AJ542)-1)","v":-43},43,{"$error":"#N/A"},""]
[null,null,null,null,"Omrörning","Ej körspår",null,null,null,null,null,null,null,null,null,null,null,null,null,null,null,null,null,null,null,null,null,null,"Omrörning",null,{"$error":"#N/A"},false,false,false,false,{"$f":"IF(OR(AF544,AG544,AH544,AI544),MAX(AJ$500:AJ543)+1,MIN(AJ$500:AJ543)-1)","v":-44},44,{"$error":"#N/A"},""]
[null,null,null,null,"Fastgödsel ","Risk för tomkörningar",null,null,1,1,1,1,1,1,1,1,1,1,1,1,1,1,1,1,1,null,1,1,"Fastgödsel ",null,{"$error":"#N/A"},false,false,false,false,{"$f":"IF(OR(AF545,AG545,AH545,AI545),MAX(AJ$500:AJ544)+1,MIN(AJ$500:AJ544)-1)","v":-45},45,{"$error":"#N/A"},""]
[null,null,null,null,"Lastning","Ej körspår",null,null,null,null,null,null,null,null,null,null,null,null,null,null,null,null,null,null,null,null,null,null,"Lastning",null,{"$error":"#N/A"},false,false,false,false,{"$f":"IF(OR(AF546,AG546,AH546,AI546),MAX(AJ$500:AJ545)+1,MIN(AJ$500:AJ545)-1)","v":-46},46,{"$error":"#N/A"},""]
[null,null,null,null,"Flytgödseltunna (spridning)","Risk för tomkörningar",null,null,1,1,1,1,1,1,1,1,1,1,1,1,1,1,1,1,1,null,1,1,"Flytgödseltunna (spridning)",null,{"$error":"#N/A"},false,false,false,false,{"$f":"IF(OR(AF547,AG547,AH547,AI547),MAX(AJ$500:AJ546)+1,MIN(AJ$500:AJ546)-1)","v":-47},47,{"$error":"#N/A"},""]
[null,null,null,null,"Spridning  hästgödsel","Risk för tomkörningar",null,null,1,1,1,1,1,1,1,1,1,1,1,1,1,1,1,1,1,null,1,1,"Spridning  hästgödsel",null,{"$error":"#N/A"},false,false,false,false,{"$f":"IF(OR(AF548,AG548,AH548,AI548),MAX(AJ$500:AJ547)+1,MIN(AJ$500:AJ547)-1)","v":-48},48,{"$error":"#N/A"},""]
[null,null,null,null,"Spridning slam","Risk för tomkörningar",null,null,null,null,null,null,null,null,null,null,null,null,null,null,null,null,null,null,null,null,null,null,"Spridning slam",null,{"$error":"#N/A"},false,false,false,false,{"$f":"IF(OR(AF549,AG549,AH549,AI549),MAX(AJ$500:AJ548)+1,MIN(AJ$500:AJ548)-1)","v":-49},49,{"$error":"#N/A"},""]
[null,null,null,null,"Uppt.mask.1pot.","Ej körspår",null,null,null,null,null,null,null,null,null,null,null,null,null,null,null,null,4,4,null,null,null,null,"Uppt.mask.1pot.",null,{"$error":"#N/A"},false,false,false,false,{"$f":"IF(OR(AF550,AG550,AH550,AI550),MAX(AJ$500:AJ549)+1,MIN(AJ$500:AJ549)-1)","v":-50},50,{"$error":"#N/A"},""]
[null,null,null,null,"Uppt.mask.2 s.betor","Ej körspår",null,null,null,null,null,null,null,null,null,null,null,null,null,null,null,null,null,null,4,null,null,null,"Uppt.mask.2 s.betor",null,{"$error":"#N/A"},false,false,false,false,{"$f":"IF(OR(AF551,AG551,AH551,AI551),MAX(AJ$500:AJ550)+1,MIN(AJ$500:AJ550)-1)","v":-51},51,{"$error":"#N/A"},""]
[null,null,null,null,"Uppt.mask.3 morot","Ej körspår",null,null,null,null,null,null,null,null,null,null,null,null,null,null,null,null,null,null,null,null,null,null,"Uppt.mask.3 morot",null,{"$error":"#N/A"},false,false,false,false,{"$f":"IF(OR(AF552,AG552,AH552,AI552),MAX(AJ$500:AJ551)+1,MIN(AJ$500:AJ551)-1)","v":-52},52,{"$error":"#N/A"},""]
[null,null,null,null,"Stukläggning","Ej körspår",null,null,null,null,null,null,null,null,null,null,null,null,null,null,null,null,null,null,null,null,null,null,"Stukläggning",null,{"$error":"#N/A"},false,false,false,false,{"$f":"IF(OR(AF553,AG553,AH553,AI553),MAX(AJ$500:AJ552)+1,MIN(AJ$500:AJ552)-1)","v":-53},53,{"$error":"#N/A"},""]
[null,null,null,null,"Lastning","Ej körspår",null,null,null,null,null,null,null,null,null,null,null,null,null,null,null,null,null,null,null,null,null,null,"Lastning",null,{"$error":"#N/A"},false,false,false,false,{"$f":"IF(OR(AF554,AG554,AH554,AI554),MAX(AJ$500:AJ553)+1,MIN(AJ$500:AJ553)-1)","v":-54},54,{"$error":"#N/A"},""]
[null,null,null,null,"Transport","Ej körspår",null,null,null,null,null,null,null,null,null,null,null,null,null,null,null,null,null,null,null,null,null,null,"Transport",null,{"$error":"#N/A"},false,false,false,false,{"$f":"IF(OR(AF555,AG555,AH555,AI555),MAX(AJ$500:AJ554)+1,MIN(AJ$500:AJ554)-1)","v":-55},55,{"$error":"#N/A"},""]
[null,null,null,null,"Bevattning flyttning","Ej körspår",null,null,null,null,null,null,null,null,null,null,null,null,null,null,null,null,null,null,null,null,null,null,"Bevattning flyttning",null,{"$error":"#N/A"},false,false,false,false,{"$f":"IF(OR(AF556,AG556,AH556,AI556),MAX(AJ$500:AJ555)+1,MIN(AJ$500:AJ555)-1)","v":-56},56,{"$error":"#N/A"},""]
[null,null,null,null,"Pump antal, tim/omgång","Ej körspår",null,null,null,null,null,null,null,null,null,null,null,null,null,null,null,null,null,null,null,null,null,null,"Pump antal, tim/omgång",null,{"$error":"#N/A"},false,false,false,false,{"$f":"IF(OR(AF557,AG557,AH557,AI557),MAX(AJ$500:AJ556)+1,MIN(AJ$500:AJ556)-1)","v":-57},57,{"$error":"#N/A"},""]
[]
[null,null,null,null,null,null,null,null,"Höstvete","Höstråg","Rågvete","Höstkorn","Höstraps","Höstrybs","Vårvete","Vårkorn","Havre","Vårraps","Vårrybs","Ärter","Oljelin","Spånadslin","Matpotatis","Industripot","Sockerbetor","Vall","Gröngödsling","Åkerböna"]
[]
[null,null,null,"Markbearbetning: (i) Lista av Bearbetningar, (ii) Default värden för Typ Av Körning = f(Bearbetning); (iii) Koppling mellan Bearbetning och Gröda + Säsong"]
[null,"Inställningar för spindeldiagram"]
[]
[null,null,null,null,null,"Inställning av spindeldiagram"]
[null,null,null,null,null,"Position","Beteckning"]
[null,null,null,null,"Rotmängd",2,{"$f":"\"+ Rotmängd\"","v":"+ Rotmängd"}]
[null,null,null,null,"Upptorkning",3,{"$f":"\"+ Upptorkning\"","v":"+ Upptorkning"}]
[null,null,null,null,"Organisk substans",4,{"$f":"\"+ Organisk substans\"","v":"+ Organisk substans"}]
[null,null,null,null,"Andel barmark",5,{"$f":"\"- Andel barmark\"","v":"- Andel barmark"}]
[null,null,null,null,"Bearbetningar",6,{"$f":"\"- Bearbetningar\"","v":"- Bearbetningar"}]
[null,null,null,null,"Markbelastning",7,{"$f":"\"- Markbelastning\"","v":"- Markbelastning"}]
[null,null,null,null,"Summa",1,"TOTALINDEX"]
[]
[null,null,null,"Spindeldiagram: Positioner och beteckningar för indexkomponenterna"]
[]
[null,null,null,null,"Axelmarginal",0.04,"Axel på spindeldiagrammet ställs in så att AxelMAX=abs(AxelMIN)=(minst Axelmarginal % större än de största* plottade värdet)      * Absolutbelopp"]
[]
[null,null,null,"Spindeldiagram: Inställning av axlar"]
[null,"Övrigt"]
[]
[null,null,null,null,"Calculation Always ON","Nej","Styr hur beräkningar utförs, se infogad kommentar i cellen tv med text Calculation Always On"]
[null,null,null,null,"System User Password","SLUgtINDex",null,null,"<= OBS! Lämna denna ruta tom för ta bort systemprivilegier"]
[null,null,null,null,"Sheets protected","Ja","Bladens skydds stängs av om denna parameter sätts till 'Nej' förutsatt att korrekt 'System User Password' är inmatat ovan"]
[null,null,null,null,"zVBA_VFMBremindLimit",2,"Vid aktivering av VFn-k kontrolleras att MBn-k finns. Om ej får man frågan om man vill skapa MBn-k. Efter zVBA_VFMBremindLimit 'Nej' svar får man inte frågan mer (pss vid aktivering av MBn-k)."]
[null,null,null,null,"zVBA_MallTest","Av",{"$f":"CONCATENATE(\"Skall i normalfallet vara 'Av'. Genom att sätta denna till 'På' kopplas data från mallarna ('\",zT_VFtemplate,\"',\",zT_MBtemplate,\"') till sista raden på blad '\",zT_SheetOversiktSkiften,\"'\")","v":"Skall i normalfallet vara 'Av'. Genom att sätta denna till 'På' kopplas data från mallarna ('Mall-VF',Mall-MB') till sista raden på blad 'Skiften&Växtföljder - Översikt'"}]
[]
[]
[]
[null,null,null,"Systeminställningar"]
[]
[null,null,null,null,"zT_VaderKeyLength",4]
[null,null,null,null,"zT_SheetOversiktSkiften","Skiften&Växtföljder - Översikt"]
[null,null,null,null,"zT_VFprefix","VF",null,null,"Prefix för blad med växtföljder (bladnamn = \"zT_VFprefix & SkiftesNr & \"-\" & ScenarioNr\", tex VF2-1)"]
[null,null,null,null,"zT_VFtemplate","Mall-VF",null,null,"Namn för blad med mall för VÄXTFÖLJD"]
[null,null,null,null,"zT_BMprefix","MB",null,null,"Prefix för blad med växtföljder (bladnamn = \"zT_BMprefix & SkiftesNr & \"-\" & ScenarioNr\", tex MB1-1)"]
[null,null,null,null,"zT_VFtemplate","Mall-MB",null,null,"Namn för blad med mall för MARKBEARBETNING"]
[null,null,null,null,"zVBA_MparkLastKey","z_Last"]
[null,null,null,null,"zVBA_MparkLastKeyIndex",{"$f":"MATCH(zVBA_MparkLastKey,INDEX(zT_MaskinerDefault,ROWS(zT_MaskinerDefault),0),0)","v":2}]
[null,null,null,null,"zT_SjalvgåendeKey","Självgående"]
[]
[null,null,null,"Systemparametrar"]
[]
[null,null,null,null,"Odlingsområde",1]
[null,null,null,null,"zVBA_MBchangesMade",true]
[null,null,null,null,"zT_ActiveMB","Mall-MB"]
[]
[null,null,null,"Variabler",null,null,null,null,null,null,null,null,"Gamla namn:","område, m.m."]
[]
[null,null,null,null,null,"Ja",null,"Bort",null,"F"]
[null,null,null,null,null,"Nej"]
[]
[null,null,null,"Diverse listor",null,null,null,null,null,null,null,null,"Gamla namn:","bool, m.m."]

{"sheet":"DBområde","index":15,"n_rows":74,"n_cols":24,"rows_kept":74,"cut":false,"hidden":true,"merged":[]}
["Underlag för beräkning av antal dagar med bar mark (SMHI data 1931-60). Definition av perioders början och slut se WJ (73/74)"]
[null,null,"Data","Snöfri periods början på våren (mån-dag)",null,null,"Tjälfri periods slut på hösten (mån-dag)"]
["SCB (Sortval)","Produktionsområden","för län","Medel*","tidigast (torr/varm)*","senast (kall/våt)*","Medel*","tidigast (kall/våt)*","senast (torr/varm)*"]
[1,"Götalands södra slättbygder","M","2001-03-14","2001-01-26","2001-04-16","2001-12-15","2001-11-22","2001-01-16"]
[2,"Götalands mellanbygder","I","2001-03-31","2001-02-05","2001-04-21","2001-12-10","2001-11-12","2001-01-16"]
[3,"Götalands norra slättbygder","R","2001-04-05","2001-03-07","2001-04-26","2001-11-15","2001-10-23","2001-12-22"]
[4,"Svealands slättbygder","C","2001-04-10","2001-02-25","2001-05-11","2001-11-13","2001-10-23","2001-12-27"]
[5,"Götalands skogsbygder","H","2001-03-30","2001-01-31","2001-04-21","2001-12-01","2001-11-02","2001-01-11"]
[6,"Mellersta Sveriges skogsbygder","S","2001-04-13","2001-03-13","2001-04-26","2001-11-08","2001-10-23","2001-12-17"]
[7,"Nedre Norrland","Y","2001-04-26","2001-04-11","2001-05-11","2001-11-02","2001-10-18","2001-11-27"]
[8,"Övre Norrland","BD","2001-05-06","2001-04-26","2001-05-21","2001-10-21","2001-10-03","2001-11-12"]
[null,null,null,"*kopplat till årsmånsklassning"]
[]
[null,null,"Data","Korrigering av uppkomst i vårsäd (antal dagar)",null,null,"Korrigering av uppkomst i potatis och s-betor",null,null,"Korrigering av skörd***"]
["SCB (Sortval)","Produktionsområden","för län","Median*","torr/varm**","kall/våt**","Median*","torr/varm**","kall/våt**","torr/varm**","kall/våt**"]
[1,"Götalands södra slättbygder","M",null,-13,"+17",null,-6,"+13",-9,"+6"]
[2,"Götalands mellanbygder","I",null,-21,"+18",null,-11,"+13",-8,"+6"]
[3,"Götalands norra slättbygder","R",null,-17,"+18",null,-11,"+13",-8,"+7"]
[4,"Svealands slättbygder","C",null,-13,"+17",null,-13,"+12",-7,"+6"]
[5,"Götalands skogsbygder","H",null,-16,"+19",null,-10,"+14",-8,"+7"]
[6,"Mellersta Sveriges skogsbygder","S",null,-19,"+6",null,-14,"+6",-8,"+7"]
[7,"Nedre Norrland","Y",null,-9,"+11",null,-4,"+9",-10,"+10"]
[8,"Övre Norrland","BD",null,-12,"+13",null,-12,"+8",-10,"+10"]
[null,null,null,"* Medianuppkomst för olika grödor från tabell **kopplat till årsmånsklassning ***alla grödor korrigeras som vårsäd"]
[]
["Övriga förutsättningar"]
["Markyteskydd i stråsäd",null,"Inget t.o.m. 7 dagar efter uppkomst, därefter fullt"]
["Markyteskydd i oljeväxt/ärter",null,"Inget t.o.m. 15 dagar efter uppkomst, därefter fullt"]
["Markyteskydd i sockerbetor",null,"Inget t.o.m. 25 dagar efter uppkomst, därefter fullt"]
["Markyteskydd i potatis",null,"Inget t.o.m. 25 dagar efter uppkomst, därefter fullt"]
["1:a stubbearbetning efter skörd",null,"2 dagar efter skörd"]
["Bearbetning eller plöjning efter sockerbetor",null,"5 dagar efter skörd"]
[]
[]
["Antal dagar med bar mark vår =",null,"Antal dagar mellan snöfri periods början och uppkomst + 7-25 dagar (beroende på gröda)"]
["Antal dagar med bar mark höst =",null,"Antal dagar mellan skörd + 2 (eller 5 beroende på gröda) dagar och tjälfri periods slut"]
["Totalt antal dagar med bar mark =",null,"Antal dagar med bar mark vår + höst"]
[]
["växtstart"]
["gröd typ",null,2,2,2,2,2,2,5,5,5,5,5,5,5,5,3,3,4,6,6,6,6,2]
["Fulltäckning",null,17,17,17,17,17,17,20,20,20,20,20,20,20,20,20,20,20,14,5,5,14,20]
["SCB (Sortval)","Produktionsområden","Höstvete","Höstråg","Rågvete","Höstkorn","Höstraps","Höstrybs","Vårvete","Vårkorn","Havre","Vårraps","Vårrybs","Ärter","Oljelin","Spånadslin","Matpotatis","Industripot","Sockerbetor","Vall","Vall 1:a skörd","Vall 2:a skörd","Gröngödsling","Åkerböna"]
[1,"Götalands södra slättbygder","2001-04-06","2001-04-06","2001-04-06","2001-04-06","2001-04-06","2001-04-06","2001-04-25","2001-04-26","2001-05-02","2001-04-26","2001-04-26","2001-04-26","2001-04-26","2001-04-26","2001-05-25","2001-05-25","2001-05-16","2001-04-06","2001-06-12","2001-08-01","2001-04-06"]
[2,"Götalands mellanbygder","2001-04-12","2001-04-12","2001-04-12","2001-04-12","2001-04-12","2001-04-12","2001-04-29","2001-05-02","2001-05-03","2001-05-02","2001-05-02","2001-05-02","2001-05-02","2001-05-02","2001-05-31","2001-05-31","2001-05-21","2001-04-12","2001-06-14","2001-08-03","2001-04-12"]
[3,"Götalands norra slättbygder","2001-04-17","2001-04-17","2001-04-17","2001-04-17","2001-04-17","2001-04-17","2001-05-06","2001-05-07","2001-05-08","2001-05-07","2001-05-07","2001-05-07","2001-05-07","2001-05-07","2001-06-04","2001-06-04",0,"2001-04-17","2001-06-18","2001-08-07","2001-04-17"]
[4,"Svealands slättbygder","2001-04-26","2001-04-26","2001-04-26","2001-04-26","2001-04-26","2001-04-26","2001-05-12","2001-05-14","2001-05-15","2001-05-14","2001-05-14","2001-05-14","2001-05-14","2001-05-14","2001-06-11","2001-06-11",0,"2001-04-26","2001-06-20","2001-08-09","2001-04-26"]
[5,"Götalands skogsbygder","2001-05-20","2001-05-20","2001-05-20","2001-05-20","2001-05-20","2001-05-20","2001-05-11","2001-05-11","2001-05-13","2001-05-11","2001-05-11","2001-05-11","2001-05-11","2001-05-11","2001-06-04","2001-06-04","2001-05-16","2001-05-20","2001-06-20","2001-08-09","2001-05-20"]
[6,"Mellersta Sveriges skogsbygder","2001-05-02","2001-05-02","2001-05-02","2001-05-02","2001-05-02","2001-05-02","2001-05-16","2001-05-22","2001-05-20","2001-05-22","2001-05-22","2001-05-22","2001-05-22","2001-05-22","2001-06-11","2001-06-11",0,"2001-05-02","2001-06-24","2001-08-13","2001-05-02"]
[7,"Nedre Norrland",0,0,0,0,0,0,0,"2001-06-02","2001-05-30","2001-06-02","2001-06-02","2001-06-02","2001-06-02","2001-06-02","2001-06-17","2001-06-17",0,"2001-05-13","2001-07-04","2001-08-23","2001-05-13"]
[8,"Övre Norrland",0,0,0,0,0,0,0,"2001-06-09","2001-06-08","2001-06-09","2001-06-09","2001-06-09","2001-06-09","2001-06-09","2001-06-28","2001-06-28",0,"2001-05-20","2001-07-06","2001-08-25","2001-05-20"]
[]
["gröd typ",null,0,0,0,0,0,0,1,1,1,2,2,2,2,2,3,3,4,0,0,6,0,2]
["Uppkomst - Potatis 22 dagar efter sättning (HL), sockerbetor 18 dagar efter sådd (Danisco), övriga 10 dagar efter sådd"]
["SCB (Sortval)","Produktionsområden","Höstvete","Höstråg","Rågvete","Höstkorn","Höstraps","Höstrybs","Vårvete","Vårkorn","Havre","Vårraps","Vårrybs","Ärter","Oljelin","Spånadslin","Matpotatis","Industripot","Sockerbetor","Vall","Vall återväxt",null,"Gröngödsling","Åkerböna"]
[1,"Götalands södra slättbygder","2000-09-27","2000-09-28","2000-09-28","2000-09-27","2000-08-26T17:08:34.286","2000-08-26T17:08:34.286","2000-04-25T17:08:34.286","2000-04-26T17:08:34.286","2000-05-02T06:51:25.714","2000-04-26T17:08:34.286","2000-04-26T17:08:34.286","2000-04-26T17:08:34.286","2000-04-26T17:08:34.286","2000-04-26T17:08:34.286","2000-05-25T06:51:25.714","2000-05-25T06:51:25.714","2000-05-16",0,0,null,"2000-04-25T17:08:34.286"]
[2,"Götalands mellanbygder","2000-10-03T03:25:42.857","2000-10-01T03:25:42.857","2000-10-01T03:25:42.857","2000-10-03T03:25:42.857","2000-08-28T13:42:51.429","2000-08-28T13:42:51.429","2000-04-29T20:34:17.143","2000-05-02T06:51:25.714","2000-05-03T20:34:17.143","2000-05-02T06:51:25.714","2000-05-02T06:51:25.714","2000-05-02T06:51:25.714","2000-05-02T06:51:25.714","2000-05-02T06:51:25.714","2000-05-31T13:42:51.429","2000-05-31T13:42:51.429","2000-05-21",0,0,null,"2000-04-29T20:34:17.143"]
[3,"Götalands norra slättbygder","2000-09-27T13:42:51.429","2000-09-22","2000-09-22","2000-09-27T13:42:51.429","2000-08-19T13:42:51.429","2000-08-19T13:42:51.429","2000-05-06T13:42:51.429","2000-05-07T06:51:25.714","2000-05-08T13:42:51.429","2000-05-07T06:51:25.714","2000-05-07T06:51:25.714","2000-05-07T06:51:25.714","2000-05-07T06:51:25.714","2000-05-07T06:51:25.714","2000-06-04T03:25:42.857","2000-06-04T03:25:42.857","00:00:00",0,0,null,"2000-05-06T13:42:51.429"]
[4,"Svealands slättbygder","2000-09-22T06:51:25.714","2000-09-15","2000-09-15","2000-09-22T06:51:25.714","2000-08-19","2000-08-19T14:24:00","2000-05-12T13:42:51.429","2000-05-14T20:34:17.143","2000-05-15","2000-05-14T20:34:17.143","2000-05-14T20:34:17.143","2000-05-14T20:34:17.143","2000-05-14T20:34:17.143","2000-05-14T20:34:17.143","2000-06-11T17:08:34.286","2000-06-11T17:08:34.286","00:00:00",0,0,null,"2000-05-12T13:42:51.429"]
[5,"Götalands skogsbygder","2000-09-27T17:08:34.286","2000-09-28T13:42:51.429","2000-09-28T13:42:51.429","2000-09-27T17:08:34.286","2000-08-23T17:08:34.286","2000-08-23T17:08:34.286","2000-05-11T10:17:08.571","2000-05-11T20:34:17.143","2000-05-13T03:25:42.857","2000-05-11T20:34:17.143","2000-05-11T20:34:17.143","2000-05-11T20:34:17.143","2000-05-11T20:34:17.143","2000-05-11T20:34:17.143","2000-06-04T10:17:08.571","2000-06-04T10:17:08.571","2000-05-16",0,0,null,"2000-05-11T10:17:08.571"]
[6,"Mellersta Sveriges skogsbygder","2000-09-25T17:08:34.286","2000-09-20T06:51:25.714","2000-09-20T06:51:25.714","2000-09-25T17:08:34.286","2000-08-23","2000-08-23","2000-05-16","2000-05-22T10:17:08.571","2000-05-20","2000-05-22T10:17:08.571","2000-05-22T10:17:08.571","2000-05-22T10:17:08.571","2000-05-22T10:17:08.571","2000-05-22T10:17:08.571","2000-06-11T06:51:25.714","2000-06-11T06:51:25.714","00:00:00",0,0,null,"2000-05-16"]
[7,"Nedre Norrland",0,0,0,0,0,0,0,"2000-06-02T03:25:42.857","2000-05-30T13:42:51.429","2000-06-02T03:25:42.857","2000-06-02T03:25:42.857","2000-06-02T03:25:42.857","2000-06-02T03:25:42.857","2000-06-02T03:25:42.857","2000-06-17T10:17:08.571","2000-06-17T10:17:08.571","00:00:00",0,0,null,0]
[8,"Övre Norrland",0,0,0,0,0,0,0,"2000-06-09T03:25:42.857","2000-06-08T10:17:08.571","2000-06-09T03:25:42.857","2000-06-09T03:25:42.857","2000-06-09T03:25:42.857","2000-06-09T03:25:42.857","2000-06-09T03:25:42.857","2000-06-28T06:51:25.714","2000-06-28T06:51:25.714","00:00:00",0,0,null,0]
[]
[]
["Skördetidpunkt  (huvudsakligen från SCB Jordbruksstatistisk årsbok 1987-1993"]
["SCB (Sortval)","Produktionsområden","Höstvete","Höstråg","Rågvete","Höstkorn","Höstraps","Höstrybs","Vårvete","Vårkorn","Havre","Vårraps","Vårrybs","Ärter","Oljelin","Spånadslin","Matpotatis","Industripot","Sockerbetor","Vall"]
[1,"Götalands södra slättbygder","2001-08-24","2001-08-12",{"$f":"D67+7","v":"2001-08-19"},{"$f":"C67-30","v":"2001-07-25"},"2001-08-12","2001-08-12","2001-08-29","2001-08-15","2001-08-29",{"$f":"J67+20","v":"2001-09-04"},{"$f":"J67+5","v":"2001-08-20"},"2001-08-15","2001-08-19","2001-08-15","2001-09-20",{"$f":"Q67+12","v":"2001-10-02"},"2001-10-11","2001-06-12"]
[2,"Götalands mellanbygder","2001-08-25","2001-08-12","2001-08-19","2001-07-26","2001-08-12","2001-08-12","2001-08-30","2001-08-17","2001-08-27",{"$f":"J68+20","v":"2001-09-06"},{"$f":"J68+5","v":"2001-08-22"},"2001-08-17","2001-08-25","2001-08-21","2001-09-21",{"$f":"Q68+12","v":"2001-10-03"},"2001-10-18","2001-06-14"]
[3,"Götalands norra slättbygder","2001-08-28","2001-08-14","2001-08-21","2001-07-29","2001-08-14","2001-08-14","2001-09-08","2001-08-31","2001-09-05","2001-09-20","2001-09-05","2001-08-31","2001-08-30","2001-08-26","2001-09-20","2001-10-02",0,"2001-06-18"]
[4,"Svealands slättbygder","2001-08-27","2001-08-14","2001-08-21","2001-07-28","2001-08-14","2001-08-14","2001-09-06","2001-09-02","2001-09-04","2001-09-22","2001-09-07","2001-09-02","2001-09-06","2001-09-02","2001-09-17","2001-09-29",0,"2001-06-20"]
[5,"Götalands skogsbygder","2001-08-29","2001-08-18","2001-08-25","2001-07-30","2001-08-18","2001-08-18","2001-09-11","2001-09-01","2001-09-10","2001-09-21","2001-09-06","2001-09-01","2001-09-03","2001-08-30","2001-09-22","2001-10-04","2001-10-11","2001-06-20"]
[6,"Mellersta Sveriges skogsbygder","2001-08-29","2001-08-18","2001-08-25","2001-07-30","2001-08-18","2001-08-18","2001-09-17","2001-09-08","2001-09-09","2001-09-28","2001-09-13","2001-09-08","2001-09-14","2001-09-10","2001-09-17","2001-09-29",0,"2001-06-24"]
[7,"Nedre Norrland",0,0,0,0,0,0,0,"2001-09-18","2001-09-17","2001-10-08","2001-09-23","2001-09-18","2001-09-25","2001-09-21","2001-09-15","2001-09-27",0,"2001-07-04"]
[8,"Övre Norrland",0,0,0,0,0,0,0,"2001-09-18","2001-09-24","2001-10-08","2001-09-23","2001-09-18","2001-10-02","2001-09-28","2001-09-09","2001-09-21",0,"2001-07-06"]

{"sheet":"Databas","index":16,"n_rows":80,"n_cols":26,"rows_kept":80,"cut":false,"hidden":true,"merged":[[12,14,13,14],[12,8,13,8],[12,13,13,13],[12,9,13,9],[12,10,13,10],[12,11,13,11],[12,12,13,12]]}
["Produktionsområden","Höstvete","Vårvete","Höstråg","Vårkorn","Havre","Matpotatis","Potatis för stärkelse","Höstraps","Vårraps","Höstrybs","Vårrybs","Sockerbetor","Vall","Dräneringsbehov I fält","Kommentar","indextal",null,"Mullhalt","kommentar","Indexvärde"]
["Götalands södra slättbygder",7621,5781,6204,5352,4553,40890,39878,2733,1734,"Inget värde",1551,46447,4650,"Markytan fast, inga fotavtryck","Mycket väldränerat",6,null,"Mycket mullrik (>12%)","Ofta naturlig hög mullhalt",5]
["Götalands mellanbygder",6229,5346,4825,4107,3824,38787,41332,2338,1495,"Inget värde",1218,42493,4980,"Markytan mindre fast, fotavtryck< 2cm djupa","Väldränerat",5,null,"Mullrik (6-12%)","Förustättningar för mycket god markstruktur",4]
["Götalands norra slättbygder",6390,4652,5445,4593,3906,36788,"Inget värde",2420,1785,1714,1415,"Inget värde",4510,"Markytan  något mjuk, fotavtryck 2-5 cm djupa","Tillfredställande dränerat",4,null,"Måttligt mullhaltig (3-6%)","Förustättningar för god markstruktur",3]
["Svealands slättbygder",5980,4544,4577,4355,3791,28173,"Inget värde",2399,1752,1643,1526,"Inget värde",4360,"Markytan rejält mjuk, fotavtryck > 5 cm djupa","Ett visst dränerigsbehov",3,null,"Något mullhaltig (2-3%)","Kan ge odlingsproblem",2]
["Götalands skogsbygder",5308,3699,4023,3442,3105,32230,38123,2072,1445,"Inget värde",1315,43262,4010,"markytan mycket mjuk och blöt, fotavtryck >7-10 cm","Stort dräneringsbehov",2,null,"mullfattig (<2%)","Dåliga odlingsegenskaper",1]
["Mellersta Sveriges skogsbygder",5997,4219,4427,3529,3408,25410,"Inget värde",2368,1791,1524,1151,"Inget värde",3800,"Vatten stående på ytan","Mycket stort dräneringsbehov",1]
["Nedre Norrland","Inget värde","Inget värde","Inget värde",2402,2263,20132,"Inget värde","Inget värde","Inget värde","Inget värde",1075,"Inget värde",3660]
["Övre Norrland","Inget värde","Inget värde","Inget värde",2268,2465,18224,"Inget värde","Inget värde","Inget värde","Inget värde","Inget värde","Inget värde",3610]
[]
["Områdesval",1]
[null,null,null,null,null,null,null,null,null,null,null,null,null,null,null,null,null,null,null,null,null,null,"koefficienter"]
["Dränstatus",null,null,"BOOL",null,null,"Arrondering",null,"Jordart tabell 12","Jordart (kornstorlek, mm)","Lerhalt (%) resp org halt","Utrullningsprov (trådtjocklek)","Färg i torrt tillstånd hos alvjorden","Dränerings-behov","Dräneringsbehov","Markstruktur",null,null,"Dikesavstånd","medel",null,"Gröda","ts","halm/blas","bladfall/spill","rötter"]
["Systemtäckdikat",null,null,"Ja",null,null,"Regelbunden",null,null,null,null,null,null,null,null,"Antal tramp","Markstruktur","indextal","<10",10,null,"Höstvete",0.85,1,0.17,1.17]
["Behovstäckdikat",null,null,"Nej",null,null,"Något Oregelbunden",null,"Mycket styv lera","Mycket styv lera ",">60","< 1 mm","Mörkgrå eller mörkt gråbrun",14," 10-14",0,"Mycket lucker",7,"10-14",12,null,"Höstråg",0.85,1,0.17,1.17]
["Ej rördikat",null,null,null,"Jordbearbetning",null,"Mycket Oregelbunden",null,"Styv lera och styv moränlera, ej rotspärr","Styv lera","40-60","1 mm","Grå, gråbrun eller rödbrun",16," 12-16",1,"lucker",6,"12-16",14,null,"Rågvete",0.85,1,0.17,1.17]
[null,null,null,null,"Stubbearbetning",null,null,null,"Styv lera och styv moränlera, rotspärr",null,null,null,null,14," 10-14",2,"något lucker",5,"14-18",16,null,"Höstkorn",0.85,1,0.17,1.17]
[null,null,null,null,"Sprutning stubb",null,null,null,"Mellanlera, ej rotspärr","Mellanlera","25-40","1-1,5 mm","Tämligen ljust grå eller ljust rödbrun",18," 14-18",3,"något tät",4,"16-20",18,null,"Höstraps",0.91,1.5,0.25,1.75]
[null,null,null,null,"Plöjning",null,null,null,"Moränmellanlera, ej rotspärr",null,null,null,null,18," 14-18","4-5","tät",3,"15-25",20,null,"Höstrybs",0.91,1.5,0.25,1.75]
[null,null,null,null,"Betongvält",null,null,null,"Mellanlera och moränmellanlera, rotspärr",null,null,null,null,16," 12-16","6-7","mycket tät",2,">25",25,null,"Vårvete",0.85,1,0.17,1.17]
["Årsmån",{"$f":"MATCH(\"Moränlättlera\",jordarter2,0)","v":8},null,null,"Vältning",null,null,null,"Lättlera","Lättlera","15-25","ca 2 mm","Ljusgrå",20," 16-20",">7","extremt tät",1,null,null,null,"Vårkorn",0.85,0.82,0.14000000000000001,0.96]
["Normal",null,null,null,"Harvning",null,null,null,"Moränlättlera",null,null,null,null,20," 16-20",null,null,null,null,null,null,"Havre",0.85,1,0.17,1.17]
["Kall/våt",null,null,null,"Sladd",null,null,null,"Lerig finmo + lerig moränjord",null,null,null,null,25," 15-25",null,null,null,null,null,null,"Vårraps",0.91,1.5,0.25,1.75]
["Varm/torr",null,null,null,"Fräsning",null,null,null,"Lerfria och svagt leriga jordar + lerig sand och lerig grovmo",null,null,null,null,"Behovs"," Behovsd. El. 20-40",null,null,null,null,null,null,"Vårrybs",0.91,1.5,0.25,1.75]
[null,null,null,null,"Kupning",null,null,null,"Kärrtorvjord, väl förmultnad","Kärrtorvjord",">30% org mtrl","Näringsrik","Gul->svart, beror av förmultningsgrad",25," 10-25",null,null,null,null,null,null,"Ärter",0.85,0.82,0.14000000000000001,0.96]
[null,null,null,null,"Stensträngläggning",null,null,null,"Mosstorvjord, svagt förmultnad","Mosstorvjord",">30% org mtrl","Näringsfattig","Gul->svart, beror av förmultningsgrad",40," 25-40",null,null,null,null,null,null,"Oljelin",0.85,2.9,0.25,1.75]
[null,null,null,null,"Stenplockning lastare",null,null,null,"Gyttjejord","Gyttja",">30 % gyttja","Tät, klibbar ej, mindre elastisk","Brun, brungrön, mörknar i luft, men ljusnar åter vid torkning","Behovs"," Behovsd.",null,null,null,null,null,null,"Spånadslin",0.85,5.8,0.25,1.75]
[null,null,null,null,"Djupkult",null,null,null,null,null,null,null,null,null,null,null,null,null,null,null,null,"Matpotatis",0.22,0.21,0.05,0.04]
[null,null,null,null,"Sådd",null,null,null,null,null,null,null,null,null,null,null,null,null,null,null,null,"Industripot",0.22,0.21,7.0000000000000007E-2,0.04]
[null,null,null,null,"Insådd vall",null,null,null,null,"Torvjord, väl förmultnad",null,null,null,25,null,null,null,null,null,null,null,"Sockerbetor",0.24,0.8,0.05,0.04]
[null,null,null,null,"Sådd kombi",null,null,null,null,"Torvjord, svagt förmultnad",null,null,null,40,null,null,null,null,null,null,null,"Vall",0.83499999999999996,0,0.25,1.25]
[null,null,null,null,"Sättning",null,null,null,null,"Mjäla (0,002-0,02)","2-5","4-6 mm","Gråvit",20,null,null,null,null,null,null,null,"Gröngödsling",0.83499999999999996,0,1.25,1.25]
[null,null,null,null,"Vältning",null,null,null,null,null,null,null,null,null,null,null,null,null,null,null,null,"Åkerböna",0.82,0.79,0.13,0.79]
[null,null,null,null,"Trnsp. utsäde"]
[]
[null,null,null,null,"Sprutning ogräs",null,null,null,null,"Grus (2-20)","<2","Kan ej rullas","Som rödaktig sand","Behovsdikning",null,"Konv. Nöt, fast"]
[null,null,null,null,"Hackning ogräs ",null,null,null,null,"Sand (0,2-2)","<2","Kan ej rullas","Som rödaktig sand","Behovsdikning",null,"Konv. Nöt, flyt"]
[null,null,null,null,"Flamning",null,null,null,null,"Moränsand","2-5","Kan ej rullas","Som rödaktig sand","Behovsdikning",null,"Ekol. Nöt, fast"]
[null,null,null,null,"Ogräsrensning",null,null,null,null,"Grovmo (0,06-0,2)","<2","Kan ej rullas","Ljusgrå eller med svag sandfärg","Behovsdikning",null,"Ekol. Nöt, flyt"]
[null,null,null,null,null,null,null,null,null,"Finmo (0,02-0,06)","<2","4-6 mm","Ljusgrå","Behovsdikning",null,"Svin, fast"]
[null,null,null,null,"Mineralgödsel spridning",null,null,null,null,"Moränmo","2-5","4-6 mm","Ljusgrå","Behovsdikning",null,"Svin, flyt"]
[null,null,null,null,"Spridning special",null,null,null,null,"Gyttjelera","1-6 % gyttja","Kort brott, grynig, tärningar, klibbar","Grå, svagt grönaktig,","Behovsdikning"]
[null,null,null,null,"Sprutning svamp+insekt",null,null,null,null,"Lergyttja","6-30 % gyttja","Kort brott, klibb-ar, något elastisk","Grönaktigt gulgrå/blågrå, vitnar vid torkning",20]
[null,null,null,null,"Sprutning Mikro",null,null,null,null,"Leriga jordar ","5-15","ca 3 mm","Ljusgrå",25]
[]
[null,null,null,null,"Huggning (vall)"]
[null,null,null,null,"Hackvagn inkl. transp."]
[null,null,null,null,"Vändning"]
[null,null,null,null,"Strängläggning"]
[null,null,null,null,"Balning"]
[null,null,null,null,"Inplastning"]
[null,null,null,null,"Betesputsning/träda"]
[null,null,null,null,"Putsning frövall"]
[null,null,null,null,"Pressning hö"]
[]
[null,null,null,null,"Strängläggning"]
[null,null,null,null,"Tröskning"]
[null,null,null,null,"Hemtransport"]
[]
[null,null,null,null,"Halmhackning"]
[null,null,null,null,"Vändning halm"]
[null,null,null,null,"Hemtransport"]
[null,null,null,null,"Lastning"]
[null,null,null,null,"Pressning halm"]
[]
[null,null,null,null,"Omrörning"]
[null,null,null,null,"Fastgödsel "]
[null,null,null,null,"Lastning"]
[null,null,null,null,"Flytgödseltunna (spridning)"]
[null,null,null,null,"Spridning  hästgödsel"]
[null,null,null,null,"Spridning slam"]
[]
[null,null,null,null,"Uppt.mask.1pot."]
[null,null,null,null,"Uppt.mask.2 s.betor"]
[null,null,null,null,"Uppt.mask.3 morot"]
[null,null,null,null,"Stukläggning"]
[null,null,null,null,"Lastning"]
[null,null,null,null,"Transport"]
[null,null,null,null,"Bevattning flyttning"]
[null,null,null,null,"Pump antal, tim/omgång"]

{"sheet":"Torkdagar","index":17,"n_rows":4465,"n_cols":5,"rows_kept":4465,"cut":false,"hidden":false,"merged":[]}
["Område","Väder","Jordart","Gröda","Torkdagar"]
[1,"kall sommar",1,"Ärter",34]
[1,"kall sommar",1,"Gröngödsling",71]
[1,"kall sommar",1,"Havre",19]
[1,"kall sommar",1,"Höstkorn",59]
[1,"kall sommar",1,"Höstråg",59]
[1,"kall sommar",1,"Höstraps",59]
[1,"kall sommar",1,"Höstrybs",59]
[1,"kall sommar",1,"Höstvete",59]
[1,"kall sommar",1,"Oljelin",34]
[1,"kall sommar",1,"Rågvete",59]
[1,"kall sommar",1,"Spånadslin",34]
[1,"kall sommar",1,"Vall",71]
[1,"kall sommar",1,"Vårkorn",34]
[1,"kall sommar",1,"Vårraps",34]
[1,"kall sommar",1,"Vårrybs",34]
[1,"kall sommar",1,"Vårvete",38]
[1,"kall sommar",2,"Ärter",0]
[1,"kall sommar",2,"Gröngödsling",59]
[1,"kall sommar",2,"Havre",0]
[1,"kall sommar",2,"Höstkorn",45]
[1,"kall sommar",2,"Höstråg",45]
[1,"kall sommar",2,"Höstraps",45]
[1,"kall sommar",2,"Höstrybs",45]
[1,"kall sommar",2,"Höstvete",45]
[1,"kall sommar",2,"Oljelin",0]
[1,"kall sommar",2,"Rågvete",45]
[1,"kall sommar",2,"Spånadslin",0]
[1,"kall sommar",2,"Vall",59]
[1,"kall sommar",2,"Vårkorn",0]
[1,"kall sommar",2,"Vårraps",0]
[1,"kall sommar",2,"Vårrybs",0]
[1,"kall sommar",2,"Vårvete",1]
[1,"kall sommar",3,"Ärter",34]
[1,"kall sommar",3,"Gröngödsling",71]
[1,"kall sommar",3,"Havre",20]
[1,"kall sommar",3,"Höstkorn",60]
[1,"kall sommar",3,"Höstråg",60]
[1,"kall sommar",3,"Höstraps",60]
[1,"kall sommar",3,"Höstrybs",60]
[1,"kall sommar",3,"Höstvete",60]
[1,"kall sommar",3,"Oljelin",34]
[1,"kall sommar",3,"Rågvete",60]
[1,"kall sommar",3,"Spånadslin",34]
[1,"kall sommar",3,"Vall",71]
[1,"kall sommar",3,"Vårkorn",34]
[1,"kall sommar",3,"Vårraps",34]
[1,"kall sommar",3,"Vårrybs",34]
[1,"kall sommar",3,"Vårvete",38]
[1,"kall sommar",4,"Ärter",0]
[1,"kall sommar",4,"Gröngödsling",29]
[1,"kall sommar",4,"Havre",0]
[1,"kall sommar",4,"Höstkorn",25]
[1,"kall sommar",4,"Höstråg",25]
[1,"kall sommar",4,"Höstraps",25]
[1,"kall sommar",4,"Höstrybs",25]
[1,"kall sommar",4,"Höstvete",25]
[1,"kall sommar",4,"Oljelin",0]
[1,"kall sommar",4,"Rågvete",25]
[1,"kall sommar",4,"Spånadslin",0]
[1,"kall sommar",4,"Vall",29]
[1,"kall sommar",4,"Vårkorn",0]
[1,"kall sommar",4,"Vårraps",0]
[1,"kall sommar",4,"Vårrybs",0]
[1,"kall sommar",4,"Vårvete",0]
[1,"kall sommar",5,"Ärter",0]
[1,"kall sommar",5,"Gröngödsling",52]
[1,"kall sommar",5,"Havre",0]
[1,"kall sommar",5,"Höstkorn",41]
[1,"kall sommar",5,"Höstråg",41]
[1,"kall sommar",5,"Höstraps",41]
[1,"kall sommar",5,"Höstrybs",41]
[1,"kall sommar",5,"Höstvete",41]
[1,"kall sommar",5,"Oljelin",0]
[1,"kall sommar",5,"Rågvete",41]
[1,"kall sommar",5,"Sockerbetor",0]
[1,"kall sommar",5,"Spånadslin",0]
[1,"kall sommar",5,"Vall",52]
[1,"kall sommar",5,"Vårkorn",0]
[1,"kall sommar",5,"Vårraps",0]
[1,"kall sommar",5,"Vårrybs",0]
[1,"kall sommar",5,"Vårvete",0]
[1,"kall sommar",6,"Ärter",26]
[1,"kall sommar",6,"Gröngödsling",69]
[1,"kall sommar",6,"Havre",11]
[1,"kall sommar",6,"Höstkorn",57]
[1,"kall sommar",6,"Höstråg",57]
[1,"kall sommar",6,"Höstraps",57]
[1,"kall sommar",6,"Höstrybs",57]
[1,"kall sommar",6,"Höstvete",57]
[1,"kall sommar",6,"Oljelin",26]
[1,"kall sommar",6,"Rågvete",57]
[1,"kall sommar",6,"Sockerbetor",0]
[1,"kall sommar",6,"Spånadslin",26]
[1,"kall sommar",6,"Vall",69]
[1,"kall sommar",6,"Vårkorn",26]
[1,"kall sommar",6,"Vårraps",26]
[1,"kall sommar",6,"Vårrybs",26]
[1,"kall sommar",6,"Vårvete",28]
[1,"kall sommar",7,"Ärter",11]
[1,"kall sommar",7,"Gröngödsling",63]
[1,"kall sommar",7,"Havre",0]
[1,"kall sommar",7,"Höstkorn",52]
[1,"kall sommar",7,"Höstråg",52]
[1,"kall sommar",7,"Höstraps",52]
[1,"kall sommar",7,"Höstrybs",52]
[1,"kall sommar",7,"Höstvete",52]
[1,"kall sommar",7,"Industripot",0]
[1,"kall sommar",7,"Matpotatis",0]
[1,"kall sommar",7,"Oljelin",11]
[1,"kall sommar",7,"Rågvete",52]
[1,"kall sommar",7,"Sockerbetor",0]
[1,"kall sommar",7,"Spånadslin",11]
[1,"kall sommar",7,"Vall",63]
[1,"kall sommar",7,"Vårkorn",11]
[1,"kall sommar",7,"Vårraps",11]
[1,"kall sommar",7,"Vårrybs",11]
[1,"kall sommar",7,"Vårvete",11]
[1,"kall sommar",8,"Ärter",0]
[1,"kall sommar",8,"Gröngödsling",58]
[1,"kall sommar",8,"Havre",0]
[1,"kall sommar",8,"Höstkorn",48]
[1,"kall sommar",8,"Höstråg",48]
[1,"kall sommar",8,"Höstraps",48]
[1,"kall sommar",8,"Höstrybs",48]
[1,"kall sommar",8,"Höstvete",48]
[1,"kall sommar",8,"Industripot",0]
[1,"kall sommar",8,"Matpotatis",0]
[1,"kall sommar",8,"Oljelin",0]
[1,"kall sommar",8,"Rågvete",48]
[1,"kall sommar",8,"Sockerbetor",0]
[1,"kall sommar",8,"Spånadslin",0]
[1,"kall sommar",8,"Vall",58]
[1,"kall sommar",8,"Vårkorn",0]
[1,"kall sommar",8,"Vårraps",0]
[1,"kall sommar",8,"Vårrybs",0]
[1,"kall sommar",8,"Vårvete",2]
[1,"kall sommar",9,"Ärter",0]
[1,"kall sommar",9,"Gröngödsling",27]
[1,"kall sommar",9,"Havre",0]
[1,"kall sommar",9,"Höstkorn",28]
[1,"kall sommar",9,"Höstråg",28]
[1,"kall sommar",9,"Höstraps",28]
[1,"kall sommar",9,"Höstrybs",28]
[1,"kall sommar",9,"Höstvete",28]
[1,"kall sommar",9,"Industripot",0]
[1,"kall sommar",9,"Matpotatis",0]
[1,"kall sommar",9,"Oljelin",0]
[1,"kall sommar",9,"Rågvete",28]
[1,"kall sommar",9,"Sockerbetor",0]
[1,"kall sommar",9,"Spånadslin",0]
[1,"kall sommar",9,"Vall",27]
[1,"kall sommar",9,"Vårkorn",0]
[1,"kall sommar",9,"Vårraps",0]
[1,"kall sommar",9,"Vårrybs",0]
[1,"kall sommar",9,"Vårvete",0]
[1,"kall sommar",10,"Ärter",32]
[1,"kall sommar",10,"Gröngödsling",69]
[1,"kall sommar",10,"Havre",15]
[1,"kall sommar",10,"Höstkorn",60]
[1,"kall sommar",10,"Höstråg",60]
[1,"kall sommar",10,"Höstraps",60]
[1,"kall sommar",10,"Höstrybs",60]
[1,"kall sommar",10,"Höstvete",60]
[1,"kall sommar",10,"Industripot",0]
[1,"kall sommar",10,"Matpotatis",0]
[1,"kall sommar",10,"Oljelin",32]
[1,"kall sommar",10,"Rågvete",60]
[1,"kall sommar",10,"Sockerbetor",0]
[1,"kall sommar",10,"Spånadslin",32]
[1,"kall sommar",10,"Vall",69]
[1,"kall sommar",10,"Vårkorn",32]
[1,"kall sommar",10,"Vårraps",32]
[1,"kall sommar",10,"Vårrybs",32]
[1,"kall sommar",10,"Vårvete",34]
[1,"kall sommar",11,"Ärter",0]
[1,"kall sommar",11,"Gröngödsling",0]
[1,"kall sommar",11,"Havre",0]
[1,"kall sommar",11,"Industripot",0]
[1,"kall sommar",11,"Matpotatis",0]
[1,"kall sommar",11,"Oljelin",0]
[1,"kall sommar",11,"Spånadslin",0]
[1,"kall sommar",11,"Vall",0]
[1,"kall sommar",11,"Vårkorn",0]
[1,"kall sommar",11,"Vårraps",0]
[1,"kall sommar",11,"Vårrybs",0]
[1,"kall sommar",11,"Vårvete",0]
[1,"kall sommar",12,"Ärter",10]
[1,"kall sommar",12,"Gröngödsling",62]
[1,"kall sommar",12,"Havre",0]
[1,"kall sommar",12,"Oljelin",10]
[1,"kall sommar",12,"Spånadslin",10]
[1,"kall sommar",12,"Vall",62]
[1,"kall sommar",12,"Vårkorn",10]
[1,"kall sommar",12,"Vårraps",10]
[1,"kall sommar",12,"Vårrybs",10]
[1,"kall sommar",12,"Vårvete",11]
[1,"kall sommar",13,"Ärter",0]
[1,"kall sommar",13,"Gröngödsling",0]
[1,"kall sommar",13,"Havre",0]
[1,"kall sommar",13,"Industripot",0]
[1,"kall sommar",13,"Matpotatis",0]
[1,"kall sommar",13,"Oljelin",0]
[1,"kall sommar",13,"Spånadslin",0]
[1,"kall sommar",13,"Vall",0]
[1,"kall sommar",13,"Vårkorn",0]
[1,"kall sommar",13,"Vårraps",0]
[1,"kall sommar",13,"Vårrybs",0]
[1,"kall sommar",13,"Vårvete",0]
[1,"normal sommar",1,"Ärter",73]
[1,"normal sommar",1,"Gröngödsling",145]
[1,"normal sommar",1,"Havre",72]
[1,"normal sommar",1,"Höstkorn",72]
[1,"normal sommar",1,"Höstråg",87]
[1,"normal sommar",1,"Höstraps",87]
[1,"normal sommar",1,"Höstrybs",87]
[1,"normal sommar",1,"Höstvete",87]
[1,"normal sommar",1,"Oljelin",73]
[1,"normal sommar",1,"Rågvete",87]
[1,"normal sommar",1,"Spånadslin",73]
[1,"normal sommar",1,"Vall",145]
[1,"normal sommar",1,"Vårkorn",73]
[1,"normal sommar",1,"Vårraps",73]
[1,"normal sommar",1,"Vårrybs",73]
[1,"normal sommar",1,"Vårvete",74]
[1,"normal sommar",2,"Ärter",62]
[1,"normal sommar",2,"Gröngödsling",133]
[1,"normal sommar",2,"Havre",57]
[1,"normal sommar",2,"Höstkorn",60]
[1,"normal sommar",2,"Höstråg",78]
[1,"normal sommar",2,"Höstraps",78]
[1,"normal sommar",2,"Höstrybs",78]
[1,"normal sommar",2,"Höstvete",78]
[1,"normal sommar",2,"Oljelin",62]
[1,"normal sommar",2,"Rågvete",78]
[1,"normal sommar",2,"Spånadslin",62]
[1,"normal sommar",2,"Vall",133]
[1,"normal sommar",2,"Vårkorn",62]
[1,"normal sommar",2,"Vårraps",62]
[1,"normal sommar",2,"Vårrybs",62]
[1,"normal sommar",2,"Vårvete",63]
[1,"normal sommar",3,"Ärter",73]
[1,"normal sommar",3,"Gröngödsling",145]
[1,"normal sommar",3,"Havre",73]
[1,"normal sommar",3,"Höstkorn",72]
[1,"normal sommar",3,"Höstråg",89]
[1,"normal sommar",3,"Höstraps",89]
[1,"normal sommar",3,"Höstrybs",89]
[1,"normal sommar",3,"Höstvete",89]
[1,"normal sommar",3,"Oljelin",73]
[1,"normal sommar",3,"Rågvete",89]
[1,"normal sommar",3,"Spånadslin",73]
[1,"normal sommar",3,"Vall",145]
[1,"normal sommar",3,"Vårkorn",73]
[1,"normal sommar",3,"Vårraps",73]
[1,"normal sommar",3,"Vårrybs",73]
[1,"normal sommar",3,"Vårvete",74]
[1,"normal sommar",4,"Ärter",53]
[1,"normal sommar",4,"Gröngödsling",127]
[1,"normal sommar",4,"Havre",48]
[1,"normal sommar",4,"Höstkorn",54]
[1,"normal sommar",4,"Höstråg",72]
[1,"normal sommar",4,"Höstraps",72]
[1,"normal sommar",4,"Höstrybs",72]
[1,"normal sommar",4,"Höstvete",78]
[1,"normal sommar",4,"Oljelin",53]
[1,"normal sommar",4,"Rågvete",78]
[1,"normal sommar",4,"Spånadslin",53]
[1,"normal sommar",4,"Vall",127]
[1,"normal sommar",4,"Vårkorn",53]
[1,"normal sommar",4,"Vårraps",53]
[1,"normal sommar",4,"Vårrybs",53]
[1,"normal sommar",4,"Vårvete",55]
[1,"normal sommar",5,"Ärter",61]
[1,"normal sommar",5,"Gröngödsling",130]
[1,"normal sommar",5,"Havre",54]
[1,"normal sommar",5,"Höstkorn",57]
[1,"normal sommar",5,"Höstråg",75]
[1,"normal sommar",5,"Höstraps",75]
[1,"normal sommar",5,"Höstrybs",75]
[1,"normal sommar",5,"Höstvete",77]
[1,"normal sommar",5,"Oljelin",61]
[1,"normal sommar",5,"Rågvete",77]
[1,"normal sommar",5,"Sockerbetor",94]
[1,"normal sommar",5,"Spånadslin",61]
[1,"normal sommar",5,"Vall",130]
[1,"normal sommar",5,"Vårkorn",61]
[1,"normal sommar",5,"Vårraps",61]
[1,"normal sommar",5,"Vårrybs",61]
[1,"normal sommar",5,"Vårvete",61]
[1,"normal sommar",6,"Ärter",70]
[1,"normal sommar",6,"Gröngödsling",141]
[1,"normal sommar",6,"Havre",74]
[1,"normal sommar",6,"Höstkorn",68]
[1,"normal sommar",6,"Höstråg",86]
[1,"normal sommar",6,"Höstraps",86]
[1,"normal sommar",6,"Höstrybs",86]
[1,"normal sommar",6,"Höstvete",86]
[1,"normal sommar",6,"Oljelin",73]
[1,"normal sommar",6,"Rågvete",86]
[1,"normal sommar",6,"Sockerbetor",96]
[1,"normal sommar",6,"Spånadslin",70]
[1,"normal sommar",6,"Vall",141]
[1,"normal sommar",6,"Vårkorn",70]
[1,"normal sommar",6,"Vårraps",73]
[1,"normal sommar",6,"Vårrybs",73]
[1,"normal sommar",6,"Vårvete",73]
[1,"normal sommar",7,"Ärter",70]
[1,"normal sommar",7,"Gröngödsling",135]
[1,"normal sommar",7,"Havre",75]
[1,"normal sommar",7,"Höstkorn",62]
[1,"normal sommar",7,"Höstråg",80]
[1,"normal sommar",7,"Höstraps",80]
[1,"normal sommar",7,"Höstrybs",80]
[1,"normal sommar",7,"Höstvete",87]
[1,"normal sommar",7,"Industripot",65]
[1,"normal sommar",7,"Matpotatis",65]
[1,"normal sommar",7,"Oljelin",74]
[1,"normal sommar",7,"Rågvete",87]
[1,"normal sommar",7,"Sockerbetor",98]
[1,"normal sommar",7,"Spånadslin",70]
[1,"normal sommar",7,"Vall",135]
[1,"normal sommar",7,"Vårkorn",70]
[1,"normal sommar",7,"Vårraps",75]
[1,"normal sommar",7,"Vårrybs",74]
[1,"normal sommar",7,"Vårvete",74]
[1,"normal sommar",8,"Ärter",63]
[1,"normal sommar",8,"Gröngödsling",132]
[1,"normal sommar",8,"Havre",64]
[1,"normal sommar",8,"Höstkorn",60]
[1,"normal sommar",8,"Höstråg",78]
[1,"normal sommar",8,"Höstraps",78]
[1,"normal sommar",8,"Höstrybs",78]
[1,"normal sommar",8,"Höstvete",85]
[1,"normal sommar",8,"Industripot",33]
[1,"normal sommar",8,"Matpotatis",33]
[1,"normal sommar",8,"Oljelin",65]
[1,"normal sommar",8,"Rågvete",85]
[1,"normal sommar",8,"Sockerbetor",96]
[1,"normal sommar",8,"Spånadslin",63]
[1,"normal sommar",8,"Vall",132]
[1,"normal sommar",8,"Vårkorn",63]
[1,"normal sommar",8,"Vårraps",65]
[1,"normal sommar",8,"Vårrybs",65]
[1,"normal sommar",8,"Vårvete",63]
[1,"normal sommar",9,"Ärter",56]
[1,"normal sommar",9,"Gröngödsling",125]
[1,"normal sommar",9,"Havre",57]
[1,"normal sommar",9,"Höstkorn",53]
[1,"normal sommar",9,"Höstråg",71]
[1,"normal sommar",9,"Höstraps",71]
[1,"normal sommar",9,"Höstrybs",71]
[1,"normal sommar",9,"Höstvete",82]
[1,"normal sommar",9,"Industripot",32]
[1,"normal sommar",9,"Matpotatis",32]
[1,"normal sommar",9,"Oljelin",60]
[1,"normal sommar",9,"Rågvete",78]
[1,"normal sommar",9,"Sockerbetor",84]
[1,"normal sommar",9,"Spånadslin",56]
[1,"normal sommar",9,"Vall",125]
[1,"normal sommar",9,"Vårkorn",56]
[1,"normal sommar",9,"Vårraps",60]
[1,"normal sommar",9,"Vårrybs",60]
[1,"normal sommar",9,"Vårvete",62]
[1,"normal sommar",10,"Ärter",75]
[1,"normal sommar",10,"Gröngödsling",141]
[1,"normal sommar",10,"Havre",80]
[1,"normal sommar",10,"Höstkorn",70]
[1,"normal sommar",10,"Höstråg",88]
[1,"normal sommar",10,"Höstraps",88]
[1,"normal sommar",10,"Höstrybs",88]
[1,"normal sommar",10,"Höstvete",88]
[1,"normal sommar",10,"Industripot",73]
[1,"normal sommar",10,"Matpotatis",73]
[1,"normal sommar",10,"Oljelin",79]
[1,"normal sommar",10,"Rågvete",88]
[1,"normal sommar",10,"Sockerbetor",95]
[1,"normal sommar",10,"Spånadslin",75]
[1,"normal sommar",10,"Vall",141]
[1,"normal sommar",10,"Vårkorn",75]
[1,"normal sommar",10,"Vårraps",79]
[1,"normal sommar",10,"Vårrybs",79]
[1,"normal sommar",10,"Vårvete",78]
[1,"normal sommar",11,"Ärter",0]
[1,"normal sommar",11,"Gröngödsling",96]
[1,"normal sommar",11,"Havre",0]
[1,"normal sommar",11,"Industripot",0]
[1,"normal sommar",11,"Matpotatis",0]
[1,"normal sommar",11,"Oljelin",0]
[1,"normal sommar",11,"Spånadslin",0]
[1,"normal sommar",11,"Vall",96]
[1,"normal sommar",11,"Vårkorn",0]
[1,"normal sommar",11,"Vårraps",0]
[1,"normal sommar",11,"Vårrybs",0]
[1,"normal sommar",11,"Vårvete",0]
[1,"normal sommar",12,"Ärter",70]
[1,"normal sommar",12,"Gröngödsling",135]
[1,"normal sommar",12,"Havre",78]
[1,"normal sommar",12,"Oljelin",74]
[1,"normal sommar",12,"Spånadslin",70]
[1,"normal sommar",12,"Vall",135]
[1,"normal sommar",12,"Vårkorn",70]
[1,"normal sommar",12,"Vårraps",82]
[1,"normal sommar",12,"Vårrybs",75]
[1,"normal sommar",12,"Vårvete",81]
[1,"normal sommar",13,"Ärter",48]
[1,"normal sommar",13,"Gröngödsling",120]
[1,"normal sommar",13,"Havre",48]
[1,"normal sommar",13,"Industripot",15]
[1,"normal sommar",13,"Matpotatis",15]
[1,"normal sommar",13,"Oljelin",52]
[1,"normal sommar",13,"Spånadslin",48]
[1,"normal sommar",13,"Vall",120]
[1,"normal sommar",13,"Vårkorn",48]
[1,"normal sommar",13,"Vårraps",52]
[1,"normal sommar",13,"Vårrybs",52]
[1,"normal sommar",13,"Vårvete",53]
[1,"varm sommar",1,"Ärter",76]
[1,"varm sommar",1,"Gröngödsling",145]
[1,"varm sommar",1,"Havre",86]
[1,"varm sommar",1,"Höstkorn",72]
[1,"varm sommar",1,"Höstråg",90]
[1,"varm sommar",1,"Höstraps",90]
[1,"varm sommar",1,"Höstrybs",90]
[1,"varm sommar",1,"Höstvete",102]
[1,"varm sommar",1,"Oljelin",80]
[1,"varm sommar",1,"Rågvete",97]
[1,"varm sommar",1,"Spånadslin",76]
[1,"varm sommar",1,"Vall",145]
[1,"varm sommar",1,"Vårkorn",76]
[1,"varm sommar",1,"Vårraps",96]
[1,"varm sommar",1,"Vårrybs",81]
[1,"varm sommar",1,"Vårvete",91]
[1,"varm sommar",2,"Ärter",70]
[1,"varm sommar",2,"Gröngödsling",133]
[1,"varm sommar",2,"Havre",81]
[1,"varm sommar",2,"Höstkorn",60]
[1,"varm sommar",2,"Höstråg",78]
[1,"varm sommar",2,"Höstraps",78]
[1,"varm sommar",2,"Höstrybs",78]
[1,"varm sommar",2,"Höstvete",90]
[1,"varm sommar",2,"Oljelin",74]
[1,"varm sommar",2,"Rågvete",85]
[1,"varm sommar",2,"Spånadslin",70]
[1,"varm sommar",2,"Vall",133]
[1,"varm sommar",2,"Vårkorn",70]
[1,"varm sommar",2,"Vårraps",90]
[1,"varm sommar",2,"Vårrybs",75]
[1,"varm sommar",2,"Vårvete",84]
[1,"varm sommar",3,"Ärter",76]
[1,"varm sommar",3,"Gröngödsling",145]
[1,"varm sommar",3,"Havre",86]
[1,"varm sommar",3,"Höstkorn",72]
[1,"varm sommar",3,"Höstråg",90]
[1,"varm sommar",3,"Höstraps",90]
[1,"varm sommar",3,"Höstrybs",90]
[1,"varm sommar",3,"Höstvete",102]
[1,"varm sommar",3,"Oljelin",80]
[1,"varm sommar",3,"Rågvete",97]
[1,"varm sommar",3,"Spånadslin",76]
[1,"varm sommar",3,"Vall",145]
[1,"varm sommar",3,"Vårkorn",76]
[1,"varm sommar",3,"Vårraps",96]
[1,"varm sommar",3,"Vårrybs",81]
[1,"varm sommar",3,"Vårvete",91]
[1,"varm sommar",4,"Ärter",65]
[1,"varm sommar",4,"Gröngödsling",127]
[1,"varm sommar",4,"Havre",76]
[1,"varm sommar",4,"Höstkorn",54]
[1,"varm sommar",4,"Höstråg",72]
[1,"varm sommar",4,"Höstraps",72]
[1,"varm sommar",4,"Höstrybs",72]
[1,"varm sommar",4,"Höstvete",84]
[1,"varm sommar",4,"Oljelin",69]
[1,"varm sommar",4,"Rågvete",79]
[1,"varm sommar",4,"Spånadslin",65]
[1,"varm sommar",4,"Vall",127]
[1,"varm sommar",4,"Vårkorn",65]
[1,"varm sommar",4,"Vårraps",85]
[1,"varm sommar",4,"Vårrybs",70]
[1,"varm sommar",4,"Vårvete",79]
[1,"varm sommar",5,"Ärter",69]
[1,"varm sommar",5,"Gröngödsling",130]
[1,"varm sommar",5,"Havre",79]
[1,"varm sommar",5,"Höstkorn",57]
[1,"varm sommar",5,"Höstråg",75]
[1,"varm sommar",5,"Höstraps",75]
[1,"varm sommar",5,"Höstrybs",75]
[1,"varm sommar",5,"Höstvete",87]
[1,"varm sommar",5,"Oljelin",73]
[1,"varm sommar",5,"Rågvete",82]
[1,"varm sommar",5,"Sockerbetor",114]
[1,"varm sommar",5,"Spånadslin",69]
[1,"varm sommar",5,"Vall",130]
[1,"varm sommar",5,"Vårkorn",69]
[1,"varm sommar",5,"Vårraps",89]
[1,"varm sommar",5,"Vårrybs",74]
[1,"varm sommar",5,"Vårvete",83]
[1,"varm sommar",6,"Ärter",74]
[1,"varm sommar",6,"Gröngödsling",141]
[1,"varm sommar",6,"Havre",85]
[1,"varm sommar",6,"Höstkorn",68]
[1,"varm sommar",6,"Höstråg",86]
[1,"varm sommar",6,"Höstraps",86]
[1,"varm sommar",6,"Höstrybs",86]
[1,"varm sommar",6,"Höstvete",98]
[1,"varm sommar",6,"Oljelin",78]
[1,"varm sommar",6,"Rågvete",93]
[1,"varm sommar",6,"Sockerbetor",116]
[1,"varm sommar",6,"Spånadslin",74]
[1,"varm sommar",6,"Vall",141]
[1,"varm sommar",6,"Vårkorn",74]
[1,"varm sommar",6,"Vårraps",94]
[1,"varm sommar",6,"Vårrybs",79]
[1,"varm sommar",6,"Vårvete",89]
[1,"varm sommar",7,"Ärter",71]
[1,"varm sommar",7,"Gröngödsling",135]
[1,"varm sommar",7,"Havre",83]
[1,"varm sommar",7,"Höstkorn",62]
[1,"varm sommar",7,"Höstråg",80]
[1,"varm sommar",7,"Höstraps",80]
[1,"varm sommar",7,"Höstrybs",80]
[1,"varm sommar",7,"Höstvete",92]
[1,"varm sommar",7,"Industripot",95]
[1,"varm sommar",7,"Matpotatis",92]
[1,"varm sommar",7,"Oljelin",75]
[1,"varm sommar",7,"Rågvete",87]
[1,"varm sommar",7,"Sockerbetor",116]
[1,"varm sommar",7,"Spånadslin",71]
[1,"varm sommar",7,"Vall",135]
[1,"varm sommar",7,"Vårkorn",71]
[1,"varm sommar",7,"Vårraps",91]
[1,"varm sommar",7,"Vårrybs",76]
[1,"varm sommar",7,"Vårvete",85]
[1,"varm sommar",8,"Ärter",69]
[1,"varm sommar",8,"Gröngödsling",132]
[1,"varm sommar",8,"Havre",81]
[1,"varm sommar",8,"Höstkorn",60]
[1,"varm sommar",8,"Höstråg",78]
[1,"varm sommar",8,"Höstraps",78]
[1,"varm sommar",8,"Höstrybs",78]
[1,"varm sommar",8,"Höstvete",90]
[1,"varm sommar",8,"Industripot",78]
[1,"varm sommar",8,"Matpotatis",78]
[1,"varm sommar",8,"Oljelin",73]
[1,"varm sommar",8,"Rågvete",85]
[1,"varm sommar",8,"Sockerbetor",115]
[1,"varm sommar",8,"Spånadslin",69]
[1,"varm sommar",8,"Vall",132]
[1,"varm sommar",8,"Vårkorn",69]
[1,"varm sommar",8,"Vårraps",89]
[1,"varm sommar",8,"Vårrybs",74]
[1,"varm sommar",8,"Vårvete",84]
[1,"varm sommar",9,"Ärter",65]
[1,"varm sommar",9,"Gröngödsling",126]
[1,"varm sommar",9,"Havre",77]
[1,"varm sommar",9,"Höstkorn",54]
[1,"varm sommar",9,"Höstråg",72]
[1,"varm sommar",9,"Höstraps",72]
[1,"varm sommar",9,"Höstrybs",72]
[1,"varm sommar",9,"Höstvete",84]
[1,"varm sommar",9,"Industripot",90]
[1,"varm sommar",9,"Matpotatis",85]
[1,"varm sommar",9,"Oljelin",69]
[1,"varm sommar",9,"Rågvete",79]
[1,"varm sommar",9,"Sockerbetor",110]
[1,"varm sommar",9,"Spånadslin",65]
[1,"varm sommar",9,"Vall",126]
[1,"varm sommar",9,"Vårkorn",65]
[1,"varm sommar",9,"Vårraps",85]
[1,"varm sommar",9,"Vårrybs",70]
[1,"varm sommar",9,"Vårvete",79]
[1,"varm sommar",10,"Ärter",75]
[1,"varm sommar",10,"Gröngödsling",141]
[1,"varm sommar",10,"Havre",85]
[1,"varm sommar",10,"Höstkorn",70]
[1,"varm sommar",10,"Höstråg",88]
[1,"varm sommar",10,"Höstraps",88]
[1,"varm sommar",10,"Höstrybs",88]
[1,"varm sommar",10,"Höstvete",100]
[1,"varm sommar",10,"Industripot",100]
[1,"varm sommar",10,"Matpotatis",97]
[1,"varm sommar",10,"Oljelin",79]
[1,"varm sommar",10,"Rågvete",95]
[1,"varm sommar",10,"Sockerbetor",115]
[1,"varm sommar",10,"Spånadslin",75]
[1,"varm sommar",10,"Vall",141]
[1,"varm sommar",10,"Vårkorn",75]
[1,"varm sommar",10,"Vårraps",95]
[1,"varm sommar",10,"Vårrybs",80]
[1,"varm sommar",10,"Vårvete",89]
[1,"varm sommar",11,"Ärter",53]
[1,"varm sommar",11,"Gröngödsling",111]
[1,"varm sommar",11,"Havre",63]
[1,"varm sommar",11,"Industripot",83]
[1,"varm sommar",11,"Matpotatis",71]
[1,"varm sommar",11,"Oljelin",57]
[1,"varm sommar",11,"Spånadslin",53]
[1,"varm sommar",11,"Vall",111]
[1,"varm sommar",11,"Vårkorn",53]
[1,"varm sommar",11,"Vårraps",73]
[1,"varm sommar",11,"Vårrybs",58]
[1,"varm sommar",11,"Vårvete",67]
[1,"varm sommar",12,"Ärter",71]
[1,"varm sommar",12,"Gröngödsling",135]
[1,"varm sommar",12,"Havre",82]
[1,"varm sommar",12,"Oljelin",75]
[1,"varm sommar",12,"Spånadslin",71]
[1,"varm sommar",12,"Vall",135]
[1,"varm sommar",12,"Vårkorn",71]
[1,"varm sommar",12,"Vårraps",91]
[1,"varm sommar",12,"Vårrybs",76]
[1,"varm sommar",12,"Vårvete",85]
[1,"varm sommar",13,"Ärter",62]
[1,"varm sommar",13,"Gröngödsling",122]
[1,"varm sommar",13,"Havre",73]
[1,"varm sommar",13,"Industripot",94]
[1,"varm sommar",13,"Matpotatis",82]
[1,"varm sommar",13,"Oljelin",66]
[1,"varm sommar",13,"Spånadslin",62]
[1,"varm sommar",13,"Vall",122]
[1,"varm sommar",13,"Vårkorn",62]
[1,"varm sommar",13,"Vårraps",82]
[1,"varm sommar",13,"Vårrybs",67]
[1,"varm sommar",13,"Vårvete",76]
[2,"kall sommar",1,"Ärter",69]
[2,"kall sommar",1,"Gröngödsling",142]
[2,"kall sommar",1,"Havre",68]
[2,"kall sommar",1,"Höstkorn",78]
[2,"kall sommar",1,"Höstråg",87]
[2,"kall sommar",1,"Höstraps",87]
[2,"kall sommar",1,"Höstrybs",87]
[2,"kall sommar",1,"Höstvete",87]
[2,"kall sommar",1,"Oljelin",69]
[2,"kall sommar",1,"Rågvete",87]
[2,"kall sommar",1,"Spånadslin",69]
[2,"kall sommar",1,"Vall",142]
[2,"kall sommar",1,"Vårkorn",69]
[2,"kall sommar",1,"Vårraps",69]
[2,"kall sommar",1,"Vårrybs",69]
[2,"kall sommar",1,"Vårvete",69]
[2,"kall sommar",2,"Ärter",52]
[2,"kall sommar",2,"Gröngödsling",140]
[2,"kall sommar",2,"Havre",51]
[2,"kall sommar",2,"Höstkorn",68]
[2,"kall sommar",2,"Höstråg",79]
[2,"kall sommar",2,"Höstraps",79]
[2,"kall sommar",2,"Höstrybs",79]
[2,"kall sommar",2,"Höstvete",79]
[2,"kall sommar",2,"Oljelin",52]
[2,"kall sommar",2,"Rågvete",79]
[2,"kall sommar",2,"Spånadslin",52]
[2,"kall sommar",2,"Vall",140]
[2,"kall sommar",2,"Vårkorn",52]
[2,"kall sommar",2,"Vårraps",52]
[2,"kall sommar",2,"Vårrybs",52]
[2,"kall sommar",2,"Vårvete",57]
[2,"kall sommar",3,"Ärter",70]
[2,"kall sommar",3,"Gröngödsling",142]
[2,"kall sommar",3,"Havre",69]
[2,"kall sommar",3,"Höstkorn",78]
[2,"kall sommar",3,"Höstråg",88]
[2,"kall sommar",3,"Höstraps",88]
[2,"kall sommar",3,"Höstrybs",88]
[2,"kall sommar",3,"Höstvete",88]
[2,"kall sommar",3,"Oljelin",70]
[2,"kall sommar",3,"Rågvete",88]
[2,"kall sommar",3,"Spånadslin",70]
[2,"kall sommar",3,"Vall",142]
[2,"kall sommar",3,"Vårkorn",70]
[2,"kall sommar",3,"Vårraps",70]
[2,"kall sommar",3,"Vårrybs",70]
[2,"kall sommar",3,"Vårvete",69]
[2,"kall sommar",4,"Ärter",41]
[2,"kall sommar",4,"Gröngödsling",134]
[2,"kall sommar",4,"Havre",41]
[2,"kall sommar",4,"Höstkorn",62]
[2,"kall sommar",4,"Höstråg",79]
[2,"kall sommar",4,"Höstraps",79]
[2,"kall sommar",4,"Höstrybs",79]
[2,"kall sommar",4,"Höstvete",79]
[2,"kall sommar",4,"Oljelin",41]
[2,"kall sommar",4,"Rågvete",79]
[2,"kall sommar",4,"Spånadslin",41]
[2,"kall sommar",4,"Vall",134]
[2,"kall sommar",4,"Vårkorn",41]
[2,"kall sommar",4,"Vårraps",41]
[2,"kall sommar",4,"Vårrybs",41]
[2,"kall sommar",4,"Vårvete",48]
[2,"kall sommar",5,"Ärter",49]
[2,"kall sommar",5,"Gröngödsling",137]
[2,"kall sommar",5,"Havre",48]
[2,"kall sommar",5,"Höstkorn",65]
[2,"kall sommar",5,"Höstråg",81]
[2,"kall sommar",5,"Höstraps",81]
[2,"kall sommar",5,"Höstrybs",81]
[2,"kall sommar",5,"Höstvete",81]
[2,"kall sommar",5,"Oljelin",49]
[2,"kall sommar",5,"Rågvete",81]
[2,"kall sommar",5,"Sockerbetor",33]
[2,"kall sommar",5,"Spånadslin",49]
[2,"kall sommar",5,"Vall",137]
[2,"kall sommar",5,"Vårkorn",49]
[2,"kall sommar",5,"Vårraps",49]
[2,"kall sommar",5,"Vårrybs",49]
[2,"kall sommar",5,"Vårvete",56]
[2,"kall sommar",6,"Ärter",69]
[2,"kall sommar",6,"Gröngödsling",146]
[2,"kall sommar",6,"Havre",69]
[2,"kall sommar",6,"Höstkorn",75]
[2,"kall sommar",6,"Höstråg",87]
[2,"kall sommar",6,"Höstraps",87]
[2,"kall sommar",6,"Höstrybs",87]
[2,"kall sommar",6,"Höstvete",87]
[2,"kall sommar",6,"Oljelin",69]
[2,"kall sommar",6,"Rågvete",87]
[2,"kall sommar",6,"Sockerbetor",66]
[2,"kall sommar",6,"Spånadslin",69]
[2,"kall sommar",6,"Vall",146]
[2,"kall sommar",6,"Vårkorn",69]
[2,"kall sommar",6,"Vårraps",69]
[2,"kall sommar",6,"Vårrybs",69]
[2,"kall sommar",6,"Vårvete",73]
[2,"kall sommar",7,"Ärter",64]
[2,"kall sommar",7,"Gröngödsling",142]
[2,"kall sommar",7,"Havre",64]
[2,"kall sommar",7,"Höstkorn",71]
[2,"kall sommar",7,"Höstråg",88]
[2,"kall sommar",7,"Höstraps",88]
[2,"kall sommar",7,"Höstrybs",88]
[2,"kall sommar",7,"Höstvete",88]
[2,"kall sommar",7,"Industripot",10]
[2,"kall sommar",7,"Matpotatis",10]
[2,"kall sommar",7,"Oljelin",64]
[2,"kall sommar",7,"Rågvete",88]
[2,"kall sommar",7,"Sockerbetor",53]
[2,"kall sommar",7,"Spånadslin",64]
[2,"kall sommar",7,"Vall",142]
[2,"kall sommar",7,"Vårkorn",64]
[2,"kall sommar",7,"Vårraps",64]
[2,"kall sommar",7,"Vårrybs",64]
[2,"kall sommar",7,"Vårvete",69]
[2,"kall sommar",8,"Ärter",58]
[2,"kall sommar",8,"Gröngödsling",140]
[2,"kall sommar",8,"Havre",57]
[2,"kall sommar",8,"Höstkorn",68]
[2,"kall sommar",8,"Höstråg",85]
[2,"kall sommar",8,"Höstraps",85]
[2,"kall sommar",8,"Höstrybs",85]
[2,"kall sommar",8,"Höstvete",86]
[2,"kall sommar",8,"Industripot",0]
[2,"kall sommar",8,"Matpotatis",0]
[2,"kall sommar",8,"Oljelin",58]
[2,"kall sommar",8,"Rågvete",86]
[2,"kall sommar",8,"Sockerbetor",42]
[2,"kall sommar",8,"Spånadslin",58]
[2,"kall sommar",8,"Vall",140]
[2,"kall sommar",8,"Vårkorn",58]
[2,"kall sommar",8,"Vårraps",58]
[2,"kall sommar",8,"Vårrybs",58]
[2,"kall sommar",8,"Vårvete",62]
[2,"kall sommar",9,"Ärter",50]
[2,"kall sommar",9,"Gröngödsling",134]
[2,"kall sommar",9,"Havre",48]
[2,"kall sommar",9,"Höstkorn",62]
[2,"kall sommar",9,"Höstråg",79]
[2,"kall sommar",9,"Höstraps",79]
[2,"kall sommar",9,"Höstrybs",79]
[2,"kall sommar",9,"Höstvete",86]
[2,"kall sommar",9,"Industripot",0]
[2,"kall sommar",9,"Matpotatis",0]
[2,"kall sommar",9,"Oljelin",50]
[2,"kall sommar",9,"Rågvete",86]
[2,"kall sommar",9,"Sockerbetor",6]
[2,"kall sommar",9,"Spånadslin",50]
[2,"kall sommar",9,"Vall",134]
[2,"kall sommar",9,"Vårkorn",50]
[2,"kall sommar",9,"Vårraps",50]
[2,"kall sommar",9,"Vårrybs",50]
[2,"kall sommar",9,"Vårvete",55]
[2,"kall sommar",10,"Ärter",71]
[2,"kall sommar",10,"Gröngödsling",146]
[2,"kall sommar",10,"Havre",70]
[2,"kall sommar",10,"Höstkorn",77]
[2,"kall sommar",10,"Höstråg",91]
[2,"kall sommar",10,"Höstraps",91]
[2,"kall sommar",10,"Höstrybs",91]
[2,"kall sommar",10,"Höstvete",91]
[2,"kall sommar",10,"Industripot",40]
[2,"kall sommar",10,"Matpotatis",40]
[2,"kall sommar",10,"Oljelin",71]
[2,"kall sommar",10,"Rågvete",91]
[2,"kall sommar",10,"Sockerbetor",68]
[2,"kall sommar",10,"Spånadslin",71]
[2,"kall sommar",10,"Vall",146]
[2,"kall sommar",10,"Vårkorn",71]
[2,"kall sommar",10,"Vårraps",71]
[2,"kall sommar",10,"Vårrybs",71]
[2,"kall sommar",10,"Vårvete",74]
[2,"kall sommar",11,"Ärter",0]
[2,"kall sommar",11,"Gröngödsling",104]
[2,"kall sommar",11,"Havre",0]
[2,"kall sommar",11,"Industripot",0]
[2,"kall sommar",11,"Matpotatis",0]
[2,"kall sommar",11,"Oljelin",0]
[2,"kall sommar",11,"Spånadslin",0]
[2,"kall sommar",11,"Vall",104]
[2,"kall sommar",11,"Vårkorn",0]
[2,"kall sommar",11,"Vårraps",0]
[2,"kall sommar",11,"Vårrybs",0]
[2,"kall sommar",11,"Vårvete",0]
[2,"kall sommar",12,"Ärter",69]
[2,"kall sommar",12,"Gröngödsling",142]
[2,"kall sommar",12,"Havre",70]
[2,"kall sommar",12,"Oljelin",71]
[2,"kall sommar",12,"Spånadslin",71]
[2,"kall sommar",12,"Vall",142]
[2,"kall sommar",12,"Vårkorn",69]
[2,"kall sommar",12,"Vårraps",71]
[2,"kall sommar",12,"Vårrybs",71]
[2,"kall sommar",12,"Vårvete",75]
[2,"kall sommar",13,"Ärter",35]
[2,"kall sommar",13,"Gröngödsling",128]
[2,"kall sommar",13,"Havre",33]
[2,"kall sommar",13,"Industripot",0]
[2,"kall sommar",13,"Matpotatis",0]
[2,"kall sommar",13,"Oljelin",35]
[2,"kall sommar",13,"Spånadslin",35]
[2,"kall sommar",13,"Vall",128]
[2,"kall sommar",13,"Vårkorn",35]
[2,"kall sommar",13,"Vårraps",35]
[2,"kall sommar",13,"Vårrybs",35]
[2,"kall sommar",13,"Vårvete",46]
[2,"normal sommar",1,"Ärter",78]
[2,"normal sommar",1,"Gröngödsling",150]
[2,"normal sommar",1,"Havre",87]
[2,"normal sommar",1,"Höstkorn",78]
[2,"normal sommar",1,"Höstråg",95]
[2,"normal sommar",1,"Höstraps",95]
[2,"normal sommar",1,"Höstrybs",95]
[2,"normal sommar",1,"Höstvete",108]
[2,"normal sommar",1,"Oljelin",86]
[2,"normal sommar",1,"Rågvete",102]
[2,"normal sommar",1,"Spånadslin",82]
[2,"normal sommar",1,"Vall",150]
[2,"normal sommar",1,"Vårkorn",78]
[2,"normal sommar",1,"Vårraps",97]
[2,"normal sommar",1,"Vårrybs",83]
[2,"normal sommar",1,"Vårvete",94]
[2,"normal sommar",2,"Ärter",71]
[2,"normal sommar",2,"Gröngödsling",140]
[2,"normal sommar",2,"Havre",81]
[2,"normal sommar",2,"Höstkorn",68]
[2,"normal sommar",2,"Höstråg",85]
[2,"normal sommar",2,"Höstraps",85]
[2,"normal sommar",2,"Höstrybs",85]
[2,"normal sommar",2,"Höstvete",98]
[2,"normal sommar",2,"Oljelin",79]
[2,"normal sommar",2,"Rågvete",92]
[2,"normal sommar",2,"Spånadslin",75]
[2,"normal sommar",2,"Vall",140]
[2,"normal sommar",2,"Vårkorn",71]
[2,"normal sommar",2,"Vårraps",88]
[2,"normal sommar",2,"Vårrybs",76]
[2,"normal sommar",2,"Vårvete",87]
[2,"normal sommar",3,"Ärter",78]
[2,"normal sommar",3,"Gröngödsling",150]
[2,"normal sommar",3,"Havre",87]
[2,"normal sommar",3,"Höstkorn",78]
[2,"normal sommar",3,"Höstråg",95]
[2,"normal sommar",3,"Höstraps",95]
[2,"normal sommar",3,"Höstrybs",95]
[2,"normal sommar",3,"Höstvete",108]
[2,"normal sommar",3,"Oljelin",86]
[2,"normal sommar",3,"Rågvete",102]
[2,"normal sommar",3,"Spånadslin",82]
[2,"normal sommar",3,"Vall",150]
[2,"normal sommar",3,"Vårkorn",78]
[2,"normal sommar",3,"Vårraps",98]
[2,"normal sommar",3,"Vårrybs",83]
[2,"normal sommar",3,"Vårvete",94]
[2,"normal sommar",4,"Ärter",66]
[2,"normal sommar",4,"Gröngödsling",134]
[2,"normal sommar",4,"Havre",75]
[2,"normal sommar",4,"Höstkorn",62]
[2,"normal sommar",4,"Höstråg",79]
[2,"normal sommar",4,"Höstraps",79]
[2,"normal sommar",4,"Höstrybs",79]
[2,"normal sommar",4,"Höstvete",92]
[2,"normal sommar",4,"Oljelin",74]
[2,"normal sommar",4,"Rågvete",86]
[2,"normal sommar",4,"Spånadslin",70]
[2,"normal sommar",4,"Vall",134]
[2,"normal sommar",4,"Vårkorn",66]
[2,"normal sommar",4,"Vårraps",86]
[2,"normal sommar",4,"Vårrybs",71]
[2,"normal sommar",4,"Vårvete",83]
[2,"normal sommar",5,"Ärter",70]
[2,"normal sommar",5,"Gröngödsling",137]
[2,"normal sommar",5,"Havre",80]
[2,"normal sommar",5,"Höstkorn",65]
[2,"normal sommar",5,"Höstråg",82]
[2,"normal sommar",5,"Höstraps",82]
[2,"normal sommar",5,"Höstrybs",82]
[2,"normal sommar",5,"Höstvete",95]
[2,"normal sommar",5,"Oljelin",78]
[2,"normal sommar",5,"Rågvete",89]
[2,"normal sommar",5,"Sockerbetor",109]
[2,"normal sommar",5,"Spånadslin",74]
[2,"normal sommar",5,"Vall",137]
[2,"normal sommar",5,"Vårkorn",70]
[2,"normal sommar",5,"Vårraps",90]
[2,"normal sommar",5,"Vårrybs",75]
[2,"normal sommar",5,"Vårvete",85]
[2,"normal sommar",6,"Ärter",76]
[2,"normal sommar",6,"Gröngödsling",147]
[2,"normal sommar",6,"Havre",86]
[2,"normal sommar",6,"Höstkorn",75]
[2,"normal sommar",6,"Höstråg",92]
[2,"normal sommar",6,"Höstraps",92]
[2,"normal sommar",6,"Höstrybs",92]
[2,"normal sommar",6,"Höstvete",105]
[2,"normal sommar",6,"Oljelin",84]
[2,"normal sommar",6,"Rågvete",99]
[2,"normal sommar",6,"Sockerbetor",114]
[2,"normal sommar",6,"Spånadslin",80]
[2,"normal sommar",6,"Vall",147]
[2,"normal sommar",6,"Vårkorn",76]
[2,"normal sommar",6,"Vårraps",96]
[2,"normal sommar",6,"Vårrybs",81]
[2,"normal sommar",6,"Vårvete",92]
[2,"normal sommar",7,"Ärter",73]
[2,"normal sommar",7,"Gröngödsling",142]
[2,"normal sommar",7,"Havre",82]
[2,"normal sommar",7,"Höstkorn",71]
[2,"normal sommar",7,"Höstråg",88]
[2,"normal sommar",7,"Höstraps",88]
[2,"normal sommar",7,"Höstrybs",88]
[2,"normal sommar",7,"Höstvete",101]
[2,"normal sommar",7,"Industripot",88]
[2,"normal sommar",7,"Matpotatis",86]
[2,"normal sommar",7,"Oljelin",81]
[2,"normal sommar",7,"Rågvete",95]
[2,"normal sommar",7,"Sockerbetor",111]
[2,"normal sommar",7,"Spånadslin",77]
[2,"normal sommar",7,"Vall",142]
[2,"normal sommar",7,"Vårkorn",73]
[2,"normal sommar",7,"Vårraps",93]
[2,"normal sommar",7,"Vårrybs",78]
[2,"normal sommar",7,"Vårvete",89]
[2,"normal sommar",8,"Ärter",71]
[2,"normal sommar",8,"Gröngödsling",140]
[2,"normal sommar",8,"Havre",81]
[2,"normal sommar",8,"Höstkorn",68]
[2,"normal sommar",8,"Höstråg",85]
[2,"normal sommar",8,"Höstraps",85]
[2,"normal sommar",8,"Höstrybs",85]
[2,"normal sommar",8,"Höstvete",98]
[2,"normal sommar",8,"Industripot",72]
[2,"normal sommar",8,"Matpotatis",72]
[2,"normal sommar",8,"Oljelin",79]
[2,"normal sommar",8,"Rågvete",92]
[2,"normal sommar",8,"Sockerbetor",110]
[2,"normal sommar",8,"Spånadslin",75]
[2,"normal sommar",8,"Vall",140]
[2,"normal sommar",8,"Vårkorn",71]
[2,"normal sommar",8,"Vårraps",91]
[2,"normal sommar",8,"Vårrybs",76]
[2,"normal sommar",8,"Vårvete",86]
[2,"normal sommar",9,"Ärter",66]
[2,"normal sommar",9,"Gröngödsling",134]
[2,"normal sommar",9,"Havre",75]
[2,"normal sommar",9,"Höstkorn",62]
[2,"normal sommar",9,"Höstråg",79]
[2,"normal sommar",9,"Höstraps",79]
[2,"normal sommar",9,"Höstrybs",79]
[2,"normal sommar",9,"Höstvete",92]
[2,"normal sommar",9,"Industripot",85]
[2,"normal sommar",9,"Matpotatis",78]
[2,"normal sommar",9,"Oljelin",74]
[2,"normal sommar",9,"Rågvete",86]
[2,"normal sommar",9,"Sockerbetor",105]
[2,"normal sommar",9,"Spånadslin",70]
[2,"normal sommar",9,"Vall",134]
[2,"normal sommar",9,"Vårkorn",66]
[2,"normal sommar",9,"Vårraps",86]
[2,"normal sommar",9,"Vårrybs",71]
[2,"normal sommar",9,"Vårvete",83]
[2,"normal sommar",10,"Ärter",77]
[2,"normal sommar",10,"Gröngödsling",148]
[2,"normal sommar",10,"Havre",86]
[2,"normal sommar",10,"Höstkorn",77]
[2,"normal sommar",10,"Höstråg",94]
[2,"normal sommar",10,"Höstraps",94]
[2,"normal sommar",10,"Höstrybs",94]
[2,"normal sommar",10,"Höstvete",107]
[2,"normal sommar",10,"Industripot",94]
[2,"normal sommar",10,"Matpotatis",92]
[2,"normal sommar",10,"Oljelin",85]
[2,"normal sommar",10,"Rågvete",101]
[2,"normal sommar",10,"Sockerbetor",115]
[2,"normal sommar",10,"Spånadslin",81]
[2,"normal sommar",10,"Vall",148]
[2,"normal sommar",10,"Vårkorn",77]
[2,"normal sommar",10,"Vårraps",97]
[2,"normal sommar",10,"Vårrybs",82]
[2,"normal sommar",10,"Vårvete",92]
[2,"normal sommar",11,"Ärter",51]
[2,"normal sommar",11,"Gröngödsling",118]
[2,"normal sommar",11,"Havre",61]
[2,"normal sommar",11,"Industripot",66]
[2,"normal sommar",11,"Matpotatis",57]
[2,"normal sommar",11,"Oljelin",59]
[2,"normal sommar",11,"Spånadslin",55]
[2,"normal sommar",11,"Vall",118]
[2,"normal sommar",11,"Vårkorn",51]
[2,"normal sommar",11,"Vårraps",71]
[2,"normal sommar",11,"Vårrybs",56]
[2,"normal sommar",11,"Vårvete",69]
[2,"normal sommar",12,"Ärter",73]
[2,"normal sommar",12,"Gröngödsling",142]
[2,"normal sommar",12,"Havre",82]
[2,"normal sommar",12,"Oljelin",81]
[2,"normal sommar",12,"Spånadslin",77]
[2,"normal sommar",12,"Vall",142]
[2,"normal sommar",12,"Vårkorn",73]
[2,"normal sommar",12,"Vårraps",93]
[2,"normal sommar",12,"Vårrybs",78]
[2,"normal sommar",12,"Vårvete",89]
[2,"normal sommar",13,"Ärter",63]
[2,"normal sommar",13,"Gröngödsling",128]
[2,"normal sommar",13,"Havre",72]
[2,"normal sommar",13,"Industripot",84]
[2,"normal sommar",13,"Matpotatis",72]
[2,"normal sommar",13,"Oljelin",71]
[2,"normal sommar",13,"Spånadslin",67]
[2,"normal sommar",13,"Vall",128]
[2,"normal sommar",13,"Vårkorn",63]
[2,"normal sommar",13,"Vårraps",83]
[2,"normal sommar",13,"Vårrybs",68]
[2,"normal sommar",13,"Vårvete",78]
[2,"varm sommar",1,"Ärter",78]
[2,"varm sommar",1,"Gröngödsling",150]
[2,"varm sommar",1,"Havre",87]
[2,"varm sommar",1,"Höstkorn",78]
[2,"varm sommar",1,"Höstråg",95]
[2,"varm sommar",1,"Höstraps",95]
[2,"varm sommar",1,"Höstrybs",95]
[2,"varm sommar",1,"Höstvete",108]
[2,"varm sommar",1,"Oljelin",86]
[2,"varm sommar",1,"Rågvete",102]
[2,"varm sommar",1,"Spånadslin",82]
[2,"varm sommar",1,"Vall",150]
[2,"varm sommar",1,"Vårkorn",78]
[2,"varm sommar",1,"Vårraps",98]
[2,"varm sommar",1,"Vårrybs",83]
[2,"varm sommar",1,"Vårvete",94]
[2,"varm sommar",2,"Ärter",72]
[2,"varm sommar",2,"Gröngödsling",140]
[2,"varm sommar",2,"Havre",82]
[2,"varm sommar",2,"Höstkorn",68]
[2,"varm sommar",2,"Höstråg",85]
[2,"varm sommar",2,"Höstraps",85]
[2,"varm sommar",2,"Höstrybs",85]
[2,"varm sommar",2,"Höstvete",98]
[2,"varm sommar",2,"Oljelin",80]
[2,"varm sommar",2,"Rågvete",92]
[2,"varm sommar",2,"Spånadslin",76]
[2,"varm sommar",2,"Vall",140]
[2,"varm sommar",2,"Vårkorn",72]
[2,"varm sommar",2,"Vårraps",92]
[2,"varm sommar",2,"Vårrybs",77]
[2,"varm sommar",2,"Vårvete",87]
[2,"varm sommar",3,"Ärter",78]
[2,"varm sommar",3,"Gröngödsling",150]
[2,"varm sommar",3,"Havre",87]
[2,"varm sommar",3,"Höstkorn",78]
[2,"varm sommar",3,"Höstråg",95]
[2,"varm sommar",3,"Höstraps",95]
[2,"varm sommar",3,"Höstrybs",95]
[2,"varm sommar",3,"Höstvete",108]
[2,"varm sommar",3,"Oljelin",86]
[2,"varm sommar",3,"Rågvete",102]
[2,"varm sommar",3,"Spånadslin",82]
[2,"varm sommar",3,"Vall",150]
[2,"varm sommar",3,"Vårkorn",78]
[2,"varm sommar",3,"Vårraps",98]
[2,"varm sommar",3,"Vårrybs",83]
[2,"varm sommar",3,"Vårvete",94]
[2,"varm sommar",4,"Ärter",69]
[2,"varm sommar",4,"Gröngödsling",134]
[2,"varm sommar",4,"Havre",79]
[2,"varm sommar",4,"Höstkorn",62]
[2,"varm sommar",4,"Höstråg",79]
[2,"varm sommar",4,"Höstraps",79]
[2,"varm sommar",4,"Höstrybs",79]
[2,"varm sommar",4,"Höstvete",92]
[2,"varm sommar",4,"Oljelin",77]
[2,"varm sommar",4,"Rågvete",86]
[2,"varm sommar",4,"Spånadslin",73]
[2,"varm sommar",4,"Vall",134]
[2,"varm sommar",4,"Vårkorn",69]
[2,"varm sommar",4,"Vårraps",89]
[2,"varm sommar",4,"Vårrybs",74]
[2,"varm sommar",4,"Vårvete",84]
[2,"varm sommar",5,"Ärter",71]
[2,"varm sommar",5,"Gröngödsling",137]
[2,"varm sommar",5,"Havre",81]
[2,"varm sommar",5,"Höstkorn",65]
[2,"varm sommar",5,"Höstråg",82]
[2,"varm sommar",5,"Höstraps",82]
[2,"varm sommar",5,"Höstrybs",82]
[2,"varm sommar",5,"Höstvete",95]
[2,"varm sommar",5,"Oljelin",79]
[2,"varm sommar",5,"Rågvete",89]
[2,"varm sommar",5,"Sockerbetor",113]
[2,"varm sommar",5,"Spånadslin",75]
[2,"varm sommar",5,"Vall",137]
[2,"varm sommar",5,"Vårkorn",71]
[2,"varm sommar",5,"Vårraps",91]
[2,"varm sommar",5,"Vårrybs",76]
[2,"varm sommar",5,"Vårvete",86]
[2,"varm sommar",6,"Ärter",76]
[2,"varm sommar",6,"Gröngödsling",147]
[2,"varm sommar",6,"Havre",86]
[2,"varm sommar",6,"Höstkorn",75]
[2,"varm sommar",6,"Höstråg",92]
[2,"varm sommar",6,"Höstraps",92]
[2,"varm sommar",6,"Höstrybs",92]
[2,"varm sommar",6,"Höstvete",105]
[2,"varm sommar",6,"Oljelin",84]
[2,"varm sommar",6,"Rågvete",99]
[2,"varm sommar",6,"Sockerbetor",117]
[2,"varm sommar",6,"Spånadslin",80]
[2,"varm sommar",6,"Vall",147]
[2,"varm sommar",6,"Vårkorn",76]
[2,"varm sommar",6,"Vårraps",96]
[2,"varm sommar",6,"Vårrybs",81]
[2,"varm sommar",6,"Vårvete",92]
[2,"varm sommar",7,"Ärter",74]
[2,"varm sommar",7,"Gröngödsling",142]
[2,"varm sommar",7,"Havre",83]
[2,"varm sommar",7,"Höstkorn",71]
[2,"varm sommar",7,"Höstråg",88]
[2,"varm sommar",7,"Höstraps",88]
[2,"varm sommar",7,"Höstrybs",88]
[2,"varm sommar",7,"Höstvete",101]
[2,"varm sommar",7,"Industripot",100]
[2,"varm sommar",7,"Matpotatis",91]
[2,"varm sommar",7,"Oljelin",82]
[2,"varm sommar",7,"Rågvete",95]
[2,"varm sommar",7,"Sockerbetor",115]
[2,"varm sommar",7,"Spånadslin",78]
[2,"varm sommar",7,"Vall",142]
[2,"varm sommar",7,"Vårkorn",74]
[2,"varm sommar",7,"Vårraps",94]
[2,"varm sommar",7,"Vårrybs",79]
[2,"varm sommar",7,"Vårvete",89]
[2,"varm sommar",8,"Ärter",72]
[2,"varm sommar",8,"Gröngödsling",140]
[2,"varm sommar",8,"Havre",82]
[2,"varm sommar",8,"Höstkorn",68]
[2,"varm sommar",8,"Höstråg",85]
[2,"varm sommar",8,"Höstraps",85]
[2,"varm sommar",8,"Höstrybs",85]
[2,"varm sommar",8,"Höstvete",98]
[2,"varm sommar",8,"Industripot",77]
[2,"varm sommar",8,"Matpotatis",77]
[2,"varm sommar",8,"Oljelin",80]
[2,"varm sommar",8,"Rågvete",92]
[2,"varm sommar",8,"Sockerbetor",114]
[2,"varm sommar",8,"Spånadslin",76]
[2,"varm sommar",8,"Vall",140]
[2,"varm sommar",8,"Vårkorn",72]
[2,"varm sommar",8,"Vårraps",92]
[2,"varm sommar",8,"Vårrybs",77]
[2,"varm sommar",8,"Vårvete",87]
[2,"varm sommar",9,"Ärter",69]
[2,"varm sommar",9,"Gröngödsling",134]
[2,"varm sommar",9,"Havre",79]
[2,"varm sommar",9,"Höstkorn",62]
[2,"varm sommar",9,"Höstråg",79]
[2,"varm sommar",9,"Höstraps",79]
[2,"varm sommar",9,"Höstrybs",79]
[2,"varm sommar",9,"Höstvete",92]
[2,"varm sommar",9,"Industripot",95]
[2,"varm sommar",9,"Matpotatis",86]
[2,"varm sommar",9,"Oljelin",77]
[2,"varm sommar",9,"Rågvete",86]
[2,"varm sommar",9,"Sockerbetor",110]
[2,"varm sommar",9,"Spånadslin",73]
[2,"varm sommar",9,"Vall",134]
[2,"varm sommar",9,"Vårkorn",69]
[2,"varm sommar",9,"Vårraps",89]
[2,"varm sommar",9,"Vårrybs",74]
[2,"varm sommar",9,"Vårvete",84]
[2,"varm sommar",10,"Ärter",77]
[2,"varm sommar",10,"Gröngödsling",148]
[2,"varm sommar",10,"Havre",86]
[2,"varm sommar",10,"Höstkorn",77]
[2,"varm sommar",10,"Höstråg",94]
[2,"varm sommar",10,"Höstraps",94]
[2,"varm sommar",10,"Höstrybs",94]
[2,"varm sommar",10,"Höstvete",107]
[2,"varm sommar",10,"Industripot",102]
[2,"varm sommar",10,"Matpotatis",94]
[2,"varm sommar",10,"Oljelin",85]
[2,"varm sommar",10,"Rågvete",101]
[2,"varm sommar",10,"Sockerbetor",117]
[2,"varm sommar",10,"Spånadslin",81]
[2,"varm sommar",10,"Vall",148]
[2,"varm sommar",10,"Vårkorn",77]
[2,"varm sommar",10,"Vårraps",97]
[2,"varm sommar",10,"Vårrybs",82]
[2,"varm sommar",10,"Vårvete",92]
[2,"varm sommar",11,"Ärter",58]
[2,"varm sommar",11,"Gröngödsling",120]
[2,"varm sommar",11,"Havre",68]
[2,"varm sommar",11,"Industripot",86]
[2,"varm sommar",11,"Matpotatis",74]
[2,"varm sommar",11,"Oljelin",66]
[2,"varm sommar",11,"Spånadslin",62]
[2,"varm sommar",11,"Vall",120]
[2,"varm sommar",11,"Vårkorn",58]
[2,"varm sommar",11,"Vårraps",78]
[2,"varm sommar",11,"Vårrybs",63]
[2,"varm sommar",11,"Vårvete",73]
[2,"varm sommar",12,"Ärter",73]
[2,"varm sommar",12,"Gröngödsling",142]
[2,"varm sommar",12,"Havre",83]
[2,"varm sommar",12,"Oljelin",81]
[2,"varm sommar",12,"Spånadslin",77]
[2,"varm sommar",12,"Vall",142]
[2,"varm sommar",12,"Vårkorn",73]
[2,"varm sommar",12,"Vårraps",93]
[2,"varm sommar",12,"Vårrybs",78]
[2,"varm sommar",12,"Vårvete",89]
[2,"varm sommar",13,"Ärter",66]
[2,"varm sommar",13,"Gröngödsling",128]
[2,"varm sommar",13,"Havre",75]
[2,"varm sommar",13,"Industripot",95]
[2,"varm sommar",13,"Matpotatis",83]
[2,"varm sommar",13,"Oljelin",74]
[2,"varm sommar",13,"Spånadslin",70]
[2,"varm sommar",13,"Vall",128]
[2,"varm sommar",13,"Vårkorn",66]
[2,"varm sommar",13,"Vårraps",86]
[2,"varm sommar",13,"Vårrybs",71]
[2,"varm sommar",13,"Vårvete",81]
[3,"kall sommar",1,"Ärter",8]
[3,"kall sommar",1,"Gröngödsling",61]
[3,"kall sommar",1,"Havre",3]
[3,"kall sommar",1,"Höstkorn",59]
[3,"kall sommar",1,"Höstråg",59]
[3,"kall sommar",1,"Höstraps",59]
[3,"kall sommar",1,"Höstrybs",59]
[3,"kall sommar",1,"Höstvete",59]
[3,"kall sommar",1,"Oljelin",8]
[3,"kall sommar",1,"Rågvete",59]
[3,"kall sommar",1,"Spånadslin",8]
[3,"kall sommar",1,"Vall",61]
[3,"kall sommar",1,"Vårkorn",8]
[3,"kall sommar",1,"Vårraps",8]
[3,"kall sommar",1,"Vårrybs",8]
[3,"kall sommar",1,"Vårvete",10]
[3,"kall sommar",2,"Ärter",0]
[3,"kall sommar",2,"Gröngödsling",47]
[3,"kall sommar",2,"Havre",0]
[3,"kall sommar",2,"Höstkorn",43]
[3,"kall sommar",2,"Höstråg",43]
[3,"kall sommar",2,"Höstraps",43]
[3,"kall sommar",2,"Höstrybs",43]
[3,"kall sommar",2,"Höstvete",43]
[3,"kall sommar",2,"Oljelin",0]
[3,"kall sommar",2,"Rågvete",43]
[3,"kall sommar",2,"Spånadslin",0]
[3,"kall sommar",2,"Vall",47]
[3,"kall sommar",2,"Vårkorn",0]
[3,"kall sommar",2,"Vårraps",0]
[3,"kall sommar",2,"Vårrybs",0]
[3,"kall sommar",2,"Vårvete",0]
[3,"kall sommar",3,"Ärter",8]
[3,"kall sommar",3,"Gröngödsling",61]
[3,"kall sommar",3,"Havre",4]
[3,"kall sommar",3,"Höstkorn",61]
[3,"kall sommar",3,"Höstråg",61]
[3,"kall sommar",3,"Höstraps",61]
[3,"kall sommar",3,"Höstrybs",61]
[3,"kall sommar",3,"Höstvete",61]
[3,"kall sommar",3,"Oljelin",8]
[3,"kall sommar",3,"Rågvete",61]
[3,"kall sommar",3,"Spånadslin",8]
[3,"kall sommar",3,"Vall",61]
[3,"kall sommar",3,"Vårkorn",8]
[3,"kall sommar",3,"Vårraps",8]
[3,"kall sommar",3,"Vårrybs",8]
[3,"kall sommar",3,"Vårvete",12]
[3,"kall sommar",4,"Ärter",0]
[3,"kall sommar",4,"Gröngödsling",15]
[3,"kall sommar",4,"Havre",0]
[3,"kall sommar",4,"Höstkorn",18]
[3,"kall sommar",4,"Höstråg",18]
[3,"kall sommar",4,"Höstraps",18]
[3,"kall sommar",4,"Höstrybs",18]
[3,"kall sommar",4,"Höstvete",18]
[3,"kall sommar",4,"Oljelin",0]
[3,"kall sommar",4,"Rågvete",18]
[3,"kall sommar",4,"Spånadslin",0]
[3,"kall sommar",4,"Vall",15]
[3,"kall sommar",4,"Vårkorn",0]
[3,"kall sommar",4,"Vårraps",0]
[3,"kall sommar",4,"Vårrybs",0]
[3,"kall sommar",4,"Vårvete",0]
[3,"kall sommar",5,"Ärter",0]
[3,"kall sommar",5,"Gröngödsling",38]
[3,"kall sommar",5,"Havre",0]
[3,"kall sommar",5,"Höstkorn",35]
[3,"kall sommar",5,"Höstråg",35]
[3,"kall sommar",5,"Höstraps",35]
[3,"kall sommar",5,"Höstrybs",35]
[3,"kall sommar",5,"Höstvete",35]
[3,"kall sommar",5,"Oljelin",0]
[3,"kall sommar",5,"Rågvete",35]
[3,"kall sommar",5,"Spånadslin",0]
[3,"kall sommar",5,"Vall",38]
[3,"kall sommar",5,"Vårkorn",0]
[3,"kall sommar",5,"Vårraps",0]
[3,"kall sommar",5,"Vårrybs",0]
[3,"kall sommar",5,"Vårvete",0]
[3,"kall sommar",6,"Ärter",0]
[3,"kall sommar",6,"Gröngödsling",59]
[3,"kall sommar",6,"Havre",0]
[3,"kall sommar",6,"Höstkorn",59]
[3,"kall sommar",6,"Höstråg",59]
[3,"kall sommar",6,"Höstraps",59]
[3,"kall sommar",6,"Höstrybs",59]
[3,"kall sommar",6,"Höstvete",59]
[3,"kall sommar",6,"Oljelin",0]
[3,"kall sommar",6,"Rågvete",59]
[3,"kall sommar",6,"Spånadslin",0]
[3,"kall sommar",6,"Vall",59]
[3,"kall sommar",6,"Vårkorn",0]
[3,"kall sommar",6,"Vårraps",0]
[3,"kall sommar",6,"Vårrybs",0]
[3,"kall sommar",6,"Vårvete",3]
[3,"kall sommar",7,"Ärter",0]
[3,"kall sommar",7,"Gröngödsling",53]
[3,"kall sommar",7,"Havre",0]
[3,"kall sommar",7,"Höstkorn",54]
[3,"kall sommar",7,"Höstråg",54]
[3,"kall sommar",7,"Höstraps",54]
[3,"kall sommar",7,"Höstrybs",54]
[3,"kall sommar",7,"Höstvete",54]
[3,"kall sommar",7,"Industripot",0]
[3,"kall sommar",7,"Matpotatis",0]
[3,"kall sommar",7,"Oljelin",0]
[3,"kall sommar",7,"Rågvete",54]
[3,"kall sommar",7,"Spånadslin",0]
[3,"kall sommar",7,"Vall",53]
[3,"kall sommar",7,"Vårkorn",0]
[3,"kall sommar",7,"Vårraps",0]
[3,"kall sommar",7,"Vårrybs",0]
[3,"kall sommar",7,"Vårvete",0]
[3,"kall sommar",8,"Ärter",0]
[3,"kall sommar",8,"Gröngödsling",43]
[3,"kall sommar",8,"Havre",0]
[3,"kall sommar",8,"Höstkorn",47]
[3,"kall sommar",8,"Höstråg",47]
[3,"kall sommar",8,"Höstraps",47]
[3,"kall sommar",8,"Höstrybs",47]
[3,"kall sommar",8,"Höstvete",47]
[3,"kall sommar",8,"Industripot",0]
[3,"kall sommar",8,"Matpotatis",0]
[3,"kall sommar",8,"Oljelin",0]
[3,"kall sommar",8,"Rågvete",47]
[3,"kall sommar",8,"Spånadslin",0]
[3,"kall sommar",8,"Vall",43]
[3,"kall sommar",8,"Vårkorn",0]
[3,"kall sommar",8,"Vårraps",0]
[3,"kall sommar",8,"Vårrybs",0]
[3,"kall sommar",8,"Vårvete",0]
[3,"kall sommar",9,"Ärter",0]
[3,"kall sommar",9,"Gröngödsling",13]
[3,"kall sommar",9,"Havre",0]
[3,"kall sommar",9,"Höstkorn",19]
[3,"kall sommar",9,"Höstråg",19]
[3,"kall sommar",9,"Höstraps",19]
[3,"kall sommar",9,"Höstrybs",19]
[3,"kall sommar",9,"Höstvete",19]
[3,"kall sommar",9,"Industripot",0]
[3,"kall sommar",9,"Matpotatis",0]
[3,"kall sommar",9,"Oljelin",0]
[3,"kall sommar",9,"Rågvete",19]
[3,"kall sommar",9,"Spånadslin",0]
[3,"kall sommar",9,"Vall",13]
[3,"kall sommar",9,"Vårkorn",0]
[3,"kall sommar",9,"Vårraps",0]
[3,"kall sommar",9,"Vårrybs",0]
[3,"kall sommar",9,"Vårvete",0]
[3,"kall sommar",10,"Ärter",3]
[3,"kall sommar",10,"Gröngödsling",60]
[3,"kall sommar",10,"Havre",0]
[3,"kall sommar",10,"Höstkorn",61]
[3,"kall sommar",10,"Höstråg",61]
[3,"kall sommar",10,"Höstraps",61]
[3,"kall sommar",10,"Höstrybs",61]
[3,"kall sommar",10,"Höstvete",61]
[3,"kall sommar",10,"Industripot",0]
[3,"kall sommar",10,"Matpotatis",0]
[3,"kall sommar",10,"Oljelin",3]
[3,"kall sommar",10,"Rågvete",61]
[3,"kall sommar",10,"Spånadslin",3]
[3,"kall sommar",10,"Vall",60]
[3,"kall sommar",10,"Vårkorn",3]
[3,"kall sommar",10,"Vårraps",3]
[3,"kall sommar",10,"Vårrybs",3]
[3,"kall sommar",10,"Vårvete",7]
[3,"kall sommar",11,"Ärter",0]
[3,"kall sommar",11,"Gröngödsling",0]
[3,"kall sommar",11,"Havre",0]
[3,"kall sommar",11,"Industripot",0]
[3,"kall sommar",11,"Matpotatis",0]
[3,"kall sommar",11,"Oljelin",0]
[3,"kall sommar",11,"Spånadslin",0]
[3,"kall sommar",11,"Vall",0]
[3,"kall sommar",11,"Vårkorn",0]
[3,"kall sommar",11,"Vårraps",0]
[3,"kall sommar",11,"Vårrybs",0]
[3,"kall sommar",11,"Vårvete",0]
[3,"kall sommar",12,"Ärter",0]
[3,"kall sommar",12,"Gröngödsling",50]
[3,"kall sommar",12,"Havre",0]
[3,"kall sommar",12,"Oljelin",0]
[3,"kall sommar",12,"Spånadslin",0]
[3,"kall sommar",12,"Vall",50]
[3,"kall sommar",12,"Vårkorn",0]
[3,"kall sommar",12,"Vårraps",0]
[3,"kall sommar",12,"Vårrybs",0]
[3,"kall sommar",12,"Vårvete",0]
[3,"kall sommar",13,"Ärter",0]
[3,"kall sommar",13,"Gröngödsling",0]
[3,"kall sommar",13,"Havre",0]
[3,"kall sommar",13,"Industripot",0]
[3,"kall sommar",13,"Matpotatis",0]
[3,"kall sommar",13,"Oljelin",0]
[3,"kall sommar",13,"Spånadslin",0]
[3,"kall sommar",13,"Vall",0]
[3,"kall sommar",13,"Vårkorn",0]
[3,"kall sommar",13,"Vårraps",0]
[3,"kall sommar",13,"Vårrybs",0]
[3,"kall sommar",13,"Vårvete",0]
[3,"normal sommar",1,"Ärter",69]
[3,"normal sommar",1,"Gröngödsling",133]
[3,"normal sommar",1,"Havre",67]
[3,"normal sommar",1,"Höstkorn",72]
[3,"normal sommar",1,"Höstråg",85]
[3,"normal sommar",1,"Höstraps",85]
[3,"normal sommar",1,"Höstrybs",85]
[3,"normal sommar",1,"Höstvete",85]
[3,"normal sommar",1,"Oljelin",69]
[3,"normal sommar",1,"Rågvete",85]
[3,"normal sommar",1,"Spånadslin",69]
[3,"normal sommar",1,"Vall",133]
[3,"normal sommar",1,"Vårkorn",69]
[3,"normal sommar",1,"Vårraps",69]
[3,"normal sommar",1,"Vårrybs",69]
[3,"normal sommar",1,"Vårvete",69]
[3,"normal sommar",2,"Ärter",50]
[3,"normal sommar",2,"Gröngödsling",130]
[3,"normal sommar",2,"Havre",50]
[3,"normal sommar",2,"Höstkorn",61]
[3,"normal sommar",2,"Höstråg",75]
[3,"normal sommar",2,"Höstraps",75]
[3,"normal sommar",2,"Höstrybs",75]
[3,"normal sommar",2,"Höstvete",80]
[3,"normal sommar",2,"Oljelin",50]
[3,"normal sommar",2,"Rågvete",80]
[3,"normal sommar",2,"Spånadslin",50]
[3,"normal sommar",2,"Vall",130]
[3,"normal sommar",2,"Vårkorn",50]
[3,"normal sommar",2,"Vårraps",50]
[3,"normal sommar",2,"Vårrybs",50]
[3,"normal sommar",2,"Vårvete",53]
[3,"normal sommar",3,"Ärter",70]
[3,"normal sommar",3,"Gröngödsling",133]
[3,"normal sommar",3,"Havre",68]
[3,"normal sommar",3,"Höstkorn",72]
[3,"normal sommar",3,"Höstråg",86]
[3,"normal sommar",3,"Höstraps",86]
[3,"normal sommar",3,"Höstrybs",86]
[3,"normal sommar",3,"Höstvete",86]
[3,"normal sommar",3,"Oljelin",70]
[3,"normal sommar",3,"Rågvete",86]
[3,"normal sommar",3,"Spånadslin",70]
[3,"normal sommar",3,"Vall",133]
[3,"normal sommar",3,"Vårkorn",70]
[3,"normal sommar",3,"Vårraps",70]
[3,"normal sommar",3,"Vårrybs",70]
[3,"normal sommar",3,"Vårvete",71]
[3,"normal sommar",4,"Ärter",42]
[3,"normal sommar",4,"Gröngödsling",123]
[3,"normal sommar",4,"Havre",42]
[3,"normal sommar",4,"Höstkorn",54]
[3,"normal sommar",4,"Höstråg",70]
[3,"normal sommar",4,"Höstraps",70]
[3,"normal sommar",4,"Höstrybs",70]
[3,"normal sommar",4,"Höstvete",82]
[3,"normal sommar",4,"Oljelin",42]
[3,"normal sommar",4,"Rågvete",77]
[3,"normal sommar",4,"Spånadslin",42]
[3,"normal sommar",4,"Vall",123]
[3,"normal sommar",4,"Vårkorn",42]
[3,"normal sommar",4,"Vårraps",42]
[3,"normal sommar",4,"Vårrybs",42]
[3,"normal sommar",4,"Vårvete",44]
[3,"normal sommar",5,"Ärter",51]
[3,"normal sommar",5,"Gröngödsling",128]
[3,"normal sommar",5,"Havre",53]
[3,"normal sommar",5,"Höstkorn",59]
[3,"normal sommar",5,"Höstråg",75]
[3,"normal sommar",5,"Höstraps",75]
[3,"normal sommar",5,"Höstrybs",75]
[3,"normal sommar",5,"Höstvete",85]
[3,"normal sommar",5,"Oljelin",51]
[3,"normal sommar",5,"Rågvete",80]
[3,"normal sommar",5,"Spånadslin",51]
[3,"normal sommar",5,"Vall",128]
[3,"normal sommar",5,"Vårkorn",51]
[3,"normal sommar",5,"Vårraps",51]
[3,"normal sommar",5,"Vårrybs",51]
[3,"normal sommar",5,"Vårvete",52]
[3,"normal sommar",6,"Ärter",72]
[3,"normal sommar",6,"Gröngödsling",132]
[3,"normal sommar",6,"Havre",73]
[3,"normal sommar",6,"Höstkorn",69]
[3,"normal sommar",6,"Höstråg",83]
[3,"normal sommar",6,"Höstraps",83]
[3,"normal sommar",6,"Höstrybs",83]
[3,"normal sommar",6,"Höstvete",88]
[3,"normal sommar",6,"Oljelin",72]
[3,"normal sommar",6,"Rågvete",88]
[3,"normal sommar",6,"Spånadslin",72]
[3,"normal sommar",6,"Vall",132]
[3,"normal sommar",6,"Vårkorn",72]
[3,"normal sommar",6,"Vårraps",72]
[3,"normal sommar",6,"Vårrybs",72]
[3,"normal sommar",6,"Vårvete",73]
[3,"normal sommar",7,"Ärter",70]
[3,"normal sommar",7,"Gröngödsling",133]
[3,"normal sommar",7,"Havre",72]
[3,"normal sommar",7,"Höstkorn",64]
[3,"normal sommar",7,"Höstråg",80]
[3,"normal sommar",7,"Höstraps",80]
[3,"normal sommar",7,"Höstrybs",80]
[3,"normal sommar",7,"Höstvete",92]
[3,"normal sommar",7,"Industripot",49]
[3,"normal sommar",7,"Matpotatis",49]
[3,"normal sommar",7,"Oljelin",70]
[3,"normal sommar",7,"Rågvete",87]
[3,"normal sommar",7,"Spånadslin",70]
[3,"normal sommar",7,"Vall",133]
[3,"normal sommar",7,"Vårkorn",70]
[3,"normal sommar",7,"Vårraps",71]
[3,"normal sommar",7,"Vårrybs",71]
[3,"normal sommar",7,"Vårvete",72]
[3,"normal sommar",8,"Ärter",63]
[3,"normal sommar",8,"Gröngödsling",129]
[3,"normal sommar",8,"Havre",63]
[3,"normal sommar",8,"Höstkorn",61]
[3,"normal sommar",8,"Höstråg",77]
[3,"normal sommar",8,"Höstraps",77]
[3,"normal sommar",8,"Höstrybs",77]
[3,"normal sommar",8,"Höstvete",89]
[3,"normal sommar",8,"Industripot",9]
[3,"normal sommar",8,"Matpotatis",9]
[3,"normal sommar",8,"Oljelin",63]
[3,"normal sommar",8,"Rågvete",84]
[3,"normal sommar",8,"Spånadslin",63]
[3,"normal sommar",8,"Vall",129]
[3,"normal sommar",8,"Vårkorn",63]
[3,"normal sommar",8,"Vårraps",63]
[3,"normal sommar",8,"Vårrybs",63]
[3,"normal sommar",8,"Vårvete",63]
[3,"normal sommar",9,"Ärter",56]
[3,"normal sommar",9,"Gröngödsling",122]
[3,"normal sommar",9,"Havre",54]
[3,"normal sommar",9,"Höstkorn",54]
[3,"normal sommar",9,"Höstråg",70]
[3,"normal sommar",9,"Höstraps",70]
[3,"normal sommar",9,"Höstrybs",70]
[3,"normal sommar",9,"Höstvete",84]
[3,"normal sommar",9,"Industripot",0]
[3,"normal sommar",9,"Matpotatis",0]
[3,"normal sommar",9,"Oljelin",56]
[3,"normal sommar",9,"Rågvete",77]
[3,"normal sommar",9,"Spånadslin",56]
[3,"normal sommar",9,"Vall",122]
[3,"normal sommar",9,"Vårkorn",56]
[3,"normal sommar",9,"Vårraps",56]
[3,"normal sommar",9,"Vårrybs",56]
[3,"normal sommar",9,"Vårvete",59]
[3,"normal sommar",10,"Ärter",76]
[3,"normal sommar",10,"Gröngödsling",133]
[3,"normal sommar",10,"Havre",74]
[3,"normal sommar",10,"Höstkorn",70]
[3,"normal sommar",10,"Höstråg",85]
[3,"normal sommar",10,"Höstraps",85]
[3,"normal sommar",10,"Höstrybs",85]
[3,"normal sommar",10,"Höstvete",90]
[3,"normal sommar",10,"Industripot",63]
[3,"normal sommar",10,"Matpotatis",63]
[3,"normal sommar",10,"Oljelin",76]
[3,"normal sommar",10,"Rågvete",90]
[3,"normal sommar",10,"Spånadslin",76]
[3,"normal sommar",10,"Vall",133]
[3,"normal sommar",10,"Vårkorn",76]
[3,"normal sommar",10,"Vårraps",76]
[3,"normal sommar",10,"Vårrybs",76]
[3,"normal sommar",10,"Vårvete",78]
[3,"normal sommar",11,"Ärter",0]
[3,"normal sommar",11,"Gröngödsling",94]
[3,"normal sommar",11,"Havre",0]
[3,"normal sommar",11,"Industripot",0]
[3,"normal sommar",11,"Matpotatis",0]
[3,"normal sommar",11,"Oljelin",0]
[3,"normal sommar",11,"Spånadslin",0]
[3,"normal sommar",11,"Vall",94]
[3,"normal sommar",11,"Vårkorn",0]
[3,"normal sommar",11,"Vårraps",0]
[3,"normal sommar",11,"Vårrybs",0]
[3,"normal sommar",11,"Vårvete",0]
[3,"normal sommar",12,"Ärter",75]
[3,"normal sommar",12,"Gröngödsling",132]
[3,"normal sommar",12,"Havre",76]
[3,"normal sommar",12,"Oljelin",74]
[3,"normal sommar",12,"Spånadslin",70]
[3,"normal sommar",12,"Vall",132]
[3,"normal sommar",12,"Vårkorn",75]
[3,"normal sommar",12,"Vårraps",77]
[3,"normal sommar",12,"Vårrybs",77]
[3,"normal sommar",12,"Vårvete",79]
[3,"normal sommar",13,"Ärter",43]
[3,"normal sommar",13,"Gröngödsling",115]
[3,"normal sommar",13,"Havre",41]
[3,"normal sommar",13,"Industripot",0]
[3,"normal sommar",13,"Matpotatis",0]
[3,"normal sommar",13,"Oljelin",43]
[3,"normal sommar",13,"Spånadslin",43]
[3,"normal sommar",13,"Vall",115]
[3,"normal sommar",13,"Vårkorn",43]
[3,"normal sommar",13,"Vårraps",43]
[3,"normal sommar",13,"Vårrybs",43]
[3,"normal sommar",13,"Vårvete",49]
[3,"varm sommar",1,"Ärter",86]
[3,"varm sommar",1,"Gröngödsling",135]
[3,"varm sommar",1,"Havre",90]
[3,"varm sommar",1,"Höstkorn",72]
[3,"varm sommar",1,"Höstråg",88]
[3,"varm sommar",1,"Höstraps",88]
[3,"varm sommar",1,"Höstrybs",88]
[3,"varm sommar",1,"Höstvete",102]
[3,"varm sommar",1,"Oljelin",85]
[3,"varm sommar",1,"Rågvete",95]
[3,"varm sommar",1,"Spånadslin",81]
[3,"varm sommar",1,"Vall",135]
[3,"varm sommar",1,"Vårkorn",86]
[3,"varm sommar",1,"Vårraps",95]
[3,"varm sommar",1,"Vårrybs",91]
[3,"varm sommar",1,"Vårvete",95]
[3,"varm sommar",2,"Ärter",80]
[3,"varm sommar",2,"Gröngödsling",130]
[3,"varm sommar",2,"Havre",84]
[3,"varm sommar",2,"Höstkorn",61]
[3,"varm sommar",2,"Höstråg",77]
[3,"varm sommar",2,"Höstraps",77]
[3,"varm sommar",2,"Höstrybs",77]
[3,"varm sommar",2,"Höstvete",91]
[3,"varm sommar",2,"Oljelin",79]
[3,"varm sommar",2,"Rågvete",84]
[3,"varm sommar",2,"Spånadslin",75]
[3,"varm sommar",2,"Vall",130]
[3,"varm sommar",2,"Vårkorn",80]
[3,"varm sommar",2,"Vårraps",89]
[3,"varm sommar",2,"Vårrybs",85]
[3,"varm sommar",2,"Vårvete",88]
[3,"varm sommar",3,"Ärter",86]
[3,"varm sommar",3,"Gröngödsling",135]
[3,"varm sommar",3,"Havre",90]
[3,"varm sommar",3,"Höstkorn",72]
[3,"varm sommar",3,"Höstråg",88]
[3,"varm sommar",3,"Höstraps",88]
[3,"varm sommar",3,"Höstrybs",88]
[3,"varm sommar",3,"Höstvete",102]
[3,"varm sommar",3,"Oljelin",85]
[3,"varm sommar",3,"Rågvete",95]
[3,"varm sommar",3,"Spånadslin",81]
[3,"varm sommar",3,"Vall",135]
[3,"varm sommar",3,"Vårkorn",86]
[3,"varm sommar",3,"Vårraps",98]
[3,"varm sommar",3,"Vårrybs",91]
[3,"varm sommar",3,"Vårvete",95]
[3,"varm sommar",4,"Ärter",76]
[3,"varm sommar",4,"Gröngödsling",124]
[3,"varm sommar",4,"Havre",79]
[3,"varm sommar",4,"Höstkorn",55]
[3,"varm sommar",4,"Höstråg",71]
[3,"varm sommar",4,"Höstraps",71]
[3,"varm sommar",4,"Höstrybs",71]
[3,"varm sommar",4,"Höstvete",85]
[3,"varm sommar",4,"Oljelin",75]
[3,"varm sommar",4,"Rågvete",78]
[3,"varm sommar",4,"Spånadslin",71]
[3,"varm sommar",4,"Vall",124]
[3,"varm sommar",4,"Vårkorn",76]
[3,"varm sommar",4,"Vårraps",92]
[3,"varm sommar",4,"Vårrybs",81]
[3,"varm sommar",4,"Vårvete",85]
[3,"varm sommar",5,"Ärter",78]
[3,"varm sommar",5,"Gröngödsling",128]
[3,"varm sommar",5,"Havre",83]
[3,"varm sommar",5,"Höstkorn",59]
[3,"varm sommar",5,"Höstråg",75]
[3,"varm sommar",5,"Höstraps",75]
[3,"varm sommar",5,"Höstrybs",75]
[3,"varm sommar",5,"Höstvete",89]
[3,"varm sommar",5,"Oljelin",77]
[3,"varm sommar",5,"Rågvete",82]
[3,"varm sommar",5,"Spånadslin",73]
[3,"varm sommar",5,"Vall",128]
[3,"varm sommar",5,"Vårkorn",78]
[3,"varm sommar",5,"Vårraps",91]
[3,"varm sommar",5,"Vårrybs",83]
[3,"varm sommar",5,"Vårvete",87]
[3,"varm sommar",6,"Ärter",84]
[3,"varm sommar",6,"Gröngödsling",137]
[3,"varm sommar",6,"Havre",89]
[3,"varm sommar",6,"Höstkorn",69]
[3,"varm sommar",6,"Höstråg",85]
[3,"varm sommar",6,"Höstraps",85]
[3,"varm sommar",6,"Höstrybs",85]
[3,"varm sommar",6,"Höstvete",99]
[3,"varm sommar",6,"Oljelin",83]
[3,"varm sommar",6,"Rågvete",92]
[3,"varm sommar",6,"Spånadslin",79]
[3,"varm sommar",6,"Vall",137]
[3,"varm sommar",6,"Vårkorn",84]
[3,"varm sommar",6,"Vårraps",100]
[3,"varm sommar",6,"Vårrybs",89]
[3,"varm sommar",6,"Vårvete",93]
[3,"varm sommar",7,"Ärter",81]
[3,"varm sommar",7,"Gröngödsling",133]
[3,"varm sommar",7,"Havre",85]
[3,"varm sommar",7,"Höstkorn",64]
[3,"varm sommar",7,"Höstråg",80]
[3,"varm sommar",7,"Höstraps",80]
[3,"varm sommar",7,"Höstrybs",80]
[3,"varm sommar",7,"Höstvete",94]
[3,"varm sommar",7,"Industripot",87]
[3,"varm sommar",7,"Matpotatis",84]
[3,"varm sommar",7,"Oljelin",80]
[3,"varm sommar",7,"Rågvete",87]
[3,"varm sommar",7,"Spånadslin",76]
[3,"varm sommar",7,"Vall",133]
[3,"varm sommar",7,"Vårkorn",81]
[3,"varm sommar",7,"Vårraps",101]
[3,"varm sommar",7,"Vårrybs",86]
[3,"varm sommar",7,"Vårvete",91]
[3,"varm sommar",8,"Ärter",79]
[3,"varm sommar",8,"Gröngödsling",129]
[3,"varm sommar",8,"Havre",84]
[3,"varm sommar",8,"Höstkorn",61]
[3,"varm sommar",8,"Höstråg",77]
[3,"varm sommar",8,"Höstraps",77]
[3,"varm sommar",8,"Höstrybs",77]
[3,"varm sommar",8,"Höstvete",91]
[3,"varm sommar",8,"Industripot",69]
[3,"varm sommar",8,"Matpotatis",69]
[3,"varm sommar",8,"Oljelin",78]
[3,"varm sommar",8,"Rågvete",84]
[3,"varm sommar",8,"Spånadslin",74]
[3,"varm sommar",8,"Vall",129]
[3,"varm sommar",8,"Vårkorn",79]
[3,"varm sommar",8,"Vårraps",95]
[3,"varm sommar",8,"Vårrybs",84]
[3,"varm sommar",8,"Vårvete",88]
[3,"varm sommar",9,"Ärter",76]
[3,"varm sommar",9,"Gröngödsling",124]
[3,"varm sommar",9,"Havre",79]
[3,"varm sommar",9,"Höstkorn",55]
[3,"varm sommar",9,"Höstråg",71]
[3,"varm sommar",9,"Höstraps",71]
[3,"varm sommar",9,"Höstrybs",71]
[3,"varm sommar",9,"Höstvete",85]
[3,"varm sommar",9,"Industripot",87]
[3,"varm sommar",9,"Matpotatis",77]
[3,"varm sommar",9,"Oljelin",75]
[3,"varm sommar",9,"Rågvete",78]
[3,"varm sommar",9,"Spånadslin",71]
[3,"varm sommar",9,"Vall",124]
[3,"varm sommar",9,"Vårkorn",76]
[3,"varm sommar",9,"Vårraps",96]
[3,"varm sommar",9,"Vårrybs",81]
[3,"varm sommar",9,"Vårvete",85]
[3,"varm sommar",10,"Ärter",85]
[3,"varm sommar",10,"Gröngödsling",136]
[3,"varm sommar",10,"Havre",89]
[3,"varm sommar",10,"Höstkorn",70]
[3,"varm sommar",10,"Höstråg",86]
[3,"varm sommar",10,"Höstraps",86]
[3,"varm sommar",10,"Höstrybs",86]
[3,"varm sommar",10,"Höstvete",100]
[3,"varm sommar",10,"Industripot",90]
[3,"varm sommar",10,"Matpotatis",87]
[3,"varm sommar",10,"Oljelin",84]
[3,"varm sommar",10,"Rågvete",93]
[3,"varm sommar",10,"Spånadslin",80]
[3,"varm sommar",10,"Vall",136]
[3,"varm sommar",10,"Vårkorn",85]
[3,"varm sommar",10,"Vårraps",103]
[3,"varm sommar",10,"Vårrybs",90]
[3,"varm sommar",10,"Vårvete",94]
[3,"varm sommar",11,"Ärter",63]
[3,"varm sommar",11,"Gröngödsling",112]
[3,"varm sommar",11,"Havre",68]
[3,"varm sommar",11,"Industripot",74]
[3,"varm sommar",11,"Matpotatis",62]
[3,"varm sommar",11,"Oljelin",62]
[3,"varm sommar",11,"Spånadslin",58]
[3,"varm sommar",11,"Vall",112]
[3,"varm sommar",11,"Vårkorn",63]
[3,"varm sommar",11,"Vårraps",83]
[3,"varm sommar",11,"Vårrybs",68]
[3,"varm sommar",11,"Vårvete",72]
[3,"varm sommar",12,"Ärter",81]
[3,"varm sommar",12,"Gröngödsling",132]
[3,"varm sommar",12,"Havre",85]
[3,"varm sommar",12,"Oljelin",80]
[3,"varm sommar",12,"Spånadslin",76]
[3,"varm sommar",12,"Vall",132]
[3,"varm sommar",12,"Vårkorn",81]
[3,"varm sommar",12,"Vårraps",101]
[3,"varm sommar",12,"Vårrybs",86]
[3,"varm sommar",12,"Vårvete",91]
[3,"varm sommar",13,"Ärter",72]
[3,"varm sommar",13,"Gröngödsling",121]
[3,"varm sommar",13,"Havre",77]
[3,"varm sommar",13,"Industripot",85]
[3,"varm sommar",13,"Matpotatis",73]
[3,"varm sommar",13,"Oljelin",71]
[3,"varm sommar",13,"Spånadslin",67]
[3,"varm sommar",13,"Vall",121]
[3,"varm sommar",13,"Vårkorn",72]
[3,"varm sommar",13,"Vårraps",92]
[3,"varm sommar",13,"Vårrybs",77]
[3,"varm sommar",13,"Vårvete",81]
[4,"kall sommar",1,"Ärter",10]
[4,"kall sommar",1,"Gröngödsling",61]
[4,"kall sommar",1,"Havre",5]
[4,"kall sommar",1,"Höstkorn",61]
[4,"kall sommar",1,"Höstråg",61]
[4,"kall sommar",1,"Höstraps",61]
[4,"kall sommar",1,"Höstrybs",61]
[4,"kall sommar",1,"Höstvete",61]
[4,"kall sommar",1,"Oljelin",10]
[4,"kall sommar",1,"Rågvete",61]
[4,"kall sommar",1,"Spånadslin",10]
[4,"kall sommar",1,"Vall",61]
[4,"kall sommar",1,"Vårkorn",10]
[4,"kall sommar",1,"Vårraps",10]
[4,"kall sommar",1,"Vårrybs",10]
[4,"kall sommar",1,"Vårvete",15]
[4,"kall sommar",2,"Ärter",0]
[4,"kall sommar",2,"Gröngödsling",57]
[4,"kall sommar",2,"Havre",0]
[4,"kall sommar",2,"Höstkorn",51]
[4,"kall sommar",2,"Höstråg",51]
[4,"kall sommar",2,"Höstraps",51]
[4,"kall sommar",2,"Höstrybs",51]
[4,"kall sommar",2,"Höstvete",51]
[4,"kall sommar",2,"Oljelin",0]
[4,"kall sommar",2,"Rågvete",51]
[4,"kall sommar",2,"Spånadslin",0]
[4,"kall sommar",2,"Vall",57]
[4,"kall sommar",2,"Vårkorn",0]
[4,"kall sommar",2,"Vårraps",0]
[4,"kall sommar",2,"Vårrybs",0]
[4,"kall sommar",2,"Vårvete",0]
[4,"kall sommar",3,"Ärter",10]
[4,"kall sommar",3,"Gröngödsling",61]
[4,"kall sommar",3,"Havre",5]
[4,"kall sommar",3,"Höstkorn",61]
[4,"kall sommar",3,"Höstråg",61]
[4,"kall sommar",3,"Höstraps",61]
[4,"kall sommar",3,"Höstrybs",61]
[4,"kall sommar",3,"Höstvete",61]
[4,"kall sommar",3,"Oljelin",10]
[4,"kall sommar",3,"Rågvete",61]
[4,"kall sommar",3,"Spånadslin",10]
[4,"kall sommar",3,"Vall",61]
[4,"kall sommar",3,"Vårkorn",10]
[4,"kall sommar",3,"Vårraps",10]
[4,"kall sommar",3,"Vårrybs",10]
[4,"kall sommar",3,"Vårvete",15]
[4,"kall sommar",4,"Ärter",0]
[4,"kall sommar",4,"Gröngödsling",43]
[4,"kall sommar",4,"Havre",0]
[4,"kall sommar",4,"Höstkorn",41]
[4,"kall sommar",4,"Höstråg",41]
[4,"kall sommar",4,"Höstraps",41]
[4,"kall sommar",4,"Höstrybs",41]
[4,"kall sommar",4,"Höstvete",41]
[4,"kall sommar",4,"Oljelin",0]
[4,"kall sommar",4,"Rågvete",41]
[4,"kall sommar",4,"Spånadslin",0]
[4,"kall sommar",4,"Vall",43]
[4,"kall sommar",4,"Vårkorn",0]
[4,"kall sommar",4,"Vårraps",0]
[4,"kall sommar",4,"Vårrybs",0]
[4,"kall sommar",4,"Vårvete",0]
[4,"kall sommar",5,"Ärter",0]
[4,"kall sommar",5,"Gröngödsling",54]
[4,"kall sommar",5,"Havre",0]
[4,"kall sommar",5,"Höstkorn",50]
[4,"kall sommar",5,"Höstråg",50]
[4,"kall sommar",5,"Höstraps",50]
[4,"kall sommar",5,"Höstrybs",50]
[4,"kall sommar",5,"Höstvete",50]
[4,"kall sommar",5,"Oljelin",0]
[4,"kall sommar",5,"Rågvete",50]
[4,"kall sommar",5,"Spånadslin",0]
[4,"kall sommar",5,"Vall",54]
[4,"kall sommar",5,"Vårkorn",0]
[4,"kall sommar",5,"Vårraps",0]
[4,"kall sommar",5,"Vårrybs",0]
[4,"kall sommar",5,"Vårvete",0]
[4,"kall sommar",6,"Ärter",2]
[4,"kall sommar",6,"Gröngödsling",61]
[4,"kall sommar",6,"Havre",1]
[4,"kall sommar",6,"Höstkorn",59]
[4,"kall sommar",6,"Höstråg",60]
[4,"kall sommar",6,"Höstraps",60]
[4,"kall sommar",6,"Höstrybs",60]
[4,"kall sommar",6,"Höstvete",60]
[4,"kall sommar",6,"Oljelin",2]
[4,"kall sommar",6,"Rågvete",60]
[4,"kall sommar",6,"Spånadslin",2]
[4,"kall sommar",6,"Vall",61]
[4,"kall sommar",6,"Vårkorn",2]
[4,"kall sommar",6,"Vårraps",2]
[4,"kall sommar",6,"Vårrybs",2]
[4,"kall sommar",6,"Vårvete",5]
[4,"kall sommar",7,"Ärter",0]
[4,"kall sommar",7,"Gröngödsling",60]
[4,"kall sommar",7,"Havre",0]
[4,"kall sommar",7,"Höstkorn",60]
[4,"kall sommar",7,"Höstråg",61]
[4,"kall sommar",7,"Höstraps",61]
[4,"kall sommar",7,"Höstrybs",61]
[4,"kall sommar",7,"Höstvete",61]
[4,"kall sommar",7,"Industripot",0]
[4,"kall sommar",7,"Matpotatis",0]
[4,"kall sommar",7,"Oljelin",0]
[4,"kall sommar",7,"Rågvete",61]
[4,"kall sommar",7,"Spånadslin",0]
[4,"kall sommar",7,"Vall",60]
[4,"kall sommar",7,"Vårkorn",0]
[4,"kall sommar",7,"Vårraps",0]
[4,"kall sommar",7,"Vårrybs",0]
[4,"kall sommar",7,"Vårvete",0]
[4,"kall sommar",8,"Ärter",0]
[4,"kall sommar",8,"Gröngödsling",57]
[4,"kall sommar",8,"Havre",0]
[4,"kall sommar",8,"Höstkorn",55]
[4,"kall sommar",8,"Höstråg",56]
[4,"kall sommar",8,"Höstraps",56]
[4,"kall sommar",8,"Höstrybs",56]
[4,"kall sommar",8,"Höstvete",56]
[4,"kall sommar",8,"Industripot",0]
[4,"kall sommar",8,"Matpotatis",0]
[4,"kall sommar",8,"Oljelin",0]
[4,"kall sommar",8,"Rågvete",56]
[4,"kall sommar",8,"Spånadslin",0]
[4,"kall sommar",8,"Vall",57]
[4,"kall sommar",8,"Vårkorn",0]
[4,"kall sommar",8,"Vårraps",0]
[4,"kall sommar",8,"Vårrybs",0]
[4,"kall sommar",8,"Vårvete",0]
[4,"kall sommar",9,"Ärter",0]
[4,"kall sommar",9,"Gröngödsling",42]
[4,"kall sommar",9,"Havre",0]
[4,"kall sommar",9,"Höstkorn",44]
[4,"kall sommar",9,"Höstråg",44]
[4,"kall sommar",9,"Höstraps",44]
[4,"kall sommar",9,"Höstrybs",44]
[4,"kall sommar",9,"Höstvete",44]
[4,"kall sommar",9,"Industripot",0]
[4,"kall sommar",9,"Matpotatis",0]
[4,"kall sommar",9,"Oljelin",0]
[4,"kall sommar",9,"Rågvete",44]
[4,"kall sommar",9,"Spånadslin",0]
[4,"kall sommar",9,"Vall",42]
[4,"kall sommar",9,"Vårkorn",0]
[4,"kall sommar",9,"Vårraps",0]
[4,"kall sommar",9,"Vårrybs",0]
[4,"kall sommar",9,"Vårvete",0]
[4,"kall sommar",10,"Ärter",5]
[4,"kall sommar",10,"Gröngödsling",61]
[4,"kall sommar",10,"Havre",2]
[4,"kall sommar",10,"Höstkorn",62]
[4,"kall sommar",10,"Höstråg",63]
[4,"kall sommar",10,"Höstraps",63]
[4,"kall sommar",10,"Höstrybs",63]
[4,"kall sommar",10,"Höstvete",63]
[4,"kall sommar",10,"Industripot",0]
[4,"kall sommar",10,"Matpotatis",0]
[4,"kall sommar",10,"Oljelin",5]
[4,"kall sommar",10,"Rågvete",63]
[4,"kall sommar",10,"Spånadslin",5]
[4,"kall sommar",10,"Vall",61]
[4,"kall sommar",10,"Vårkorn",5]
[4,"kall sommar",10,"Vårraps",5]
[4,"kall sommar",10,"Vårrybs",5]
[4,"kall sommar",10,"Vårvete",10]
[4,"kall sommar",11,"Ärter",0]
[4,"kall sommar",11,"Gröngödsling",0]
[4,"kall sommar",11,"Havre",0]
[4,"kall sommar",11,"Industripot",0]
[4,"kall sommar",11,"Matpotatis",0]
[4,"kall sommar",11,"Oljelin",0]
[4,"kall sommar",11,"Spånadslin",0]
[4,"kall sommar",11,"Vall",0]
[4,"kall sommar",11,"Vårkorn",0]
[4,"kall sommar",11,"Vårraps",0]
[4,"kall sommar",11,"Vårrybs",0]
[4,"kall sommar",11,"Vårvete",0]
[4,"kall sommar",12,"Ärter",0]
[4,"kall sommar",12,"Gröngödsling",60]
[4,"kall sommar",12,"Havre",0]
[4,"kall sommar",12,"Oljelin",0]
[4,"kall sommar",12,"Spånadslin",0]
[4,"kall sommar",12,"Vall",60]
[4,"kall sommar",12,"Vårkorn",0]
[4,"kall sommar",12,"Vårraps",0]
[4,"kall sommar",12,"Vårrybs",0]
[4,"kall sommar",12,"Vårvete",0]
[4,"kall sommar",13,"Ärter",0]
[4,"kall sommar",13,"Gröngödsling",14]
[4,"kall sommar",13,"Havre",0]
[4,"kall sommar",13,"Industripot",0]
[4,"kall sommar",13,"Matpotatis",0]
[4,"kall sommar",13,"Oljelin",0]
[4,"kall sommar",13,"Spånadslin",0]
[4,"kall sommar",13,"Vall",14]
[4,"kall sommar",13,"Vårkorn",0]
[4,"kall sommar",13,"Vårraps",0]
[4,"kall sommar",13,"Vårrybs",0]
[4,"kall sommar",13,"Vårvete",0]
[4,"normal sommar",1,"Ärter",76]
[4,"normal sommar",1,"Gröngödsling",131]
[4,"normal sommar",1,"Havre",75]
[4,"normal sommar",1,"Höstkorn",71]
[4,"normal sommar",1,"Höstråg",88]
[4,"normal sommar",1,"Höstraps",88]
[4,"normal sommar",1,"Höstrybs",88]
[4,"normal sommar",1,"Höstvete",95]
[4,"normal sommar",1,"Oljelin",76]
[4,"normal sommar",1,"Rågvete",93]
[4,"normal sommar",1,"Spånadslin",76]
[4,"normal sommar",1,"Vall",131]
[4,"normal sommar",1,"Vårkorn",76]
[4,"normal sommar",1,"Vårraps",76]
[4,"normal sommar",1,"Vårrybs",76]
[4,"normal sommar",1,"Vårvete",77]
[4,"normal sommar",2,"Ärter",64]
[4,"normal sommar",2,"Gröngödsling",132]
[4,"normal sommar",2,"Havre",65]
[4,"normal sommar",2,"Höstkorn",61]
[4,"normal sommar",2,"Höstråg",78]
[4,"normal sommar",2,"Höstraps",78]
[4,"normal sommar",2,"Höstrybs",78]
[4,"normal sommar",2,"Höstvete",90]
[4,"normal sommar",2,"Oljelin",64]
[4,"normal sommar",2,"Rågvete",85]
[4,"normal sommar",2,"Spånadslin",64]
[4,"normal sommar",2,"Vall",132]
[4,"normal sommar",2,"Vårkorn",64]
[4,"normal sommar",2,"Vårraps",64]
[4,"normal sommar",2,"Vårrybs",64]
[4,"normal sommar",2,"Vårvete",63]
[4,"normal sommar",3,"Ärter",76]
[4,"normal sommar",3,"Gröngödsling",131]
[4,"normal sommar",3,"Havre",75]
[4,"normal sommar",3,"Höstkorn",71]
[4,"normal sommar",3,"Höstråg",88]
[4,"normal sommar",3,"Höstraps",88]
[4,"normal sommar",3,"Höstrybs",88]
[4,"normal sommar",3,"Höstvete",98]
[4,"normal sommar",3,"Oljelin",76]
[4,"normal sommar",3,"Rågvete",93]
[4,"normal sommar",3,"Spånadslin",76]
[4,"normal sommar",3,"Vall",131]
[4,"normal sommar",3,"Vårkorn",76]
[4,"normal sommar",3,"Vårraps",76]
[4,"normal sommar",3,"Vårrybs",76]
[4,"normal sommar",3,"Vårvete",77]
[4,"normal sommar",4,"Ärter",58]
[4,"normal sommar",4,"Gröngödsling",127]
[4,"normal sommar",4,"Havre",56]
[4,"normal sommar",4,"Höstkorn",56]
[4,"normal sommar",4,"Höstråg",73]
[4,"normal sommar",4,"Höstraps",73]
[4,"normal sommar",4,"Höstrybs",73]
[4,"normal sommar",4,"Höstvete",85]
[4,"normal sommar",4,"Oljelin",58]
[4,"normal sommar",4,"Rågvete",80]
[4,"normal sommar",4,"Spånadslin",58]
[4,"normal sommar",4,"Vall",127]
[4,"normal sommar",4,"Vårkorn",58]
[4,"normal sommar",4,"Vårraps",58]
[4,"normal sommar",4,"Vårrybs",58]
[4,"normal sommar",4,"Vårvete",59]
[4,"normal sommar",5,"Ärter",65]
[4,"normal sommar",5,"Gröngödsling",130]
[4,"normal sommar",5,"Havre",63]
[4,"normal sommar",5,"Höstkorn",60]
[4,"normal sommar",5,"Höstråg",77]
[4,"normal sommar",5,"Höstraps",77]
[4,"normal sommar",5,"Höstrybs",77]
[4,"normal sommar",5,"Höstvete",89]
[4,"normal sommar",5,"Oljelin",65]
[4,"normal sommar",5,"Rågvete",84]
[4,"normal sommar",5,"Spånadslin",65]
[4,"normal sommar",5,"Vall",130]
[4,"normal sommar",5,"Vårkorn",65]
[4,"normal sommar",5,"Vårraps",65]
[4,"normal sommar",5,"Vårrybs",65]
[4,"normal sommar",5,"Vårvete",64]
[4,"normal sommar",6,"Ärter",74]
[4,"normal sommar",6,"Gröngödsling",134]
[4,"normal sommar",6,"Havre",73]
[4,"normal sommar",6,"Höstkorn",67]
[4,"normal sommar",6,"Höstråg",84]
[4,"normal sommar",6,"Höstraps",84]
[4,"normal sommar",6,"Höstrybs",84]
[4,"normal sommar",6,"Höstvete",96]
[4,"normal sommar",6,"Oljelin",74]
[4,"normal sommar",6,"Rågvete",91]
[4,"normal sommar",6,"Spånadslin",74]
[4,"normal sommar",6,"Vall",134]
[4,"normal sommar",6,"Vårkorn",74]
[4,"normal sommar",6,"Vårraps",74]
[4,"normal sommar",6,"Vårrybs",74]
[4,"normal sommar",6,"Vårvete",75]
[4,"normal sommar",7,"Ärter",77]
[4,"normal sommar",7,"Gröngödsling",134]
[4,"normal sommar",7,"Havre",75]
[4,"normal sommar",7,"Höstkorn",64]
[4,"normal sommar",7,"Höstråg",81]
[4,"normal sommar",7,"Höstraps",81]
[4,"normal sommar",7,"Höstrybs",81]
[4,"normal sommar",7,"Höstvete",94]
[4,"normal sommar",7,"Industripot",16]
[4,"normal sommar",7,"Matpotatis",16]
[4,"normal sommar",7,"Oljelin",77]
[4,"normal sommar",7,"Rågvete",88]
[4,"normal sommar",7,"Spånadslin",77]
[4,"normal sommar",7,"Vall",134]
[4,"normal sommar",7,"Vårkorn",77]
[4,"normal sommar",7,"Vårraps",77]
[4,"normal sommar",7,"Vårrybs",77]
[4,"normal sommar",7,"Vårvete",76]
[4,"normal sommar",8,"Ärter",68]
[4,"normal sommar",8,"Gröngödsling",132]
[4,"normal sommar",8,"Havre",66]
[4,"normal sommar",8,"Höstkorn",61]
[4,"normal sommar",8,"Höstråg",78]
[4,"normal sommar",8,"Höstraps",78]
[4,"normal sommar",8,"Höstrybs",78]
[4,"normal sommar",8,"Höstvete",91]
[4,"normal sommar",8,"Industripot",0]
[4,"normal sommar",8,"Matpotatis",0]
[4,"normal sommar",8,"Oljelin",68]
[4,"normal sommar",8,"Rågvete",85]
[4,"normal sommar",8,"Spånadslin",68]
[4,"normal sommar",8,"Vall",132]
[4,"normal sommar",8,"Vårkorn",68]
[4,"normal sommar",8,"Vårraps",68]
[4,"normal sommar",8,"Vårrybs",68]
[4,"normal sommar",8,"Vårvete",70]
[4,"normal sommar",9,"Ärter",62]
[4,"normal sommar",9,"Gröngödsling",126]
[4,"normal sommar",9,"Havre",59]
[4,"normal sommar",9,"Höstkorn",55]
[4,"normal sommar",9,"Höstråg",72]
[4,"normal sommar",9,"Höstraps",72]
[4,"normal sommar",9,"Höstrybs",72]
[4,"normal sommar",9,"Höstvete",85]
[4,"normal sommar",9,"Industripot",0]
[4,"normal sommar",9,"Matpotatis",0]
[4,"normal sommar",9,"Oljelin",62]
[4,"normal sommar",9,"Rågvete",79]
[4,"normal sommar",9,"Spånadslin",62]
[4,"normal sommar",9,"Vall",126]
[4,"normal sommar",9,"Vårkorn",62]
[4,"normal sommar",9,"Vårraps",62]
[4,"normal sommar",9,"Vårrybs",62]
[4,"normal sommar",9,"Vårvete",64]
[4,"normal sommar",10,"Ärter",79]
[4,"normal sommar",10,"Gröngödsling",135]
[4,"normal sommar",10,"Havre",80]
[4,"normal sommar",10,"Höstkorn",68]
[4,"normal sommar",10,"Höstråg",85]
[4,"normal sommar",10,"Höstraps",85]
[4,"normal sommar",10,"Höstrybs",85]
[4,"normal sommar",10,"Höstvete",97]
[4,"normal sommar",10,"Industripot",45]
[4,"normal sommar",10,"Matpotatis",45]
[4,"normal sommar",10,"Oljelin",79]
[4,"normal sommar",10,"Rågvete",92]
[4,"normal sommar",10,"Spånadslin",79]
[4,"normal sommar",10,"Vall",135]
[4,"normal sommar",10,"Vårkorn",79]
[4,"normal sommar",10,"Vårraps",79]
[4,"normal sommar",10,"Vårrybs",79]
[4,"normal sommar",10,"Vårvete",77]
[4,"normal sommar",11,"Ärter",0]
[4,"normal sommar",11,"Gröngödsling",106]
[4,"normal sommar",11,"Havre",0]
[4,"normal sommar",11,"Industripot",0]
[4,"normal sommar",11,"Matpotatis",0]
[4,"normal sommar",11,"Oljelin",0]
[4,"normal sommar",11,"Spånadslin",0]
[4,"normal sommar",11,"Vall",106]
[4,"normal sommar",11,"Vårkorn",0]
[4,"normal sommar",11,"Vårraps",0]
[4,"normal sommar",11,"Vårrybs",0]
[4,"normal sommar",11,"Vårvete",1]
[4,"normal sommar",12,"Ärter",78]
[4,"normal sommar",12,"Gröngödsling",134]
[4,"normal sommar",12,"Havre",77]
[4,"normal sommar",12,"Oljelin",81]
[4,"normal sommar",12,"Spånadslin",78]
[4,"normal sommar",12,"Vall",134]
[4,"normal sommar",12,"Vårkorn",78]
[4,"normal sommar",12,"Vårraps",84]
[4,"normal sommar",12,"Vårrybs",82]
[4,"normal sommar",12,"Vårvete",80]
[4,"normal sommar",13,"Ärter",52]
[4,"normal sommar",13,"Gröngödsling",121]
[4,"normal sommar",13,"Havre",50]
[4,"normal sommar",13,"Industripot",0]
[4,"normal sommar",13,"Matpotatis",0]
[4,"normal sommar",13,"Oljelin",52]
[4,"normal sommar",13,"Spånadslin",52]
[4,"normal sommar",13,"Vall",121]
[4,"normal sommar",13,"Vårkorn",52]
[4,"normal sommar",13,"Vårraps",52]
[4,"normal sommar",13,"Vårrybs",52]
[4,"normal sommar",13,"Vårvete",55]
[4,"varm sommar",1,"Ärter",87]
[4,"varm sommar",1,"Gröngödsling",141]
[4,"varm sommar",1,"Havre",88]
[4,"varm sommar",1,"Höstkorn",71]
[4,"varm sommar",1,"Höstråg",88]
[4,"varm sommar",1,"Höstraps",88]
[4,"varm sommar",1,"Höstrybs",88]
[4,"varm sommar",1,"Höstvete",101]
[4,"varm sommar",1,"Oljelin",91]
[4,"varm sommar",1,"Rågvete",95]
[4,"varm sommar",1,"Spånadslin",87]
[4,"varm sommar",1,"Vall",141]
[4,"varm sommar",1,"Vårkorn",87]
[4,"varm sommar",1,"Vårraps",101]
[4,"varm sommar",1,"Vårrybs",92]
[4,"varm sommar",1,"Vårvete",92]
[4,"varm sommar",2,"Ärter",81]
[4,"varm sommar",2,"Gröngödsling",132]
[4,"varm sommar",2,"Havre",82]
[4,"varm sommar",2,"Höstkorn",61]
[4,"varm sommar",2,"Höstråg",78]
[4,"varm sommar",2,"Höstraps",78]
[4,"varm sommar",2,"Höstrybs",78]
[4,"varm sommar",2,"Höstvete",91]
[4,"varm sommar",2,"Oljelin",85]
[4,"varm sommar",2,"Rågvete",85]
[4,"varm sommar",2,"Spånadslin",81]
[4,"varm sommar",2,"Vall",132]
[4,"varm sommar",2,"Vårkorn",81]
[4,"varm sommar",2,"Vårraps",94]
[4,"varm sommar",2,"Vårrybs",86]
[4,"varm sommar",2,"Vårvete",86]
[4,"varm sommar",3,"Ärter",87]
[4,"varm sommar",3,"Gröngödsling",141]
[4,"varm sommar",3,"Havre",88]
[4,"varm sommar",3,"Höstkorn",71]
[4,"varm sommar",3,"Höstråg",88]
[4,"varm sommar",3,"Höstraps",88]
[4,"varm sommar",3,"Höstrybs",88]
[4,"varm sommar",3,"Höstvete",101]
[4,"varm sommar",3,"Oljelin",91]
[4,"varm sommar",3,"Rågvete",95]
[4,"varm sommar",3,"Spånadslin",87]
[4,"varm sommar",3,"Vall",141]
[4,"varm sommar",3,"Vårkorn",87]
[4,"varm sommar",3,"Vårraps",101]
[4,"varm sommar",3,"Vårrybs",92]
[4,"varm sommar",3,"Vårvete",92]
[4,"varm sommar",4,"Ärter",76]
[4,"varm sommar",4,"Gröngödsling",127]
[4,"varm sommar",4,"Havre",78]
[4,"varm sommar",4,"Höstkorn",57]
[4,"varm sommar",4,"Höstråg",74]
[4,"varm sommar",4,"Höstraps",74]
[4,"varm sommar",4,"Höstrybs",74]
[4,"varm sommar",4,"Höstvete",87]
[4,"varm sommar",4,"Oljelin",80]
[4,"varm sommar",4,"Rågvete",81]
[4,"varm sommar",4,"Spånadslin",76]
[4,"varm sommar",4,"Vall",127]
[4,"varm sommar",4,"Vårkorn",76]
[4,"varm sommar",4,"Vårraps",90]
[4,"varm sommar",4,"Vårrybs",81]
[4,"varm sommar",4,"Vårvete",82]
[4,"varm sommar",5,"Ärter",80]
[4,"varm sommar",5,"Gröngödsling",130]
[4,"varm sommar",5,"Havre",81]
[4,"varm sommar",5,"Höstkorn",60]
[4,"varm sommar",5,"Höstråg",77]
[4,"varm sommar",5,"Höstraps",77]
[4,"varm sommar",5,"Höstrybs",77]
[4,"varm sommar",5,"Höstvete",90]
[4,"varm sommar",5,"Oljelin",84]
[4,"varm sommar",5,"Rågvete",84]
[4,"varm sommar",5,"Spånadslin",80]
[4,"varm sommar",5,"Vall",130]
[4,"varm sommar",5,"Vårkorn",80]
[4,"varm sommar",5,"Vårraps",94]
[4,"varm sommar",5,"Vårrybs",85]
[4,"varm sommar",5,"Vårvete",85]
[4,"varm sommar",6,"Ärter",85]
[4,"varm sommar",6,"Gröngödsling",137]
[4,"varm sommar",6,"Havre",87]
[4,"varm sommar",6,"Höstkorn",67]
[4,"varm sommar",6,"Höstråg",84]
[4,"varm sommar",6,"Höstraps",84]
[4,"varm sommar",6,"Höstrybs",84]
[4,"varm sommar",6,"Höstvete",97]
[4,"varm sommar",6,"Oljelin",89]
[4,"varm sommar",6,"Rågvete",91]
[4,"varm sommar",6,"Spånadslin",85]
[4,"varm sommar",6,"Vall",137]
[4,"varm sommar",6,"Vårkorn",85]
[4,"varm sommar",6,"Vårraps",99]
[4,"varm sommar",6,"Vårrybs",90]
[4,"varm sommar",6,"Vårvete",90]
[4,"varm sommar",7,"Ärter",82]
[4,"varm sommar",7,"Gröngödsling",134]
[4,"varm sommar",7,"Havre",83]
[4,"varm sommar",7,"Höstkorn",64]
[4,"varm sommar",7,"Höstråg",81]
[4,"varm sommar",7,"Höstraps",81]
[4,"varm sommar",7,"Höstrybs",81]
[4,"varm sommar",7,"Höstvete",94]
[4,"varm sommar",7,"Industripot",86]
[4,"varm sommar",7,"Matpotatis",74]
[4,"varm sommar",7,"Oljelin",86]
[4,"varm sommar",7,"Rågvete",88]
[4,"varm sommar",7,"Spånadslin",82]
[4,"varm sommar",7,"Vall",134]
[4,"varm sommar",7,"Vårkorn",82]
[4,"varm sommar",7,"Vårraps",102]
[4,"varm sommar",7,"Vårrybs",87]
[4,"varm sommar",7,"Vårvete",87]
[4,"varm sommar",8,"Ärter",81]
[4,"varm sommar",8,"Gröngödsling",132]
[4,"varm sommar",8,"Havre",82]
[4,"varm sommar",8,"Höstkorn",61]
[4,"varm sommar",8,"Höstråg",78]
[4,"varm sommar",8,"Höstraps",78]
[4,"varm sommar",8,"Höstrybs",78]
[4,"varm sommar",8,"Höstvete",91]
[4,"varm sommar",8,"Industripot",63]
[4,"varm sommar",8,"Matpotatis",63]
[4,"varm sommar",8,"Oljelin",85]
[4,"varm sommar",8,"Rågvete",85]
[4,"varm sommar",8,"Spånadslin",81]
[4,"varm sommar",8,"Vall",132]
[4,"varm sommar",8,"Vårkorn",81]
[4,"varm sommar",8,"Vårraps",97]
[4,"varm sommar",8,"Vårrybs",86]
[4,"varm sommar",8,"Vårvete",86]
[4,"varm sommar",9,"Ärter",76]
[4,"varm sommar",9,"Gröngödsling",127]
[4,"varm sommar",9,"Havre",78]
[4,"varm sommar",9,"Höstkorn",56]
[4,"varm sommar",9,"Höstråg",73]
[4,"varm sommar",9,"Höstraps",73]
[4,"varm sommar",9,"Höstrybs",73]
[4,"varm sommar",9,"Höstvete",86]
[4,"varm sommar",9,"Industripot",79]
[4,"varm sommar",9,"Matpotatis",67]
[4,"varm sommar",9,"Oljelin",80]
[4,"varm sommar",9,"Rågvete",80]
[4,"varm sommar",9,"Spånadslin",76]
[4,"varm sommar",9,"Vall",127]
[4,"varm sommar",9,"Vårkorn",76]
[4,"varm sommar",9,"Vårraps",96]
[4,"varm sommar",9,"Vårrybs",81]
[4,"varm sommar",9,"Vårvete",82]
[4,"varm sommar",10,"Ärter",86]
[4,"varm sommar",10,"Gröngödsling",139]
[4,"varm sommar",10,"Havre",87]
[4,"varm sommar",10,"Höstkorn",68]
[4,"varm sommar",10,"Höstråg",85]
[4,"varm sommar",10,"Höstraps",85]
[4,"varm sommar",10,"Höstrybs",85]
[4,"varm sommar",10,"Höstvete",98]
[4,"varm sommar",10,"Industripot",89]
[4,"varm sommar",10,"Matpotatis",77]
[4,"varm sommar",10,"Oljelin",90]
[4,"varm sommar",10,"Rågvete",92]
[4,"varm sommar",10,"Spånadslin",86]
[4,"varm sommar",10,"Vall",139]
[4,"varm sommar",10,"Vårkorn",86]
[4,"varm sommar",10,"Vårraps",106]
[4,"varm sommar",10,"Vårrybs",91]
[4,"varm sommar",10,"Vårvete",91]
[4,"varm sommar",11,"Ärter",65]
[4,"varm sommar",11,"Gröngödsling",115]
[4,"varm sommar",11,"Havre",67]
[4,"varm sommar",11,"Industripot",62]
[4,"varm sommar",11,"Matpotatis",50]
[4,"varm sommar",11,"Oljelin",69]
[4,"varm sommar",11,"Spånadslin",65]
[4,"varm sommar",11,"Vall",115]
[4,"varm sommar",11,"Vårkorn",65]
[4,"varm sommar",11,"Vårraps",85]
[4,"varm sommar",11,"Vårrybs",70]
[4,"varm sommar",11,"Vårvete",70]
[4,"varm sommar",12,"Ärter",82]
[4,"varm sommar",12,"Gröngödsling",134]
[4,"varm sommar",12,"Havre",83]
[4,"varm sommar",12,"Oljelin",86]
[4,"varm sommar",12,"Spånadslin",82]
[4,"varm sommar",12,"Vall",134]
[4,"varm sommar",12,"Vårkorn",82]
[4,"varm sommar",12,"Vårraps",102]
[4,"varm sommar",12,"Vårrybs",87]
[4,"varm sommar",12,"Vårvete",87]
[4,"varm sommar",13,"Ärter",74]
[4,"varm sommar",13,"Gröngödsling",123]
[4,"varm sommar",13,"Havre",75]
[4,"varm sommar",13,"Industripot",74]
[4,"varm sommar",13,"Matpotatis",62]
[4,"varm sommar",13,"Oljelin",78]
[4,"varm sommar",13,"Spånadslin",74]
[4,"varm sommar",13,"Vall",123]
[4,"varm sommar",13,"Vårkorn",74]
[4,"varm sommar",13,"Vårraps",94]
[4,"varm sommar",13,"Vårrybs",79]
[4,"varm sommar",13,"Vårvete",79]
[5,"kall sommar",1,"Ärter",0]
[5,"kall sommar",1,"Gröngödsling",0]
[5,"kall sommar",1,"Havre",0]
[5,"kall sommar",1,"Höstkorn",0]
[5,"kall sommar",1,"Höstråg",0]
[5,"kall sommar",1,"Höstraps",0]
[5,"kall sommar",1,"Höstrybs",0]
[5,"kall sommar",1,"Höstvete",0]
[5,"kall sommar",1,"Oljelin",0]
[5,"kall sommar",1,"Rågvete",0]
[5,"kall sommar",1,"Spånadslin",0]
[5,"kall sommar",1,"Vall",0]
[5,"kall sommar",1,"Vårkorn",0]
[5,"kall sommar",1,"Vårraps",0]
[5,"kall sommar",1,"Vårrybs",0]
[5,"kall sommar",1,"Vårvete",0]
[5,"kall sommar",2,"Ärter",0]
[5,"kall sommar",2,"Gröngödsling",0]
[5,"kall sommar",2,"Havre",0]
[5,"kall sommar",2,"Höstkorn",0]
[5,"kall sommar",2,"Höstråg",0]
[5,"kall sommar",2,"Höstraps",0]
[5,"kall sommar",2,"Höstrybs",0]
[5,"kall sommar",2,"Höstvete",0]
[5,"kall sommar",2,"Oljelin",0]
[5,"kall sommar",2,"Rågvete",0]
[5,"kall sommar",2,"Spånadslin",0]
[5,"kall sommar",2,"Vall",0]
[5,"kall sommar",2,"Vårkorn",0]
[5,"kall sommar",2,"Vårraps",0]
[5,"kall sommar",2,"Vårrybs",0]
[5,"kall sommar",2,"Vårvete",0]
[5,"kall sommar",3,"Ärter",0]
[5,"kall sommar",3,"Gröngödsling",0]
[5,"kall sommar",3,"Havre",0]
[5,"kall sommar",3,"Höstkorn",0]
[5,"kall sommar",3,"Höstråg",0]
[5,"kall sommar",3,"Höstraps",0]
[5,"kall sommar",3,"Höstrybs",0]
[5,"kall sommar",3,"Höstvete",0]
[5,"kall sommar",3,"Oljelin",0]
[5,"kall sommar",3,"Rågvete",0]
[5,"kall sommar",3,"Spånadslin",0]
[5,"kall sommar",3,"Vall",0]
[5,"kall sommar",3,"Vårkorn",0]
[5,"kall sommar",3,"Vårraps",0]
[5,"kall sommar",3,"Vårrybs",0]
[5,"kall sommar",3,"Vårvete",0]
[5,"kall sommar",4,"Ärter",0]
[5,"kall sommar",4,"Gröngödsling",0]
[5,"kall sommar",4,"Havre",0]
[5,"kall sommar",4,"Höstkorn",0]
[5,"kall sommar",4,"Höstråg",0]
[5,"kall sommar",4,"Höstraps",0]
[5,"kall sommar",4,"Höstrybs",0]
[5,"kall sommar",4,"Höstvete",0]
[5,"kall sommar",4,"Oljelin",0]
[5,"kall sommar",4,"Rågvete",0]
[5,"kall sommar",4,"Spånadslin",0]
[5,"kall sommar",4,"Vall",0]
[5,"kall sommar",4,"Vårkorn",0]
[5,"kall sommar",4,"Vårraps",0]
[5,"kall sommar",4,"Vårrybs",0]
[5,"kall sommar",4,"Vårvete",0]
[5,"kall sommar",5,"Ärter",0]
[5,"kall sommar",5,"Gröngödsling",0]
[5,"kall sommar",5,"Havre",0]
[5,"kall sommar",5,"Höstkorn",0]
[5,"kall sommar",5,"Höstråg",0]
[5,"kall sommar",5,"Höstraps",0]
[5,"kall sommar",5,"Höstrybs",0]
[5,"kall sommar",5,"Höstvete",0]
[5,"kall sommar",5,"Oljelin",0]
[5,"kall sommar",5,"Rågvete",0]
[5,"kall sommar",5,"Sockerbetor",0]
[5,"kall sommar",5,"Spånadslin",0]
[5,"kall sommar",5,"Vall",0]
[5,"kall sommar",5,"Vårkorn",0]
[5,"kall sommar",5,"Vårraps",0]
[5,"kall sommar",5,"Vårrybs",0]
[5,"kall sommar",5,"Vårvete",0]
[5,"kall sommar",6,"Ärter",0]
[5,"kall sommar",6,"Gröngödsling",0]
[5,"kall sommar",6,"Havre",0]
[5,"kall sommar",6,"Höstkorn",0]
[5,"kall sommar",6,"Höstråg",0]
[5,"kall sommar",6,"Höstraps",0]
[5,"kall sommar",6,"Höstrybs",0]
[5,"kall sommar",6,"Höstvete",0]
[5,"kall sommar",6,"Oljelin",0]
[5,"kall sommar",6,"Rågvete",0]
[5,"kall sommar",6,"Sockerbetor",0]
[5,"kall sommar",6,"Spånadslin",0]
[5,"kall sommar",6,"Vall",0]
[5,"kall sommar",6,"Vårkorn",0]
[5,"kall sommar",6,"Vårraps",0]
[5,"kall sommar",6,"Vårrybs",0]
[5,"kall sommar",6,"Vårvete",0]
[5,"kall sommar",7,"Ärter",0]
[5,"kall sommar",7,"Gröngödsling",0]
[5,"kall sommar",7,"Havre",0]
[5,"kall sommar",7,"Höstkorn",0]
[5,"kall sommar",7,"Höstråg",0]
[5,"kall sommar",7,"Höstraps",0]
[5,"kall sommar",7,"Höstrybs",0]
[5,"kall sommar",7,"Höstvete",0]
[5,"kall sommar",7,"Industripot",0]
[5,"kall sommar",7,"Matpotatis",0]
[5,"kall sommar",7,"Oljelin",0]
[5,"kall sommar",7,"Rågvete",0]
[5,"kall sommar",7,"Sockerbetor",0]
[5,"kall sommar",7,"Spånadslin",0]
[5,"kall sommar",7,"Vall",0]
[5,"kall sommar",7,"Vårkorn",0]
[5,"kall sommar",7,"Vårraps",0]
[5,"kall sommar",7,"Vårrybs",0]
[5,"kall sommar",7,"Vårvete",0]
[5,"kall sommar",8,"Ärter",0]
[5,"kall sommar",8,"Gröngödsling",0]
[5,"kall sommar",8,"Havre",0]
[5,"kall sommar",8,"Höstkorn",0]
[5,"kall sommar",8,"Höstråg",0]
[5,"kall sommar",8,"Höstraps",0]
[5,"kall sommar",8,"Höstrybs",0]
[5,"kall sommar",8,"Höstvete",0]
[5,"kall sommar",8,"Industripot",0]
[5,"kall sommar",8,"Matpotatis",0]
[5,"kall sommar",8,"Oljelin",0]
[5,"kall sommar",8,"Rågvete",0]
[5,"kall sommar",8,"Sockerbetor",0]
[5,"kall sommar",8,"Spånadslin",0]
[5,"kall sommar",8,"Vall",0]
[5,"kall sommar",8,"Vårkorn",0]
[5,"kall sommar",8,"Vårraps",0]
[5,"kall sommar",8,"Vårrybs",0]
[5,"kall sommar",8,"Vårvete",0]
[5,"kall sommar",9,"Ärter",0]
[5,"kall sommar",9,"Gröngödsling",0]
[5,"kall sommar",9,"Havre",0]
[5,"kall sommar",9,"Höstkorn",0]
[5,"kall sommar",9,"Höstråg",0]
[5,"kall sommar",9,"Höstraps",0]
[5,"kall sommar",9,"Höstrybs",0]
[5,"kall sommar",9,"Höstvete",0]
[5,"kall sommar",9,"Industripot",0]
[5,"kall sommar",9,"Matpotatis",0]
[5,"kall sommar",9,"Oljelin",0]
[5,"kall sommar",9,"Rågvete",0]
[5,"kall sommar",9,"Sockerbetor",0]
[5,"kall sommar",9,"Spånadslin",0]
[5,"kall sommar",9,"Vall",0]
[5,"kall sommar",9,"Vårkorn",0]
[5,"kall sommar",9,"Vårraps",0]
[5,"kall sommar",9,"Vårrybs",0]
[5,"kall sommar",9,"Vårvete",0]
[5,"kall sommar",10,"Ärter",0]
[5,"kall sommar",10,"Gröngödsling",0]
[5,"kall sommar",10,"Havre",0]
[5,"kall sommar",10,"Höstkorn",0]
[5,"kall sommar",10,"Höstråg",0]
[5,"kall sommar",10,"Höstraps",0]
[5,"kall sommar",10,"Höstrybs",0]
[5,"kall sommar",10,"Höstvete",0]
[5,"kall sommar",10,"Industripot",0]
[5,"kall sommar",10,"Matpotatis",0]
[5,"kall sommar",10,"Oljelin",0]
[5,"kall sommar",10,"Rågvete",0]
[5,"kall sommar",10,"Sockerbetor",0]
[5,"kall sommar",10,"Spånadslin",0]
[5,"kall sommar",10,"Vall",0]
[5,"kall sommar",10,"Vårkorn",0]
[5,"kall sommar",10,"Vårraps",0]
[5,"kall sommar",10,"Vårrybs",0]
[5,"kall sommar",10,"Vårvete",0]
[5,"kall sommar",11,"Ärter",0]
[5,"kall sommar",11,"Gröngödsling",0]
[5,"kall sommar",11,"Havre",0]
[5,"kall sommar",11,"Industripot",0]
[5,"kall sommar",11,"Matpotatis",0]
[5,"kall sommar",11,"Oljelin",0]
[5,"kall sommar",11,"Spånadslin",0]
[5,"kall sommar",11,"Vall",0]
[5,"kall sommar",11,"Vårkorn",0]
[5,"kall sommar",11,"Vårraps",0]
[5,"kall sommar",11,"Vårrybs",0]
[5,"kall sommar",11,"Vårvete",0]
[5,"kall sommar",12,"Ärter",0]
[5,"kall sommar",12,"Gröngödsling",0]
[5,"kall sommar",12,"Havre",0]
[5,"kall sommar",12,"Oljelin",0]
[5,"kall sommar",12,"Spånadslin",0]
[5,"kall sommar",12,"Vall",0]
[5,"kall sommar",12,"Vårkorn",0]
[5,"kall sommar",12,"Vårraps",0]
[5,"kall sommar",12,"Vårrybs",0]
[5,"kall sommar",12,"Vårvete",0]
[5,"kall sommar",13,"Ärter",0]
[5,"kall sommar",13,"Gröngödsling",0]
[5,"kall sommar",13,"Havre",0]
[5,"kall sommar",13,"Industripot",0]
[5,"kall sommar",13,"Matpotatis",0]
[5,"kall sommar",13,"Oljelin",0]
[5,"kall sommar",13,"Spånadslin",0]
[5,"kall sommar",13,"Vall",0]
[5,"kall sommar",13,"Vårkorn",0]
[5,"kall sommar",13,"Vårraps",0]
[5,"kall sommar",13,"Vårrybs",0]
[5,"kall sommar",13,"Vårvete",0]
[5,"normal sommar",1,"Ärter",71]
[5,"normal sommar",1,"Gröngödsling",100]
[5,"normal sommar",1,"Havre",68]
[5,"normal sommar",1,"Höstkorn",49]
[5,"normal sommar",1,"Höstråg",68]
[5,"normal sommar",1,"Höstraps",68]
[5,"normal sommar",1,"Höstrybs",68]
[5,"normal sommar",1,"Höstvete",79]
[5,"normal sommar",1,"Oljelin",71]
[5,"normal sommar",1,"Rågvete",75]
[5,"normal sommar",1,"Spånadslin",71]
[5,"normal sommar",1,"Vall",100]
[5,"normal sommar",1,"Vårkorn",71]
[5,"normal sommar",1,"Vårraps",71]
[5,"normal sommar",1,"Vårrybs",71]
[5,"normal sommar",1,"Vårvete",71]
[5,"normal sommar",2,"Ärter",43]
[5,"normal sommar",2,"Gröngödsling",102]
[5,"normal sommar",2,"Havre",40]
[5,"normal sommar",2,"Höstkorn",36]
[5,"normal sommar",2,"Höstråg",55]
[5,"normal sommar",2,"Höstraps",55]
[5,"normal sommar",2,"Höstrybs",55]
[5,"normal sommar",2,"Höstvete",66]
[5,"normal sommar",2,"Oljelin",43]
[5,"normal sommar",2,"Rågvete",62]
[5,"normal sommar",2,"Spånadslin",43]
[5,"normal sommar",2,"Vall",102]
[5,"normal sommar",2,"Vårkorn",43]
[5,"normal sommar",2,"Vårraps",43]
[5,"normal sommar",2,"Vårrybs",43]
[5,"normal sommar",2,"Vårvete",43]
[5,"normal sommar",3,"Ärter",71]
[5,"normal sommar",3,"Gröngödsling",100]
[5,"normal sommar",3,"Havre",68]
[5,"normal sommar",3,"Höstkorn",50]
[5,"normal sommar",3,"Höstråg",69]
[5,"normal sommar",3,"Höstraps",69]
[5,"normal sommar",3,"Höstrybs",69]
[5,"normal sommar",3,"Höstvete",80]
[5,"normal sommar",3,"Oljelin",71]
[5,"normal sommar",3,"Rågvete",76]
[5,"normal sommar",3,"Spånadslin",71]
[5,"normal sommar",3,"Vall",100]
[5,"normal sommar",3,"Vårkorn",71]
[5,"normal sommar",3,"Vårraps",71]
[5,"normal sommar",3,"Vårrybs",71]
[5,"normal sommar",3,"Vårvete",71]
[5,"normal sommar",4,"Ärter",13]
[5,"normal sommar",4,"Gröngödsling",88]
[5,"normal sommar",4,"Havre",9]
[5,"normal sommar",4,"Höstkorn",22]
[5,"normal sommar",4,"Höstråg",41]
[5,"normal sommar",4,"Höstraps",41]
[5,"normal sommar",4,"Höstrybs",41]
[5,"normal sommar",4,"Höstvete",52]
[5,"normal sommar",4,"Oljelin",13]
[5,"normal sommar",4,"Rågvete",48]
[5,"normal sommar",4,"Spånadslin",13]
[5,"normal sommar",4,"Vall",88]
[5,"normal sommar",4,"Vårkorn",13]
[5,"normal sommar",4,"Vårraps",13]
[5,"normal sommar",4,"Vårrybs",13]
[5,"normal sommar",4,"Vårvete",13]
[5,"normal sommar",5,"Ärter",36]
[5,"normal sommar",5,"Gröngödsling",99]
[5,"normal sommar",5,"Havre",34]
[5,"normal sommar",5,"Höstkorn",32]
[5,"normal sommar",5,"Höstråg",51]
[5,"normal sommar",5,"Höstraps",51]
[5,"normal sommar",5,"Höstrybs",51]
[5,"normal sommar",5,"Höstvete",62]
[5,"normal sommar",5,"Oljelin",36]
[5,"normal sommar",5,"Rågvete",58]
[5,"normal sommar",5,"Sockerbetor",60]
[5,"normal sommar",5,"Spånadslin",36]
[5,"normal sommar",5,"Vall",99]
[5,"normal sommar",5,"Vårkorn",36]
[5,"normal sommar",5,"Vårraps",36]
[5,"normal sommar",5,"Vårrybs",36]
[5,"normal sommar",5,"Vårvete",36]
[5,"normal sommar",6,"Ärter",66]
[5,"normal sommar",6,"Gröngödsling",104]
[5,"normal sommar",6,"Havre",64]
[5,"normal sommar",6,"Höstkorn",46]
[5,"normal sommar",6,"Höstråg",65]
[5,"normal sommar",6,"Höstraps",65]
[5,"normal sommar",6,"Höstrybs",65]
[5,"normal sommar",6,"Höstvete",76]
[5,"normal sommar",6,"Oljelin",66]
[5,"normal sommar",6,"Rågvete",72]
[5,"normal sommar",6,"Sockerbetor",79]
[5,"normal sommar",6,"Spånadslin",66]
[5,"normal sommar",6,"Vall",104]
[5,"normal sommar",6,"Vårkorn",66]
[5,"normal sommar",6,"Vårraps",66]
[5,"normal sommar",6,"Vårrybs",66]
[5,"normal sommar",6,"Vårvete",66]
[5,"normal sommar",7,"Ärter",60]
[5,"normal sommar",7,"Gröngödsling",105]
[5,"normal sommar",7,"Havre",57]
[5,"normal sommar",7,"Höstkorn",39]
[5,"normal sommar",7,"Höstråg",58]
[5,"normal sommar",7,"Höstraps",58]
[5,"normal sommar",7,"Höstrybs",58]
[5,"normal sommar",7,"Höstvete",69]
[5,"normal sommar",7,"Industripot",21]
[5,"normal sommar",7,"Matpotatis",21]
[5,"normal sommar",7,"Oljelin",60]
[5,"normal sommar",7,"Rågvete",65]
[5,"normal sommar",7,"Sockerbetor",73]
[5,"normal sommar",7,"Spånadslin",60]
[5,"normal sommar",7,"Vall",105]
[5,"normal sommar",7,"Vårkorn",60]
[5,"normal sommar",7,"Vårraps",60]
[5,"normal sommar",7,"Vårrybs",60]
[5,"normal sommar",7,"Vårvete",60]
[5,"normal sommar",8,"Ärter",45]
[5,"normal sommar",8,"Gröngödsling",100]
[5,"normal sommar",8,"Havre",46]
[5,"normal sommar",8,"Höstkorn",36]
[5,"normal sommar",8,"Höstråg",55]
[5,"normal sommar",8,"Höstraps",55]
[5,"normal sommar",8,"Höstrybs",55]
[5,"normal sommar",8,"Höstvete",66]
[5,"normal sommar",8,"Industripot",0]
[5,"normal sommar",8,"Matpotatis",0]
[5,"normal sommar",8,"Oljelin",45]
[5,"normal sommar",8,"Rågvete",62]
[5,"normal sommar",8,"Sockerbetor",66]
[5,"normal sommar",8,"Spånadslin",45]
[5,"normal sommar",8,"Vall",100]
[5,"normal sommar",8,"Vårkorn",45]
[5,"normal sommar",8,"Vårraps",45]
[5,"normal sommar",8,"Vårrybs",45]
[5,"normal sommar",8,"Vårvete",45]
[5,"normal sommar",9,"Ärter",22]
[5,"normal sommar",9,"Gröngödsling",85]
[5,"normal sommar",9,"Havre",18]
[5,"normal sommar",9,"Höstkorn",23]
[5,"normal sommar",9,"Höstråg",42]
[5,"normal sommar",9,"Höstraps",42]
[5,"normal sommar",9,"Höstrybs",42]
[5,"normal sommar",9,"Höstvete",53]
[5,"normal sommar",9,"Industripot",0]
[5,"normal sommar",9,"Matpotatis",0]
[5,"normal sommar",9,"Oljelin",22]
[5,"normal sommar",9,"Rågvete",49]
[5,"normal sommar",9,"Sockerbetor",36]
[5,"normal sommar",9,"Spånadslin",22]
[5,"normal sommar",9,"Vall",85]
[5,"normal sommar",9,"Vårkorn",22]
[5,"normal sommar",9,"Vårraps",22]
[5,"normal sommar",9,"Vårrybs",22]
[5,"normal sommar",9,"Vårvete",22]
[5,"normal sommar",10,"Ärter",72]
[5,"normal sommar",10,"Gröngödsling",103]
[5,"normal sommar",10,"Havre",72]
[5,"normal sommar",10,"Höstkorn",47]
[5,"normal sommar",10,"Höstråg",66]
[5,"normal sommar",10,"Höstraps",66]
[5,"normal sommar",10,"Höstrybs",66]
[5,"normal sommar",10,"Höstvete",77]
[5,"normal sommar",10,"Industripot",44]
[5,"normal sommar",10,"Matpotatis",44]
[5,"normal sommar",10,"Oljelin",73]
[5,"normal sommar",10,"Rågvete",73]
[5,"normal sommar",10,"Sockerbetor",80]
[5,"normal sommar",10,"Spånadslin",70]
[5,"normal sommar",10,"Vall",103]
[5,"normal sommar",10,"Vårkorn",72]
[5,"normal sommar",10,"Vårraps",73]
[5,"normal sommar",10,"Vårrybs",73]
[5,"normal sommar",10,"Vårvete",73]
[5,"normal sommar",11,"Ärter",0]
[5,"normal sommar",11,"Gröngödsling",2]
[5,"normal sommar",11,"Havre",0]
[5,"normal sommar",11,"Industripot",0]
[5,"normal sommar",11,"Matpotatis",0]
[5,"normal sommar",11,"Oljelin",0]
[5,"normal sommar",11,"Spånadslin",0]
[5,"normal sommar",11,"Vall",2]
[5,"normal sommar",11,"Vårkorn",0]
[5,"normal sommar",11,"Vårraps",0]
[5,"normal sommar",11,"Vårrybs",0]
[5,"normal sommar",11,"Vårvete",0]
[5,"normal sommar",12,"Ärter",62]
[5,"normal sommar",12,"Gröngödsling",105]
[5,"normal sommar",12,"Havre",61]
[5,"normal sommar",12,"Oljelin",63]
[5,"normal sommar",12,"Spånadslin",60]
[5,"normal sommar",12,"Vall",105]
[5,"normal sommar",12,"Vårkorn",62]
[5,"normal sommar",12,"Vårraps",63]
[5,"normal sommar",12,"Vårrybs",63]
[5,"normal sommar",12,"Vårvete",63]
[5,"normal sommar",13,"Ärter",0]
[5,"normal sommar",13,"Gröngödsling",61]
[5,"normal sommar",13,"Havre",0]
[5,"normal sommar",13,"Industripot",0]
[5,"normal sommar",13,"Matpotatis",0]
[5,"normal sommar",13,"Oljelin",0]
[5,"normal sommar",13,"Spånadslin",0]
[5,"normal sommar",13,"Vall",61]
[5,"normal sommar",13,"Vårkorn",0]
[5,"normal sommar",13,"Vårraps",0]
[5,"normal sommar",13,"Vårrybs",0]
[5,"normal sommar",13,"Vårvete",0]
[5,"varm sommar",1,"Ärter",84]
[5,"varm sommar",1,"Gröngödsling",111]
[5,"varm sommar",1,"Havre",90]
[5,"varm sommar",1,"Höstkorn",54]
[5,"varm sommar",1,"Höstråg",73]
[5,"varm sommar",1,"Höstraps",73]
[5,"varm sommar",1,"Höstrybs",73]
[5,"varm sommar",1,"Höstvete",84]
[5,"varm sommar",1,"Oljelin",86]
[5,"varm sommar",1,"Rågvete",80]
[5,"varm sommar",1,"Spånadslin",82]
[5,"varm sommar",1,"Vall",111]
[5,"varm sommar",1,"Vårkorn",84]
[5,"varm sommar",1,"Vårraps",92]
[5,"varm sommar",1,"Vårrybs",89]
[5,"varm sommar",1,"Vårvete",92]
[5,"varm sommar",2,"Ärter",77]
[5,"varm sommar",2,"Gröngödsling",117]
[5,"varm sommar",2,"Havre",83]
[5,"varm sommar",2,"Höstkorn",47]
[5,"varm sommar",2,"Höstråg",66]
[5,"varm sommar",2,"Höstraps",66]
[5,"varm sommar",2,"Höstrybs",66]
[5,"varm sommar",2,"Höstvete",77]
[5,"varm sommar",2,"Oljelin",79]
[5,"varm sommar",2,"Rågvete",73]
[5,"varm sommar",2,"Spånadslin",75]
[5,"varm sommar",2,"Vall",117]
[5,"varm sommar",2,"Vårkorn",77]
[5,"varm sommar",2,"Vårraps",85]
[5,"varm sommar",2,"Vårrybs",82]
[5,"varm sommar",2,"Vårvete",85]
[5,"varm sommar",3,"Ärter",84]
[5,"varm sommar",3,"Gröngödsling",111]
[5,"varm sommar",3,"Havre",90]
[5,"varm sommar",3,"Höstkorn",54]
[5,"varm sommar",3,"Höstråg",73]
[5,"varm sommar",3,"Höstraps",73]
[5,"varm sommar",3,"Höstrybs",73]
[5,"varm sommar",3,"Höstvete",84]
[5,"varm sommar",3,"Oljelin",86]
[5,"varm sommar",3,"Rågvete",80]
[5,"varm sommar",3,"Spånadslin",82]
[5,"varm sommar",3,"Vall",111]
[5,"varm sommar",3,"Vårkorn",84]
[5,"varm sommar",3,"Vårraps",92]
[5,"varm sommar",3,"Vårrybs",89]
[5,"varm sommar",3,"Vårvete",92]
[5,"varm sommar",4,"Ärter",72]
[5,"varm sommar",4,"Gröngödsling",113]
[5,"varm sommar",4,"Havre",79]
[5,"varm sommar",4,"Höstkorn",42]
[5,"varm sommar",4,"Höstråg",61]
[5,"varm sommar",4,"Höstraps",61]
[5,"varm sommar",4,"Höstrybs",61]
[5,"varm sommar",4,"Höstvete",72]
[5,"varm sommar",4,"Oljelin",74]
[5,"varm sommar",4,"Rågvete",68]
[5,"varm sommar",4,"Spånadslin",70]
[5,"varm sommar",4,"Vall",113]
[5,"varm sommar",4,"Vårkorn",72]
[5,"varm sommar",4,"Vårraps",80]
[5,"varm sommar",4,"Vårrybs",77]
[5,"varm sommar",4,"Vårvete",80]
[5,"varm sommar",5,"Ärter",75]
[5,"varm sommar",5,"Gröngödsling",116]
[5,"varm sommar",5,"Havre",82]
[5,"varm sommar",5,"Höstkorn",46]
[5,"varm sommar",5,"Höstråg",65]
[5,"varm sommar",5,"Höstraps",65]
[5,"varm sommar",5,"Höstrybs",65]
[5,"varm sommar",5,"Höstvete",76]
[5,"varm sommar",5,"Oljelin",77]
[5,"varm sommar",5,"Rågvete",72]
[5,"varm sommar",5,"Sockerbetor",111]
[5,"varm sommar",5,"Spånadslin",73]
[5,"varm sommar",5,"Vall",116]
[5,"varm sommar",5,"Vårkorn",75]
[5,"varm sommar",5,"Vårraps",83]
[5,"varm sommar",5,"Vårrybs",80]
[5,"varm sommar",5,"Vårvete",83]
[5,"varm sommar",6,"Ärter",81]
[5,"varm sommar",6,"Gröngödsling",116]
[5,"varm sommar",6,"Havre",88]
[5,"varm sommar",6,"Höstkorn",52]
[5,"varm sommar",6,"Höstråg",71]
[5,"varm sommar",6,"Höstraps",71]
[5,"varm sommar",6,"Höstrybs",71]
[5,"varm sommar",6,"Höstvete",82]
[5,"varm sommar",6,"Oljelin",83]
[5,"varm sommar",6,"Rågvete",78]
[5,"varm sommar",6,"Sockerbetor",103]
[5,"varm sommar",6,"Spånadslin",79]
[5,"varm sommar",6,"Vall",116]
[5,"varm sommar",6,"Vårkorn",81]
[5,"varm sommar",6,"Vårraps",89]
[5,"varm sommar",6,"Vårrybs",86]
[5,"varm sommar",6,"Vårvete",89]
[5,"varm sommar",7,"Ärter",79]
[5,"varm sommar",7,"Gröngödsling",119]
[5,"varm sommar",7,"Havre",87]
[5,"varm sommar",7,"Höstkorn",49]
[5,"varm sommar",7,"Höstråg",68]
[5,"varm sommar",7,"Höstraps",68]
[5,"varm sommar",7,"Höstrybs",68]
[5,"varm sommar",7,"Höstvete",79]
[5,"varm sommar",7,"Industripot",82]
[5,"varm sommar",7,"Matpotatis",81]
[5,"varm sommar",7,"Oljelin",81]
[5,"varm sommar",7,"Rågvete",75]
[5,"varm sommar",7,"Sockerbetor",107]
[5,"varm sommar",7,"Spånadslin",77]
[5,"varm sommar",7,"Vall",119]
[5,"varm sommar",7,"Vårkorn",79]
[5,"varm sommar",7,"Vårraps",94]
[5,"varm sommar",7,"Vårrybs",84]
[5,"varm sommar",7,"Vårvete",89]
[5,"varm sommar",8,"Ärter",77]
[5,"varm sommar",8,"Gröngödsling",117]
[5,"varm sommar",8,"Havre",83]
[5,"varm sommar",8,"Höstkorn",47]
[5,"varm sommar",8,"Höstråg",66]
[5,"varm sommar",8,"Höstraps",66]
[5,"varm sommar",8,"Höstrybs",66]
[5,"varm sommar",8,"Höstvete",77]
[5,"varm sommar",8,"Industripot",65]
[5,"varm sommar",8,"Matpotatis",65]
[5,"varm sommar",8,"Oljelin",79]
[5,"varm sommar",8,"Rågvete",73]
[5,"varm sommar",8,"Sockerbetor",113]
[5,"varm sommar",8,"Spånadslin",75]
[5,"varm sommar",8,"Vall",117]
[5,"varm sommar",8,"Vårkorn",77]
[5,"varm sommar",8,"Vårraps",85]
[5,"varm sommar",8,"Vårrybs",82]
[5,"varm sommar",8,"Vårvete",85]
[5,"varm sommar",9,"Ärter",72]
[5,"varm sommar",9,"Gröngödsling",113]
[5,"varm sommar",9,"Havre",80]
[5,"varm sommar",9,"Höstkorn",42]
[5,"varm sommar",9,"Höstråg",61]
[5,"varm sommar",9,"Höstraps",61]
[5,"varm sommar",9,"Höstrybs",61]
[5,"varm sommar",9,"Höstvete",72]
[5,"varm sommar",9,"Industripot",77]
[5,"varm sommar",9,"Matpotatis",76]
[5,"varm sommar",9,"Oljelin",74]
[5,"varm sommar",9,"Rågvete",68]
[5,"varm sommar",9,"Sockerbetor",108]
[5,"varm sommar",9,"Spånadslin",70]
[5,"varm sommar",9,"Vall",113]
[5,"varm sommar",9,"Vårkorn",72]
[5,"varm sommar",9,"Vårraps",92]
[5,"varm sommar",9,"Vårrybs",77]
[5,"varm sommar",9,"Vårvete",82]
[5,"varm sommar",10,"Ärter",82]
[5,"varm sommar",10,"Gröngödsling",115]
[5,"varm sommar",10,"Havre",89]
[5,"varm sommar",10,"Höstkorn",53]
[5,"varm sommar",10,"Höstråg",72]
[5,"varm sommar",10,"Höstraps",72]
[5,"varm sommar",10,"Höstrybs",72]
[5,"varm sommar",10,"Höstvete",83]
[5,"varm sommar",10,"Industripot",81]
[5,"varm sommar",10,"Matpotatis",81]
[5,"varm sommar",10,"Oljelin",84]
[5,"varm sommar",10,"Rågvete",79]
[5,"varm sommar",10,"Sockerbetor",102]
[5,"varm sommar",10,"Spånadslin",80]
[5,"varm sommar",10,"Vall",115]
[5,"varm sommar",10,"Vårkorn",82]
[5,"varm sommar",10,"Vårraps",95]
[5,"varm sommar",10,"Vårrybs",87]
[5,"varm sommar",10,"Vårvete",90]
[5,"varm sommar",11,"Ärter",58]
[5,"varm sommar",11,"Gröngödsling",95]
[5,"varm sommar",11,"Havre",66]
[5,"varm sommar",11,"Industripot",71]
[5,"varm sommar",11,"Matpotatis",59]
[5,"varm sommar",11,"Oljelin",60]
[5,"varm sommar",11,"Spånadslin",56]
[5,"varm sommar",11,"Vall",95]
[5,"varm sommar",11,"Vårkorn",58]
[5,"varm sommar",11,"Vårraps",78]
[5,"varm sommar",11,"Vårrybs",63]
[5,"varm sommar",11,"Vårvete",68]
[5,"varm sommar",12,"Ärter",79]
[5,"varm sommar",12,"Gröngödsling",119]
[5,"varm sommar",12,"Havre",87]
[5,"varm sommar",12,"Oljelin",81]
[5,"varm sommar",12,"Spånadslin",77]
[5,"varm sommar",12,"Vall",119]
[5,"varm sommar",12,"Vårkorn",79]
[5,"varm sommar",12,"Vårraps",99]
[5,"varm sommar",12,"Vårrybs",84]
[5,"varm sommar",12,"Vårvete",89]
[5,"varm sommar",13,"Ärter",68]
[5,"varm sommar",13,"Gröngödsling",108]
[5,"varm sommar",13,"Havre",76]
[5,"varm sommar",13,"Industripot",84]
[5,"varm sommar",13,"Matpotatis",72]
[5,"varm sommar",13,"Oljelin",70]
[5,"varm sommar",13,"Spånadslin",66]
[5,"varm sommar",13,"Vall",108]
[5,"varm sommar",13,"Vårkorn",68]
[5,"varm sommar",13,"Vårraps",88]
[5,"varm sommar",13,"Vårrybs",73]
[5,"varm sommar",13,"Vårvete",78]
[6,"kall sommar",1,"Ärter",2]
[6,"kall sommar",1,"Gröngödsling",70]
[6,"kall sommar",1,"Havre",3]
[6,"kall sommar",1,"Höstkorn",65]
[6,"kall sommar",1,"Höstråg",66]
[6,"kall sommar",1,"Höstraps",66]
[6,"kall sommar",1,"Höstrybs",66]
[6,"kall sommar",1,"Höstvete",66]
[6,"kall sommar",1,"Oljelin",2]
[6,"kall sommar",1,"Rågvete",66]
[6,"kall sommar",1,"Spånadslin",2]
[6,"kall sommar",1,"Vall",70]
[6,"kall sommar",1,"Vårkorn",2]
[6,"kall sommar",1,"Vårraps",2]
[6,"kall sommar",1,"Vårrybs",2]
[6,"kall sommar",1,"Vårvete",9]
[6,"kall sommar",2,"Ärter",0]
[6,"kall sommar",2,"Gröngödsling",57]
[6,"kall sommar",2,"Havre",0]
[6,"kall sommar",2,"Höstkorn",45]
[6,"kall sommar",2,"Höstråg",45]
[6,"kall sommar",2,"Höstraps",45]
[6,"kall sommar",2,"Höstrybs",45]
[6,"kall sommar",2,"Höstvete",45]
[6,"kall sommar",2,"Oljelin",0]
[6,"kall sommar",2,"Rågvete",45]
[6,"kall sommar",2,"Spånadslin",0]
[6,"kall sommar",2,"Vall",57]
[6,"kall sommar",2,"Vårkorn",0]
[6,"kall sommar",2,"Vårraps",0]
[6,"kall sommar",2,"Vårrybs",0]
[6,"kall sommar",2,"Vårvete",0]
[6,"kall sommar",3,"Ärter",2]
[6,"kall sommar",3,"Gröngödsling",70]
[6,"kall sommar",3,"Havre",3]
[6,"kall sommar",3,"Höstkorn",65]
[6,"kall sommar",3,"Höstråg",67]
[6,"kall sommar",3,"Höstraps",67]
[6,"kall sommar",3,"Höstrybs",67]
[6,"kall sommar",3,"Höstvete",67]
[6,"kall sommar",3,"Oljelin",2]
[6,"kall sommar",3,"Rågvete",67]
[6,"kall sommar",3,"Spånadslin",2]
[6,"kall sommar",3,"Vall",70]
[6,"kall sommar",3,"Vårkorn",2]
[6,"kall sommar",3,"Vårraps",2]
[6,"kall sommar",3,"Vårrybs",2]
[6,"kall sommar",3,"Vårvete",9]
[6,"kall sommar",4,"Ärter",0]
[6,"kall sommar",4,"Gröngödsling",24]
[6,"kall sommar",4,"Havre",0]
[6,"kall sommar",4,"Höstkorn",20]
[6,"kall sommar",4,"Höstråg",20]
[6,"kall sommar",4,"Höstraps",20]
[6,"kall sommar",4,"Höstrybs",20]
[6,"kall sommar",4,"Höstvete",20]
[6,"kall sommar",4,"Oljelin",0]
[6,"kall sommar",4,"Rågvete",20]
[6,"kall sommar",4,"Spånadslin",0]
[6,"kall sommar",4,"Vall",24]
[6,"kall sommar",4,"Vårkorn",0]
[6,"kall sommar",4,"Vårraps",0]
[6,"kall sommar",4,"Vårrybs",0]
[6,"kall sommar",4,"Vårvete",0]
[6,"kall sommar",5,"Ärter",0]
[6,"kall sommar",5,"Gröngödsling",47]
[6,"kall sommar",5,"Havre",0]
[6,"kall sommar",5,"Höstkorn",38]
[6,"kall sommar",5,"Höstråg",38]
[6,"kall sommar",5,"Höstraps",38]
[6,"kall sommar",5,"Höstrybs",38]
[6,"kall sommar",5,"Höstvete",38]
[6,"kall sommar",5,"Oljelin",0]
[6,"kall sommar",5,"Rågvete",38]
[6,"kall sommar",5,"Spånadslin",0]
[6,"kall sommar",5,"Vall",47]
[6,"kall sommar",5,"Vårkorn",0]
[6,"kall sommar",5,"Vårraps",0]
[6,"kall sommar",5,"Vårrybs",0]
[6,"kall sommar",5,"Vårvete",0]
[6,"kall sommar",6,"Ärter",0]
[6,"kall sommar",6,"Gröngödsling",67]
[6,"kall sommar",6,"Havre",0]
[6,"kall sommar",6,"Höstkorn",63]
[6,"kall sommar",6,"Höstråg",66]
[6,"kall sommar",6,"Höstraps",66]
[6,"kall sommar",6,"Höstrybs",66]
[6,"kall sommar",6,"Höstvete",66]
[6,"kall sommar",6,"Oljelin",0]
[6,"kall sommar",6,"Rågvete",66]
[6,"kall sommar",6,"Spånadslin",0]
[6,"kall sommar",6,"Vall",67]
[6,"kall sommar",6,"Vårkorn",0]
[6,"kall sommar",6,"Vårraps",0]
[6,"kall sommar",6,"Vårrybs",0]
[6,"kall sommar",6,"Vårvete",2]
[6,"kall sommar",7,"Ärter",0]
[6,"kall sommar",7,"Gröngödsling",60]
[6,"kall sommar",7,"Havre",0]
[6,"kall sommar",7,"Höstkorn",56]
[6,"kall sommar",7,"Höstråg",60]
[6,"kall sommar",7,"Höstraps",60]
[6,"kall sommar",7,"Höstrybs",60]
[6,"kall sommar",7,"Höstvete",60]
[6,"kall sommar",7,"Industripot",0]
[6,"kall sommar",7,"Matpotatis",0]
[6,"kall sommar",7,"Oljelin",0]
[6,"kall sommar",7,"Rågvete",60]
[6,"kall sommar",7,"Spånadslin",0]
[6,"kall sommar",7,"Vall",60]
[6,"kall sommar",7,"Vårkorn",0]
[6,"kall sommar",7,"Vårraps",0]
[6,"kall sommar",7,"Vårrybs",0]
[6,"kall sommar",7,"Vårvete",0]
[6,"kall sommar",8,"Ärter",0]
[6,"kall sommar",8,"Gröngödsling",56]
[6,"kall sommar",8,"Havre",0]
[6,"kall sommar",8,"Höstkorn",49]
[6,"kall sommar",8,"Höstråg",51]
[6,"kall sommar",8,"Höstraps",51]
[6,"kall sommar",8,"Höstrybs",51]
[6,"kall sommar",8,"Höstvete",51]
[6,"kall sommar",8,"Industripot",0]
[6,"kall sommar",8,"Matpotatis",0]
[6,"kall sommar",8,"Oljelin",0]
[6,"kall sommar",8,"Rågvete",51]
[6,"kall sommar",8,"Spånadslin",0]
[6,"kall sommar",8,"Vall",56]
[6,"kall sommar",8,"Vårkorn",0]
[6,"kall sommar",8,"Vårraps",0]
[6,"kall sommar",8,"Vårrybs",0]
[6,"kall sommar",8,"Vårvete",0]
[6,"kall sommar",9,"Ärter",0]
[6,"kall sommar",9,"Gröngödsling",22]
[6,"kall sommar",9,"Havre",0]
[6,"kall sommar",9,"Höstkorn",25]
[6,"kall sommar",9,"Höstråg",25]
[6,"kall sommar",9,"Höstraps",25]
[6,"kall sommar",9,"Höstrybs",25]
[6,"kall sommar",9,"Höstvete",25]
[6,"kall sommar",9,"Industripot",0]
[6,"kall sommar",9,"Matpotatis",0]
[6,"kall sommar",9,"Oljelin",0]
[6,"kall sommar",9,"Rågvete",25]
[6,"kall sommar",9,"Spånadslin",0]
[6,"kall sommar",9,"Vall",22]
[6,"kall sommar",9,"Vårkorn",0]
[6,"kall sommar",9,"Vårraps",0]
[6,"kall sommar",9,"Vårrybs",0]
[6,"kall sommar",9,"Vårvete",0]
[6,"kall sommar",10,"Ärter",0]
[6,"kall sommar",10,"Gröngödsling",68]
[6,"kall sommar",10,"Havre",0]
[6,"kall sommar",10,"Höstkorn",63]
[6,"kall sommar",10,"Höstråg",67]
[6,"kall sommar",10,"Höstraps",67]
[6,"kall sommar",10,"Höstrybs",67]
[6,"kall sommar",10,"Höstvete",67]
[6,"kall sommar",10,"Industripot",0]
[6,"kall sommar",10,"Matpotatis",0]
[6,"kall sommar",10,"Oljelin",0]
[6,"kall sommar",10,"Rågvete",67]
[6,"kall sommar",10,"Spånadslin",0]
[6,"kall sommar",10,"Vall",68]
[6,"kall sommar",10,"Vårkorn",0]
[6,"kall sommar",10,"Vårraps",0]
[6,"kall sommar",10,"Vårrybs",0]
[6,"kall sommar",10,"Vårvete",5]
[6,"kall sommar",11,"Ärter",0]
[6,"kall sommar",11,"Gröngödsling",0]
[6,"kall sommar",11,"Havre",0]
[6,"kall sommar",11,"Industripot",0]
[6,"kall sommar",11,"Matpotatis",0]
[6,"kall sommar",11,"Oljelin",0]
[6,"kall sommar",11,"Spånadslin",0]
[6,"kall sommar",11,"Vall",0]
[6,"kall sommar",11,"Vårkorn",0]
[6,"kall sommar",11,"Vårraps",0]
[6,"kall sommar",11,"Vårrybs",0]
[6,"kall sommar",11,"Vårvete",0]
[6,"kall sommar",12,"Ärter",0]
[6,"kall sommar",12,"Gröngödsling",60]
[6,"kall sommar",12,"Havre",0]
[6,"kall sommar",12,"Oljelin",0]
[6,"kall sommar",12,"Spånadslin",0]
[6,"kall sommar",12,"Vall",60]
[6,"kall sommar",12,"Vårkorn",0]
[6,"kall sommar",12,"Vårraps",0]
[6,"kall sommar",12,"Vårrybs",0]
[6,"kall sommar",12,"Vårvete",0]
[6,"kall sommar",13,"Ärter",0]
[6,"kall sommar",13,"Gröngödsling",1]
[6,"kall sommar",13,"Havre",0]
[6,"kall sommar",13,"Industripot",0]
[6,"kall sommar",13,"Matpotatis",0]
[6,"kall sommar",13,"Oljelin",0]
[6,"kall sommar",13,"Spånadslin",0]
[6,"kall sommar",13,"Vall",1]
[6,"kall sommar",13,"Vårkorn",0]
[6,"kall sommar",13,"Vårraps",0]
[6,"kall sommar",13,"Vårrybs",0]
[6,"kall sommar",13,"Vårvete",0]
[6,"normal sommar",1,"Ärter",68]
[6,"normal sommar",1,"Gröngödsling",117]
[6,"normal sommar",1,"Havre",70]
[6,"normal sommar",1,"Höstkorn",67]
[6,"normal sommar",1,"Höstråg",86]
[6,"normal sommar",1,"Höstraps",86]
[6,"normal sommar",1,"Höstrybs",86]
[6,"normal sommar",1,"Höstvete",92]
[6,"normal sommar",1,"Oljelin",68]
[6,"normal sommar",1,"Rågvete",91]
[6,"normal sommar",1,"Spånadslin",68]
[6,"normal sommar",1,"Vall",117]
[6,"normal sommar",1,"Vårkorn",68]
[6,"normal sommar",1,"Vårraps",68]
[6,"normal sommar",1,"Vårrybs",68]
[6,"normal sommar",1,"Vårvete",71]
[6,"normal sommar",2,"Ärter",55]
[6,"normal sommar",2,"Gröngödsling",126]
[6,"normal sommar",2,"Havre",58]
[6,"normal sommar",2,"Höstkorn",56]
[6,"normal sommar",2,"Höstråg",75]
[6,"normal sommar",2,"Höstraps",75]
[6,"normal sommar",2,"Höstrybs",75]
[6,"normal sommar",2,"Höstvete",83]
[6,"normal sommar",2,"Oljelin",55]
[6,"normal sommar",2,"Rågvete",82]
[6,"normal sommar",2,"Spånadslin",55]
[6,"normal sommar",2,"Vall",126]
[6,"normal sommar",2,"Vårkorn",55]
[6,"normal sommar",2,"Vårraps",55]
[6,"normal sommar",2,"Vårrybs",55]
[6,"normal sommar",2,"Vårvete",57]
[6,"normal sommar",3,"Ärter",70]
[6,"normal sommar",3,"Gröngödsling",117]
[6,"normal sommar",3,"Havre",70]
[6,"normal sommar",3,"Höstkorn",67]
[6,"normal sommar",3,"Höstråg",86]
[6,"normal sommar",3,"Höstraps",86]
[6,"normal sommar",3,"Höstrybs",86]
[6,"normal sommar",3,"Höstvete",93]
[6,"normal sommar",3,"Oljelin",70]
[6,"normal sommar",3,"Rågvete",92]
[6,"normal sommar",3,"Spånadslin",70]
[6,"normal sommar",3,"Vall",117]
[6,"normal sommar",3,"Vårkorn",70]
[6,"normal sommar",3,"Vårraps",70]
[6,"normal sommar",3,"Vårrybs",70]
[6,"normal sommar",3,"Vårvete",72]
[6,"normal sommar",4,"Ärter",49]
[6,"normal sommar",4,"Gröngödsling",119]
[6,"normal sommar",4,"Havre",53]
[6,"normal sommar",4,"Höstkorn",51]
[6,"normal sommar",4,"Höstråg",70]
[6,"normal sommar",4,"Höstraps",70]
[6,"normal sommar",4,"Höstrybs",70]
[6,"normal sommar",4,"Höstvete",81]
[6,"normal sommar",4,"Oljelin",49]
[6,"normal sommar",4,"Rågvete",77]
[6,"normal sommar",4,"Spånadslin",49]
[6,"normal sommar",4,"Vall",119]
[6,"normal sommar",4,"Vårkorn",49]
[6,"normal sommar",4,"Vårraps",49]
[6,"normal sommar",4,"Vårrybs",49]
[6,"normal sommar",4,"Vårvete",54]
[6,"normal sommar",5,"Ärter",54]
[6,"normal sommar",5,"Gröngödsling",124]
[6,"normal sommar",5,"Havre",57]
[6,"normal sommar",5,"Höstkorn",54]
[6,"normal sommar",5,"Höstråg",73]
[6,"normal sommar",5,"Höstraps",73]
[6,"normal sommar",5,"Höstrybs",73]
[6,"normal sommar",5,"Höstvete",83]
[6,"normal sommar",5,"Oljelin",54]
[6,"normal sommar",5,"Rågvete",80]
[6,"normal sommar",5,"Spånadslin",54]
[6,"normal sommar",5,"Vall",124]
[6,"normal sommar",5,"Vårkorn",54]
[6,"normal sommar",5,"Vårraps",54]
[6,"normal sommar",5,"Vårrybs",54]
[6,"normal sommar",5,"Vårvete",60]
[6,"normal sommar",6,"Ärter",71]
[6,"normal sommar",6,"Gröngödsling",121]
[6,"normal sommar",6,"Havre",74]
[6,"normal sommar",6,"Höstkorn",64]
[6,"normal sommar",6,"Höstråg",83]
[6,"normal sommar",6,"Höstraps",83]
[6,"normal sommar",6,"Höstrybs",83]
[6,"normal sommar",6,"Höstvete",91]
[6,"normal sommar",6,"Oljelin",71]
[6,"normal sommar",6,"Rågvete",90]
[6,"normal sommar",6,"Spånadslin",71]
[6,"normal sommar",6,"Vall",121]
[6,"normal sommar",6,"Vårkorn",71]
[6,"normal sommar",6,"Vårraps",71]
[6,"normal sommar",6,"Vårrybs",71]
[6,"normal sommar",6,"Vårvete",70]
[6,"normal sommar",7,"Ärter",68]
[6,"normal sommar",7,"Gröngödsling",127]
[6,"normal sommar",7,"Havre",71]
[6,"normal sommar",7,"Höstkorn",60]
[6,"normal sommar",7,"Höstråg",79]
[6,"normal sommar",7,"Höstraps",79]
[6,"normal sommar",7,"Höstrybs",79]
[6,"normal sommar",7,"Höstvete",90]
[6,"normal sommar",7,"Industripot",55]
[6,"normal sommar",7,"Matpotatis",55]
[6,"normal sommar",7,"Oljelin",69]
[6,"normal sommar",7,"Rågvete",86]
[6,"normal sommar",7,"Spånadslin",69]
[6,"normal sommar",7,"Vall",127]
[6,"normal sommar",7,"Vårkorn",68]
[6,"normal sommar",7,"Vårraps",69]
[6,"normal sommar",7,"Vårrybs",69]
[6,"normal sommar",7,"Vårvete",73]
[6,"normal sommar",8,"Ärter",63]
[6,"normal sommar",8,"Gröngödsling",126]
[6,"normal sommar",8,"Havre",66]
[6,"normal sommar",8,"Höstkorn",56]
[6,"normal sommar",8,"Höstråg",75]
[6,"normal sommar",8,"Höstraps",75]
[6,"normal sommar",8,"Höstrybs",75]
[6,"normal sommar",8,"Höstvete",86]
[6,"normal sommar",8,"Industripot",23]
[6,"normal sommar",8,"Matpotatis",23]
[6,"normal sommar",8,"Oljelin",63]
[6,"normal sommar",8,"Rågvete",82]
[6,"normal sommar",8,"Spånadslin",63]
[6,"normal sommar",8,"Vall",126]
[6,"normal sommar",8,"Vårkorn",63]
[6,"normal sommar",8,"Vårraps",63]
[6,"normal sommar",8,"Vårrybs",63]
[6,"normal sommar",8,"Vårvete",64]
[6,"normal sommar",9,"Ärter",57]
[6,"normal sommar",9,"Gröngödsling",119]
[6,"normal sommar",9,"Havre",60]
[6,"normal sommar",9,"Höstkorn",51]
[6,"normal sommar",9,"Höstråg",70]
[6,"normal sommar",9,"Höstraps",70]
[6,"normal sommar",9,"Höstrybs",70]
[6,"normal sommar",9,"Höstvete",81]
[6,"normal sommar",9,"Industripot",11]
[6,"normal sommar",9,"Matpotatis",11]
[6,"normal sommar",9,"Oljelin",57]
[6,"normal sommar",9,"Rågvete",77]
[6,"normal sommar",9,"Spånadslin",57]
[6,"normal sommar",9,"Vall",119]
[6,"normal sommar",9,"Vårkorn",57]
[6,"normal sommar",9,"Vårraps",57]
[6,"normal sommar",9,"Vårrybs",57]
[6,"normal sommar",9,"Vårvete",63]
[6,"normal sommar",10,"Ärter",73]
[6,"normal sommar",10,"Gröngödsling",120]
[6,"normal sommar",10,"Havre",75]
[6,"normal sommar",10,"Höstkorn",64]
[6,"normal sommar",10,"Höstråg",83]
[6,"normal sommar",10,"Höstraps",83]
[6,"normal sommar",10,"Höstrybs",83]
[6,"normal sommar",10,"Höstvete",91]
[6,"normal sommar",10,"Industripot",61]
[6,"normal sommar",10,"Matpotatis",61]
[6,"normal sommar",10,"Oljelin",73]
[6,"normal sommar",10,"Rågvete",90]
[6,"normal sommar",10,"Spånadslin",73]
[6,"normal sommar",10,"Vall",120]
[6,"normal sommar",10,"Vårkorn",73]
[6,"normal sommar",10,"Vårraps",73]
[6,"normal sommar",10,"Vårrybs",73]
[6,"normal sommar",10,"Vårvete",78]
[6,"normal sommar",11,"Ärter",3]
[6,"normal sommar",11,"Gröngödsling",96]
[6,"normal sommar",11,"Havre",11]
[6,"normal sommar",11,"Industripot",0]
[6,"normal sommar",11,"Matpotatis",0]
[6,"normal sommar",11,"Oljelin",3]
[6,"normal sommar",11,"Spånadslin",3]
[6,"normal sommar",11,"Vall",96]
[6,"normal sommar",11,"Vårkorn",3]
[6,"normal sommar",11,"Vårraps",3]
[6,"normal sommar",11,"Vårrybs",3]
[6,"normal sommar",11,"Vårvete",19]
[6,"normal sommar",12,"Ärter",73]
[6,"normal sommar",12,"Gröngödsling",127]
[6,"normal sommar",12,"Havre",77]
[6,"normal sommar",12,"Oljelin",74]
[6,"normal sommar",12,"Spånadslin",74]
[6,"normal sommar",12,"Vall",127]
[6,"normal sommar",12,"Vårkorn",73]
[6,"normal sommar",12,"Vårraps",74]
[6,"normal sommar",12,"Vårrybs",74]
[6,"normal sommar",12,"Vårvete",79]
[6,"normal sommar",13,"Ärter",52]
[6,"normal sommar",13,"Gröngödsling",114]
[6,"normal sommar",13,"Havre",60]
[6,"normal sommar",13,"Industripot",0]
[6,"normal sommar",13,"Matpotatis",0]
[6,"normal sommar",13,"Oljelin",52]
[6,"normal sommar",13,"Spånadslin",52]
[6,"normal sommar",13,"Vall",114]
[6,"normal sommar",13,"Vårkorn",52]
[6,"normal sommar",13,"Vårraps",52]
[6,"normal sommar",13,"Vårrybs",52]
[6,"normal sommar",13,"Vårvete",60]
[6,"varm sommar",1,"Ärter",85]
[6,"varm sommar",1,"Gröngödsling",125]
[6,"varm sommar",1,"Havre",88]
[6,"varm sommar",1,"Höstkorn",67]
[6,"varm sommar",1,"Höstråg",86]
[6,"varm sommar",1,"Höstraps",86]
[6,"varm sommar",1,"Höstrybs",86]
[6,"varm sommar",1,"Höstvete",97]
[6,"varm sommar",1,"Oljelin",86]
[6,"varm sommar",1,"Rågvete",93]
[6,"varm sommar",1,"Spånadslin",86]
[6,"varm sommar",1,"Vall",125]
[6,"varm sommar",1,"Vårkorn",85]
[6,"varm sommar",1,"Vårraps",86]
[6,"varm sommar",1,"Vårrybs",86]
[6,"varm sommar",1,"Vårvete",90]
[6,"varm sommar",2,"Ärter",79]
[6,"varm sommar",2,"Gröngödsling",127]
[6,"varm sommar",2,"Havre",82]
[6,"varm sommar",2,"Höstkorn",58]
[6,"varm sommar",2,"Höstråg",77]
[6,"varm sommar",2,"Höstraps",77]
[6,"varm sommar",2,"Höstrybs",77]
[6,"varm sommar",2,"Höstvete",88]
[6,"varm sommar",2,"Oljelin",80]
[6,"varm sommar",2,"Rågvete",84]
[6,"varm sommar",2,"Spånadslin",80]
[6,"varm sommar",2,"Vall",127]
[6,"varm sommar",2,"Vårkorn",79]
[6,"varm sommar",2,"Vårraps",80]
[6,"varm sommar",2,"Vårrybs",80]
[6,"varm sommar",2,"Vårvete",85]
[6,"varm sommar",3,"Ärter",85]
[6,"varm sommar",3,"Gröngödsling",125]
[6,"varm sommar",3,"Havre",88]
[6,"varm sommar",3,"Höstkorn",67]
[6,"varm sommar",3,"Höstråg",86]
[6,"varm sommar",3,"Höstraps",86]
[6,"varm sommar",3,"Höstrybs",86]
[6,"varm sommar",3,"Höstvete",97]
[6,"varm sommar",3,"Oljelin",86]
[6,"varm sommar",3,"Rågvete",93]
[6,"varm sommar",3,"Spånadslin",86]
[6,"varm sommar",3,"Vall",125]
[6,"varm sommar",3,"Vårkorn",85]
[6,"varm sommar",3,"Vårraps",86]
[6,"varm sommar",3,"Vårrybs",86]
[6,"varm sommar",3,"Vårvete",90]
[6,"varm sommar",4,"Ärter",75]
[6,"varm sommar",4,"Gröngödsling",122]
[6,"varm sommar",4,"Havre",79]
[6,"varm sommar",4,"Höstkorn",54]
[6,"varm sommar",4,"Höstråg",73]
[6,"varm sommar",4,"Höstraps",73]
[6,"varm sommar",4,"Höstrybs",73]
[6,"varm sommar",4,"Höstvete",84]
[6,"varm sommar",4,"Oljelin",76]
[6,"varm sommar",4,"Rågvete",80]
[6,"varm sommar",4,"Spånadslin",76]
[6,"varm sommar",4,"Vall",122]
[6,"varm sommar",4,"Vårkorn",75]
[6,"varm sommar",4,"Vårraps",76]
[6,"varm sommar",4,"Vårrybs",76]
[6,"varm sommar",4,"Vårvete",81]
[6,"varm sommar",5,"Ärter",78]
[6,"varm sommar",5,"Gröngödsling",126]
[6,"varm sommar",5,"Havre",81]
[6,"varm sommar",5,"Höstkorn",56]
[6,"varm sommar",5,"Höstråg",75]
[6,"varm sommar",5,"Höstraps",75]
[6,"varm sommar",5,"Höstrybs",75]
[6,"varm sommar",5,"Höstvete",86]
[6,"varm sommar",5,"Oljelin",79]
[6,"varm sommar",5,"Rågvete",82]
[6,"varm sommar",5,"Spånadslin",79]
[6,"varm sommar",5,"Vall",126]
[6,"varm sommar",5,"Vårkorn",78]
[6,"varm sommar",5,"Vårraps",79]
[6,"varm sommar",5,"Vårrybs",79]
[6,"varm sommar",5,"Vårvete",83]
[6,"varm sommar",6,"Ärter",84]
[6,"varm sommar",6,"Gröngödsling",129]
[6,"varm sommar",6,"Havre",87]
[6,"varm sommar",6,"Höstkorn",64]
[6,"varm sommar",6,"Höstråg",83]
[6,"varm sommar",6,"Höstraps",83]
[6,"varm sommar",6,"Höstrybs",83]
[6,"varm sommar",6,"Höstvete",94]
[6,"varm sommar",6,"Oljelin",86]
[6,"varm sommar",6,"Rågvete",90]
[6,"varm sommar",6,"Spånadslin",85]
[6,"varm sommar",6,"Vall",129]
[6,"varm sommar",6,"Vårkorn",84]
[6,"varm sommar",6,"Vårraps",88]
[6,"varm sommar",6,"Vårrybs",85]
[6,"varm sommar",6,"Vårvete",90]
[6,"varm sommar",7,"Ärter",81]
[6,"varm sommar",7,"Gröngödsling",128]
[6,"varm sommar",7,"Havre",83]
[6,"varm sommar",7,"Höstkorn",60]
[6,"varm sommar",7,"Höstråg",79]
[6,"varm sommar",7,"Höstraps",79]
[6,"varm sommar",7,"Höstrybs",79]
[6,"varm sommar",7,"Höstvete",90]
[6,"varm sommar",7,"Industripot",80]
[6,"varm sommar",7,"Matpotatis",74]
[6,"varm sommar",7,"Oljelin",87]
[6,"varm sommar",7,"Rågvete",86]
[6,"varm sommar",7,"Spånadslin",83]
[6,"varm sommar",7,"Vall",128]
[6,"varm sommar",7,"Vårkorn",81]
[6,"varm sommar",7,"Vårraps",89]
[6,"varm sommar",7,"Vårrybs",86]
[6,"varm sommar",7,"Vårvete",93]
[6,"varm sommar",8,"Ärter",79]
[6,"varm sommar",8,"Gröngödsling",127]
[6,"varm sommar",8,"Havre",82]
[6,"varm sommar",8,"Höstkorn",58]
[6,"varm sommar",8,"Höstråg",77]
[6,"varm sommar",8,"Höstraps",77]
[6,"varm sommar",8,"Höstrybs",77]
[6,"varm sommar",8,"Höstvete",88]
[6,"varm sommar",8,"Industripot",65]
[6,"varm sommar",8,"Matpotatis",65]
[6,"varm sommar",8,"Oljelin",83]
[6,"varm sommar",8,"Rågvete",84]
[6,"varm sommar",8,"Spånadslin",80]
[6,"varm sommar",8,"Vall",127]
[6,"varm sommar",8,"Vårkorn",79]
[6,"varm sommar",8,"Vårraps",85]
[6,"varm sommar",8,"Vårrybs",82]
[6,"varm sommar",8,"Vårvete",89]
[6,"varm sommar",9,"Ärter",75]
[6,"varm sommar",9,"Gröngödsling",122]
[6,"varm sommar",9,"Havre",79]
[6,"varm sommar",9,"Höstkorn",54]
[6,"varm sommar",9,"Höstråg",73]
[6,"varm sommar",9,"Höstraps",73]
[6,"varm sommar",9,"Höstrybs",73]
[6,"varm sommar",9,"Höstvete",84]
[6,"varm sommar",9,"Industripot",74]
[6,"varm sommar",9,"Matpotatis",68]
[6,"varm sommar",9,"Oljelin",81]
[6,"varm sommar",9,"Rågvete",80]
[6,"varm sommar",9,"Spånadslin",77]
[6,"varm sommar",9,"Vall",122]
[6,"varm sommar",9,"Vårkorn",75]
[6,"varm sommar",9,"Vårraps",90]
[6,"varm sommar",9,"Vårrybs",80]
[6,"varm sommar",9,"Vårvete",89]
[6,"varm sommar",10,"Ärter",84]
[6,"varm sommar",10,"Gröngödsling",128]
[6,"varm sommar",10,"Havre",87]
[6,"varm sommar",10,"Höstkorn",64]
[6,"varm sommar",10,"Höstråg",83]
[6,"varm sommar",10,"Höstraps",83]
[6,"varm sommar",10,"Höstrybs",83]
[6,"varm sommar",10,"Höstvete",94]
[6,"varm sommar",10,"Industripot",82]
[6,"varm sommar",10,"Matpotatis",77]
[6,"varm sommar",10,"Oljelin",90]
[6,"varm sommar",10,"Rågvete",90]
[6,"varm sommar",10,"Spånadslin",86]
[6,"varm sommar",10,"Vall",128]
[6,"varm sommar",10,"Vårkorn",84]
[6,"varm sommar",10,"Vårraps",92]
[6,"varm sommar",10,"Vårrybs",89]
[6,"varm sommar",10,"Vårvete",96]
[6,"varm sommar",11,"Ärter",64]
[6,"varm sommar",11,"Gröngödsling",110]
[6,"varm sommar",11,"Havre",67]
[6,"varm sommar",11,"Industripot",65]
[6,"varm sommar",11,"Matpotatis",53]
[6,"varm sommar",11,"Oljelin",70]
[6,"varm sommar",11,"Spånadslin",66]
[6,"varm sommar",11,"Vall",110]
[6,"varm sommar",11,"Vårkorn",64]
[6,"varm sommar",11,"Vårraps",84]
[6,"varm sommar",11,"Vårrybs",69]
[6,"varm sommar",11,"Vårvete",77]
[6,"varm sommar",12,"Ärter",80]
[6,"varm sommar",12,"Gröngödsling",128]
[6,"varm sommar",12,"Havre",83]
[6,"varm sommar",12,"Oljelin",86]
[6,"varm sommar",12,"Spånadslin",82]
[6,"varm sommar",12,"Vall",128]
[6,"varm sommar",12,"Vårkorn",80]
[6,"varm sommar",12,"Vårraps",95]
[6,"varm sommar",12,"Vårrybs",85]
[6,"varm sommar",12,"Vårvete",94]
[6,"varm sommar",13,"Ärter",72]
[6,"varm sommar",13,"Gröngödsling",119]
[6,"varm sommar",13,"Havre",76]
[6,"varm sommar",13,"Industripot",77]
[6,"varm sommar",13,"Matpotatis",65]
[6,"varm sommar",13,"Oljelin",78]
[6,"varm sommar",13,"Spånadslin",74]
[6,"varm sommar",13,"Vall",119]
[6,"varm sommar",13,"Vårkorn",72]
[6,"varm sommar",13,"Vårraps",92]
[6,"varm sommar",13,"Vårrybs",77]
[6,"varm sommar",13,"Vårvete",87]
[7,"kall sommar",1,"Ärter",0]
[7,"kall sommar",1,"Gröngödsling",6]
[7,"kall sommar",1,"Havre",0]
[7,"kall sommar",1,"Oljelin",0]
[7,"kall sommar",1,"Spånadslin",0]
[7,"kall sommar",1,"Vall",6]
[7,"kall sommar",1,"Vårkorn",0]
[7,"kall sommar",1,"Vårraps",0]
[7,"kall sommar",1,"Vårrybs",0]
[7,"kall sommar",2,"Ärter",0]
[7,"kall sommar",2,"Gröngödsling",0]
[7,"kall sommar",2,"Havre",0]
[7,"kall sommar",2,"Oljelin",0]
[7,"kall sommar",2,"Spånadslin",0]
[7,"kall sommar",2,"Vall",0]
[7,"kall sommar",2,"Vårkorn",0]
[7,"kall sommar",2,"Vårraps",0]
[7,"kall sommar",2,"Vårrybs",0]
[7,"kall sommar",3,"Ärter",0]
[7,"kall sommar",3,"Gröngödsling",6]
[7,"kall sommar",3,"Havre",0]
[7,"kall sommar",3,"Oljelin",0]
[7,"kall sommar",3,"Spånadslin",0]
[7,"kall sommar",3,"Vall",6]
[7,"kall sommar",3,"Vårkorn",0]
[7,"kall sommar",3,"Vårraps",0]
[7,"kall sommar",3,"Vårrybs",0]
[7,"kall sommar",4,"Ärter",0]
[7,"kall sommar",4,"Gröngödsling",0]
[7,"kall sommar",4,"Havre",0]
[7,"kall sommar",4,"Oljelin",0]
[7,"kall sommar",4,"Spånadslin",0]
[7,"kall sommar",4,"Vall",0]
[7,"kall sommar",4,"Vårkorn",0]
[7,"kall sommar",4,"Vårraps",0]
[7,"kall sommar",4,"Vårrybs",0]
[7,"kall sommar",5,"Ärter",0]
[7,"kall sommar",5,"Gröngödsling",0]
[7,"kall sommar",5,"Havre",0]
[7,"kall sommar",5,"Oljelin",0]
[7,"kall sommar",5,"Spånadslin",0]
[7,"kall sommar",5,"Vall",0]
[7,"kall sommar",5,"Vårkorn",0]
[7,"kall sommar",5,"Vårraps",0]
[7,"kall sommar",5,"Vårrybs",0]
[7,"kall sommar",6,"Ärter",0]
[7,"kall sommar",6,"Gröngödsling",1]
[7,"kall sommar",6,"Havre",0]
[7,"kall sommar",6,"Oljelin",0]
[7,"kall sommar",6,"Spånadslin",0]
[7,"kall sommar",6,"Vall",1]
[7,"kall sommar",6,"Vårkorn",0]
[7,"kall sommar",6,"Vårraps",0]
[7,"kall sommar",6,"Vårrybs",0]
[7,"kall sommar",7,"Ärter",0]
[7,"kall sommar",7,"Gröngödsling",0]
[7,"kall sommar",7,"Havre",0]
[7,"kall sommar",7,"Industripot",0]
[7,"kall sommar",7,"Matpotatis",0]
[7,"kall sommar",7,"Oljelin",0]
[7,"kall sommar",7,"Spånadslin",0]
[7,"kall sommar",7,"Vall",0]
[7,"kall sommar",7,"Vårkorn",0]
[7,"kall sommar",7,"Vårraps",0]
[7,"kall sommar",7,"Vårrybs",0]
[7,"kall sommar",8,"Ärter",0]
[7,"kall sommar",8,"Gröngödsling",0]
[7,"kall sommar",8,"Havre",0]
[7,"kall sommar",8,"Industripot",0]
[7,"kall sommar",8,"Matpotatis",0]
[7,"kall sommar",8,"Oljelin",0]
[7,"kall sommar",8,"Spånadslin",0]
[7,"kall sommar",8,"Vall",0]
[7,"kall sommar",8,"Vårkorn",0]
[7,"kall sommar",8,"Vårraps",0]
[7,"kall sommar",8,"Vårrybs",0]
[7,"kall sommar",9,"Ärter",0]
[7,"kall sommar",9,"Gröngödsling",0]
[7,"kall sommar",9,"Havre",0]
[7,"kall sommar",9,"Industripot",0]
[7,"kall sommar",9,"Matpotatis",0]
[7,"kall sommar",9,"Oljelin",0]
[7,"kall sommar",9,"Spånadslin",0]
[7,"kall sommar",9,"Vall",0]
[7,"kall sommar",9,"Vårkorn",0]
[7,"kall sommar",9,"Vårraps",0]
[7,"kall sommar",9,"Vårrybs",0]
[7,"kall sommar",10,"Ärter",0]
[7,"kall sommar",10,"Gröngödsling",1]
[7,"kall sommar",10,"Havre",0]
[7,"kall sommar",10,"Industripot",0]
[7,"kall sommar",10,"Matpotatis",0]
[7,"kall sommar",10,"Oljelin",0]
[7,"kall sommar",10,"Spånadslin",0]
[7,"kall sommar",10,"Vall",1]
[7,"kall sommar",10,"Vårkorn",0]
[7,"kall sommar",10,"Vårraps",0]
[7,"kall sommar",10,"Vårrybs",0]
[7,"kall sommar",11,"Ärter",0]
[7,"kall sommar",11,"Gröngödsling",0]
[7,"kall sommar",11,"Havre",0]
[7,"kall sommar",11,"Industripot",0]
[7,"kall sommar",11,"Matpotatis",0]
[7,"kall sommar",11,"Oljelin",0]
[7,"kall sommar",11,"Spånadslin",0]
[7,"kall sommar",11,"Vall",0]
[7,"kall sommar",11,"Vårkorn",0]
[7,"kall sommar",11,"Vårraps",0]
[7,"kall sommar",11,"Vårrybs",0]
[7,"kall sommar",12,"Ärter",0]
[7,"kall sommar",12,"Gröngödsling",0]
[7,"kall sommar",12,"Havre",0]
[7,"kall sommar",12,"Oljelin",0]
[7,"kall sommar",12,"Spånadslin",0]
[7,"kall sommar",12,"Vall",0]
[7,"kall sommar",12,"Vårkorn",0]
[7,"kall sommar",12,"Vårraps",0]
[7,"kall sommar",12,"Vårrybs",0]
[7,"kall sommar",13,"Ärter",0]
[7,"kall sommar",13,"Gröngödsling",0]
[7,"kall sommar",13,"Havre",0]
[7,"kall sommar",13,"Industripot",0]
[7,"kall sommar",13,"Matpotatis",0]
[7,"kall sommar",13,"Oljelin",0]
[7,"kall sommar",13,"Spånadslin",0]
[7,"kall sommar",13,"Vall",0]
[7,"kall sommar",13,"Vårkorn",0]
[7,"kall sommar",13,"Vårraps",0]
[7,"kall sommar",13,"Vårrybs",0]
[7,"normal sommar",1,"Ärter",46]
[7,"normal sommar",1,"Gröngödsling",87]
[7,"normal sommar",1,"Havre",49]
[7,"normal sommar",1,"Oljelin",46]
[7,"normal sommar",1,"Spånadslin",46]
[7,"normal sommar",1,"Vall",87]
[7,"normal sommar",1,"Vårkorn",46]
[7,"normal sommar",1,"Vårraps",46]
[7,"normal sommar",1,"Vårrybs",46]
[7,"normal sommar",2,"Ärter",19]
[7,"normal sommar",2,"Gröngödsling",87]
[7,"normal sommar",2,"Havre",27]
[7,"normal sommar",2,"Oljelin",19]
[7,"normal sommar",2,"Spånadslin",19]
[7,"normal sommar",2,"Vall",87]
[7,"normal sommar",2,"Vårkorn",19]
[7,"normal sommar",2,"Vårraps",19]
[7,"normal sommar",2,"Vårrybs",19]
[7,"normal sommar",3,"Ärter",47]
[7,"normal sommar",3,"Gröngödsling",87]
[7,"normal sommar",3,"Havre",50]
[7,"normal sommar",3,"Oljelin",47]
[7,"normal sommar",3,"Spånadslin",47]
[7,"normal sommar",3,"Vall",87]
[7,"normal sommar",3,"Vårkorn",47]
[7,"normal sommar",3,"Vårraps",47]
[7,"normal sommar",3,"Vårrybs",47]
[7,"normal sommar",4,"Ärter",0]
[7,"normal sommar",4,"Gröngödsling",80]
[7,"normal sommar",4,"Havre",5]
[7,"normal sommar",4,"Oljelin",0]
[7,"normal sommar",4,"Spånadslin",0]
[7,"normal sommar",4,"Vall",80]
[7,"normal sommar",4,"Vårkorn",0]
[7,"normal sommar",4,"Vårraps",0]
[7,"normal sommar",4,"Vårrybs",0]
[7,"normal sommar",5,"Ärter",10]
[7,"normal sommar",5,"Gröngödsling",85]
[7,"normal sommar",5,"Havre",19]
[7,"normal sommar",5,"Oljelin",10]
[7,"normal sommar",5,"Spånadslin",10]
[7,"normal sommar",5,"Vall",85]
[7,"normal sommar",5,"Vårkorn",10]
[7,"normal sommar",5,"Vårraps",10]
[7,"normal sommar",5,"Vårrybs",10]
[7,"normal sommar",6,"Ärter",44]
[7,"normal sommar",6,"Gröngödsling",89]
[7,"normal sommar",6,"Havre",49]
[7,"normal sommar",6,"Oljelin",44]
[7,"normal sommar",6,"Spånadslin",44]
[7,"normal sommar",6,"Vall",89]
[7,"normal sommar",6,"Vårkorn",44]
[7,"normal sommar",6,"Vårraps",44]
[7,"normal sommar",6,"Vårrybs",44]
[7,"normal sommar",7,"Ärter",33]
[7,"normal sommar",7,"Gröngödsling",88]
[7,"normal sommar",7,"Havre",40]
[7,"normal sommar",7,"Industripot",0]
[7,"normal sommar",7,"Matpotatis",0]
[7,"normal sommar",7,"Oljelin",33]
[7,"normal sommar",7,"Spånadslin",33]
[7,"normal sommar",7,"Vall",88]
[7,"normal sommar",7,"Vårkorn",33]
[7,"normal sommar",7,"Vårraps",33]
[7,"normal sommar",7,"Vårrybs",33]
[7,"normal sommar",8,"Ärter",20]
[7,"normal sommar",8,"Gröngödsling",86]
[7,"normal sommar",8,"Havre",30]
[7,"normal sommar",8,"Industripot",0]
[7,"normal sommar",8,"Matpotatis",0]
[7,"normal sommar",8,"Oljelin",20]
[7,"normal sommar",8,"Spånadslin",20]
[7,"normal sommar",8,"Vall",86]
[7,"normal sommar",8,"Vårkorn",20]
[7,"normal sommar",8,"Vårraps",20]
[7,"normal sommar",8,"Vårrybs",20]
[7,"normal sommar",9,"Ärter",2]
[7,"normal sommar",9,"Gröngödsling",80]
[7,"normal sommar",9,"Havre",7]
[7,"normal sommar",9,"Industripot",0]
[7,"normal sommar",9,"Matpotatis",0]
[7,"normal sommar",9,"Oljelin",2]
[7,"normal sommar",9,"Spånadslin",2]
[7,"normal sommar",9,"Vall",80]
[7,"normal sommar",9,"Vårkorn",2]
[7,"normal sommar",9,"Vårraps",2]
[7,"normal sommar",9,"Vårrybs",2]
[7,"normal sommar",10,"Ärter",47]
[7,"normal sommar",10,"Gröngödsling",88]
[7,"normal sommar",10,"Havre",51]
[7,"normal sommar",10,"Industripot",14]
[7,"normal sommar",10,"Matpotatis",14]
[7,"normal sommar",10,"Oljelin",47]
[7,"normal sommar",10,"Spånadslin",47]
[7,"normal sommar",10,"Vall",88]
[7,"normal sommar",10,"Vårkorn",47]
[7,"normal sommar",10,"Vårraps",47]
[7,"normal sommar",10,"Vårrybs",47]
[7,"normal sommar",11,"Ärter",0]
[7,"normal sommar",11,"Gröngödsling",12]
[7,"normal sommar",11,"Havre",0]
[7,"normal sommar",11,"Industripot",0]
[7,"normal sommar",11,"Matpotatis",0]
[7,"normal sommar",11,"Oljelin",0]
[7,"normal sommar",11,"Spånadslin",0]
[7,"normal sommar",11,"Vall",12]
[7,"normal sommar",11,"Vårkorn",0]
[7,"normal sommar",11,"Vårraps",0]
[7,"normal sommar",11,"Vårrybs",0]
[7,"normal sommar",12,"Ärter",35]
[7,"normal sommar",12,"Gröngödsling",88]
[7,"normal sommar",12,"Havre",42]
[7,"normal sommar",12,"Oljelin",35]
[7,"normal sommar",12,"Spånadslin",35]
[7,"normal sommar",12,"Vall",88]
[7,"normal sommar",12,"Vårkorn",35]
[7,"normal sommar",12,"Vårraps",35]
[7,"normal sommar",12,"Vårrybs",35]
[7,"normal sommar",13,"Ärter",0]
[7,"normal sommar",13,"Gröngödsling",69]
[7,"normal sommar",13,"Havre",0]
[7,"normal sommar",13,"Industripot",0]
[7,"normal sommar",13,"Matpotatis",0]
[7,"normal sommar",13,"Oljelin",0]
[7,"normal sommar",13,"Spånadslin",0]
[7,"normal sommar",13,"Vall",69]
[7,"normal sommar",13,"Vårkorn",0]
[7,"normal sommar",13,"Vårraps",0]
[7,"normal sommar",13,"Vårrybs",0]
[7,"varm sommar",1,"Ärter",75]
[7,"varm sommar",1,"Gröngödsling",98]
[7,"varm sommar",1,"Havre",79]
[7,"varm sommar",1,"Oljelin",75]
[7,"varm sommar",1,"Spånadslin",75]
[7,"varm sommar",1,"Vall",98]
[7,"varm sommar",1,"Vårkorn",75]
[7,"varm sommar",1,"Vårraps",75]
[7,"varm sommar",1,"Vårrybs",75]
[7,"varm sommar",2,"Ärter",68]
[7,"varm sommar",2,"Gröngödsling",108]
[7,"varm sommar",2,"Havre",72]
[7,"varm sommar",2,"Oljelin",68]
[7,"varm sommar",2,"Spånadslin",68]
[7,"varm sommar",2,"Vall",108]
[7,"varm sommar",2,"Vårkorn",68]
[7,"varm sommar",2,"Vårraps",68]
[7,"varm sommar",2,"Vårrybs",68]
[7,"varm sommar",3,"Ärter",75]
[7,"varm sommar",3,"Gröngödsling",98]
[7,"varm sommar",3,"Havre",79]
[7,"varm sommar",3,"Oljelin",75]
[7,"varm sommar",3,"Spånadslin",75]
[7,"varm sommar",3,"Vall",98]
[7,"varm sommar",3,"Vårkorn",75]
[7,"varm sommar",3,"Vårraps",75]
[7,"varm sommar",3,"Vårrybs",75]
[7,"varm sommar",4,"Ärter",64]
[7,"varm sommar",4,"Gröngödsling",114]
[7,"varm sommar",4,"Havre",67]
[7,"varm sommar",4,"Oljelin",64]
[7,"varm sommar",4,"Spånadslin",64]
[7,"varm sommar",4,"Vall",114]
[7,"varm sommar",4,"Vårkorn",64]
[7,"varm sommar",4,"Vårraps",64]
[7,"varm sommar",4,"Vårrybs",64]
[7,"varm sommar",5,"Ärter",67]
[7,"varm sommar",5,"Gröngödsling",111]
[7,"varm sommar",5,"Havre",71]
[7,"varm sommar",5,"Oljelin",67]
[7,"varm sommar",5,"Spånadslin",67]
[7,"varm sommar",5,"Vall",111]
[7,"varm sommar",5,"Vårkorn",67]
[7,"varm sommar",5,"Vårraps",67]
[7,"varm sommar",5,"Vårrybs",67]
[7,"varm sommar",6,"Ärter",73]
[7,"varm sommar",6,"Gröngödsling",102]
[7,"varm sommar",6,"Havre",76]
[7,"varm sommar",6,"Oljelin",73]
[7,"varm sommar",6,"Spånadslin",73]
[7,"varm sommar",6,"Vall",102]
[7,"varm sommar",6,"Vårkorn",73]
[7,"varm sommar",6,"Vårraps",73]
[7,"varm sommar",6,"Vårrybs",73]
[7,"varm sommar",7,"Ärter",71]
[7,"varm sommar",7,"Gröngödsling",107]
[7,"varm sommar",7,"Havre",73]
[7,"varm sommar",7,"Industripot",63]
[7,"varm sommar",7,"Matpotatis",62]
[7,"varm sommar",7,"Oljelin",71]
[7,"varm sommar",7,"Spånadslin",71]
[7,"varm sommar",7,"Vall",107]
[7,"varm sommar",7,"Vårkorn",71]
[7,"varm sommar",7,"Vårraps",71]
[7,"varm sommar",7,"Vårrybs",71]
[7,"varm sommar",8,"Ärter",68]
[7,"varm sommar",8,"Gröngödsling",110]
[7,"varm sommar",8,"Havre",72]
[7,"varm sommar",8,"Industripot",52]
[7,"varm sommar",8,"Matpotatis",52]
[7,"varm sommar",8,"Oljelin",68]
[7,"varm sommar",8,"Spånadslin",68]
[7,"varm sommar",8,"Vall",110]
[7,"varm sommar",8,"Vårkorn",68]
[7,"varm sommar",8,"Vårraps",68]
[7,"varm sommar",8,"Vårrybs",68]
[7,"varm sommar",9,"Ärter",72]
[7,"varm sommar",9,"Gröngödsling",114]
[7,"varm sommar",9,"Havre",74]
[7,"varm sommar",9,"Industripot",57]
[7,"varm sommar",9,"Matpotatis",56]
[7,"varm sommar",9,"Oljelin",72]
[7,"varm sommar",9,"Spånadslin",72]
[7,"varm sommar",9,"Vall",114]
[7,"varm sommar",9,"Vårkorn",72]
[7,"varm sommar",9,"Vårraps",72]
[7,"varm sommar",9,"Vårrybs",72]
[7,"varm sommar",10,"Ärter",74]
[7,"varm sommar",10,"Gröngödsling",101]
[7,"varm sommar",10,"Havre",77]
[7,"varm sommar",10,"Industripot",63]
[7,"varm sommar",10,"Matpotatis",62]
[7,"varm sommar",10,"Oljelin",74]
[7,"varm sommar",10,"Spånadslin",74]
[7,"varm sommar",10,"Vall",101]
[7,"varm sommar",10,"Vårkorn",74]
[7,"varm sommar",10,"Vårraps",74]
[7,"varm sommar",10,"Vårrybs",74]
[7,"varm sommar",11,"Ärter",58]
[7,"varm sommar",11,"Gröngödsling",101]
[7,"varm sommar",11,"Havre",61]
[7,"varm sommar",11,"Industripot",30]
[7,"varm sommar",11,"Matpotatis",30]
[7,"varm sommar",11,"Oljelin",63]
[7,"varm sommar",11,"Spånadslin",61]
[7,"varm sommar",11,"Vall",101]
[7,"varm sommar",11,"Vårkorn",58]
[7,"varm sommar",11,"Vårraps",63]
[7,"varm sommar",11,"Vårrybs",63]
[7,"varm sommar",12,"Ärter",78]
[7,"varm sommar",12,"Gröngödsling",107]
[7,"varm sommar",12,"Havre",80]
[7,"varm sommar",12,"Oljelin",78]
[7,"varm sommar",12,"Spånadslin",78]
[7,"varm sommar",12,"Vall",107]
[7,"varm sommar",12,"Vårkorn",78]
[7,"varm sommar",12,"Vårraps",78]
[7,"varm sommar",12,"Vårrybs",78]
[7,"varm sommar",13,"Ärter",69]
[7,"varm sommar",13,"Gröngödsling",110]
[7,"varm sommar",13,"Havre",72]
[7,"varm sommar",13,"Industripot",60]
[7,"varm sommar",13,"Matpotatis",52]
[7,"varm sommar",13,"Oljelin",76]
[7,"varm sommar",13,"Spånadslin",72]
[7,"varm sommar",13,"Vall",110]
[7,"varm sommar",13,"Vårkorn",69]
[7,"varm sommar",13,"Vårraps",81]
[7,"varm sommar",13,"Vårrybs",74]
[8,"kall sommar",1,"Ärter",0]
[8,"kall sommar",1,"Gröngödsling",62]
[8,"kall sommar",1,"Havre",0]
[8,"kall sommar",1,"Oljelin",0]
[8,"kall sommar",1,"Spånadslin",0]
[8,"kall sommar",1,"Vall",62]
[8,"kall sommar",1,"Vårkorn",0]
[8,"kall sommar",1,"Vårraps",0]
[8,"kall sommar",1,"Vårrybs",0]
[8,"kall sommar",2,"Ärter",0]
[8,"kall sommar",2,"Gröngödsling",45]
[8,"kall sommar",2,"Havre",0]
[8,"kall sommar",2,"Oljelin",0]
[8,"kall sommar",2,"Spånadslin",0]
[8,"kall sommar",2,"Vall",45]
[8,"kall sommar",2,"Vårkorn",0]
[8,"kall sommar",2,"Vårraps",0]
[8,"kall sommar",2,"Vårrybs",0]
[8,"kall sommar",3,"Ärter",0]
[8,"kall sommar",3,"Gröngödsling",62]
[8,"kall sommar",3,"Havre",0]
[8,"kall sommar",3,"Oljelin",0]
[8,"kall sommar",3,"Spånadslin",0]
[8,"kall sommar",3,"Vall",62]
[8,"kall sommar",3,"Vårkorn",0]
[8,"kall sommar",3,"Vårraps",0]
[8,"kall sommar",3,"Vårrybs",0]
[8,"kall sommar",4,"Ärter",0]
[8,"kall sommar",4,"Gröngödsling",15]
[8,"kall sommar",4,"Havre",0]
[8,"kall sommar",4,"Oljelin",0]
[8,"kall sommar",4,"Spånadslin",0]
[8,"kall sommar",4,"Vall",15]
[8,"kall sommar",4,"Vårkorn",0]
[8,"kall sommar",4,"Vårraps",0]
[8,"kall sommar",4,"Vårrybs",0]
[8,"kall sommar",5,"Ärter",0]
[8,"kall sommar",5,"Gröngödsling",36]
[8,"kall sommar",5,"Havre",0]
[8,"kall sommar",5,"Oljelin",0]
[8,"kall sommar",5,"Spånadslin",0]
[8,"kall sommar",5,"Vall",36]
[8,"kall sommar",5,"Vårkorn",0]
[8,"kall sommar",5,"Vårraps",0]
[8,"kall sommar",5,"Vårrybs",0]
[8,"kall sommar",6,"Ärter",0]
[8,"kall sommar",6,"Gröngödsling",58]
[8,"kall sommar",6,"Havre",0]
[8,"kall sommar",6,"Oljelin",0]
[8,"kall sommar",6,"Spånadslin",0]
[8,"kall sommar",6,"Vall",58]
[8,"kall sommar",6,"Vårkorn",0]
[8,"kall sommar",6,"Vårraps",0]
[8,"kall sommar",6,"Vårrybs",0]
[8,"kall sommar",7,"Ärter",0]
[8,"kall sommar",7,"Gröngödsling",50]
[8,"kall sommar",7,"Havre",0]
[8,"kall sommar",7,"Industripot",0]
[8,"kall sommar",7,"Matpotatis",0]
[8,"kall sommar",7,"Oljelin",0]
[8,"kall sommar",7,"Spånadslin",0]
[8,"kall sommar",7,"Vall",50]
[8,"kall sommar",7,"Vårkorn",0]
[8,"kall sommar",7,"Vårraps",0]
[8,"kall sommar",7,"Vårrybs",0]
[8,"kall sommar",8,"Ärter",0]
[8,"kall sommar",8,"Gröngödsling",42]
[8,"kall sommar",8,"Havre",0]
[8,"kall sommar",8,"Industripot",0]
[8,"kall sommar",8,"Matpotatis",0]
[8,"kall sommar",8,"Oljelin",0]
[8,"kall sommar",8,"Spånadslin",0]
[8,"kall sommar",8,"Vall",42]
[8,"kall sommar",8,"Vårkorn",0]
[8,"kall sommar",8,"Vårraps",0]
[8,"kall sommar",8,"Vårrybs",0]
[8,"kall sommar",9,"Ärter",0]
[8,"kall sommar",9,"Gröngödsling",12]
[8,"kall sommar",9,"Havre",0]
[8,"kall sommar",9,"Industripot",0]
[8,"kall sommar",9,"Matpotatis",0]
[8,"kall sommar",9,"Oljelin",0]
[8,"kall sommar",9,"Spånadslin",0]
[8,"kall sommar",9,"Vall",12]
[8,"kall sommar",9,"Vårkorn",0]
[8,"kall sommar",9,"Vårraps",0]
[8,"kall sommar",9,"Vårrybs",0]
[8,"kall sommar",10,"Ärter",0]
[8,"kall sommar",10,"Gröngödsling",59]
[8,"kall sommar",10,"Havre",0]
[8,"kall sommar",10,"Industripot",0]
[8,"kall sommar",10,"Matpotatis",0]
[8,"kall sommar",10,"Oljelin",0]
[8,"kall sommar",10,"Spånadslin",0]
[8,"kall sommar",10,"Vall",59]
[8,"kall sommar",10,"Vårkorn",0]
[8,"kall sommar",10,"Vårraps",0]
[8,"kall sommar",10,"Vårrybs",0]
[8,"kall sommar",11,"Ärter",0]
[8,"kall sommar",11,"Gröngödsling",0]
[8,"kall sommar",11,"Havre",0]
[8,"kall sommar",11,"Industripot",0]
[8,"kall sommar",11,"Matpotatis",0]
[8,"kall sommar",11,"Oljelin",0]
[8,"kall sommar",11,"Spånadslin",0]
[8,"kall sommar",11,"Vall",0]
[8,"kall sommar",11,"Vårkorn",0]
[8,"kall sommar",11,"Vårraps",0]
[8,"kall sommar",11,"Vårrybs",0]
[8,"kall sommar",12,"Ärter",0]
[8,"kall sommar",12,"Gröngödsling",49]
[8,"kall sommar",12,"Havre",0]
[8,"kall sommar",12,"Oljelin",0]
[8,"kall sommar",12,"Spånadslin",0]
[8,"kall sommar",12,"Vall",49]
[8,"kall sommar",12,"Vårkorn",0]
[8,"kall sommar",12,"Vårraps",0]
[8,"kall sommar",12,"Vårrybs",0]
[8,"kall sommar",13,"Ärter",0]
[8,"kall sommar",13,"Gröngödsling",0]
[8,"kall sommar",13,"Havre",0]
[8,"kall sommar",13,"Industripot",0]
[8,"kall sommar",13,"Matpotatis",0]
[8,"kall sommar",13,"Oljelin",0]
[8,"kall sommar",13,"Spånadslin",0]
[8,"kall sommar",13,"Vall",0]
[8,"kall sommar",13,"Vårkorn",0]
[8,"kall sommar",13,"Vårraps",0]
[8,"kall sommar",13,"Vårrybs",0]
[8,"normal sommar",1,"Ärter",65]
[8,"normal sommar",1,"Gröngödsling",104]
[8,"normal sommar",1,"Havre",66]
[8,"normal sommar",1,"Oljelin",65]
[8,"normal sommar",1,"Spånadslin",65]
[8,"normal sommar",1,"Vall",104]
[8,"normal sommar",1,"Vårkorn",65]
[8,"normal sommar",1,"Vårraps",65]
[8,"normal sommar",1,"Vårrybs",65]
[8,"normal sommar",2,"Ärter",50]
[8,"normal sommar",2,"Gröngödsling",115]
[8,"normal sommar",2,"Havre",52]
[8,"normal sommar",2,"Oljelin",50]
[8,"normal sommar",2,"Spånadslin",50]
[8,"normal sommar",2,"Vall",115]
[8,"normal sommar",2,"Vårkorn",50]
[8,"normal sommar",2,"Vårraps",50]
[8,"normal sommar",2,"Vårrybs",50]
[8,"normal sommar",3,"Ärter",65]
[8,"normal sommar",3,"Gröngödsling",104]
[8,"normal sommar",3,"Havre",66]
[8,"normal sommar",3,"Oljelin",65]
[8,"normal sommar",3,"Spånadslin",65]
[8,"normal sommar",3,"Vall",104]
[8,"normal sommar",3,"Vårkorn",65]
[8,"normal sommar",3,"Vårraps",65]
[8,"normal sommar",3,"Vårrybs",65]
[8,"normal sommar",4,"Ärter",38]
[8,"normal sommar",4,"Gröngödsling",109]
[8,"normal sommar",4,"Havre",41]
[8,"normal sommar",4,"Oljelin",38]
[8,"normal sommar",4,"Spånadslin",38]
[8,"normal sommar",4,"Vall",109]
[8,"normal sommar",4,"Vårkorn",38]
[8,"normal sommar",4,"Vårraps",38]
[8,"normal sommar",4,"Vårrybs",38]
[8,"normal sommar",5,"Ärter",49]
[8,"normal sommar",5,"Gröngödsling",114]
[8,"normal sommar",5,"Havre",51]
[8,"normal sommar",5,"Oljelin",49]
[8,"normal sommar",5,"Spånadslin",49]
[8,"normal sommar",5,"Vall",114]
[8,"normal sommar",5,"Vårkorn",49]
[8,"normal sommar",5,"Vårraps",49]
[8,"normal sommar",5,"Vårrybs",49]
[8,"normal sommar",6,"Ärter",62]
[8,"normal sommar",6,"Gröngödsling",107]
[8,"normal sommar",6,"Havre",64]
[8,"normal sommar",6,"Oljelin",62]
[8,"normal sommar",6,"Spånadslin",62]
[8,"normal sommar",6,"Vall",107]
[8,"normal sommar",6,"Vårkorn",62]
[8,"normal sommar",6,"Vårraps",62]
[8,"normal sommar",6,"Vårrybs",62]
[8,"normal sommar",7,"Ärter",58]
[8,"normal sommar",7,"Gröngödsling",112]
[8,"normal sommar",7,"Havre",59]
[8,"normal sommar",7,"Industripot",14]
[8,"normal sommar",7,"Matpotatis",14]
[8,"normal sommar",7,"Oljelin",58]
[8,"normal sommar",7,"Spånadslin",58]
[8,"normal sommar",7,"Vall",112]
[8,"normal sommar",7,"Vårkorn",58]
[8,"normal sommar",7,"Vårraps",58]
[8,"normal sommar",7,"Vårrybs",58]
[8,"normal sommar",8,"Ärter",54]
[8,"normal sommar",8,"Gröngödsling",115]
[8,"normal sommar",8,"Havre",56]
[8,"normal sommar",8,"Industripot",0]
[8,"normal sommar",8,"Matpotatis",0]
[8,"normal sommar",8,"Oljelin",54]
[8,"normal sommar",8,"Spånadslin",54]
[8,"normal sommar",8,"Vall",115]
[8,"normal sommar",8,"Vårkorn",54]
[8,"normal sommar",8,"Vårraps",54]
[8,"normal sommar",8,"Vårrybs",54]
[8,"normal sommar",9,"Ärter",46]
[8,"normal sommar",9,"Gröngödsling",108]
[8,"normal sommar",9,"Havre",48]
[8,"normal sommar",9,"Industripot",0]
[8,"normal sommar",9,"Matpotatis",0]
[8,"normal sommar",9,"Oljelin",46]
[8,"normal sommar",9,"Spånadslin",46]
[8,"normal sommar",9,"Vall",108]
[8,"normal sommar",9,"Vårkorn",46]
[8,"normal sommar",9,"Vårraps",46]
[8,"normal sommar",9,"Vårrybs",46]
[8,"normal sommar",10,"Ärter",64]
[8,"normal sommar",10,"Gröngödsling",108]
[8,"normal sommar",10,"Havre",64]
[8,"normal sommar",10,"Industripot",38]
[8,"normal sommar",10,"Matpotatis",38]
[8,"normal sommar",10,"Oljelin",64]
[8,"normal sommar",10,"Spånadslin",64]
[8,"normal sommar",10,"Vall",108]
[8,"normal sommar",10,"Vårkorn",64]
[8,"normal sommar",10,"Vårraps",64]
[8,"normal sommar",10,"Vårrybs",64]
[8,"normal sommar",11,"Ärter",0]
[8,"normal sommar",11,"Gröngödsling",92]
[8,"normal sommar",11,"Havre",0]
[8,"normal sommar",11,"Industripot",0]
[8,"normal sommar",11,"Matpotatis",0]
[8,"normal sommar",11,"Oljelin",0]
[8,"normal sommar",11,"Spånadslin",0]
[8,"normal sommar",11,"Vall",92]
[8,"normal sommar",11,"Vårkorn",0]
[8,"normal sommar",11,"Vårraps",0]
[8,"normal sommar",11,"Vårrybs",0]
[8,"normal sommar",12,"Ärter",64]
[8,"normal sommar",12,"Gröngödsling",113]
[8,"normal sommar",12,"Havre",66]
[8,"normal sommar",12,"Oljelin",64]
[8,"normal sommar",12,"Spånadslin",64]
[8,"normal sommar",12,"Vall",113]
[8,"normal sommar",12,"Vårkorn",64]
[8,"normal sommar",12,"Vårraps",64]
[8,"normal sommar",12,"Vårrybs",64]
[8,"normal sommar",13,"Ärter",32]
[8,"normal sommar",13,"Gröngödsling",104]
[8,"normal sommar",13,"Havre",38]
[8,"normal sommar",13,"Industripot",0]
[8,"normal sommar",13,"Matpotatis",0]
[8,"normal sommar",13,"Oljelin",32]
[8,"normal sommar",13,"Spånadslin",32]
[8,"normal sommar",13,"Vall",104]
[8,"normal sommar",13,"Vårkorn",32]
[8,"normal sommar",13,"Vårraps",32]
[8,"normal sommar",13,"Vårrybs",32]
[8,"varm sommar",1,"Ärter",71]
[8,"varm sommar",1,"Gröngödsling",114]
[8,"varm sommar",1,"Havre",72]
[8,"varm sommar",1,"Oljelin",71]
[8,"varm sommar",1,"Spånadslin",71]
[8,"varm sommar",1,"Vall",114]
[8,"varm sommar",1,"Vårkorn",71]
[8,"varm sommar",1,"Vårraps",71]
[8,"varm sommar",1,"Vårrybs",71]
[8,"varm sommar",2,"Ärter",64]
[8,"varm sommar",2,"Gröngödsling",119]
[8,"varm sommar",2,"Havre",65]
[8,"varm sommar",2,"Oljelin",64]
[8,"varm sommar",2,"Spånadslin",64]
[8,"varm sommar",2,"Vall",119]
[8,"varm sommar",2,"Vårkorn",64]
[8,"varm sommar",2,"Vårraps",64]
[8,"varm sommar",2,"Vårrybs",64]
[8,"varm sommar",3,"Ärter",75]
[8,"varm sommar",3,"Gröngödsling",114]
[8,"varm sommar",3,"Havre",76]
[8,"varm sommar",3,"Oljelin",75]
[8,"varm sommar",3,"Spånadslin",75]
[8,"varm sommar",3,"Vall",114]
[8,"varm sommar",3,"Vårkorn",75]
[8,"varm sommar",3,"Vårraps",75]
[8,"varm sommar",3,"Vårrybs",75]
[8,"varm sommar",4,"Ärter",67]
[8,"varm sommar",4,"Gröngödsling",115]
[8,"varm sommar",4,"Havre",68]
[8,"varm sommar",4,"Oljelin",67]
[8,"varm sommar",4,"Spånadslin",67]
[8,"varm sommar",4,"Vall",115]
[8,"varm sommar",4,"Vårkorn",67]
[8,"varm sommar",4,"Vårraps",67]
[8,"varm sommar",4,"Vårrybs",67]
[8,"varm sommar",5,"Ärter",67]
[8,"varm sommar",5,"Gröngödsling",117]
[8,"varm sommar",5,"Havre",69]
[8,"varm sommar",5,"Oljelin",67]
[8,"varm sommar",5,"Spånadslin",67]
[8,"varm sommar",5,"Vall",117]
[8,"varm sommar",5,"Vårkorn",67]
[8,"varm sommar",5,"Vårraps",67]
[8,"varm sommar",5,"Vårrybs",67]
[8,"varm sommar",6,"Ärter",75]
[8,"varm sommar",6,"Gröngödsling",117]
[8,"varm sommar",6,"Havre",76]
[8,"varm sommar",6,"Oljelin",75]
[8,"varm sommar",6,"Spånadslin",75]
[8,"varm sommar",6,"Vall",117]
[8,"varm sommar",6,"Vårkorn",75]
[8,"varm sommar",6,"Vårraps",75]
[8,"varm sommar",6,"Vårrybs",75]
[8,"varm sommar",7,"Ärter",75]
[8,"varm sommar",7,"Gröngödsling",120]
[8,"varm sommar",7,"Havre",81]
[8,"varm sommar",7,"Industripot",60]
[8,"varm sommar",7,"Matpotatis",48]
[8,"varm sommar",7,"Oljelin",80]
[8,"varm sommar",7,"Spånadslin",80]
[8,"varm sommar",7,"Vall",120]
[8,"varm sommar",7,"Vårkorn",75]
[8,"varm sommar",7,"Vårraps",80]
[8,"varm sommar",7,"Vårrybs",80]
[8,"varm sommar",8,"Ärter",71]
[8,"varm sommar",8,"Gröngödsling",119]
[8,"varm sommar",8,"Havre",72]
[8,"varm sommar",8,"Industripot",46]
[8,"varm sommar",8,"Matpotatis",46]
[8,"varm sommar",8,"Oljelin",71]
[8,"varm sommar",8,"Spånadslin",71]
[8,"varm sommar",8,"Vall",119]
[8,"varm sommar",8,"Vårkorn",71]
[8,"varm sommar",8,"Vårraps",71]
[8,"varm sommar",8,"Vårrybs",71]
[8,"varm sommar",9,"Ärter",69]
[8,"varm sommar",9,"Gröngödsling",115]
[8,"varm sommar",9,"Havre",76]
[8,"varm sommar",9,"Industripot",53]
[8,"varm sommar",9,"Matpotatis",41]
[8,"varm sommar",9,"Oljelin",81]
[8,"varm sommar",9,"Spånadslin",79]
[8,"varm sommar",9,"Vall",115]
[8,"varm sommar",9,"Vårkorn",69]
[8,"varm sommar",9,"Vårraps",81]
[8,"varm sommar",9,"Vårrybs",74]
[8,"varm sommar",10,"Ärter",78]
[8,"varm sommar",10,"Gröngödsling",117]
[8,"varm sommar",10,"Havre",84]
[8,"varm sommar",10,"Industripot",65]
[8,"varm sommar",10,"Matpotatis",53]
[8,"varm sommar",10,"Oljelin",83]
[8,"varm sommar",10,"Spånadslin",83]
[8,"varm sommar",10,"Vall",117]
[8,"varm sommar",10,"Vårkorn",78]
[8,"varm sommar",10,"Vårraps",83]
[8,"varm sommar",10,"Vårrybs",83]
[8,"varm sommar",11,"Ärter",56]
[8,"varm sommar",11,"Gröngödsling",103]
[8,"varm sommar",11,"Havre",63]
[8,"varm sommar",11,"Industripot",23]
[8,"varm sommar",11,"Matpotatis",21]
[8,"varm sommar",11,"Oljelin",70]
[8,"varm sommar",11,"Spånadslin",66]
[8,"varm sommar",11,"Vall",103]
[8,"varm sommar",11,"Vårkorn",56]
[8,"varm sommar",11,"Vårraps",75]
[8,"varm sommar",11,"Vårrybs",61]
[8,"varm sommar",12,"Ärter",75]
[8,"varm sommar",12,"Gröngödsling",120]
[8,"varm sommar",12,"Havre",82]
[8,"varm sommar",12,"Oljelin",87]
[8,"varm sommar",12,"Spånadslin",85]
[8,"varm sommar",12,"Vall",120]
[8,"varm sommar",12,"Vårkorn",75]
[8,"varm sommar",12,"Vårraps",87]
[8,"varm sommar",12,"Vårrybs",80]
[8,"varm sommar",13,"Ärter",66]
[8,"varm sommar",13,"Gröngödsling",111]
[8,"varm sommar",13,"Havre",73]
[8,"varm sommar",13,"Industripot",49]
[8,"varm sommar",13,"Matpotatis",37]
[8,"varm sommar",13,"Oljelin",80]
[8,"varm sommar",13,"Spånadslin",76]
[8,"varm sommar",13,"Vall",111]
[8,"varm sommar",13,"Vårkorn",66]
[8,"varm sommar",13,"Vårraps",85]
[8,"varm sommar",13,"Vårrybs",71]